Workbook

Sheet MatchDay
B1: Division | C1: Southern Premier E | V1: Division/Venue | X1: 2012-05-06 | Y1: 2012-05-20 | Z1: 2012-06-17 | AB1: =INDIRECT(CONCATENATE("V",3)) -> Southern Premier NW | AC1: =INDIRECT(CONCATENATE("V",4)) -> Southern Premier S | AD1: =INDIRECT(CONCATENATE("V",5)) -> Southern Premier E | AE1: =INDIRECT(CONCATENATE("V",6)) -> Southern 1 SWS | AF1: =INDIRECT(CONCATENATE("V",7)) -> Southern 1 N | AG1: =INDIRECT(CONCATENATE("V",8)) -> Southern 1 NE | AH1: =INDIRECT(CONCATENATE("V",9)) -> Southern 1 SWN | AI1: =INDIRECT(CONCATENATE("V",10)) -> Southern 1 South | AJ1: =INDIRECT(CONCATENATE("V",11)) -> Southern 1 SE | AK1: =INDIRECT(CONCATENATE("V",12)) -> S2 London & East | AL1: =INDIRECT(CONCATENATE("V",13)) -> S2 South | AM1: =INDIRECT(CONCATENATE("V",14)) -> 0 | AN1: =INDIRECT(CONCATENATE("V",15)) -> 0 | AP1: Clubs
B3: Date | C3: 2012-05-06 | V3: Southern Premier NW | W3: 3 | X3: Lee Valley | Y3: Battersea Park | Z3: Bannister Park | AB3: Chiltern AC | AC3: Bracknell AC | AD3: Ashford AC | AE3: Bournemouth & Poole | AF3: Abingdon Amblers | AG3: Bexley AC | AH3: Aldershot Farnham & D | AI3: Crawley AC | AJ3: Brighton & Hove AC | AK3: Highgate Harriers | AL3: Dorking & Reigate Priory | AM3: - | AN3: - | AP3: =INDIRECT(CONCATENATE("aa",W3)) -> 0 | AR3: IF YOU NEED ANY HELP SETTING UP OR ON THE DAY PLEASE PHONE 07507 853112
V4: Southern Premier S | W4: 4 | X4: Bracknell Athletic Track | Y4: Palmer Park | Z4: Winchester Outdoor SC | AB4: Enfield & Haringey AC | AC4: Reading AC | AD4: Basildon AC | AE4: Camberley AC | AF4: Bedford & County AC | AG4: Cambridge Harriers | AH4: Kingston & Poly | AI4: Guildford & Godalming AC | AJ4: Eastbourne Rovers | AK4: London Heathside | AL4: Ealing Southall & M | AM4: - | AN4: - | AP4: 0
B5: Venue | C5: =IF(OR($C$3=0,$C$3=""),"",HLOOKUP($C$3,fixtures,VLOOKUP($C$1,fixtures,2,FALSE),FALSE)) -> Norman Park | V5: Southern Premier E | W5: 5 | X5: Norman Park | Y5: Croydon Sports Arena | Z5: Julie Rose Stadium | AB5: Harrow AC | AC5: Southampton AC | AD5: Blackheath & Bromley AC | AE5: Chichester Runners | AF5: Herts Phoenix AC | AG5: Dartford Harriers | AH5: South London Harriers | AI5: Holland Sport | AJ5: Hastings AC | AK5: Medway Park Phoenix | AL5: East Grinstead AC | AM5: - | AN5: - | AP5: 0
V6: Southern 1 SWS | W6: 6 | X6: King's Park | Y6: Spectrum Centre Guildford | Z6: Mountbatten Stadium | AB6: Herne Hill Harriers | AC6: Team Dorset | AD6: Croydon H | AE6: City of Portsmouth AC | AF6: Hillingdon AC | AG6: Ilford AC | AH6: St. Mary's Richmond | AI6: Horsham AC | AJ6: Lewes AC | AK6: Queens Park Harriers | AL6: Epsom & Ewell AC | AM6: - | AN6: - | AP6: 0
B7: Host | C7: =IF(OR($C$3=0,$C$3=""),"",HLOOKUP($C$3,fixtures,VLOOKUP($C$1,fixtures,2,FALSE)+15,FALSE)) -> Blackheath & Bromley | G7: =CONCATENATE("Points After ", AC13," Events") -> Points After 80 Events | V7: Southern 1 N | W7: 7 | X7: Bedford International Stadium | Y7: Westminster Lodge | Z7: Handycross | AB7: Shaftesbury Barnet H | AC7: Winchester & D AC | AD7: Havering Mayesbrook | AE7: Havant AC | AF7: St Albans Godfrey Davis AC | AG7: Newham & Essex Beagles | AH7: Thames Valley Harriers | AI7: Sutton AC | AJ7: Medway & Maidstone AC | AK7: Victoria Park & TH | AL7: Fleet & Crookham AC | AM7: - | AN7: - | AP7: 0
V8: Southern 1 NE | W8: 8 | X8: Erith | Y8: Sutcliffe Park | Z8: Walthamstow | AB8: Woodford Green w EL | AC8: WSE & H | AD8: Tonbridge AC | AE8: New Forest Juniors | AF8: Wycombe Phoenix AC | AG8: Orion Harriers | AH8: Walton AC | AI8: Woking AC | AJ8: Worthing & D H | AK8: - | AL8: - | AM8: - | AN8: - | AP8: 0
B9: Bib | C9: TEAM NAMES | E9: Abbreviated Name | G9: POINTS | M9: GRADES | R9: ATHLETES | V9: Southern 1 SWN | W9: 9 | X9: Kingsmeadow | Y9: Linford Christie Stadium | Z9: Military Stadium Aldershot | AB9: - | AC9: - | AD9: - | AE9: - | AF9: - | AG9: - | AH9: - | AI9: - | AJ9: - | AK9: - | AL9: - | AM9: - | AN9: - | AP9: 0
G10: Track | H10: Field | I10: Relays | J10: Officials | K10: Total | M10: 1 | N10: 2 | O10: 3 | P10: 4 | R10: Boys | S10: Girls | T10: Total | V10: Southern 1 South | W10: 10 | X10: Carshalton | Y10: Sheerwater Track | Z10: Spectrum Centre | AB10: - | AC10: - | AD10: - | AE10: - | AF10: - | AG10: - | AH10: - | AI10: - | AJ10: - | AK10: - | AL10: - | AM10: - | AN10: - | AP10: 0
B11: 1 | C11: =IF(OR($B11=0,$B11="",$C$1=0,$C$1="",HLOOKUP($C$1,fixtures,$B11+2,FALSE)="-"),"",HLOOKUP($C$1,fixtures,$B11+2,FALSE)) -> Ashford AC | E11: =IF(OR(C11=0,C11=""),"",VLOOKUP(C11,clubs,2,FALSE)) -> Ash | G11: =IF(OR($E11=0,$E11=""),"",SUMIFS(Track!$W:$W,Track!$E:$E,MatchDay!$E11)+SUMIFS(Track!$X:$X,Track!$L:$L,MatchDay!$E11)+SUMIFS(Track!$Y:$Y,Track!$S:$S,MatchDay!$E11)) -> 231 | H11: =IF(OR($E11=0,$E11=""),"",SUMIFS(Field!$W:$W,Field!$E:$E,MatchDay!$E11)+SUMIFS(Field!$X:$X,Field!$L:$L,MatchDay!$E11)+SUMIFS(Field!$Y:$Y,Field!$S:$S,MatchDay!$E11)) -> 272 | I11: =IF(OR($E11=0,$E11=""),"",SUMIFS(Relay!$K:$K,Relay!$H:$H,MatchDay!$E11)) -> 42 | J11: 60 | K11: =IF(OR(E11=0,E11=""),"",G11+H11+I11+J11) -> 605 | M11: =COUNTIFS(Track!$G:$G,MatchDay!M$10,Track!$E:$E,MatchDay!$E11)+COUNTIFS(Track!$N:$N,MatchDay!M$10,Track!$L:$L,MatchDay!$E11)+COUNTIFS(Track!$U:$U,MatchDay!M$10,Track!$S:$S,MatchDay!$E11)+COUNTIFS(Field!$G:$G,MatchDay!M$10,Field!$E:$E,MatchDay!$E11)+COUNTIFS(Field!$N:$N,MatchDay!M$10,Field!$L:$L,MatchDay!$E11)+COUNTIFS(Field!$U:$U,MatchDay!M$10,Field!$S:$S,MatchDay!$E11) -> 1 | N11: =COUNTIFS(Track!$G:$G,MatchDay!N$10,Track!$E:$E,MatchDay!$E11)+COUNTIFS(Track!$N:$N,MatchDay!N$10,Track!$L:$L,MatchDay!$E11)+COUNTIFS(Track!$U:$U,MatchDay!N$10,Track!$S:$S,MatchDay!$E11)+COUNTIFS(Field!$G:$G,MatchDay!N$10,Field!$E:$E,MatchDay!$E11)+COUNTIFS(Field!$N:$N,MatchDay!N$10,Field!$L:$L,MatchDay!$E11)+COUNTIFS(Field!$U:$U,MatchDay!N$10,Field!$S:$S,MatchDay!$E11) -> 4 | O11: =COUNTIFS(Track!$G:$G,MatchDay!O$10,Track!$E:$E,MatchDay!$E11)+COUNTIFS(Track!$N:$N,MatchDay!O$10,Track!$L:$L,MatchDay!$E11)+COUNTIFS(Track!$U:$U,MatchDay!O$10,Track!$S:$S,MatchDay!$E11)+COUNTIFS(Field!$G:$G,MatchDay!O$10,Field!$E:$E,MatchDay!$E11)+COUNTIFS(Field!$N:$N,MatchDay!O$10,Field!$L:$L,MatchDay!$E11)+COUNTIFS(Field!$U:$U,MatchDay!O$10,Field!$S:$S,MatchDay!$E11) -> 2 | P11: =COUNTIFS(Track!$G:$G,MatchDay!P$10,Track!$E:$E,MatchDay!$E11)+COUNTIFS(Track!$N:$N,MatchDay!P$10,Track!$L:$L,MatchDay!$E11)+COUNTIFS(Track!$U:$U,MatchDay!P$10,Track!$S:$S,MatchDay!$E11)+COUNTIFS(Field!$G:$G,MatchDay!P$10,Field!$E:$E,MatchDay!$E11)+COUNTIFS(Field!$N:$N,MatchDay!P$10,Field!$L:$L,MatchDay!$E11)+COUNTIFS(Field!$U:$U,MatchDay!P$10,Field!$S:$S,MatchDay!$E11) -> 15 | R11: ='Boys (Teams 1-4)'!$B$22+'Boys (Teams 1-4)'!$B$50+'Boys (Teams 1-4)'!$B$89 -> 23 | S11: ='Girls (Teams 1-4)'!$B$22+'Girls (Teams 1-4)'!$B$50+'Girls (Teams 1-4)'!$B$89 -> 26 | T11: =R11+S11 -> 49 | V11: Southern 1 SE | W11: 11 | X11: Sutton Valence School Maidstone | Y11: William Parker Sports College | Z11: Eastbourne Sports Park | AP11: =INDIRECT(CONCATENATE("ab",W3)) -> Chiltern AC | AQ11: Chil | AV11: =IF(OR(K11=0,K11=""),"",RANK(K11,$K$11:$K$22)) -> 4 | AW11: 1e-07 | AX11: =IF(OR(AV11=0,AV11=""),AW11,AV11+AW11) -> 4.0000001 | AY11: =RANK(AX11,$AX$11:$AX$28,0) -> 3 | AZ11: =C11 -> Ashford AC | BA11: =K11 -> 605 | BB11: =IF(OR(AY11=0,AY11=""),"",AV11) -> 4
V12: S2 London & East | W12: 12 | X12: Parliament Hill | Y12: Parliament Hill | Z12: Mile End | AB12: Match Number | AC12: =IF(DAY(C3)=6,0,IF(DAY(C3)=20,1,2)) -> 0 | AP12: Enfield & Haringey AC | AQ12: Enf&H
B13: 2 | C13: =IF(OR($B13=0,$B13="",$C$1=0,$C$1="",HLOOKUP($C$1,fixtures,$B13+2,FALSE)="-"),"",HLOOKUP($C$1,fixtures,$B13+2,FALSE)) -> Basildon AC | E13: =IF(OR(C13=0,C13=""),"",VLOOKUP(C13,clubs,2,FALSE)) -> Bas | G13: =IF(OR($E13=0,$E13=""),"",SUMIFS(Track!$W:$W,Track!$E:$E,MatchDay!$E13)+SUMIFS(Track!$X:$X,Track!$L:$L,MatchDay!$E13)+SUMIFS(Track!$Y:$Y,Track!$S:$S,MatchDay!$E13)) -> 227 | H13: =IF(OR($E13=0,$E13=""),"",SUMIFS(Field!$W:$W,Field!$E:$E,MatchDay!$E13)+SUMIFS(Field!$X:$X,Field!$L:$L,MatchDay!$E13)+SUMIFS(Field!$Y:$Y,Field!$S:$S,MatchDay!$E13)) -> 184.5 | I13: =IF(OR($E13=0,$E13=""),"",SUMIFS(Relay!$K:$K,Relay!$H:$H,MatchDay!$E13)) -> 24 | J13: 50 | K13: =IF(OR(E13=0,E13=""),"",G13+H13+I13+J13) -> 485.5 | M13: =COUNTIFS(Track!$G:$G,MatchDay!M$10,Track!$E:$E,MatchDay!$E13)+COUNTIFS(Track!$N:$N,MatchDay!M$10,Track!$L:$L,MatchDay!$E13)+COUNTIFS(Track!$U:$U,MatchDay!M$10,Track!$S:$S,MatchDay!$E13)+COUNTIFS(Field!$G:$G,MatchDay!M$10,Field!$E:$E,MatchDay!$E13)+COUNTIFS(Field!$N:$N,MatchDay!M$10,Field!$L:$L,MatchDay!$E13)+COUNTIFS(Field!$U:$U,MatchDay!M$10,Field!$S:$S,MatchDay!$E13) -> 1 | N13: =COUNTIFS(Track!$G:$G,MatchDay!N$10,Track!$E:$E,MatchDay!$E13)+COUNTIFS(Track!$N:$N,MatchDay!N$10,Track!$L:$L,MatchDay!$E13)+COUNTIFS(Track!$U:$U,MatchDay!N$10,Track!$S:$S,MatchDay!$E13)+COUNTIFS(Field!$G:$G,MatchDay!N$10,Field!$E:$E,MatchDay!$E13)+COUNTIFS(Field!$N:$N,MatchDay!N$10,Field!$L:$L,MatchDay!$E13)+COUNTIFS(Field!$U:$U,MatchDay!N$10,Field!$S:$S,MatchDay!$E13) -> 2 | O13: =COUNTIFS(Track!$G:$G,MatchDay!O$10,Track!$E:$E,MatchDay!$E13)+COUNTIFS(Track!$N:$N,MatchDay!O$10,Track!$L:$L,MatchDay!$E13)+COUNTIFS(Track!$U:$U,MatchDay!O$10,Track!$S:$S,MatchDay!$E13)+COUNTIFS(Field!$G:$G,MatchDay!O$10,Field!$E:$E,MatchDay!$E13)+COUNTIFS(Field!$N:$N,MatchDay!O$10,Field!$L:$L,MatchDay!$E13)+COUNTIFS(Field!$U:$U,MatchDay!O$10,Field!$S:$S,MatchDay!$E13) -> 4 | P13: =COUNTIFS(Track!$G:$G,MatchDay!P$10,Track!$E:$E,MatchDay!$E13)+COUNTIFS(Track!$N:$N,MatchDay!P$10,Track!$L:$L,MatchDay!$E13)+COUNTIFS(Track!$U:$U,MatchDay!P$10,Track!$S:$S,MatchDay!$E13)+COUNTIFS(Field!$G:$G,MatchDay!P$10,Field!$E:$E,MatchDay!$E13)+COUNTIFS(Field!$N:$N,MatchDay!P$10,Field!$L:$L,MatchDay!$E13)+COUNTIFS(Field!$U:$U,MatchDay!P$10,Field!$S:$S,MatchDay!$E13) -> 10 | R13: ='Boys (Teams 1-4)'!$V$22+'Boys (Teams 1-4)'!$V$50+'Boys (Teams 1-4)'!$V$89 -> 22 | S13: ='Girls (Teams 1-4)'!$V$22+'Girls (Teams 1-4)'!$V$50+'Girls (Teams 1-4)'!$V$89 -> 25 | T13: =R13+S13 -> 47 | V13: S2 South | W13: 13 | X13: Perivale | Y13: Broadbridge Heath | Z13: Kingsmeadow | AB13: No of Events | AC13: =Track!AA2+Field!AA2+Relay!AA2 -> 80 | AP13: Harrow AC | AQ13: Hrw | AV13: =IF(OR(K13=0,K13=""),"",RANK(K13,$K$11:$K$22)) -> 6 | AW13: 2e-07 | AX13: =IF(OR(AV13=0,AV13=""),AW13,AV13+AW13) -> 6.0000002 | AY13: =RANK(AX13,$AX$11:$AX$28,0) -> 1 | AZ13: =C13 -> Basildon AC | BA13: =K13 -> 485.5 | BB13: =IF(OR(AY13=0,AY13=""),"",AV13) -> 6
W14: 14 | AP14: Herne Hill Harriers | AQ14: HHH
B15: 3 | C15: =IF(OR($B15=0,$B15="",$C$1=0,$C$1="",HLOOKUP($C$1,fixtures,$B15+2,FALSE)="-"),"",HLOOKUP($C$1,fixtures,$B15+2,FALSE)) -> Blackheath & Bromley AC | E15: =IF(OR(C15=0,C15=""),"",VLOOKUP(C15,clubs,2,FALSE)) -> B&B | G15: =IF(OR($E15=0,$E15=""),"",SUMIFS(Track!$W:$W,Track!$E:$E,MatchDay!$E15)+SUMIFS(Track!$X:$X,Track!$L:$L,MatchDay!$E15)+SUMIFS(Track!$Y:$Y,Track!$S:$S,MatchDay!$E15)) -> 404 | H15: =IF(OR($E15=0,$E15=""),"",SUMIFS(Field!$W:$W,Field!$E:$E,MatchDay!$E15)+SUMIFS(Field!$X:$X,Field!$L:$L,MatchDay!$E15)+SUMIFS(Field!$Y:$Y,Field!$S:$S,MatchDay!$E15)) -> 382 | I15: =IF(OR($E15=0,$E15=""),"",SUMIFS(Relay!$K:$K,Relay!$H:$H,MatchDay!$E15)) -> 62 | J15: 60 | K15: =IF(OR(E15=0,E15=""),"",G15+H15+I15+J15) -> 908 | M15: =COUNTIFS(Track!$G:$G,MatchDay!M$10,Track!$E:$E,MatchDay!$E15)+COUNTIFS(Track!$N:$N,MatchDay!M$10,Track!$L:$L,MatchDay!$E15)+COUNTIFS(Track!$U:$U,MatchDay!M$10,Track!$S:$S,MatchDay!$E15)+COUNTIFS(Field!$G:$G,MatchDay!M$10,Field!$E:$E,MatchDay!$E15)+COUNTIFS(Field!$N:$N,MatchDay!M$10,Field!$L:$L,MatchDay!$E15)+COUNTIFS(Field!$U:$U,MatchDay!M$10,Field!$S:$S,MatchDay!$E15) -> 9 | N15: =COUNTIFS(Track!$G:$G,MatchDay!N$10,Track!$E:$E,MatchDay!$E15)+COUNTIFS(Track!$N:$N,MatchDay!N$10,Track!$L:$L,MatchDay!$E15)+COUNTIFS(Track!$U:$U,MatchDay!N$10,Track!$S:$S,MatchDay!$E15)+COUNTIFS(Field!$G:$G,MatchDay!N$10,Field!$E:$E,MatchDay!$E15)+COUNTIFS(Field!$N:$N,MatchDay!N$10,Field!$L:$L,MatchDay!$E15)+COUNTIFS(Field!$U:$U,MatchDay!N$10,Field!$S:$S,MatchDay!$E15) -> 5 | O15: =COUNTIFS(Track!$G:$G,MatchDay!O$10,Track!$E:$E,MatchDay!$E15)+COUNTIFS(Track!$N:$N,MatchDay!O$10,Track!$L:$L,MatchDay!$E15)+COUNTIFS(Track!$U:$U,MatchDay!O$10,Track!$S:$S,MatchDay!$E15)+COUNTIFS(Field!$G:$G,MatchDay!O$10,Field!$E:$E,MatchDay!$E15)+COUNTIFS(Field!$N:$N,MatchDay!O$10,Field!$L:$L,MatchDay!$E15)+COUNTIFS(Field!$U:$U,MatchDay!O$10,Field!$S:$S,MatchDay!$E15) -> 20 | P15: =COUNTIFS(Track!$G:$G,MatchDay!P$10,Track!$E:$E,MatchDay!$E15)+COUNTIFS(Track!$N:$N,MatchDay!P$10,Track!$L:$L,MatchDay!$E15)+COUNTIFS(Track!$U:$U,MatchDay!P$10,Track!$S:$S,MatchDay!$E15)+COUNTIFS(Field!$G:$G,MatchDay!P$10,Field!$E:$E,MatchDay!$E15)+COUNTIFS(Field!$N:$N,MatchDay!P$10,Field!$L:$L,MatchDay!$E15)+COUNTIFS(Field!$U:$U,MatchDay!P$10,Field!$S:$S,MatchDay!$E15) -> 23 | R15: ='Boys (Teams 1-4)'!$AP$22+'Boys (Teams 1-4)'!$AP$50+'Boys (Teams 1-4)'!$AP$89 -> 36 | S15: ='Girls (Teams 1-4)'!$AP$22+'Girls (Teams 1-4)'!$AP$50+'Girls (Teams 1-4)'!$AP$89 -> 44 | T15: =R15+S15 -> 80 | W15: 15 | AP15: Shaftesbury Barnet H | AQ15: SBH | AV15: =IF(OR(K15=0,K15=""),"",RANK(K15,$K$11:$K$22)) -> 1 | AW15: 3e-07 | AX15: =IF(OR(AV15=0,AV15=""),AW15,AV15+AW15) -> 1.0000003 | AY15: =RANK(AX15,$AX$11:$AX$28,0) -> 6 | AZ15: =C15 -> Blackheath & Bromley AC | BA15: =K15 -> 908 | BB15: =IF(OR(AY15=0,AY15=""),"",AV15) -> 1
AP16: Woodford Green w EL | AQ16: WGEL
B17: 4 | C17: =IF(OR($B17=0,$B17="",$C$1=0,$C$1="",HLOOKUP($C$1,fixtures,$B17+2,FALSE)="-"),"",HLOOKUP($C$1,fixtures,$B17+2,FALSE)) -> Croydon H | E17: =IF(OR(C17=0,C17=""),"",VLOOKUP(C17,clubs,2,FALSE)) -> Croy | G17: =IF(OR($E17=0,$E17=""),"",SUMIFS(Track!$W:$W,Track!$E:$E,MatchDay!$E17)+SUMIFS(Track!$X:$X,Track!$L:$L,MatchDay!$E17)+SUMIFS(Track!$Y:$Y,Track!$S:$S,MatchDay!$E17)) -> 390 | H17: =IF(OR($E17=0,$E17=""),"",SUMIFS(Field!$W:$W,Field!$E:$E,MatchDay!$E17)+SUMIFS(Field!$X:$X,Field!$L:$L,MatchDay!$E17)+SUMIFS(Field!$Y:$Y,Field!$S:$S,MatchDay!$E17)) -> 323.5 | I17: =IF(OR($E17=0,$E17=""),"",SUMIFS(Relay!$K:$K,Relay!$H:$H,MatchDay!$E17)) -> 61 | J17: 60 | K17: =IF(OR(E17=0,E17=""),"",G17+H17+I17+J17) -> 834.5 | M17: =COUNTIFS(Track!$G:$G,MatchDay!M$10,Track!$E:$E,MatchDay!$E17)+COUNTIFS(Track!$N:$N,MatchDay!M$10,Track!$L:$L,MatchDay!$E17)+COUNTIFS(Track!$U:$U,MatchDay!M$10,Track!$S:$S,MatchDay!$E17)+COUNTIFS(Field!$G:$G,MatchDay!M$10,Field!$E:$E,MatchDay!$E17)+COUNTIFS(Field!$N:$N,MatchDay!M$10,Field!$L:$L,MatchDay!$E17)+COUNTIFS(Field!$U:$U,MatchDay!M$10,Field!$S:$S,MatchDay!$E17) -> 8 | N17: =COUNTIFS(Track!$G:$G,MatchDay!N$10,Track!$E:$E,MatchDay!$E17)+COUNTIFS(Track!$N:$N,MatchDay!N$10,Track!$L:$L,MatchDay!$E17)+COUNTIFS(Track!$U:$U,MatchDay!N$10,Track!$S:$S,MatchDay!$E17)+COUNTIFS(Field!$G:$G,MatchDay!N$10,Field!$E:$E,MatchDay!$E17)+COUNTIFS(Field!$N:$N,MatchDay!N$10,Field!$L:$L,MatchDay!$E17)+COUNTIFS(Field!$U:$U,MatchDay!N$10,Field!$S:$S,MatchDay!$E17) -> 3 | O17: =COUNTIFS(Track!$G:$G,MatchDay!O$10,Track!$E:$E,MatchDay!$E17)+COUNTIFS(Track!$N:$N,MatchDay!O$10,Track!$L:$L,MatchDay!$E17)+COUNTIFS(Track!$U:$U,MatchDay!O$10,Track!$S:$S,MatchDay!$E17)+COUNTIFS(Field!$G:$G,MatchDay!O$10,Field!$E:$E,MatchDay!$E17)+COUNTIFS(Field!$N:$N,MatchDay!O$10,Field!$L:$L,MatchDay!$E17)+COUNTIFS(Field!$U:$U,MatchDay!O$10,Field!$S:$S,MatchDay!$E17) -> 11 | P17: =COUNTIFS(Track!$G:$G,MatchDay!P$10,Track!$E:$E,MatchDay!$E17)+COUNTIFS(Track!$N:$N,MatchDay!P$10,Track!$L:$L,MatchDay!$E17)+COUNTIFS(Track!$U:$U,MatchDay!P$10,Track!$S:$S,MatchDay!$E17)+COUNTIFS(Field!$G:$G,MatchDay!P$10,Field!$E:$E,MatchDay!$E17)+COUNTIFS(Field!$N:$N,MatchDay!P$10,Field!$L:$L,MatchDay!$E17)+COUNTIFS(Field!$U:$U,MatchDay!P$10,Field!$S:$S,MatchDay!$E17) -> 21 | R17: ='Boys (Teams 1-4)'!$BJ$22+'Boys (Teams 1-4)'!$BJ$50+'Boys (Teams 1-4)'!$BJ$89 -> 39 | S17: ='Girls (Teams 1-4)'!$BJ$22+'Girls (Teams 1-4)'!$BJ$50+'Girls (Teams 1-4)'!$BJ$89 -> 24 | T17: =R17+S17 -> 63 | X17: Hosts | AP17: - | AV17: =IF(OR(K17=0,K17=""),"",RANK(K17,$K$11:$K$22)) -> 2 | AW17: 4e-07 | AX17: =IF(OR(AV17=0,AV17=""),AW17,AV17+AW17) -> 2.0000004 | AY17: =RANK(AX17,$AX$11:$AX$28,0) -> 5 | AZ17: =C17 -> Croydon H | BA17: =K17 -> 834.5 | BB17: =IF(OR(AY17=0,AY17=""),"",AV17) -> 2
V18: =V3 -> Southern Premier NW | X18: Enfield & Haringey AC | Y18: Herne Hill Harriers | Z18: Harrow AC | AP18: -
B19: 5 | C19: =IF(OR($B19=0,$B19="",$C$1=0,$C$1="",HLOOKUP($C$1,fixtures,$B19+2,FALSE)="-"),"",HLOOKUP($C$1,fixtures,$B19+2,FALSE)) -> Havering Mayesbrook | E19: =IF(OR(C19=0,C19=""),"",VLOOKUP(C19,clubs,2,FALSE)) -> HavM | G19: =IF(OR($E19=0,$E19=""),"",SUMIFS(Track!$W:$W,Track!$E:$E,MatchDay!$E19)+SUMIFS(Track!$X:$X,Track!$L:$L,MatchDay!$E19)+SUMIFS(Track!$Y:$Y,Track!$S:$S,MatchDay!$E19)) -> 274 | H19: =IF(OR($E19=0,$E19=""),"",SUMIFS(Field!$W:$W,Field!$E:$E,MatchDay!$E19)+SUMIFS(Field!$X:$X,Field!$L:$L,MatchDay!$E19)+SUMIFS(Field!$Y:$Y,Field!$S:$S,MatchDay!$E19)) -> 193 | I19: =IF(OR($E19=0,$E19=""),"",SUMIFS(Relay!$K:$K,Relay!$H:$H,MatchDay!$E19)) -> 30 | J19: 60 | K19: =IF(OR(E19=0,E19=""),"",G19+H19+I19+J19) -> 557 | M19: =COUNTIFS(Track!$G:$G,MatchDay!M$10,Track!$E:$E,MatchDay!$E19)+COUNTIFS(Track!$N:$N,MatchDay!M$10,Track!$L:$L,MatchDay!$E19)+COUNTIFS(Track!$U:$U,MatchDay!M$10,Track!$S:$S,MatchDay!$E19)+COUNTIFS(Field!$G:$G,MatchDay!M$10,Field!$E:$E,MatchDay!$E19)+COUNTIFS(Field!$N:$N,MatchDay!M$10,Field!$L:$L,MatchDay!$E19)+COUNTIFS(Field!$U:$U,MatchDay!M$10,Field!$S:$S,MatchDay!$E19) -> 1 | N19: =COUNTIFS(Track!$G:$G,MatchDay!N$10,Track!$E:$E,MatchDay!$E19)+COUNTIFS(Track!$N:$N,MatchDay!N$10,Track!$L:$L,MatchDay!$E19)+COUNTIFS(Track!$U:$U,MatchDay!N$10,Track!$S:$S,MatchDay!$E19)+COUNTIFS(Field!$G:$G,MatchDay!N$10,Field!$E:$E,MatchDay!$E19)+COUNTIFS(Field!$N:$N,MatchDay!N$10,Field!$L:$L,MatchDay!$E19)+COUNTIFS(Field!$U:$U,MatchDay!N$10,Field!$S:$S,MatchDay!$E19) -> 1 | O19: =COUNTIFS(Track!$G:$G,MatchDay!O$10,Track!$E:$E,MatchDay!$E19)+COUNTIFS(Track!$N:$N,MatchDay!O$10,Track!$L:$L,MatchDay!$E19)+COUNTIFS(Track!$U:$U,MatchDay!O$10,Track!$S:$S,MatchDay!$E19)+COUNTIFS(Field!$G:$G,MatchDay!O$10,Field!$E:$E,MatchDay!$E19)+COUNTIFS(Field!$N:$N,MatchDay!O$10,Field!$L:$L,MatchDay!$E19)+COUNTIFS(Field!$U:$U,MatchDay!O$10,Field!$S:$S,MatchDay!$E19) -> 8 | P19: =COUNTIFS(Track!$G:$G,MatchDay!P$10,Track!$E:$E,MatchDay!$E19)+COUNTIFS(Track!$N:$N,MatchDay!P$10,Track!$L:$L,MatchDay!$E19)+COUNTIFS(Track!$U:$U,MatchDay!P$10,Track!$S:$S,MatchDay!$E19)+COUNTIFS(Field!$G:$G,MatchDay!P$10,Field!$E:$E,MatchDay!$E19)+COUNTIFS(Field!$N:$N,MatchDay!P$10,Field!$L:$L,MatchDay!$E19)+COUNTIFS(Field!$U:$U,MatchDay!P$10,Field!$S:$S,MatchDay!$E19) -> 15 | R19: ='Boys (Teams 5-8)'!$B$22+'Boys (Teams 5-8)'!$B$50+'Boys (Teams 5-8)'!$B$89 -> 23 | S19: ='Girls (Teams 5-8)'!$B$22+'Girls (Teams 5-8)'!$B$50+'Girls (Teams 5-8)'!$B$89 -> 28 | T19: =R19+S19 -> 51 | V19: =V4 -> Southern Premier S | X19: Bracknell AC | Y19: Reading AC | Z19: Winchester & D AC | AP19: =INDIRECT(CONCATENATE("ac",W3)) -> Bracknell AC | AQ19: Brack | AV19: =IF(OR(K19=0,K19=""),"",RANK(K19,$K$11:$K$22)) -> 5 | AW19: 5e-07 | AX19: =IF(OR(AV19=0,AV19=""),AW19,AV19+AW19) -> 5.0000005 | AY19: =RANK(AX19,$AX$11:$AX$28,0) -> 2 | AZ19: =C19 -> Havering Mayesbrook | BA19: =K19 -> 557 | BB19: =IF(OR(AY19=0,AY19=""),"",AV19) -> 5
V20: Southern Premier E | X20: Blackheath & Bromley | Y20: Croydon H | Z20: Ashford AC | AP20: Reading AC | AQ20: Read
B21: 6 | C21: =IF(OR($B21=0,$B21="",$C$1=0,$C$1="",HLOOKUP($C$1,fixtures,$B21+2,FALSE)="-"),"",HLOOKUP($C$1,fixtures,$B21+2,FALSE)) -> Tonbridge AC | E21: =IF(OR(C21=0,C21=""),"",VLOOKUP(C21,clubs,2,FALSE)) -> Ton | G21: =IF(OR($E21=0,$E21=""),"",SUMIFS(Track!$W:$W,Track!$E:$E,MatchDay!$E21)+SUMIFS(Track!$X:$X,Track!$L:$L,MatchDay!$E21)+SUMIFS(Track!$Y:$Y,Track!$S:$S,MatchDay!$E21)) -> 380 | H21: =IF(OR($E21=0,$E21=""),"",SUMIFS(Field!$W:$W,Field!$E:$E,MatchDay!$E21)+SUMIFS(Field!$X:$X,Field!$L:$L,MatchDay!$E21)+SUMIFS(Field!$Y:$Y,Field!$S:$S,MatchDay!$E21)) -> 321 | I21: =IF(OR($E21=0,$E21=""),"",SUMIFS(Relay!$K:$K,Relay!$H:$H,MatchDay!$E21)) -> 53 | J21: 60 | K21: =IF(OR(E21=0,E21=""),"",G21+H21+I21+J21) -> 814 | M21: =COUNTIFS(Track!$G:$G,MatchDay!M$10,Track!$E:$E,MatchDay!$E21)+COUNTIFS(Track!$N:$N,MatchDay!M$10,Track!$L:$L,MatchDay!$E21)+COUNTIFS(Track!$U:$U,MatchDay!M$10,Track!$S:$S,MatchDay!$E21)+COUNTIFS(Field!$G:$G,MatchDay!M$10,Field!$E:$E,MatchDay!$E21)+COUNTIFS(Field!$N:$N,MatchDay!M$10,Field!$L:$L,MatchDay!$E21)+COUNTIFS(Field!$U:$U,MatchDay!M$10,Field!$S:$S,MatchDay!$E21) -> 3 | N21: =COUNTIFS(Track!$G:$G,MatchDay!N$10,Track!$E:$E,MatchDay!$E21)+COUNTIFS(Track!$N:$N,MatchDay!N$10,Track!$L:$L,MatchDay!$E21)+COUNTIFS(Track!$U:$U,MatchDay!N$10,Track!$S:$S,MatchDay!$E21)+COUNTIFS(Field!$G:$G,MatchDay!N$10,Field!$E:$E,MatchDay!$E21)+COUNTIFS(Field!$N:$N,MatchDay!N$10,Field!$L:$L,MatchDay!$E21)+COUNTIFS(Field!$U:$U,MatchDay!N$10,Field!$S:$S,MatchDay!$E21) -> 4 | O21: =COUNTIFS(Track!$G:$G,MatchDay!O$10,Track!$E:$E,MatchDay!$E21)+COUNTIFS(Track!$N:$N,MatchDay!O$10,Track!$L:$L,MatchDay!$E21)+COUNTIFS(Track!$U:$U,MatchDay!O$10,Track!$S:$S,MatchDay!$E21)+COUNTIFS(Field!$G:$G,MatchDay!O$10,Field!$E:$E,MatchDay!$E21)+COUNTIFS(Field!$N:$N,MatchDay!O$10,Field!$L:$L,MatchDay!$E21)+COUNTIFS(Field!$U:$U,MatchDay!O$10,Field!$S:$S,MatchDay!$E21) -> 15 | P21: =COUNTIFS(Track!$G:$G,MatchDay!P$10,Track!$E:$E,MatchDay!$E21)+COUNTIFS(Track!$N:$N,MatchDay!P$10,Track!$L:$L,MatchDay!$E21)+COUNTIFS(Track!$U:$U,MatchDay!P$10,Track!$S:$S,MatchDay!$E21)+COUNTIFS(Field!$G:$G,MatchDay!P$10,Field!$E:$E,MatchDay!$E21)+COUNTIFS(Field!$N:$N,MatchDay!P$10,Field!$L:$L,MatchDay!$E21)+COUNTIFS(Field!$U:$U,MatchDay!P$10,Field!$S:$S,MatchDay!$E21) -> 25 | R21: ='Boys (Teams 5-8)'!$V$22+'Boys (Teams 5-8)'!$V$50+'Boys (Teams 5-8)'!$V$89 -> 37 | S21: ='Girls (Teams 5-8)'!$V$22+'Girls (Teams 5-8)'!$V$50+'Girls (Teams 5-8)'!$V$89 -> 30 | T21: =R21+S21 -> 67 | V21: Southern 1 SWS | X21: Bournemouth & Poole | Y21: Camberley AC | Z21: Havant AC | AP21: Southampton AC | AQ21: Soton | AV21: =IF(OR(K21=0,K21=""),"",RANK(K21,$K$11:$K$22)) -> 3 | AW21: 6e-07 | AX21: =IF(OR(AV21=0,AV21=""),AW21,AV21+AW21) -> 3.0000006 | AY21: =RANK(AX21,$AX$11:$AX$28,0) -> 4 | AZ21: =C21 -> Tonbridge AC | BA21: =K21 -> 814 | BB21: =IF(OR(AY21=0,AY21=""),"",AV21) -> 3
V22: Southern 1 N | X22: Bedford & County | Y22: St. Albans | Z22: Wycombe Phoenix | AP22: Team Dorset | AQ22: Dorset
C23: =IF(OR($B23=0,$B23="",$C$1=0,$C$1="",HLOOKUP($C$1,fixtures,$B23+2,FALSE)="-"),"",HLOOKUP($C$1,fixtures,$B23+2,FALSE)) ->  | E23: =IF(OR(C23=0,C23=""),"",VLOOKUP(C23,clubs,2,FALSE)) ->  | G23: =IF(OR($E23=0,$E23=""),"",SUMIFS(Track!$W:$W,Track!$E:$E,MatchDay!$E23)) ->  | H23: =IF(OR($E23=0,$E23=""),"",SUMIFS(Field!$W:$W,Field!$E:$E,MatchDay!$E23)) ->  | I23: =IF(OR($E23=0,$E23=""),"",SUMIFS(Relay!$K:$K,Relay!$H:$H,MatchDay!$E23)) ->  | K23: =IF(OR(E23=0,E23=""),"",G23+H23+I23+J23) ->  | R23: ='Boys (Teams 5-8)'!$AP$22+'Boys (Teams 5-8)'!$AP$50+'Boys (Teams 5-8)'!$AP$89 -> 0 | S23: ='Girls (Teams 5-8)'!$AP$22+'Girls (Teams 5-8)'!$AP$50+'Girls (Teams 5-8)'!$AP$89 -> 0 | T23: 0 | V23: Southern 1 NE | X23: Bexley AC | Y23: Cambridge H | Z23: Orion Harriers | AP23: Winchester & D AC | AQ23: Win | AV23: =IF(OR(K23=0,K23=""),"",RANK(K23,$K$11:$K$22)) ->  | AW23: 7e-07 | AX23: =IF(OR(AV23=0,AV23=""),"",AV23+AW23) ->  | AY23: =IF(OR(AV23=0,AV23=""),"",RANK(AX23,$AX$11:$AX$28,0)) ->  | AZ23: =C23 ->  | BA23: =K23 ->  | BB23: =IF(OR(AY23=0,AY23=""),"",AV23) -> 
V24: Southern 1 SWN | X24: Kingston & Poly | Y24: Thames Valley H | Z24: Aldershot F & D | AP24: WSE & H | AQ24: WSEH
C25: =IF(OR($B25=0,$B25="",$C$1=0,$C$1="",HLOOKUP($C$1,fixtures,$B25+2,FALSE)="-"),"",HLOOKUP($C$1,fixtures,$B25+2,FALSE)) ->  | E25: =IF(OR(C25=0,C25=""),"",VLOOKUP(C25,clubs,2,FALSE)) ->  | G25: =IF(OR($E25=0,$E25=""),"",SUMIFS(Track!$W:$W,Track!$E:$E,MatchDay!$E25)) ->  | H25: =IF(OR($E25=0,$E25=""),"",SUMIFS(Field!$W:$W,Field!$E:$E,MatchDay!$E25)) ->  | I25: =IF(OR($E25=0,$E25=""),"",SUMIFS(Relay!$K:$K,Relay!$H:$H,MatchDay!$E25)) ->  | K25: =IF(OR(E25=0,E25=""),"",G25+H25+I25+J25) ->  | R25: ='Boys (Teams 5-8)'!$BJ$22+'Boys (Teams 5-8)'!$BJ$50+'Boys (Teams 5-8)'!$BJ$89 -> 0 | S25: ='Girls (Teams 5-8)'!$BJ$22+'Girls (Teams 5-8)'!$BJ$50+'Girls (Teams 5-8)'!$BJ$89 -> 0 | T25: 0 | V25: Southern 1 South | X25: Sutton AC | Y25: Woking AC | Z25: Guildford & Godalming | AP25: - | AV25: =IF(OR(K25=0,K25=""),"",RANK(K25,$K$11:$K$22)) ->  | AW25: 8e-07 | AX25: =IF(OR(AV25=0,AV25=""),"",AV25+AW25) ->  | AY25: =IF(OR(AV25=0,AV25=""),"",RANK(AX25,$AX$11:$AX$28,0)) ->  | AZ25: =C25 ->  | BA25: =K25 ->  | BB25: =IF(OR(AY25=0,AY25=""),"",AV25) -> 
V26: Southern 1 SE | X26: Medway & Maidstone | Y26: Hastings | Z26: Eastbourne Rovers | AP26: -
M27: =SUM(M11:M25) -> 23 | N27: =SUM(N11:N25) -> 19 | O27: 60 | P27: 109 | R27: =SUM(R11:R25) -> 180 | S27: =SUM(S11:S25) -> 177 | T27: 357 | V27: S2 London & East | X27: London Heathside | Y27: Highgate Harriers | Z27: Victoria Park | AP27: =INDIRECT(CONCATENATE("ad",W3)) -> Ashford AC | AQ27: Ash | AV27: =IF(OR(K27=0,K27=""),"",RANK(K27,$K$11:$K$22)) ->  | AW27: 9e-07 | AX27: =IF(OR(AV27=0,AV27=""),AW27,AV27+AW27) -> 9e-07 | AY27: =RANK(AX27,$AX$11:$AX$28,0) -> 7 | AZ27: =C27 -> 0 | BA27: =K27 -> 0 | BB27: =IF(OR(AY27=0,AY27=""),"",AV27) -> 
V28: S2 South | X28: Ealing Southall & M | Y28: East Grinstead | Z28: Epsom & Ewell | AP28: =INDIRECT(CONCATENATE("ad",W4)) -> Basildon AC | AQ28: Bas
B29: Positions | C29: Club | E29: Points | AP29: Blackheath & Bromley AC | AQ29: B&B
A30: 1 | B30: =IF(OR($A30=0,$A30="",ISERROR(VLOOKUP($A30,$AY$11:$BB$28,4,FALSE))=TRUE),"",VLOOKUP($A30,$AY$11:$BB$28,4,FALSE)) -> 6 | C30: =IF(OR($A30=0,$A30="",B30=""),"",VLOOKUP($A30,$AY$11:$BB$28,2,FALSE)) -> Basildon AC | E30: =IF(OR($A30=0,$A30="",B30=""),"",VLOOKUP($A30,$AY$11:$BB$28,3,FALSE)) -> 485.5 | AP30: Croydon H | AQ30: Croy
A31: 2 | B31: =IF(OR($A31=0,$A31="",ISERROR(VLOOKUP($A30,$AY$11:$BB$28,4,FALSE))=TRUE),"",VLOOKUP($A31,$AY$11:$BB$28,4,FALSE)) -> 5 | C31: Havering Mayesbrook | E31: 557 | AP31: Havering Mayesbrook | AQ31: HavM
A32: 3 | B32: =IF(OR($A32=0,$A32="",ISERROR(VLOOKUP($A32,$AY$11:$BB$28,4,FALSE))=TRUE),"",VLOOKUP($A32,$AY$11:$BB$28,4,FALSE)) -> 4 | C32: Ashford AC | E32: 605 | AP32: Tonbridge AC | AQ32: Ton
A33: 4 | B33: =IF(OR($A33=0,$A33="",ISERROR(VLOOKUP($A32,$AY$11:$BB$28,4,FALSE))=TRUE),"",VLOOKUP($A33,$AY$11:$BB$28,4,FALSE)) -> 3 | C33: Tonbridge AC | E33: 814 | AP33: -
A34: 5 | B34: =IF(OR($A34=0,$A34="",ISERROR(VLOOKUP($A34,$AY$11:$BB$28,4,FALSE))=TRUE),"",VLOOKUP($A34,$AY$11:$BB$28,4,FALSE)) -> 2 | C34: Croydon H | E34: 834.5 | AP34: -
A35: 6 | B35: =IF(OR($A35=0,$A35="",ISERROR(VLOOKUP($A34,$AY$11:$BB$28,4,FALSE))=TRUE),"",VLOOKUP($A35,$AY$11:$BB$28,4,FALSE)) -> 1 | C35: Blackheath & Bromley AC | E35: 908 | AP35: =INDIRECT(CONCATENATE("ae",W3)) -> Bournemouth & Poole | AQ35: BournP
AP36: Camberley AC | AQ36: Cam
AP37: Chichester Runners | AQ37: Chic
AP38: City of Portsmouth AC | AQ38: Port
AP39: Havant AC | AQ39: Havt
AP40: New Forest Juniors | AQ40: NForJ
AP41: -
AP42: -
AP43: =INDIRECT(CONCATENATE("af",W3)) -> Abingdon Amblers | AQ43: Abin
AP44: Bedford & County AC | AQ44: Beds
AP45: Herts Phoenix AC | AQ45: Herts
AP46: Hillingdon AC | AQ46: Hill
AP47: St Albans Godfrey Davis AC | AQ47: St Alb
AP48: Wycombe Phoenix AC | AQ48: Wyc P
AP49: -
AP50: -
AP51: =INDIRECT(CONCATENATE("ag",W3)) -> Bexley AC | AQ51: Bex
AP52: Cambridge Harriers | AQ52: Cambs
AP53: Dartford Harriers | AQ53: Dart
AP54: Ilford AC | AQ54: Ilf
AP55: Newham & Essex Beagles | AQ55: H&EB
AP56: Orion Harriers | AQ56: Orion
AP57: -
AP58: -
AP59: =INDIRECT(CONCATENATE("ah",W3)) -> Aldershot Farnham & D | AQ59: AF&D
AP60: Kingston & Poly | AQ60: KingP
AP61: South London Harriers | AQ61: SLonH
AP62: St. Mary's Richmond | AQ62: StMR
AP63: Thames Valley Harriers | AQ63: TVH
AP64: Walton AC | AQ64: Walton
AP65: -
AP66: -
AP67: =INDIRECT(CONCATENATE("ai",W3)) -> Crawley AC | AQ67: Craw
AP68: Guildford & Godalming AC | AQ68: Guild
AP69: Holland Sport | AQ69: Holl
AP70: Horsham AC | AQ70: Hor
AP71: Sutton AC | AQ71: Sutton
AP72: Woking AC | AQ72: Woking
AP73: -
AP74: -
AP75: =INDIRECT(CONCATENATE("aj",W3)) -> Brighton & Hove AC | AQ75: Bri&H
AP76: Eastbourne Rovers | AQ76: Eastb
AP77: Hastings AC | AQ77: Hast
AP78: Lewes AC | AQ78: Lewes
AP79: Medway & Maidstone AC | AQ79: Med&M
AP80: Worthing & D H | AQ80: Worth
AP81: -
AP82: -
AP83: =INDIRECT(CONCATENATE("ak",W3)) -> Highgate Harriers | AQ83: High
AP84: London Heathside | AQ84: LonH
AP85: Medway Park Phoenix | AQ85: Medway PP
AP86: Queens Park Harriers | AQ86: QPH
AP87: Victoria Park & TH | AQ87: VP&TH
AP88: -
AP89: -
AP90: -
AP91: =INDIRECT(CONCATENATE("al",W3)) -> Dorking & Reigate Priory | AQ91: Dork
AP92: Ealing Southall & M | AQ92: ES&M
AP93: East Grinstead AC | AQ93: E Grin
AP94: Epsom & Ewell AC | AQ94: E&W
AP95: Fleet & Crookham AC | AQ95: Fleet & C
AP96: -
AP97: -
AP98: -
AP99: =INDIRECT(CONCATENATE("am",W3)) -> -
AP100: -
AP101: -
AP102: -
AP103: -
AP104: -
AP105: -
AP106: -

Sheet Track
AA1: No Events | AK1: Validations | AM1: Posn | AN1: Points
A2: =VLOOKUP(B2,eventno,5,FALSE) -> F | B2: T1 | C2: =CONCATENATE(VLOOKUP(B2,eventno,4,FALSE)," '",A11,"'") -> U13G 70m H 'A' | E2: =IF(A5="W","Wind =","") -> Wind = | G2: =IF(OR(F4=0,F4="",A6=0,A6=""),"",IF(A4="T",IF(F4<A6,"LR",IF(F4=A6,"LR=","")))) ->  | H2: =VLOOKUP(I2,eventno,5,FALSE) -> F | I2: T1 | J2: =CONCATENATE(VLOOKUP(I2,eventno,4,FALSE)," '",H11,"'") -> U13G 70m H 'B' | L2: =IF(H5="W","Wind =","") -> Wind = | N2: =IF(OR(M4=0,M4="",H6=0,H6=""),"",IF(H4="T",IF(M4<H6,"LR",IF(M4=H6,"LR=","")))) ->  | O2: =VLOOKUP(P2,eventno,5,FALSE) -> M | P2: T2 | Q2: =CONCATENATE(VLOOKUP(P2,eventno,4,FALSE)," '",O11,"'") -> U13B 75m H 'A' | S2: =IF(O5="W","Wind =","") -> Wind = | U2: =IF(OR(T4=0,T4="",O6=0,O6=""),"",IF(O4="T",IF(T4<O6,"LR",IF(T4=O6,"LR=","")))) ->  | W2: =IF(OR(B2=0,B2="",C2=0,C2="",F2=0,F2="",LEFT(F2,1)="D",LEFT(B2,1)="P"),0,VLOOKUP(B2,points,2,FALSE)) -> 0 | X2: =IF(OR(I2=0,I2="",J2=0,J2="",M2=0,M2="",LEFT(M2,1)="D",LEFT(I2,1)="P",LEFT(I2,1)="T"),0,VLOOKUP(I2,points,2,FALSE)-2) -> 0 | Y2: =IF(OR(P2=0,P2="",Q2=0,Q2="",T2=0,T2="",LEFT(T2,1)="D",LEFT(P2)="T",LEFT(P2)="P"),0,VLOOKUP(P2,points,2,FALSE)) -> 0 | AA2: =SUM(AA3:AA300) -> 37 | AN2: n | AO2: n= | AP2: n== | AQ2: n=== | AR2: n==== | AS2: n=====
A3: =IF(A2="M",VLOOKUP(B2,males,25,FALSE),VLOOKUP(B2,females,25,FALSE)) -> 2 | B3: Posn | C3: Bib | D3: Athlete | E3: Club | F3: Perf | G3: Gr | H3: =IF(H2="M",VLOOKUP(I2,males,25,FALSE),VLOOKUP(I2,females,25,FALSE)) -> 2 | I3: Posn | J3: Bib | K3: Athlete | L3: Club | M3: Perf | N3: Gr | O3: =IF(O2="M",VLOOKUP(P2,males,25,FALSE),VLOOKUP(P2,females,25,FALSE)) -> 2 | P3: Posn | Q3: Bib | R3: Athlete | S3: Club | T3: Perf | U3: Gr | W3: =IF(OR(B3=0,B3="",C3=0,C3="",F3=0,F3="",LEFT(F3,1)="D",LEFT(B3,1)="T",LEFT(B3,1)="P"),0,VLOOKUP(B3,points,2,FALSE)) -> 0 | X3: 0 | Y3: 0 | AK3: =MatchDay!B11 -> 1 | AM3: =Handbook!EG3 -> 1 | AN3: =Handbook!EH3 -> 9 | AO3: =SUM(AN3:AN4)/LEN($AO$2) -> 8 | AP3: =SUM(AN3:AN5)/LEN($AP$2) -> 7.333333333 | AQ3: =SUM(AN3:AN6)/LEN($AQ$2) -> 6.75 | AR3: =SUM(AN3:AN7)/LEN($AR$2) -> 6.2 | AS3: =SUM(AN3:AN8)/LEN($AS$2) -> 5.666666667
A4: =LEFT(B2,1) -> T | B4: 1 | C4: 3 | D4: =IF(OR(C4=0,C4=""),"",IF(A2="F",HLOOKUP(C4,females,A3,FALSE),IF(A2="M",HLOOKUP(C4,males,A3,FALSE),""))) -> Safiya Atkins-Dyke | E4: =IF(OR(C4=0,C4="",C4="-"),"",IF(C4>8,VLOOKUP(C4/11,match_teams,4,FALSE),VLOOKUP(C4,match_teams,4,FALSE))) -> B&B | F4: 13.1 | G4: =IF(OR(F4=0,F4="",A7=0,A7="",A8=0,A8="",A9=0,A9="",A10=0,A10=""),"",IF(F4<=A7,1,IF(F4<=A8,2,IF(F4<=A9,3,IF(F4<=A10,4,""))))) -> 3 | H4: =LEFT(I2,1) -> T | I4: 1 | J4: 11 | K4: =IF(OR(J4=0,J4=""),"",IF(H2="F",HLOOKUP(J4,females,H3,FALSE),IF(H2="M",HLOOKUP(J4,males,H3,FALSE),""))) -> Emillia Isacc | L4: =IF(OR(J4=0,J4="",J4="-"),"",IF(J4>8,VLOOKUP(J4/11,match_teams,4,FALSE),VLOOKUP(J4,match_teams,4,FALSE))) -> Ash | M4: 12.4 | N4: =IF(OR(M4=0,M4="",H7=0,H7="",H8=0,H8="",H9=0,H9="",H10=0,H10=""),"",IF(M4<=H7,1,IF(M4<=H8,2,IF(M4<=H9,3,IF(M4<=H10,4,""))))) -> 2 | O4: =LEFT(P2,1) -> T | P4: 1 | Q4: 1 | R4: =IF(OR(Q4=0,Q4=""),"",IF(O2="F",HLOOKUP(Q4,females,O3,FALSE),IF(O2="M",HLOOKUP(Q4,males,O3,FALSE),""))) -> Jake Timmins | S4: =IF(OR(Q4=0,Q4="",Q4="-"),"",IF(Q4>8,VLOOKUP(Q4/11,match_teams,4,FALSE),VLOOKUP(Q4,match_teams,4,FALSE))) -> Ash | T4: 13.7 | U4: =IF(OR(T4=0,T4="",O7=0,O7="",O8=0,O8="",O9=0,O9="",O10=0,O10=""),"",IF(T4<=O7,1,IF(T4<=O8,2,IF(T4<=O9,3,IF(T4<=O10,4,""))))) -> 3 | W4: 9 | X4: 7 | Y4: 9 | AA4: =COUNTA(F4) -> 1 | AK4: =MatchDay!B13 -> 2 | AM4: =Handbook!EG5 -> 2 | AN4: =Handbook!EH5 -> 7 | AO4: =SUM(AN4:AN5)/LEN($AO$2) -> 6.5 | AP4: =SUM(AN4:AN6)/LEN($AP$2) -> 6 | AQ4: =SUM(AN4:AN7)/LEN($AQ$2) -> 5.5 | AR4: =SUM(AN4:AN8)/LEN($AR$2) -> 5 | AS4: -
A5: =VLOOKUP(B2,eventno,6,FALSE) -> W | B5: 2 | C5: 1 | D5: =IF(OR(C5=0,C5=""),"",IF(A2="F",HLOOKUP(C5,females,A3,FALSE),IF(A2="M",HLOOKUP(C5,males,A3,FALSE),""))) -> Alex Prickett | E5: Ash | F5: 13.3 | G5: =IF(OR(F5=0,F5="",A7=0,A7="",A8=0,A8="",A9=0,A9="",A10=0,A10=""),"",IF(F5<=A7,1,IF(F5<=A8,2,IF(F5<=A9,3,IF(F5<=A10,4,""))))) -> 4 | H5: =VLOOKUP(I2,eventno,6,FALSE) -> W | I5: 2 | J5: 33 | K5: =IF(OR(J5=0,J5=""),"",IF(H2="F",HLOOKUP(J5,females,H3,FALSE),IF(H2="M",HLOOKUP(J5,males,H3,FALSE),""))) -> Catrin Murphy | L5: B&B | M5: 13.3 | N5: =IF(OR(M5=0,M5="",H7=0,H7="",H8=0,H8="",H9=0,H9="",H10=0,H10=""),"",IF(M5<=H7,1,IF(M5<=H8,2,IF(M5<=H9,3,IF(M5<=H10,4,""))))) -> 4 | O5: =VLOOKUP(P2,eventno,6,FALSE) -> W | P5: 2 | Q5: 6 | R5: =IF(OR(Q5=0,Q5=""),"",IF(O2="F",HLOOKUP(Q5,females,O3,FALSE),IF(O2="M",HLOOKUP(Q5,males,O3,FALSE),""))) -> CALUM LAING | S5: Ton | T5: 13.7 | U5: =IF(OR(T5=0,T5="",O7=0,O7="",O8=0,O8="",O9=0,O9="",O10=0,O10=""),"",IF(T5<=O7,1,IF(T5<=O8,2,IF(T5<=O9,3,IF(T5<=O10,4,""))))) -> 3 | W5: 7 | X5: 5 | Y5: 7 | AA5: =COUNTA(T4) -> 1 | AK5: =MatchDay!B15 -> 3 | AM5: =Handbook!EG7 -> 3 | AN5: =Handbook!EH7 -> 6 | AO5: =SUM(AN5:AN6)/LEN($AO$2) -> 5.5 | AP5: =SUM(AN5:AN7)/LEN($AP$2) -> 5 | AQ5: =SUM(AN5:AN8)/LEN($AQ$2) -> 4.5 | AR5: -
A6: =VLOOKUP(B2,eventno,7,FALSE) -> 11.1 | B6: 3 | C6: 2 | D6: =IF(OR(C6=0,C6=""),"",IF(A2="F",HLOOKUP(C6,females,A3,FALSE),IF(A2="M",HLOOKUP(C6,males,A3,FALSE),""))) -> Shirley Acquah- Davis | E6: Bas | F6: 14.2 | G6: =IF(OR(F6=0,F6="",A7=0,A7="",A8=0,A8="",A9=0,A9="",A10=0,A10=""),"",IF(F6<=A7,1,IF(F6<=A8,2,IF(F6<=A9,3,IF(F6<=A10,4,""))))) ->  | H6: =VLOOKUP(I2,eventno,7,FALSE) -> 11.1 | I6: 3 | J6: 44 | K6: =IF(OR(J6=0,J6=""),"",IF(H2="F",HLOOKUP(J6,females,H3,FALSE),IF(H2="M",HLOOKUP(J6,males,H3,FALSE),""))) -> Tamzin William | L6: Croy | M6: 15.2 | N6: =IF(OR(M6=0,M6="",H7=0,H7="",H8=0,H8="",H9=0,H9="",H10=0,H10=""),"",IF(M6<=H7,1,IF(M6<=H8,2,IF(M6<=H9,3,IF(M6<=H10,4,""))))) ->  | O6: =VLOOKUP(P2,eventno,7,FALSE) -> 11.9 | P6: 3 | Q6: 4 | R6: =IF(OR(Q6=0,Q6=""),"",IF(O2="F",HLOOKUP(Q6,females,O3,FALSE),IF(O2="M",HLOOKUP(Q6,males,O3,FALSE),""))) -> Elliot Bailey | S6: Croy | T6: 13.9 | U6: =IF(OR(T6=0,T6="",O7=0,O7="",O8=0,O8="",O9=0,O9="",O10=0,O10=""),"",IF(T6<=O7,1,IF(T6<=O8,2,IF(T6<=O9,3,IF(T6<=O10,4,""))))) -> 3 | W6: 6 | X6: 4 | Y6: 6 | AK6: =MatchDay!B17 -> 4 | AM6: =Handbook!EG9 -> 4 | AN6: =Handbook!EH9 -> 5 | AO6: =SUM(AN6:AN7)/LEN($AO$2) -> 4.5 | AP6: =SUM(AN6:AN8)/LEN($AP$2) -> 4 | AQ6: -
A7: =VLOOKUP(B2,eventno,8,FALSE) -> 12.3 | B7: 4 | C7: 4 | D7: =IF(OR(C7=0,C7=""),"",IF(A2="F",HLOOKUP(C7,females,A3,FALSE),IF(A2="M",HLOOKUP(C7,males,A3,FALSE),""))) -> Erin-Maia Patel-Barrett | E7: Croy | F7: 14.7 | G7: =IF(OR(F7=0,F7="",A7=0,A7="",A8=0,A8="",A9=0,A9="",A10=0,A10=""),"",IF(F7<=A7,1,IF(F7<=A8,2,IF(F7<=A9,3,IF(F7<=A10,4,""))))) ->  | H7: =VLOOKUP(I2,eventno,8,FALSE) -> 12.3 | I7: 4 | J7: 55 | K7: =IF(OR(J7=0,J7=""),"",IF(H2="F",HLOOKUP(J7,females,H3,FALSE),IF(H2="M",HLOOKUP(J7,males,H3,FALSE),""))) -> Rochelle Constable | L7: HavM | M7: 17 | N7: =IF(OR(M7=0,M7="",H7=0,H7="",H8=0,H8="",H9=0,H9="",H10=0,H10=""),"",IF(M7<=H7,1,IF(M7<=H8,2,IF(M7<=H9,3,IF(M7<=H10,4,""))))) ->  | O7: =VLOOKUP(P2,eventno,8,FALSE) -> 13 | P7: 4 | Q7: 3 | R7: =IF(OR(Q7=0,Q7=""),"",IF(O2="F",HLOOKUP(Q7,females,O3,FALSE),IF(O2="M",HLOOKUP(Q7,males,O3,FALSE),""))) -> Joe Smith | S7: B&B | T7: 17 | U7: =IF(OR(T7=0,T7="",O7=0,O7="",O8=0,O8="",O9=0,O9="",O10=0,O10=""),"",IF(T7<=O7,1,IF(T7<=O8,2,IF(T7<=O9,3,IF(T7<=O10,4,""))))) ->  | W7: 5 | X7: 3 | Y7: 5 | AK7: =MatchDay!B19 -> 5 | AM7: =Handbook!EG11 -> 5 | AN7: =Handbook!EH11 -> 4 | AO7: =SUM(AN7:AN8)/LEN($AO$2) -> 3.5 | AP7: -
A8: =VLOOKUP(B2,eventno,9,FALSE) -> 12.6 | B8: 5 | C8: 5 | D8: =IF(OR(C8=0,C8=""),"",IF(A2="F",HLOOKUP(C8,females,A3,FALSE),IF(A2="M",HLOOKUP(C8,males,A3,FALSE),""))) -> Holly Nash | E8: HavM | F8: 15 | G8: =IF(OR(F8=0,F8="",A7=0,A7="",A8=0,A8="",A9=0,A9="",A10=0,A10=""),"",IF(F8<=A7,1,IF(F8<=A8,2,IF(F8<=A9,3,IF(F8<=A10,4,""))))) ->  | H8: =VLOOKUP(I2,eventno,9,FALSE) -> 12.6 | I8: 5 | J8: 66 | K8: =IF(OR(J8=0,J8=""),"",IF(H2="F",HLOOKUP(J8,females,H3,FALSE),IF(H2="M",HLOOKUP(J8,males,H3,FALSE),""))) -> EMMA CAMERON | L8: Ton | M8: DQ | N8: =IF(OR(M8=0,M8="",H7=0,H7="",H8=0,H8="",H9=0,H9="",H10=0,H10=""),"",IF(M8<=H7,1,IF(M8<=H8,2,IF(M8<=H9,3,IF(M8<=H10,4,""))))) ->  | O8: =VLOOKUP(P2,eventno,9,FALSE) -> 13.6 | P8: 5 | R8: =IF(OR(Q8=0,Q8=""),"",IF(O2="F",HLOOKUP(Q8,females,O3,FALSE),IF(O2="M",HLOOKUP(Q8,males,O3,FALSE),""))) ->  | U8: =IF(OR(T8=0,T8="",O7=0,O7="",O8=0,O8="",O9=0,O9="",O10=0,O10=""),"",IF(T8<=O7,1,IF(T8<=O8,2,IF(T8<=O9,3,IF(T8<=O10,4,""))))) ->  | W8: 4 | X8: 0 | Y8: 0 | AK8: =MatchDay!B21 -> 6 | AM8: =Handbook!EG13 -> 6 | AN8: =Handbook!EH13 -> 3 | AO8: -
A9: =VLOOKUP(B2,eventno,10,FALSE) -> 13.1 | B9: 6 | C9: 6 | D9: =IF(OR(C9=0,C9=""),"",IF(A2="F",HLOOKUP(C9,females,A3,FALSE),IF(A2="M",HLOOKUP(C9,males,A3,FALSE),""))) -> LIBBY RUSSELL | E9: Ton | F9: 16.2 | G9: =IF(OR(F9=0,F9="",A7=0,A7="",A8=0,A8="",A9=0,A9="",A10=0,A10=""),"",IF(F9<=A7,1,IF(F9<=A8,2,IF(F9<=A9,3,IF(F9<=A10,4,""))))) ->  | H9: =VLOOKUP(I2,eventno,10,FALSE) -> 13.1 | I9: 6 | K9: =IF(OR(J9=0,J9=""),"",IF(H2="F",HLOOKUP(J9,females,H3,FALSE),IF(H2="M",HLOOKUP(J9,males,H3,FALSE),""))) ->  | N9: =IF(OR(M9=0,M9="",H7=0,H7="",H8=0,H8="",H9=0,H9="",H10=0,H10=""),"",IF(M9<=H7,1,IF(M9<=H8,2,IF(M9<=H9,3,IF(M9<=H10,4,""))))) ->  | O9: =VLOOKUP(P2,eventno,10,FALSE) -> 14.2 | P9: 6 | R9: =IF(OR(Q9=0,Q9=""),"",IF(O2="F",HLOOKUP(Q9,females,O3,FALSE),IF(O2="M",HLOOKUP(Q9,males,O3,FALSE),""))) ->  | U9: =IF(OR(T9=0,T9="",O7=0,O7="",O8=0,O8="",O9=0,O9="",O10=0,O10=""),"",IF(T9<=O7,1,IF(T9<=O8,2,IF(T9<=O9,3,IF(T9<=O10,4,""))))) ->  | W9: 3 | X9: 0 | Y9: 0 | AK9: =MatchDay!B23 -> 0 | AM9: =Handbook!EG15 -> 7 | AN9: 2
A10: =VLOOKUP(B2,eventno,11,FALSE) -> 13.9 | B10: 7 | D10: =IF(OR(C10=0,C10=""),"",IF(A2="F",HLOOKUP(C10,females,A3,FALSE),IF(A2="M",HLOOKUP(C10,males,A3,FALSE),""))) ->  | G10: =IF(OR(F10=0,F10="",A7=0,A7="",A8=0,A8="",A9=0,A9="",A10=0,A10=""),"",IF(F10<=A7,1,IF(F10<=A8,2,IF(F10<=A9,3,IF(F10<=A10,4,""))))) ->  | H10: =VLOOKUP(I2,eventno,11,FALSE) -> 13.9 | I10: 7 | K10: =IF(OR(J10=0,J10=""),"",IF(H2="F",HLOOKUP(J10,females,H3,FALSE),IF(H2="M",HLOOKUP(J10,males,H3,FALSE),""))) ->  | N10: =IF(OR(M10=0,M10="",H7=0,H7="",H8=0,H8="",H9=0,H9="",H10=0,H10=""),"",IF(M10<=H7,1,IF(M10<=H8,2,IF(M10<=H9,3,IF(M10<=H10,4,""))))) ->  | O10: =VLOOKUP(P2,eventno,11,FALSE) -> 15.4 | P10: 7 | R10: =IF(OR(Q10=0,Q10=""),"",IF(O2="F",HLOOKUP(Q10,females,O3,FALSE),IF(O2="M",HLOOKUP(Q10,males,O3,FALSE),""))) ->  | U10: =IF(OR(T10=0,T10="",O7=0,O7="",O8=0,O8="",O9=0,O9="",O10=0,O10=""),"",IF(T10<=O7,1,IF(T10<=O8,2,IF(T10<=O9,3,IF(T10<=O10,4,""))))) ->  | W10: 0 | X10: 0 | Y10: 0 | AK10: =MatchDay!B25 -> 0 | AM10: =Handbook!EG17 -> 8 | AN10: 1
A11: A | B11: 8 | D11: =IF(OR(C11=0,C11=""),"",IF(A2="F",HLOOKUP(C11,females,A3,FALSE),IF(A2="M",HLOOKUP(C11,males,A3,FALSE),""))) ->  | G11: =IF(OR(F11=0,F11="",A7=0,A7="",A8=0,A8="",A9=0,A9="",A10=0,A10=""),"",IF(F11<=A7,1,IF(F11<=A8,2,IF(F11<=A9,3,IF(F11<=A10,4,""))))) ->  | H11: B | I11: 8 | K11: =IF(OR(J11=0,J11=""),"",IF(H2="F",HLOOKUP(J11,females,H3,FALSE),IF(H2="M",HLOOKUP(J11,males,H3,FALSE),""))) ->  | N11: =IF(OR(M11=0,M11="",H7=0,H7="",H8=0,H8="",H9=0,H9="",H10=0,H10=""),"",IF(M11<=H7,1,IF(M11<=H8,2,IF(M11<=H9,3,IF(M11<=H10,4,""))))) ->  | O11: A | P11: 8 | R11: =IF(OR(Q11=0,Q11=""),"",IF(O2="F",HLOOKUP(Q11,females,O3,FALSE),IF(O2="M",HLOOKUP(Q11,males,O3,FALSE),""))) ->  | U11: =IF(OR(T11=0,T11="",O7=0,O7="",O8=0,O8="",O9=0,O9="",O10=0,O10=""),"",IF(T11<=O7,1,IF(T11<=O8,2,IF(T11<=O9,3,IF(T11<=O10,4,""))))) ->  | W11: 0 | X11: 0 | Y11: 0 | AK11: =IF(T(AK3)="",AK3*11,CONCATENATE(AK3,AK3)) -> 11 | AM11: 1= | AN11: =AO3 -> 8
W12: 0 | X12: =IF(OR(I12=0,I12="",J12=0,J12="",M12=0,M12="",LEFT(M12,1)="D",LEFT(I12,1)="P",LEFT(I12,1)="T"),0,VLOOKUP(I12,points,2,FALSE)) -> 0 | Y12: 0 | AK12: =IF(T(AK4)="",AK4*11,CONCATENATE(AK4,AK4)) -> 22 | AM12: 1== | AN12: =AP3 -> 7.333333333
A13: =VLOOKUP(B13,eventno,5,FALSE) -> M | B13: T2 | C13: =CONCATENATE(VLOOKUP(B13,eventno,4,FALSE)," '",A22,"'") -> U13B 75m H 'B' | E13: =IF(A16="W","Wind =","") -> Wind = | G13: =IF(OR(F15=0,F15="",A17=0,A17=""),"",IF(A15="T",IF(F15<A17,"LR",IF(F15=A17,"LR=","")))) ->  | H13: =VLOOKUP(I13,eventno,5,FALSE) -> F | I13: T3 | J13: =CONCATENATE(VLOOKUP(I13,eventno,4,FALSE)," '",H22,"'") -> U15G 75m H 'A' | L13: =IF(H16="W","Wind =","") -> Wind = | N13: =IF(OR(M15=0,M15="",H17=0,H17=""),"",IF(H15="T",IF(M15<H17,"LR",IF(M15=H17,"LR=","")))) ->  | O13: =VLOOKUP(P13,eventno,5,FALSE) -> F | P13: T3 | Q13: =CONCATENATE(VLOOKUP(P13,eventno,4,FALSE)," '",O22,"'") -> U15G 75m H 'B' | S13: =IF(O16="W","Wind =","") -> Wind = | U13: =IF(OR(T15=0,T15="",O17=0,O17=""),"",IF(O15="T",IF(T15<O17,"LR",IF(T15=O17,"LR=","")))) ->  | W13: =IF(OR(B13=0,B13="",C13=0,C13="",F13=0,F13="",LEFT(F13,1)="D",LEFT(B13,1)="T",LEFT(B13,1)="P"),0,VLOOKUP(B13,points,2,FALSE)-2) -> 0 | X13: 0 | Y13: =IF(OR(P13=0,P13="",Q13=0,Q13="",T13=0,T13="",LEFT(T13,1)="D",LEFT(P13)="T",LEFT(P13)="P"),0,VLOOKUP(P13,points,2,FALSE)-2) -> 0 | AK13: 33 | AM13: 1=== | AN13: =AQ3 -> 6.75
A14: =IF(A13="M",VLOOKUP(B13,males,25,FALSE),VLOOKUP(B13,females,25,FALSE)) -> 2 | B14: Posn | C14: Bib | D14: Athlete | E14: Club | F14: Perf | G14: Gr | H14: =IF(H13="M",VLOOKUP(I13,males,25,FALSE),VLOOKUP(I13,females,25,FALSE)) -> 3 | I14: Posn | J14: Bib | K14: Athlete | L14: Club | M14: Perf | N14: Gr | O14: =IF(O13="M",VLOOKUP(P13,males,25,FALSE),VLOOKUP(P13,females,25,FALSE)) -> 3 | P14: Posn | Q14: Bib | R14: Athlete | S14: Club | T14: Perf | U14: Gr | W14: 0 | X14: 0 | Y14: 0 | AK14: 44 | AM14: 1==== | AN14: =AR3 -> 6.2
A15: =LEFT(B13,1) -> T | B15: 1 | C15: 44 | D15: =IF(OR(C15=0,C15=""),"",IF(A13="F",HLOOKUP(C15,females,A14,FALSE),IF(A13="M",HLOOKUP(C15,males,A14,FALSE),""))) -> Anton Dembele | E15: =IF(OR(C15=0,C15="",C15="-"),"",IF(C15>8,VLOOKUP(C15/11,match_teams,4,FALSE),VLOOKUP(C15,match_teams,4,FALSE))) -> Croy | F15: 15.4 | G15: =IF(OR(F15=0,F15="",A18=0,A18="",A19=0,A19="",A20=0,A20="",A21=0,A21=""),"",IF(F15<=A18,1,IF(F15<=A19,2,IF(F15<=A20,3,IF(F15<=A21,4,""))))) -> 4 | H15: =LEFT(I13,1) -> T | I15: 1 | J15: 5 | K15: =IF(OR(J15=0,J15=""),"",IF(H13="F",HLOOKUP(J15,females,H14,FALSE),IF(H13="M",HLOOKUP(J15,males,H14,FALSE),""))) -> Michelle Hughes | L15: =IF(OR(J15=0,J15="",J15="-"),"",IF(J15>8,VLOOKUP(J15/11,match_teams,4,FALSE),VLOOKUP(J15,match_teams,4,FALSE))) -> HavM | M15: 12.1 | N15: =IF(OR(M15=0,M15="",H18=0,H18="",H19=0,H19="",H20=0,H20="",H21=0,H21=""),"",IF(M15<=H18,1,IF(M15<=H19,2,IF(M15<=H20,3,IF(M15<=H21,4,""))))) -> 2 | O15: =LEFT(P13,1) -> T | P15: 1 | Q15: 44 | R15: =IF(OR(Q15=0,Q15=""),"",IF(O13="F",HLOOKUP(Q15,females,O14,FALSE),IF(O13="M",HLOOKUP(Q15,males,O14,FALSE),""))) -> Sonyce Archer | S15: =IF(OR(Q15=0,Q15="",Q15="-"),"",IF(Q15>8,VLOOKUP(Q15/11,match_teams,4,FALSE),VLOOKUP(Q15,match_teams,4,FALSE))) -> Croy | T15: 13.1 | U15: =IF(OR(T15=0,T15="",O18=0,O18="",O19=0,O19="",O20=0,O20="",O21=0,O21=""),"",IF(T15<=O18,1,IF(T15<=O19,2,IF(T15<=O20,3,IF(T15<=O21,4,""))))) -> 4 | W15: 7 | X15: 9 | Y15: 7 | AA15: =COUNTA(M15) -> 1 | AK15: 55 | AM15: 1===== | AN15: =AS3 -> 5.666666667
A16: =VLOOKUP(B13,eventno,6,FALSE) -> W | B16: 2 | C16: 33 | D16: =IF(OR(C16=0,C16=""),"",IF(A13="F",HLOOKUP(C16,females,A14,FALSE),IF(A13="M",HLOOKUP(C16,males,A14,FALSE),""))) -> Femi Sofolarin | E16: B&B | F16: 15.9 | G16: =IF(OR(F16=0,F16="",A18=0,A18="",A19=0,A19="",A20=0,A20="",A21=0,A21=""),"",IF(F16<=A18,1,IF(F16<=A19,2,IF(F16<=A20,3,IF(F16<=A21,4,""))))) ->  | H16: =VLOOKUP(I13,eventno,6,FALSE) -> W | I16: 2 | J16: 4 | K16: =IF(OR(J16=0,J16=""),"",IF(H13="F",HLOOKUP(J16,females,H14,FALSE),IF(H13="M",HLOOKUP(J16,males,H14,FALSE),""))) -> Taylor Campbell | L16: Croy | M16: 12.2 | N16: =IF(OR(M16=0,M16="",H18=0,H18="",H19=0,H19="",H20=0,H20="",H21=0,H21=""),"",IF(M16<=H18,1,IF(M16<=H19,2,IF(M16<=H20,3,IF(M16<=H21,4,""))))) -> 2 | O16: =VLOOKUP(P13,eventno,6,FALSE) -> W | P16: 2 | Q16: 55 | R16: =IF(OR(Q16=0,Q16=""),"",IF(O13="F",HLOOKUP(Q16,females,O14,FALSE),IF(O13="M",HLOOKUP(Q16,males,O14,FALSE),""))) -> Heidi Surman-Wells | S16: HavM | T16: 13.3 | U16: =IF(OR(T16=0,T16="",O18=0,O18="",O19=0,O19="",O20=0,O20="",O21=0,O21=""),"",IF(T16<=O18,1,IF(T16<=O19,2,IF(T16<=O20,3,IF(T16<=O21,4,""))))) -> 4 | W16: 5 | X16: 7 | Y16: 5 | AK16: 66 | AM16: 2= | AN16: =AO4 -> 6.5
A17: =VLOOKUP(B13,eventno,7,FALSE) -> 11.9 | B17: 3 | C17: 66 | D17: =IF(OR(C17=0,C17=""),"",IF(A13="F",HLOOKUP(C17,females,A14,FALSE),IF(A13="M",HLOOKUP(C17,males,A14,FALSE),""))) -> SAM CRICK | E17: Ton | F17: 17.5 | G17: =IF(OR(F17=0,F17="",A18=0,A18="",A19=0,A19="",A20=0,A20="",A21=0,A21=""),"",IF(F17<=A18,1,IF(F17<=A19,2,IF(F17<=A20,3,IF(F17<=A21,4,""))))) ->  | H17: =VLOOKUP(I13,eventno,7,FALSE) -> 11.1 | I17: 3 | J17: 6 | K17: =IF(OR(J17=0,J17=""),"",IF(H13="F",HLOOKUP(J17,females,H14,FALSE),IF(H13="M",HLOOKUP(J17,males,H14,FALSE),""))) -> CHANDA LAMB | L17: Ton | M17: 12.9 | N17: =IF(OR(M17=0,M17="",H18=0,H18="",H19=0,H19="",H20=0,H20="",H21=0,H21=""),"",IF(M17<=H18,1,IF(M17<=H19,2,IF(M17<=H20,3,IF(M17<=H21,4,""))))) -> 4 | O17: =VLOOKUP(P13,eventno,7,FALSE) -> 11.1 | P17: 3 | Q17: 22 | R17: =IF(OR(Q17=0,Q17=""),"",IF(O13="F",HLOOKUP(Q17,females,O14,FALSE),IF(O13="M",HLOOKUP(Q17,males,O14,FALSE),""))) -> Sophie Wright | S17: Bas | T17: 13.4 | U17: =IF(OR(T17=0,T17="",O18=0,O18="",O19=0,O19="",O20=0,O20="",O21=0,O21=""),"",IF(T17<=O18,1,IF(T17<=O19,2,IF(T17<=O20,3,IF(T17<=O21,4,""))))) -> 4 | W17: 4 | X17: 6 | Y17: 4 | AK17: 0 | AM17: 2== | AN17: =AP4 -> 6
A18: =VLOOKUP(B13,eventno,8,FALSE) -> 13 | B18: 4 | D18: =IF(OR(C18=0,C18=""),"",IF(A13="F",HLOOKUP(C18,females,A14,FALSE),IF(A13="M",HLOOKUP(C18,males,A14,FALSE),""))) ->  | G18: =IF(OR(F18=0,F18="",A18=0,A18="",A19=0,A19="",A20=0,A20="",A21=0,A21=""),"",IF(F18<=A18,1,IF(F18<=A19,2,IF(F18<=A20,3,IF(F18<=A21,4,""))))) ->  | H18: =VLOOKUP(I13,eventno,8,FALSE) -> 12 | I18: 4 | J18: 3 | K18: =IF(OR(J18=0,J18=""),"",IF(H13="F",HLOOKUP(J18,females,H14,FALSE),IF(H13="M",HLOOKUP(J18,males,H14,FALSE),""))) -> Isabella Hilditch | L18: B&B | M18: 12.9 | N18: =IF(OR(M18=0,M18="",H18=0,H18="",H19=0,H19="",H20=0,H20="",H21=0,H21=""),"",IF(M18<=H18,1,IF(M18<=H19,2,IF(M18<=H20,3,IF(M18<=H21,4,""))))) -> 4 | O18: =VLOOKUP(P13,eventno,8,FALSE) -> 12 | P18: 4 | Q18: 33 | R18: =IF(OR(Q18=0,Q18=""),"",IF(O13="F",HLOOKUP(Q18,females,O14,FALSE),IF(O13="M",HLOOKUP(Q18,males,O14,FALSE),""))) -> Megan Beauman - Brown | S18: B&B | T18: 13.4 | U18: =IF(OR(T18=0,T18="",O18=0,O18="",O19=0,O19="",O20=0,O20="",O21=0,O21=""),"",IF(T18<=O18,1,IF(T18<=O19,2,IF(T18<=O20,3,IF(T18<=O21,4,""))))) -> 4 | W18: 0 | X18: 5 | Y18: 3 | AK18: 0 | AM18: 2=== | AN18: =AQ4 -> 5.5
A19: =VLOOKUP(B13,eventno,9,FALSE) -> 13.6 | B19: 5 | D19: =IF(OR(C19=0,C19=""),"",IF(A13="F",HLOOKUP(C19,females,A14,FALSE),IF(A13="M",HLOOKUP(C19,males,A14,FALSE),""))) ->  | G19: =IF(OR(F19=0,F19="",A18=0,A18="",A19=0,A19="",A20=0,A20="",A21=0,A21=""),"",IF(F19<=A18,1,IF(F19<=A19,2,IF(F19<=A20,3,IF(F19<=A21,4,""))))) ->  | H19: =VLOOKUP(I13,eventno,9,FALSE) -> 12.3 | I19: 5 | J19: 1 | K19: =IF(OR(J19=0,J19=""),"",IF(H13="F",HLOOKUP(J19,females,H14,FALSE),IF(H13="M",HLOOKUP(J19,males,H14,FALSE),""))) -> Charlotte Tappenden | L19: Ash | M19: 13 | N19: =IF(OR(M19=0,M19="",H18=0,H18="",H19=0,H19="",H20=0,H20="",H21=0,H21=""),"",IF(M19<=H18,1,IF(M19<=H19,2,IF(M19<=H20,3,IF(M19<=H21,4,""))))) -> 4 | O19: =VLOOKUP(P13,eventno,9,FALSE) -> 12.3 | P19: 5 | Q19: 66 | R19: =IF(OR(Q19=0,Q19=""),"",IF(O13="F",HLOOKUP(Q19,females,O14,FALSE),IF(O13="M",HLOOKUP(Q19,males,O14,FALSE),""))) -> KATYA MAURICE | S19: Ton | T19: 16.3 | U19: =IF(OR(T19=0,T19="",O18=0,O18="",O19=0,O19="",O20=0,O20="",O21=0,O21=""),"",IF(T19<=O18,1,IF(T19<=O19,2,IF(T19<=O20,3,IF(T19<=O21,4,""))))) ->  | W19: 0 | X19: 4 | Y19: 2 | AK19: 101 | AM19: 2==== | AN19: =AR4 -> 5
A20: =VLOOKUP(B13,eventno,10,FALSE) -> 14.2 | B20: 6 | D20: =IF(OR(C20=0,C20=""),"",IF(A13="F",HLOOKUP(C20,females,A14,FALSE),IF(A13="M",HLOOKUP(C20,males,A14,FALSE),""))) ->  | G20: =IF(OR(F20=0,F20="",A18=0,A18="",A19=0,A19="",A20=0,A20="",A21=0,A21=""),"",IF(F20<=A18,1,IF(F20<=A19,2,IF(F20<=A20,3,IF(F20<=A21,4,""))))) ->  | H20: =VLOOKUP(I13,eventno,10,FALSE) -> 12.8 | I20: 6 | J20: 2 | K20: =IF(OR(J20=0,J20=""),"",IF(H13="F",HLOOKUP(J20,females,H14,FALSE),IF(H13="M",HLOOKUP(J20,males,H14,FALSE),""))) -> Charlotte Skeggs | L20: Bas | M20: 13.9 | N20: =IF(OR(M20=0,M20="",H18=0,H18="",H19=0,H19="",H20=0,H20="",H21=0,H21=""),"",IF(M20<=H18,1,IF(M20<=H19,2,IF(M20<=H20,3,IF(M20<=H21,4,""))))) ->  | O20: =VLOOKUP(P13,eventno,10,FALSE) -> 12.8 | P20: 6 | Q20: 11 | R20: =IF(OR(Q20=0,Q20=""),"",IF(O13="F",HLOOKUP(Q20,females,O14,FALSE),IF(O13="M",HLOOKUP(Q20,males,O14,FALSE),""))) -> Ruby Cox | S20: Ash | T20: DQ | U20: =IF(OR(T20=0,T20="",O18=0,O18="",O19=0,O19="",O20=0,O20="",O21=0,O21=""),"",IF(T20<=O18,1,IF(T20<=O19,2,IF(T20<=O20,3,IF(T20<=O21,4,""))))) ->  | W20: 0 | X20: 3 | Y20: 0 | AK20: 102 | AM20: 3= | AN20: =AO5 -> 5.5
A21: =VLOOKUP(B13,eventno,11,FALSE) -> 15.4 | B21: 7 | D21: =IF(OR(C21=0,C21=""),"",IF(A13="F",HLOOKUP(C21,females,A14,FALSE),IF(A13="M",HLOOKUP(C21,males,A14,FALSE),""))) ->  | G21: =IF(OR(F21=0,F21="",A18=0,A18="",A19=0,A19="",A20=0,A20="",A21=0,A21=""),"",IF(F21<=A18,1,IF(F21<=A19,2,IF(F21<=A20,3,IF(F21<=A21,4,""))))) ->  | H21: =VLOOKUP(I13,eventno,11,FALSE) -> 13.5 | I21: 7 | K21: =IF(OR(J21=0,J21=""),"",IF(H13="F",HLOOKUP(J21,females,H14,FALSE),IF(H13="M",HLOOKUP(J21,males,H14,FALSE),""))) ->  | N21: =IF(OR(M21=0,M21="",H18=0,H18="",H19=0,H19="",H20=0,H20="",H21=0,H21=""),"",IF(M21<=H18,1,IF(M21<=H19,2,IF(M21<=H20,3,IF(M21<=H21,4,""))))) ->  | O21: =VLOOKUP(P13,eventno,11,FALSE) -> 13.5 | P21: 7 | R21: =IF(OR(Q21=0,Q21=""),"",IF(O13="F",HLOOKUP(Q21,females,O14,FALSE),IF(O13="M",HLOOKUP(Q21,males,O14,FALSE),""))) ->  | U21: =IF(OR(T21=0,T21="",O18=0,O18="",O19=0,O19="",O20=0,O20="",O21=0,O21=""),"",IF(T21<=O18,1,IF(T21<=O19,2,IF(T21<=O20,3,IF(T21<=O21,4,""))))) ->  | W21: 0 | X21: 0 | Y21: 0 | AK21: 103 | AM21: 3== | AN21: =AP5 -> 5
A22: B | B22: 8 | D22: =IF(OR(C22=0,C22=""),"",IF(A13="F",HLOOKUP(C22,females,A14,FALSE),IF(A13="M",HLOOKUP(C22,males,A14,FALSE),""))) ->  | G22: =IF(OR(F22=0,F22="",A18=0,A18="",A19=0,A19="",A20=0,A20="",A21=0,A21=""),"",IF(F22<=A18,1,IF(F22<=A19,2,IF(F22<=A20,3,IF(F22<=A21,4,""))))) ->  | H22: A | I22: 8 | K22: =IF(OR(J22=0,J22=""),"",IF(H13="F",HLOOKUP(J22,females,H14,FALSE),IF(H13="M",HLOOKUP(J22,males,H14,FALSE),""))) ->  | N22: =IF(OR(M22=0,M22="",H18=0,H18="",H19=0,H19="",H20=0,H20="",H21=0,H21=""),"",IF(M22<=H18,1,IF(M22<=H19,2,IF(M22<=H20,3,IF(M22<=H21,4,""))))) ->  | O22: B | P22: 8 | R22: =IF(OR(Q22=0,Q22=""),"",IF(O13="F",HLOOKUP(Q22,females,O14,FALSE),IF(O13="M",HLOOKUP(Q22,males,O14,FALSE),""))) ->  | U22: =IF(OR(T22=0,T22="",O18=0,O18="",O19=0,O19="",O20=0,O20="",O21=0,O21=""),"",IF(T22<=O18,1,IF(T22<=O19,2,IF(T22<=O20,3,IF(T22<=O21,4,""))))) ->  | W22: 0 | X22: 0 | Y22: 0 | AK22: 104 | AM22: 3=== | AN22: =AQ5 -> 4.5
W23: 0 | X23: 0 | Y23: 0 | AM23: 4= | AN23: =AO6 -> 4.5
A24: =VLOOKUP(B24,eventno,5,FALSE) -> F | B24: T4 | C24: =CONCATENATE(VLOOKUP(B24,eventno,4,FALSE)," '",A33,"'") -> U17W 80m H 'A' | E24: =IF(A27="W","Wind =","") -> Wind = | G24: =IF(OR(F26=0,F26="",A28=0,A28=""),"",IF(A26="T",IF(F26<A28,"LR",IF(F26=A28,"LR=","")))) ->  | H24: =VLOOKUP(I24,eventno,5,FALSE) -> F | I24: T4 | J24: =CONCATENATE(VLOOKUP(I24,eventno,4,FALSE)," '",H33,"'") -> U17W 80m H 'B' | L24: =IF(H27="W","Wind =","") -> Wind = | N24: =IF(OR(M26=0,M26="",H28=0,H28=""),"",IF(H26="T",IF(M26<H28,"LR",IF(M26=H28,"LR=","")))) ->  | O24: =VLOOKUP(P24,eventno,5,FALSE) -> M | P24: T5 | Q24: =CONCATENATE(VLOOKUP(P24,eventno,4,FALSE)," '",O33,"'") -> U15B 80m H 'A' | S24: =IF(O27="W","Wind =","") -> Wind = | U24: =IF(OR(T26=0,T26="",O28=0,O28=""),"",IF(O26="T",IF(T26<O28,"LR",IF(T26=O28,"LR=","")))) ->  | W24: =IF(OR(B24=0,B24="",C24=0,C24="",F24=0,F24="",LEFT(F24,1)="D",LEFT(B24,1)="P"),0,VLOOKUP(B24,points,2,FALSE)) -> 0 | X24: =IF(OR(I24=0,I24="",J24=0,J24="",M24=0,M24="",LEFT(M24,1)="D",LEFT(I24,1)="P",LEFT(I24,1)="T"),0,VLOOKUP(I24,points,2,FALSE)-2) -> 0 | Y24: =IF(OR(P24=0,P24="",Q24=0,Q24="",T24=0,T24="",LEFT(T24,1)="D",LEFT(P24)="T",LEFT(P24)="P"),0,VLOOKUP(P24,points,2,FALSE)) -> 0 | AM24: 4== | AN24: =AP6 -> 4
A25: =IF(A24="M",VLOOKUP(B24,males,25,FALSE),VLOOKUP(B24,females,25,FALSE)) -> 4 | B25: Posn | C25: Bib | D25: Athlete | E25: Club | F25: Perf | G25: Gr | H25: =IF(H24="M",VLOOKUP(I24,males,25,FALSE),VLOOKUP(I24,females,25,FALSE)) -> 4 | I25: Posn | J25: Bib | K25: Athlete | L25: Club | M25: Perf | N25: Gr | O25: =IF(O24="M",VLOOKUP(P24,males,25,FALSE),VLOOKUP(P24,females,25,FALSE)) -> 3 | P25: Posn | Q25: Bib | R25: Athlete | S25: Club | T25: Perf | U25: Gr | W25: =IF(OR(B25=0,B25="",C25=0,C25="",F25=0,F25="",LEFT(F25,1)="D",LEFT(B25,1)="T",LEFT(B25,1)="P"),0,VLOOKUP(B25,points,2,FALSE)) -> 0 | X25: 0 | Y25: 0 | AM25: 5= | AN25: =AO7 -> 3.5
A26: =LEFT(B24,1) -> T | B26: 1 | C26: 1 | D26: =IF(OR(C26=0,C26=""),"",IF(A24="F",HLOOKUP(C26,females,A25,FALSE),IF(A24="M",HLOOKUP(C26,males,A25,FALSE),""))) -> Kayleigh Miller Leslie | E26: =IF(OR(C26=0,C26="",C26="-"),"",IF(C26>8,VLOOKUP(C26/11,match_teams,4,FALSE),VLOOKUP(C26,match_teams,4,FALSE))) -> Ash | F26: 12.9 | G26: =IF(OR(F26=0,F26="",A29=0,A29="",A30=0,A30="",A31=0,A31="",A32=0,A32=""),"",IF(F26<=A29,1,IF(F26<=A30,2,IF(F26<=A31,3,IF(F26<=A32,4,""))))) -> 3 | H26: =LEFT(I24,1) -> T | I26: 1 | J26: 66 | K26: =IF(OR(J26=0,J26=""),"",IF(H24="F",HLOOKUP(J26,females,H25,FALSE),IF(H24="M",HLOOKUP(J26,males,H25,FALSE),""))) -> SIMONE BAXTER | L26: =IF(OR(J26=0,J26="",J26="-"),"",IF(J26>8,VLOOKUP(J26/11,match_teams,4,FALSE),VLOOKUP(J26,match_teams,4,FALSE))) -> Ton | M26: 12.9 | N26: =IF(OR(M26=0,M26="",H29=0,H29="",H30=0,H30="",H31=0,H31="",H32=0,H32=""),"",IF(M26<=H29,1,IF(M26<=H30,2,IF(M26<=H31,3,IF(M26<=H32,4,""))))) -> 3 | O26: =LEFT(P24,1) -> T | P26: 1 | Q26: 1 | R26: =IF(OR(Q26=0,Q26=""),"",IF(O24="F",HLOOKUP(Q26,females,O25,FALSE),IF(O24="M",HLOOKUP(Q26,males,O25,FALSE),""))) -> Ben Isaac | S26: =IF(OR(Q26=0,Q26="",Q26="-"),"",IF(Q26>8,VLOOKUP(Q26/11,match_teams,4,FALSE),VLOOKUP(Q26,match_teams,4,FALSE))) -> Ash | T26: 12.1 | U26: =IF(OR(T26=0,T26="",O29=0,O29="",O30=0,O30="",O31=0,O31="",O32=0,O32=""),"",IF(T26<=O29,1,IF(T26<=O30,2,IF(T26<=O31,3,IF(T26<=O32,4,""))))) -> 1 | W26: 9 | X26: 7 | Y26: 9 | AA26: =COUNTA(F26) -> 1
A27: =VLOOKUP(B24,eventno,6,FALSE) -> W | B27: 2 | C27: 6 | D27: =IF(OR(C27=0,C27=""),"",IF(A24="F",HLOOKUP(C27,females,A25,FALSE),IF(A24="M",HLOOKUP(C27,males,A25,FALSE),""))) -> JO WARE | E27: Ton | F27: 13.2 | G27: =IF(OR(F27=0,F27="",A29=0,A29="",A30=0,A30="",A31=0,A31="",A32=0,A32=""),"",IF(F27<=A29,1,IF(F27<=A30,2,IF(F27<=A31,3,IF(F27<=A32,4,""))))) -> 4 | H27: =VLOOKUP(I24,eventno,6,FALSE) -> W | I27: 2 | J27: 33 | K27: =IF(OR(J27=0,J27=""),"",IF(H24="F",HLOOKUP(J27,females,H25,FALSE),IF(H24="M",HLOOKUP(J27,males,H25,FALSE),""))) -> Aine Hurlock | L27: B&B | M27: 13.2 | N27: =IF(OR(M27=0,M27="",H29=0,H29="",H30=0,H30="",H31=0,H31="",H32=0,H32=""),"",IF(M27<=H29,1,IF(M27<=H30,2,IF(M27<=H31,3,IF(M27<=H32,4,""))))) -> 4 | O27: =VLOOKUP(P24,eventno,6,FALSE) -> W | P27: 2 | Q27: 5 | R27: =IF(OR(Q27=0,Q27=""),"",IF(O24="F",HLOOKUP(Q27,females,O25,FALSE),IF(O24="M",HLOOKUP(Q27,males,O25,FALSE),""))) -> Thomas Pitkin | S27: HavM | T27: 12.8 | U27: =IF(OR(T27=0,T27="",O29=0,O29="",O30=0,O30="",O31=0,O31="",O32=0,O32=""),"",IF(T27<=O29,1,IF(T27<=O30,2,IF(T27<=O31,3,IF(T27<=O32,4,""))))) -> 3 | W27: 7 | X27: 5 | Y27: 7 | AA27: =COUNTA(T26) -> 1 | AM27: Match
A28: =VLOOKUP(B24,eventno,7,FALSE) -> 11.2 | B28: 3 | C28: 2 | D28: =IF(OR(C28=0,C28=""),"",IF(A24="F",HLOOKUP(C28,females,A25,FALSE),IF(A24="M",HLOOKUP(C28,males,A25,FALSE),""))) -> Lauren Baxter | E28: Bas | F28: 13.9 | G28: =IF(OR(F28=0,F28="",A29=0,A29="",A30=0,A30="",A31=0,A31="",A32=0,A32=""),"",IF(F28<=A29,1,IF(F28<=A30,2,IF(F28<=A31,3,IF(F28<=A32,4,""))))) ->  | H28: =VLOOKUP(I24,eventno,7,FALSE) -> 11.2 | I28: 3 | J28: 22 | K28: =IF(OR(J28=0,J28=""),"",IF(H24="F",HLOOKUP(J28,females,H25,FALSE),IF(H24="M",HLOOKUP(J28,males,H25,FALSE),""))) -> Sophie Hartman | L28: Bas | M28: 14.1 | N28: =IF(OR(M28=0,M28="",H29=0,H29="",H30=0,H30="",H31=0,H31="",H32=0,H32=""),"",IF(M28<=H29,1,IF(M28<=H30,2,IF(M28<=H31,3,IF(M28<=H32,4,""))))) ->  | O28: =VLOOKUP(P24,eventno,7,FALSE) -> 10.9 | P28: 3 | Q28: 4 | R28: =IF(OR(Q28=0,Q28=""),"",IF(O24="F",HLOOKUP(Q28,females,O25,FALSE),IF(O24="M",HLOOKUP(Q28,males,O25,FALSE),""))) -> Robert Sakala | S28: Croy | T28: 13.3 | U28: =IF(OR(T28=0,T28="",O29=0,O29="",O30=0,O30="",O31=0,O31="",O32=0,O32=""),"",IF(T28<=O29,1,IF(T28<=O30,2,IF(T28<=O31,3,IF(T28<=O32,4,""))))) -> 4 | W28: 6 | X28: 4 | Y28: 6 | AM28: 1 | AN28: 8
A29: =VLOOKUP(B24,eventno,8,FALSE) -> 12.2 | B29: 4 | C29: 3 | D29: =IF(OR(C29=0,C29=""),"",IF(A24="F",HLOOKUP(C29,females,A25,FALSE),IF(A24="M",HLOOKUP(C29,males,A25,FALSE),""))) -> Oshuwa Ogbeta | E29: B&B | F29: 17.7 | G29: =IF(OR(F29=0,F29="",A29=0,A29="",A30=0,A30="",A31=0,A31="",A32=0,A32=""),"",IF(F29<=A29,1,IF(F29<=A30,2,IF(F29<=A31,3,IF(F29<=A32,4,""))))) ->  | H29: =VLOOKUP(I24,eventno,8,FALSE) -> 12.2 | I29: 4 | J29: 44 | K29: =IF(OR(J29=0,J29=""),"",IF(H24="F",HLOOKUP(J29,females,H25,FALSE),IF(H24="M",HLOOKUP(J29,males,H25,FALSE),""))) -> Stevie Lawrence | L29: Croy | M29: 17.4 | N29: =IF(OR(M29=0,M29="",H29=0,H29="",H30=0,H30="",H31=0,H31="",H32=0,H32=""),"",IF(M29<=H29,1,IF(M29<=H30,2,IF(M29<=H31,3,IF(M29<=H32,4,""))))) ->  | O29: =VLOOKUP(P24,eventno,8,FALSE) -> 12.2 | P29: 4 | Q29: 6 | R29: =IF(OR(Q29=0,Q29=""),"",IF(O24="F",HLOOKUP(Q29,females,O25,FALSE),IF(O24="M",HLOOKUP(Q29,males,O25,FALSE),""))) -> SAM DAY | S29: Ton | T29: 15.9 | U29: =IF(OR(T29=0,T29="",O29=0,O29="",O30=0,O30="",O31=0,O31="",O32=0,O32=""),"",IF(T29<=O29,1,IF(T29<=O30,2,IF(T29<=O31,3,IF(T29<=O32,4,""))))) ->  | W29: 5 | X29: 3 | Y29: 5 | AM29: 2 | AN29: 7
A30: =VLOOKUP(B24,eventno,9,FALSE) -> 12.4 | B30: 5 | C30: 4 | D30: =IF(OR(C30=0,C30=""),"",IF(A24="F",HLOOKUP(C30,females,A25,FALSE),IF(A24="M",HLOOKUP(C30,males,A25,FALSE),""))) -> Dorcus Ogundele | E30: Croy | F30: 18.1 | G30: =IF(OR(F30=0,F30="",A29=0,A29="",A30=0,A30="",A31=0,A31="",A32=0,A32=""),"",IF(F30<=A29,1,IF(F30<=A30,2,IF(F30<=A31,3,IF(F30<=A32,4,""))))) ->  | H30: =VLOOKUP(I24,eventno,9,FALSE) -> 12.4 | I30: 5 | K30: =IF(OR(J30=0,J30=""),"",IF(H24="F",HLOOKUP(J30,females,H25,FALSE),IF(H24="M",HLOOKUP(J30,males,H25,FALSE),""))) ->  | N30: =IF(OR(M30=0,M30="",H29=0,H29="",H30=0,H30="",H31=0,H31="",H32=0,H32=""),"",IF(M30<=H29,1,IF(M30<=H30,2,IF(M30<=H31,3,IF(M30<=H32,4,""))))) ->  | O30: =VLOOKUP(P24,eventno,9,FALSE) -> 12.5 | P30: 5 | Q30: 3 | R30: =IF(OR(Q30=0,Q30=""),"",IF(O24="F",HLOOKUP(Q30,females,O25,FALSE),IF(O24="M",HLOOKUP(Q30,males,O25,FALSE),""))) -> Michael Honey-Rose | S30: B&B | T30: 17.3 | U30: =IF(OR(T30=0,T30="",O29=0,O29="",O30=0,O30="",O31=0,O31="",O32=0,O32=""),"",IF(T30<=O29,1,IF(T30<=O30,2,IF(T30<=O31,3,IF(T30<=O32,4,""))))) ->  | W30: 4 | X30: 0 | Y30: 4 | AM30: 3 | AN30: 6
A31: =VLOOKUP(B24,eventno,10,FALSE) -> 12.9 | B31: 6 | D31: =IF(OR(C31=0,C31=""),"",IF(A24="F",HLOOKUP(C31,females,A25,FALSE),IF(A24="M",HLOOKUP(C31,males,A25,FALSE),""))) ->  | G31: =IF(OR(F31=0,F31="",A29=0,A29="",A30=0,A30="",A31=0,A31="",A32=0,A32=""),"",IF(F31<=A29,1,IF(F31<=A30,2,IF(F31<=A31,3,IF(F31<=A32,4,""))))) ->  | H31: =VLOOKUP(I24,eventno,10,FALSE) -> 12.9 | I31: 6 | K31: =IF(OR(J31=0,J31=""),"",IF(H24="F",HLOOKUP(J31,females,H25,FALSE),IF(H24="M",HLOOKUP(J31,males,H25,FALSE),""))) ->  | N31: =IF(OR(M31=0,M31="",H29=0,H29="",H30=0,H30="",H31=0,H31="",H32=0,H32=""),"",IF(M31<=H29,1,IF(M31<=H30,2,IF(M31<=H31,3,IF(M31<=H32,4,""))))) ->  | O31: =VLOOKUP(P24,eventno,10,FALSE) -> 12.9 | P31: 6 | Q31: 2 | R31: =IF(OR(Q31=0,Q31=""),"",IF(O24="F",HLOOKUP(Q31,females,O25,FALSE),IF(O24="M",HLOOKUP(Q31,males,O25,FALSE),""))) -> Max Jones | S31: Bas | T31: 17.7 | U31: =IF(OR(T31=0,T31="",O29=0,O29="",O30=0,O30="",O31=0,O31="",O32=0,O32=""),"",IF(T31<=O29,1,IF(T31<=O30,2,IF(T31<=O31,3,IF(T31<=O32,4,""))))) ->  | W31: 0 | X31: 0 | Y31: 3 | AM31: 4 | AN31: 5
A32: =VLOOKUP(B24,eventno,11,FALSE) -> 13.8 | B32: 7 | D32: =IF(OR(C32=0,C32=""),"",IF(A24="F",HLOOKUP(C32,females,A25,FALSE),IF(A24="M",HLOOKUP(C32,males,A25,FALSE),""))) ->  | G32: =IF(OR(F32=0,F32="",A29=0,A29="",A30=0,A30="",A31=0,A31="",A32=0,A32=""),"",IF(F32<=A29,1,IF(F32<=A30,2,IF(F32<=A31,3,IF(F32<=A32,4,""))))) ->  | H32: =VLOOKUP(I24,eventno,11,FALSE) -> 13.8 | I32: 7 | K32: =IF(OR(J32=0,J32=""),"",IF(H24="F",HLOOKUP(J32,females,H25,FALSE),IF(H24="M",HLOOKUP(J32,males,H25,FALSE),""))) ->  | N32: =IF(OR(M32=0,M32="",H29=0,H29="",H30=0,H30="",H31=0,H31="",H32=0,H32=""),"",IF(M32<=H29,1,IF(M32<=H30,2,IF(M32<=H31,3,IF(M32<=H32,4,""))))) ->  | O32: =VLOOKUP(P24,eventno,11,FALSE) -> 13.7 | P32: 7 | R32: =IF(OR(Q32=0,Q32=""),"",IF(O24="F",HLOOKUP(Q32,females,O25,FALSE),IF(O24="M",HLOOKUP(Q32,males,O25,FALSE),""))) ->  | U32: =IF(OR(T32=0,T32="",O29=0,O29="",O30=0,O30="",O31=0,O31="",O32=0,O32=""),"",IF(T32<=O29,1,IF(T32<=O30,2,IF(T32<=O31,3,IF(T32<=O32,4,""))))) ->  | W32: 0 | X32: 0 | Y32: 0 | AM32: 5 | AN32: 4
A33: A | B33: 8 | D33: =IF(OR(C33=0,C33=""),"",IF(A24="F",HLOOKUP(C33,females,A25,FALSE),IF(A24="M",HLOOKUP(C33,males,A25,FALSE),""))) ->  | G33: =IF(OR(F33=0,F33="",A29=0,A29="",A30=0,A30="",A31=0,A31="",A32=0,A32=""),"",IF(F33<=A29,1,IF(F33<=A30,2,IF(F33<=A31,3,IF(F33<=A32,4,""))))) ->  | H33: B | I33: 8 | K33: =IF(OR(J33=0,J33=""),"",IF(H24="F",HLOOKUP(J33,females,H25,FALSE),IF(H24="M",HLOOKUP(J33,males,H25,FALSE),""))) ->  | N33: =IF(OR(M33=0,M33="",H29=0,H29="",H30=0,H30="",H31=0,H31="",H32=0,H32=""),"",IF(M33<=H29,1,IF(M33<=H30,2,IF(M33<=H31,3,IF(M33<=H32,4,""))))) ->  | O33: A | P33: 8 | R33: =IF(OR(Q33=0,Q33=""),"",IF(O24="F",HLOOKUP(Q33,females,O25,FALSE),IF(O24="M",HLOOKUP(Q33,males,O25,FALSE),""))) ->  | U33: =IF(OR(T33=0,T33="",O29=0,O29="",O30=0,O30="",O31=0,O31="",O32=0,O32=""),"",IF(T33<=O29,1,IF(T33<=O30,2,IF(T33<=O31,3,IF(T33<=O32,4,""))))) ->  | W33: 0 | X33: 0 | Y33: 0 | AM33: 6 | AN33: 3
W34: 0 | X34: =IF(OR(I34=0,I34="",J34=0,J34="",M34=0,M34="",LEFT(M34,1)="D",LEFT(I34,1)="P",LEFT(I34,1)="T"),0,VLOOKUP(I34,points,2,FALSE)) -> 0 | Y34: 0 | AM34: 7 | AN34: 2
A35: =VLOOKUP(B35,eventno,5,FALSE) -> M | B35: T5 | C35: =CONCATENATE(VLOOKUP(B35,eventno,4,FALSE)," '",A44,"'") -> U15B 80m H 'B' | E35: =IF(A38="W","Wind =","") -> Wind = | G35: =IF(OR(F37=0,F37="",A39=0,A39=""),"",IF(A37="T",IF(F37<A39,"LR",IF(F37=A39,"LR=","")))) ->  | H35: =VLOOKUP(I35,eventno,5,FALSE) -> M | I35: T6 | J35: =CONCATENATE(VLOOKUP(I35,eventno,4,FALSE)," '",H44,"'") -> U17M 100m H 'A' | L35: =IF(H38="W","Wind =","") -> Wind = | N35: =IF(OR(M37=0,M37="",H39=0,H39=""),"",IF(H37="T",IF(M37<H39,"LR",IF(M37=H39,"LR=","")))) ->  | O35: =VLOOKUP(P35,eventno,5,FALSE) -> M | P35: T6 | Q35: =CONCATENATE(VLOOKUP(P35,eventno,4,FALSE)," '",O44,"'") -> U17M 100m H 'B' | S35: =IF(O38="W","Wind =","") -> Wind = | U35: =IF(OR(T37=0,T37="",O39=0,O39=""),"",IF(O37="T",IF(T37<O39,"LR",IF(T37=O39,"LR=","")))) ->  | W35: =IF(OR(B35=0,B35="",C35=0,C35="",F35=0,F35="",LEFT(F35,1)="D",LEFT(B35,1)="T",LEFT(B35,1)="P"),0,VLOOKUP(B35,points,2,FALSE)-2) -> 0 | X35: 0 | Y35: =IF(OR(P35=0,P35="",Q35=0,Q35="",T35=0,T35="",LEFT(T35,1)="D",LEFT(P35)="T",LEFT(P35)="P"),0,VLOOKUP(P35,points,2,FALSE)-2) -> 0 | AM35: 8 | AN35: 1
A36: =IF(A35="M",VLOOKUP(B35,males,25,FALSE),VLOOKUP(B35,females,25,FALSE)) -> 3 | B36: Posn | C36: Bib | D36: Athlete | E36: Club | F36: Perf | G36: Gr | H36: =IF(H35="M",VLOOKUP(I35,males,25,FALSE),VLOOKUP(I35,females,25,FALSE)) -> 4 | I36: Posn | J36: Bib | K36: Athlete | L36: Club | M36: Perf | N36: Gr | O36: =IF(O35="M",VLOOKUP(P35,males,25,FALSE),VLOOKUP(P35,females,25,FALSE)) -> 4 | P36: Posn | Q36: Bib | R36: Athlete | S36: Club | T36: Perf | U36: Gr | W36: 0 | X36: 0 | Y36: 0
A37: =LEFT(B35,1) -> T | B37: 1 | C37: 11 | D37: =IF(OR(C37=0,C37=""),"",IF(A35="F",HLOOKUP(C37,females,A36,FALSE),IF(A35="M",HLOOKUP(C37,males,A36,FALSE),""))) -> Cameron Amedee | E37: =IF(OR(C37=0,C37="",C37="-"),"",IF(C37>8,VLOOKUP(C37/11,match_teams,4,FALSE),VLOOKUP(C37,match_teams,4,FALSE))) -> Ash | F37: 13.6 | G37: =IF(OR(F37=0,F37="",A40=0,A40="",A41=0,A41="",A42=0,A42="",A43=0,A43=""),"",IF(F37<=A40,1,IF(F37<=A41,2,IF(F37<=A42,3,IF(F37<=A43,4,""))))) -> 4 | H37: =LEFT(I35,1) -> T | I37: 1 | J37: 5 | K37: =IF(OR(J37=0,J37=""),"",IF(H35="F",HLOOKUP(J37,females,H36,FALSE),IF(H35="M",HLOOKUP(J37,males,H36,FALSE),""))) -> Robbie Clarricoats | L37: =IF(OR(J37=0,J37="",J37="-"),"",IF(J37>8,VLOOKUP(J37/11,match_teams,4,FALSE),VLOOKUP(J37,match_teams,4,FALSE))) -> HavM | M37: 13.6 | N37: =IF(OR(M37=0,M37="",H40=0,H40="",H41=0,H41="",H42=0,H42="",H43=0,H43=""),"",IF(M37<=H40,1,IF(M37<=H41,2,IF(M37<=H42,3,IF(M37<=H43,4,""))))) -> 1 | O37: =LEFT(P35,1) -> T | P37: 1 | Q37: 55 | R37: =IF(OR(Q37=0,Q37=""),"",IF(O35="F",HLOOKUP(Q37,females,O36,FALSE),IF(O35="M",HLOOKUP(Q37,males,O36,FALSE),""))) -> Karl Tucker | S37: =IF(OR(Q37=0,Q37="",Q37="-"),"",IF(Q37>8,VLOOKUP(Q37/11,match_teams,4,FALSE),VLOOKUP(Q37,match_teams,4,FALSE))) -> HavM | T37: 14.9 | U37: =IF(OR(T37=0,T37="",O40=0,O40="",O41=0,O41="",O42=0,O42="",O43=0,O43=""),"",IF(T37<=O40,1,IF(T37<=O41,2,IF(T37<=O42,3,IF(T37<=O43,4,""))))) -> 4 | W37: 7 | X37: 9 | Y37: 7 | AA37: =COUNTA(M37) -> 1
A38: =VLOOKUP(B35,eventno,6,FALSE) -> W | B38: 2 | C38: 55 | D38: =IF(OR(C38=0,C38=""),"",IF(A35="F",HLOOKUP(C38,females,A36,FALSE),IF(A35="M",HLOOKUP(C38,males,A36,FALSE),""))) -> Matthew Owers | E38: HavM | F38: 14.5 | G38: =IF(OR(F38=0,F38="",A40=0,A40="",A41=0,A41="",A42=0,A42="",A43=0,A43=""),"",IF(F38<=A40,1,IF(F38<=A41,2,IF(F38<=A42,3,IF(F38<=A43,4,""))))) ->  | H38: =VLOOKUP(I35,eventno,6,FALSE) -> W | I38: 2 | J38: 4 | K38: =IF(OR(J38=0,J38=""),"",IF(H35="F",HLOOKUP(J38,females,H36,FALSE),IF(H35="M",HLOOKUP(J38,males,H36,FALSE),""))) -> Kertis Beswick | L38: Croy | M38: 13.8 | N38: =IF(OR(M38=0,M38="",H40=0,H40="",H41=0,H41="",H42=0,H42="",H43=0,H43=""),"",IF(M38<=H40,1,IF(M38<=H41,2,IF(M38<=H42,3,IF(M38<=H43,4,""))))) -> 1 | O38: =VLOOKUP(P35,eventno,6,FALSE) -> W | P38: 2 | Q38: 66 | R38: =IF(OR(Q38=0,Q38=""),"",IF(O35="F",HLOOKUP(Q38,females,O36,FALSE),IF(O35="M",HLOOKUP(Q38,males,O36,FALSE),""))) -> LEWIS CHURCH | S38: Ton | T38: 15 | U38: =IF(OR(T38=0,T38="",O40=0,O40="",O41=0,O41="",O42=0,O42="",O43=0,O43=""),"",IF(T38<=O40,1,IF(T38<=O41,2,IF(T38<=O42,3,IF(T38<=O43,4,""))))) -> 4 | W38: 5 | X38: 7 | Y38: 5
A39: =VLOOKUP(B35,eventno,7,FALSE) -> 10.9 | B39: 3 | C39: 44 | D39: =IF(OR(C39=0,C39=""),"",IF(A35="F",HLOOKUP(C39,females,A36,FALSE),IF(A35="M",HLOOKUP(C39,males,A36,FALSE),""))) -> Killion Elliot | E39: Croy | F39: 14.8 | G39: =IF(OR(F39=0,F39="",A40=0,A40="",A41=0,A41="",A42=0,A42="",A43=0,A43=""),"",IF(F39<=A40,1,IF(F39<=A41,2,IF(F39<=A42,3,IF(F39<=A43,4,""))))) ->  | H39: =VLOOKUP(I35,eventno,7,FALSE) -> 12.8 | I39: 3 | J39: 2 | K39: =IF(OR(J39=0,J39=""),"",IF(H35="F",HLOOKUP(J39,females,H36,FALSE),IF(H35="M",HLOOKUP(J39,males,H36,FALSE),""))) -> Matt Scott | L39: Bas | M39: 14 | N39: =IF(OR(M39=0,M39="",H40=0,H40="",H41=0,H41="",H42=0,H42="",H43=0,H43=""),"",IF(M39<=H40,1,IF(M39<=H41,2,IF(M39<=H42,3,IF(M39<=H43,4,""))))) -> 2 | O39: =VLOOKUP(P35,eventno,7,FALSE) -> 12.8 | P39: 3 | Q39: 44 | R39: =IF(OR(Q39=0,Q39=""),"",IF(O35="F",HLOOKUP(Q39,females,O36,FALSE),IF(O35="M",HLOOKUP(Q39,males,O36,FALSE),""))) -> Jordan O t u | S39: Croy | T39: 15.9 | U39: =IF(OR(T39=0,T39="",O40=0,O40="",O41=0,O41="",O42=0,O42="",O43=0,O43=""),"",IF(T39<=O40,1,IF(T39<=O41,2,IF(T39<=O42,3,IF(T39<=O43,4,""))))) ->  | W39: 4 | X39: 6 | Y39: 4
A40: =VLOOKUP(B35,eventno,8,FALSE) -> 12.2 | B40: 4 | C40: 66 | D40: =IF(OR(C40=0,C40=""),"",IF(A35="F",HLOOKUP(C40,females,A36,FALSE),IF(A35="M",HLOOKUP(C40,males,A36,FALSE),""))) -> JOE FUGGLE | E40: Ton | F40: 15.6 | G40: =IF(OR(F40=0,F40="",A40=0,A40="",A41=0,A41="",A42=0,A42="",A43=0,A43=""),"",IF(F40<=A40,1,IF(F40<=A41,2,IF(F40<=A42,3,IF(F40<=A43,4,""))))) ->  | H40: =VLOOKUP(I35,eventno,8,FALSE) -> 13.9 | I40: 4 | J40: 6 | K40: =IF(OR(J40=0,J40=""),"",IF(H35="F",HLOOKUP(J40,females,H36,FALSE),IF(H35="M",HLOOKUP(J40,males,H36,FALSE),""))) -> James Masterton | L40: Ton | M40: 14.2 | N40: =IF(OR(M40=0,M40="",H40=0,H40="",H41=0,H41="",H42=0,H42="",H43=0,H43=""),"",IF(M40<=H40,1,IF(M40<=H41,2,IF(M40<=H42,3,IF(M40<=H43,4,""))))) -> 2 | O40: =VLOOKUP(P35,eventno,8,FALSE) -> 13.9 | P40: 4 | R40: =IF(OR(Q40=0,Q40=""),"",IF(O35="F",HLOOKUP(Q40,females,O36,FALSE),IF(O35="M",HLOOKUP(Q40,males,O36,FALSE),""))) ->  | U40: =IF(OR(T40=0,T40="",O40=0,O40="",O41=0,O41="",O42=0,O42="",O43=0,O43=""),"",IF(T40<=O40,1,IF(T40<=O41,2,IF(T40<=O42,3,IF(T40<=O43,4,""))))) ->  | W40: 3 | X40: 5 | Y40: 0
A41: =VLOOKUP(B35,eventno,9,FALSE) -> 12.5 | B41: 5 | C41: 22 | D41: =IF(OR(C41=0,C41=""),"",IF(A35="F",HLOOKUP(C41,females,A36,FALSE),IF(A35="M",HLOOKUP(C41,males,A36,FALSE),""))) -> Ben Haynes | E41: Bas | F41: 17.4 | G41: =IF(OR(F41=0,F41="",A40=0,A40="",A41=0,A41="",A42=0,A42="",A43=0,A43=""),"",IF(F41<=A40,1,IF(F41<=A41,2,IF(F41<=A42,3,IF(F41<=A43,4,""))))) ->  | H41: =VLOOKUP(I35,eventno,9,FALSE) -> 14.3 | I41: 5 | J41: 1 | K41: =IF(OR(J41=0,J41=""),"",IF(H35="F",HLOOKUP(J41,females,H36,FALSE),IF(H35="M",HLOOKUP(J41,males,H36,FALSE),""))) -> Jake Lane | L41: Ash | M41: 17.3 | N41: =IF(OR(M41=0,M41="",H40=0,H40="",H41=0,H41="",H42=0,H42="",H43=0,H43=""),"",IF(M41<=H40,1,IF(M41<=H41,2,IF(M41<=H42,3,IF(M41<=H43,4,""))))) ->  | O41: =VLOOKUP(P35,eventno,9,FALSE) -> 14.3 | P41: 5 | R41: =IF(OR(Q41=0,Q41=""),"",IF(O35="F",HLOOKUP(Q41,females,O36,FALSE),IF(O35="M",HLOOKUP(Q41,males,O36,FALSE),""))) ->  | U41: =IF(OR(T41=0,T41="",O40=0,O40="",O41=0,O41="",O42=0,O42="",O43=0,O43=""),"",IF(T41<=O40,1,IF(T41<=O41,2,IF(T41<=O42,3,IF(T41<=O43,4,""))))) ->  | W41: 2 | X41: 4 | Y41: 0
A42: =VLOOKUP(B35,eventno,10,FALSE) -> 12.9 | B42: 6 | D42: =IF(OR(C42=0,C42=""),"",IF(A35="F",HLOOKUP(C42,females,A36,FALSE),IF(A35="M",HLOOKUP(C42,males,A36,FALSE),""))) ->  | G42: =IF(OR(F42=0,F42="",A40=0,A40="",A41=0,A41="",A42=0,A42="",A43=0,A43=""),"",IF(F42<=A40,1,IF(F42<=A41,2,IF(F42<=A42,3,IF(F42<=A43,4,""))))) ->  | H42: =VLOOKUP(I35,eventno,10,FALSE) -> 14.8 | I42: 6 | J42: 3 | K42: =IF(OR(J42=0,J42=""),"",IF(H35="F",HLOOKUP(J42,females,H36,FALSE),IF(H35="M",HLOOKUP(J42,males,H36,FALSE),""))) -> Callum Gardiner | L42: B&B | M42: DNF | N42: =IF(OR(M42=0,M42="",H40=0,H40="",H41=0,H41="",H42=0,H42="",H43=0,H43=""),"",IF(M42<=H40,1,IF(M42<=H41,2,IF(M42<=H42,3,IF(M42<=H43,4,""))))) ->  | O42: =VLOOKUP(P35,eventno,10,FALSE) -> 14.8 | P42: 6 | R42: =IF(OR(Q42=0,Q42=""),"",IF(O35="F",HLOOKUP(Q42,females,O36,FALSE),IF(O35="M",HLOOKUP(Q42,males,O36,FALSE),""))) ->  | U42: =IF(OR(T42=0,T42="",O40=0,O40="",O41=0,O41="",O42=0,O42="",O43=0,O43=""),"",IF(T42<=O40,1,IF(T42<=O41,2,IF(T42<=O42,3,IF(T42<=O43,4,""))))) ->  | W42: 0 | X42: 0 | Y42: 0
A43: =VLOOKUP(B35,eventno,11,FALSE) -> 13.7 | B43: 7 | D43: =IF(OR(C43=0,C43=""),"",IF(A35="F",HLOOKUP(C43,females,A36,FALSE),IF(A35="M",HLOOKUP(C43,males,A36,FALSE),""))) ->  | G43: =IF(OR(F43=0,F43="",A40=0,A40="",A41=0,A41="",A42=0,A42="",A43=0,A43=""),"",IF(F43<=A40,1,IF(F43<=A41,2,IF(F43<=A42,3,IF(F43<=A43,4,""))))) ->  | H43: =VLOOKUP(I35,eventno,11,FALSE) -> 15.7 | I43: 7 | K43: =IF(OR(J43=0,J43=""),"",IF(H35="F",HLOOKUP(J43,females,H36,FALSE),IF(H35="M",HLOOKUP(J43,males,H36,FALSE),""))) ->  | N43: =IF(OR(M43=0,M43="",H40=0,H40="",H41=0,H41="",H42=0,H42="",H43=0,H43=""),"",IF(M43<=H40,1,IF(M43<=H41,2,IF(M43<=H42,3,IF(M43<=H43,4,""))))) ->  | O43: =VLOOKUP(P35,eventno,11,FALSE) -> 15.7 | P43: 7 | R43: =IF(OR(Q43=0,Q43=""),"",IF(O35="F",HLOOKUP(Q43,females,O36,FALSE),IF(O35="M",HLOOKUP(Q43,males,O36,FALSE),""))) ->  | U43: =IF(OR(T43=0,T43="",O40=0,O40="",O41=0,O41="",O42=0,O42="",O43=0,O43=""),"",IF(T43<=O40,1,IF(T43<=O41,2,IF(T43<=O42,3,IF(T43<=O43,4,""))))) ->  | W43: 0 | X43: 0 | Y43: 0
A44: B | B44: 8 | D44: =IF(OR(C44=0,C44=""),"",IF(A35="F",HLOOKUP(C44,females,A36,FALSE),IF(A35="M",HLOOKUP(C44,males,A36,FALSE),""))) ->  | G44: =IF(OR(F44=0,F44="",A40=0,A40="",A41=0,A41="",A42=0,A42="",A43=0,A43=""),"",IF(F44<=A40,1,IF(F44<=A41,2,IF(F44<=A42,3,IF(F44<=A43,4,""))))) ->  | H44: A | I44: 8 | K44: =IF(OR(J44=0,J44=""),"",IF(H35="F",HLOOKUP(J44,females,H36,FALSE),IF(H35="M",HLOOKUP(J44,males,H36,FALSE),""))) ->  | N44: =IF(OR(M44=0,M44="",H40=0,H40="",H41=0,H41="",H42=0,H42="",H43=0,H43=""),"",IF(M44<=H40,1,IF(M44<=H41,2,IF(M44<=H42,3,IF(M44<=H43,4,""))))) ->  | O44: B | P44: 8 | R44: =IF(OR(Q44=0,Q44=""),"",IF(O35="F",HLOOKUP(Q44,females,O36,FALSE),IF(O35="M",HLOOKUP(Q44,males,O36,FALSE),""))) ->  | U44: =IF(OR(T44=0,T44="",O40=0,O40="",O41=0,O41="",O42=0,O42="",O43=0,O43=""),"",IF(T44<=O40,1,IF(T44<=O41,2,IF(T44<=O42,3,IF(T44<=O43,4,""))))) ->  | W44: 0 | X44: 0 | Y44: 0
W45: 0 | X45: 0 | Y45: 0
A46: =VLOOKUP(B46,eventno,5,FALSE) -> F | B46: T7 | C46: =CONCATENATE(VLOOKUP(B46,eventno,4,FALSE)," '",A55,"'") -> U17W 800m 'A' | E46: =IF(A49="W","Wind =","") ->  | G46: =IF(OR(F48=0,F48="",A50=0,A50=""),"",IF(A48="T",IF(F48<A50,"LR",IF(F48=A50,"LR=","")))) ->  | H46: =VLOOKUP(I46,eventno,5,FALSE) -> F | I46: T7 | J46: =CONCATENATE(VLOOKUP(I46,eventno,4,FALSE)," '",H55,"'") -> U17W 800m 'B' | L46: =IF(H49="W","Wind =","") ->  | N46: =IF(OR(M48=0,M48="",H50=0,H50=""),"",IF(H48="T",IF(M48<H50,"LR",IF(M48=H50,"LR=","")))) ->  | O46: =VLOOKUP(P46,eventno,5,FALSE) -> F | P46: T8 | Q46: =CONCATENATE(VLOOKUP(P46,eventno,4,FALSE)," '",O55,"'") -> U15G 800m 'A' | S46: =IF(O49="W","Wind =","") ->  | U46: =IF(OR(T48=0,T48="",O50=0,O50=""),"",IF(O48="T",IF(T48<O50,"LR",IF(T48=O50,"LR=","")))) ->  | W46: =IF(OR(B46=0,B46="",C46=0,C46="",F46=0,F46="",LEFT(F46,1)="D",LEFT(B46,1)="P"),0,VLOOKUP(B46,points,2,FALSE)) -> 0 | X46: =IF(OR(I46=0,I46="",J46=0,J46="",M46=0,M46="",LEFT(M46,1)="D",LEFT(I46,1)="P",LEFT(I46,1)="T"),0,VLOOKUP(I46,points,2,FALSE)-2) -> 0 | Y46: =IF(OR(P46=0,P46="",Q46=0,Q46="",T46=0,T46="",LEFT(T46,1)="D",LEFT(P46)="T",LEFT(P46)="P"),0,VLOOKUP(P46,points,2,FALSE)) -> 0
A47: =IF(A46="M",VLOOKUP(B46,males,25,FALSE),VLOOKUP(B46,females,25,FALSE)) -> 7 | B47: Posn | C47: Bib | D47: Athlete | E47: Club | F47: Perf | G47: Gr | H47: =IF(H46="M",VLOOKUP(I46,males,25,FALSE),VLOOKUP(I46,females,25,FALSE)) -> 7 | I47: Posn | J47: Bib | K47: Athlete | L47: Club | M47: Perf | N47: Gr | O47: =IF(O46="M",VLOOKUP(P46,males,25,FALSE),VLOOKUP(P46,females,25,FALSE)) -> 6 | P47: Posn | Q47: Bib | R47: Athlete | S47: Club | T47: Perf | U47: Gr | W47: =IF(OR(B47=0,B47="",C47=0,C47="",F47=0,F47="",LEFT(F47,1)="D",LEFT(B47,1)="T",LEFT(B47,1)="P"),0,VLOOKUP(B47,points,2,FALSE)) -> 0 | X47: 0 | Y47: 0
A48: =LEFT(B46,1) -> T | B48: 1 | C48: 6 | D48: =IF(OR(C48=0,C48=""),"",IF(A46="F",HLOOKUP(C48,females,A47,FALSE),IF(A46="M",HLOOKUP(C48,males,A47,FALSE),""))) -> ALICE WOOD | E48: =IF(OR(C48=0,C48="",C48="-"),"",IF(C48>8,VLOOKUP(C48/11,match_teams,4,FALSE),VLOOKUP(C48,match_teams,4,FALSE))) -> Ton | F48: 00:02:26.900 | G48: =IF(OR(F48=0,F48="",A51=0,A51="",A52=0,A52="",A53=0,A53="",A54=0,A54=""),"",IF(F48<=A51,1,IF(F48<=A52,2,IF(F48<=A53,3,IF(F48<=A54,4,""))))) ->  | H48: =LEFT(I46,1) -> T | I48: 1 | J48: 33 | K48: =IF(OR(J48=0,J48=""),"",IF(H46="F",HLOOKUP(J48,females,H47,FALSE),IF(H46="M",HLOOKUP(J48,males,H47,FALSE),""))) -> Janae Galley | L48: =IF(OR(J48=0,J48="",J48="-"),"",IF(J48>8,VLOOKUP(J48/11,match_teams,4,FALSE),VLOOKUP(J48,match_teams,4,FALSE))) -> B&B | M48: 00:02:30 | N48: =IF(OR(M48=0,M48="",H51=0,H51="",H52=0,H52="",H53=0,H53="",H54=0,H54=""),"",IF(M48<=H51,1,IF(M48<=H52,2,IF(M48<=H53,3,IF(M48<=H54,4,""))))) ->  | O48: =LEFT(P46,1) -> T | P48: 1 | Q48: 6 | R48: =IF(OR(Q48=0,Q48=""),"",IF(O46="F",HLOOKUP(Q48,females,O47,FALSE),IF(O46="M",HLOOKUP(Q48,males,O47,FALSE),""))) -> HANNAH CZARNOWSKI | S48: =IF(OR(Q48=0,Q48="",Q48="-"),"",IF(Q48>8,VLOOKUP(Q48/11,match_teams,4,FALSE),VLOOKUP(Q48,match_teams,4,FALSE))) -> Ton | T48: 00:02:23.900 | U48: =IF(OR(T48=0,T48="",O51=0,O51="",O52=0,O52="",O53=0,O53="",O54=0,O54=""),"",IF(T48<=O51,1,IF(T48<=O52,2,IF(T48<=O53,3,IF(T48<=O54,4,""))))) -> 3 | W48: 9 | X48: 7 | Y48: 9 | AA48: =COUNTA(F48) -> 1
A49: =VLOOKUP(B46,eventno,6,FALSE) -> 0 | B49: 2 | C49: 3 | D49: =IF(OR(C49=0,C49=""),"",IF(A46="F",HLOOKUP(C49,females,A47,FALSE),IF(A46="M",HLOOKUP(C49,males,A47,FALSE),""))) -> Holly Fletcher | E49: B&B | F49: 00:02:27.400 | G49: =IF(OR(F49=0,F49="",A51=0,A51="",A52=0,A52="",A53=0,A53="",A54=0,A54=""),"",IF(F49<=A51,1,IF(F49<=A52,2,IF(F49<=A53,3,IF(F49<=A54,4,""))))) ->  | H49: =VLOOKUP(I46,eventno,6,FALSE) -> 0 | I49: 2 | J49: 66 | K49: =IF(OR(J49=0,J49=""),"",IF(H46="F",HLOOKUP(J49,females,H47,FALSE),IF(H46="M",HLOOKUP(J49,males,H47,FALSE),""))) -> FRAN TAYLOR-LOWEN | L49: Ton | M49: 00:02:43.400 | N49: =IF(OR(M49=0,M49="",H51=0,H51="",H52=0,H52="",H53=0,H53="",H54=0,H54=""),"",IF(M49<=H51,1,IF(M49<=H52,2,IF(M49<=H53,3,IF(M49<=H54,4,""))))) ->  | O49: =VLOOKUP(P46,eventno,6,FALSE) -> 0 | P49: 2 | Q49: 3 | R49: =IF(OR(Q49=0,Q49=""),"",IF(O46="F",HLOOKUP(Q49,females,O47,FALSE),IF(O46="M",HLOOKUP(Q49,males,O47,FALSE),""))) -> Leah Everson | S49: B&B | T49: 00:02:25.300 | U49: =IF(OR(T49=0,T49="",O51=0,O51="",O52=0,O52="",O53=0,O53="",O54=0,O54=""),"",IF(T49<=O51,1,IF(T49<=O52,2,IF(T49<=O53,3,IF(T49<=O54,4,""))))) -> 3 | W49: 7 | X49: 5 | Y49: 7 | AA49: =COUNTA(T48) -> 1
A50: =VLOOKUP(B46,eventno,7,FALSE) -> 0.00150462963 | B50: 3 | C50: 2 | D50: =IF(OR(C50=0,C50=""),"",IF(A46="F",HLOOKUP(C50,females,A47,FALSE),IF(A46="M",HLOOKUP(C50,males,A47,FALSE),""))) -> Poppy Aitmarri | E50: Bas | F50: 00:02:30 | G50: =IF(OR(F50=0,F50="",A51=0,A51="",A52=0,A52="",A53=0,A53="",A54=0,A54=""),"",IF(F50<=A51,1,IF(F50<=A52,2,IF(F50<=A53,3,IF(F50<=A54,4,""))))) ->  | H50: =VLOOKUP(I46,eventno,7,FALSE) -> 0.00150462963 | I50: 3 | J50: 22 | K50: =IF(OR(J50=0,J50=""),"",IF(H46="F",HLOOKUP(J50,females,H47,FALSE),IF(H46="M",HLOOKUP(J50,males,H47,FALSE),""))) -> Laura Kidd | L50: Bas | M50: 00:02:44.300 | N50: =IF(OR(M50=0,M50="",H51=0,H51="",H52=0,H52="",H53=0,H53="",H54=0,H54=""),"",IF(M50<=H51,1,IF(M50<=H52,2,IF(M50<=H53,3,IF(M50<=H54,4,""))))) ->  | O50: =VLOOKUP(P46,eventno,7,FALSE) -> 0.001530092593 | P50: 3 | Q50: 5 | R50: =IF(OR(Q50=0,Q50=""),"",IF(O46="F",HLOOKUP(Q50,females,O47,FALSE),IF(O46="M",HLOOKUP(Q50,males,O47,FALSE),""))) -> Abigail Spink | S50: HavM | T50: 00:02:28.500 | U50: =IF(OR(T50=0,T50="",O51=0,O51="",O52=0,O52="",O53=0,O53="",O54=0,O54=""),"",IF(T50<=O51,1,IF(T50<=O52,2,IF(T50<=O53,3,IF(T50<=O54,4,""))))) -> 4 | W50: 6 | X50: 4 | Y50: 6
A51: =VLOOKUP(B46,eventno,8,FALSE) -> 0.00155787037 | B51: 4 | C51: 4 | D51: =IF(OR(C51=0,C51=""),"",IF(A46="F",HLOOKUP(C51,females,A47,FALSE),IF(A46="M",HLOOKUP(C51,males,A47,FALSE),""))) -> Holly Haile | E51: Croy | F51: 00:02:30.300 | G51: =IF(OR(F51=0,F51="",A51=0,A51="",A52=0,A52="",A53=0,A53="",A54=0,A54=""),"",IF(F51<=A51,1,IF(F51<=A52,2,IF(F51<=A53,3,IF(F51<=A54,4,""))))) ->  | H51: =VLOOKUP(I46,eventno,8,FALSE) -> 0.00155787037 | I51: 4 | J51: 11 | K51: =IF(OR(J51=0,J51=""),"",IF(H46="F",HLOOKUP(J51,females,H47,FALSE),IF(H46="M",HLOOKUP(J51,males,H47,FALSE),""))) -> Rosa Bamford | L51: Ash | M51: 00:03:17.800 | N51: =IF(OR(M51=0,M51="",H51=0,H51="",H52=0,H52="",H53=0,H53="",H54=0,H54=""),"",IF(M51<=H51,1,IF(M51<=H52,2,IF(M51<=H53,3,IF(M51<=H54,4,""))))) ->  | O51: =VLOOKUP(P46,eventno,8,FALSE) -> 0.001631944444 | P51: 4 | Q51: 4 | R51: =IF(OR(Q51=0,Q51=""),"",IF(O46="F",HLOOKUP(Q51,females,O47,FALSE),IF(O46="M",HLOOKUP(Q51,males,O47,FALSE),""))) -> Emily Howe | S51: Croy | T51: 00:02:41 | U51: =IF(OR(T51=0,T51="",O51=0,O51="",O52=0,O52="",O53=0,O53="",O54=0,O54=""),"",IF(T51<=O51,1,IF(T51<=O52,2,IF(T51<=O53,3,IF(T51<=O54,4,""))))) ->  | W51: 5 | X51: 3 | Y51: 5
A52: =VLOOKUP(B46,eventno,9,FALSE) -> 0.001586805556 | B52: 5 | C52: 1 | D52: =IF(OR(C52=0,C52=""),"",IF(A46="F",HLOOKUP(C52,females,A47,FALSE),IF(A46="M",HLOOKUP(C52,males,A47,FALSE),""))) -> Lana Foyle | E52: Ash | F52: 00:02:54.200 | G52: =IF(OR(F52=0,F52="",A51=0,A51="",A52=0,A52="",A53=0,A53="",A54=0,A54=""),"",IF(F52<=A51,1,IF(F52<=A52,2,IF(F52<=A53,3,IF(F52<=A54,4,""))))) ->  | H52: =VLOOKUP(I46,eventno,9,FALSE) -> 0.001586805556 | I52: 5 | K52: =IF(OR(J52=0,J52=""),"",IF(H46="F",HLOOKUP(J52,females,H47,FALSE),IF(H46="M",HLOOKUP(J52,males,H47,FALSE),""))) ->  | N52: =IF(OR(M52=0,M52="",H51=0,H51="",H52=0,H52="",H53=0,H53="",H54=0,H54=""),"",IF(M52<=H51,1,IF(M52<=H52,2,IF(M52<=H53,3,IF(M52<=H54,4,""))))) ->  | O52: =VLOOKUP(P46,eventno,9,FALSE) -> 0.00166087963 | P52: 5 | Q52: 2 | R52: =IF(OR(Q52=0,Q52=""),"",IF(O46="F",HLOOKUP(Q52,females,O47,FALSE),IF(O46="M",HLOOKUP(Q52,males,O47,FALSE),""))) -> Maddie Evison | S52: Bas | T52: 00:02:41.600 | U52: =IF(OR(T52=0,T52="",O51=0,O51="",O52=0,O52="",O53=0,O53="",O54=0,O54=""),"",IF(T52<=O51,1,IF(T52<=O52,2,IF(T52<=O53,3,IF(T52<=O54,4,""))))) ->  | W52: 4 | X52: 0 | Y52: 4
A53: =VLOOKUP(B46,eventno,10,FALSE) -> 0.00162962963 | B53: 6 | C53: 5 | D53: =IF(OR(C53=0,C53=""),"",IF(A46="F",HLOOKUP(C53,females,A47,FALSE),IF(A46="M",HLOOKUP(C53,males,A47,FALSE),""))) -> Ella Rose Rudgley | E53: HavM | F53: 00:03:41.500 | G53: =IF(OR(F53=0,F53="",A51=0,A51="",A52=0,A52="",A53=0,A53="",A54=0,A54=""),"",IF(F53<=A51,1,IF(F53<=A52,2,IF(F53<=A53,3,IF(F53<=A54,4,""))))) ->  | H53: =VLOOKUP(I46,eventno,10,FALSE) -> 0.00162962963 | I53: 6 | K53: =IF(OR(J53=0,J53=""),"",IF(H46="F",HLOOKUP(J53,females,H47,FALSE),IF(H46="M",HLOOKUP(J53,males,H47,FALSE),""))) ->  | N53: =IF(OR(M53=0,M53="",H51=0,H51="",H52=0,H52="",H53=0,H53="",H54=0,H54=""),"",IF(M53<=H51,1,IF(M53<=H52,2,IF(M53<=H53,3,IF(M53<=H54,4,""))))) ->  | O53: =VLOOKUP(P46,eventno,10,FALSE) -> 0.001707175926 | P53: 6 | Q53: 1 | R53: =IF(OR(Q53=0,Q53=""),"",IF(O46="F",HLOOKUP(Q53,females,O47,FALSE),IF(O46="M",HLOOKUP(Q53,males,O47,FALSE),""))) -> Danielle Godden | S53: Ash | T53: 00:03:04.100 | U53: =IF(OR(T53=0,T53="",O51=0,O51="",O52=0,O52="",O53=0,O53="",O54=0,O54=""),"",IF(T53<=O51,1,IF(T53<=O52,2,IF(T53<=O53,3,IF(T53<=O54,4,""))))) ->  | W53: 3 | X53: 0 | Y53: 3
A54: =VLOOKUP(B46,eventno,11,FALSE) -> 0.00168287037 | B54: 7 | D54: =IF(OR(C54=0,C54=""),"",IF(A46="F",HLOOKUP(C54,females,A47,FALSE),IF(A46="M",HLOOKUP(C54,males,A47,FALSE),""))) ->  | G54: =IF(OR(F54=0,F54="",A51=0,A51="",A52=0,A52="",A53=0,A53="",A54=0,A54=""),"",IF(F54<=A51,1,IF(F54<=A52,2,IF(F54<=A53,3,IF(F54<=A54,4,""))))) ->  | H54: =VLOOKUP(I46,eventno,11,FALSE) -> 0.00168287037 | I54: 7 | K54: =IF(OR(J54=0,J54=""),"",IF(H46="F",HLOOKUP(J54,females,H47,FALSE),IF(H46="M",HLOOKUP(J54,males,H47,FALSE),""))) ->  | N54: =IF(OR(M54=0,M54="",H51=0,H51="",H52=0,H52="",H53=0,H53="",H54=0,H54=""),"",IF(M54<=H51,1,IF(M54<=H52,2,IF(M54<=H53,3,IF(M54<=H54,4,""))))) ->  | O54: =VLOOKUP(P46,eventno,11,FALSE) -> 0.001759259259 | P54: 7 | R54: =IF(OR(Q54=0,Q54=""),"",IF(O46="F",HLOOKUP(Q54,females,O47,FALSE),IF(O46="M",HLOOKUP(Q54,males,O47,FALSE),""))) ->  | U54: =IF(OR(T54=0,T54="",O51=0,O51="",O52=0,O52="",O53=0,O53="",O54=0,O54=""),"",IF(T54<=O51,1,IF(T54<=O52,2,IF(T54<=O53,3,IF(T54<=O54,4,""))))) ->  | W54: 0 | X54: 0 | Y54: 0
A55: A | B55: 8 | D55: =IF(OR(C55=0,C55=""),"",IF(A46="F",HLOOKUP(C55,females,A47,FALSE),IF(A46="M",HLOOKUP(C55,males,A47,FALSE),""))) ->  | G55: =IF(OR(F55=0,F55="",A51=0,A51="",A52=0,A52="",A53=0,A53="",A54=0,A54=""),"",IF(F55<=A51,1,IF(F55<=A52,2,IF(F55<=A53,3,IF(F55<=A54,4,""))))) ->  | H55: B | I55: 8 | K55: =IF(OR(J55=0,J55=""),"",IF(H46="F",HLOOKUP(J55,females,H47,FALSE),IF(H46="M",HLOOKUP(J55,males,H47,FALSE),""))) ->  | N55: =IF(OR(M55=0,M55="",H51=0,H51="",H52=0,H52="",H53=0,H53="",H54=0,H54=""),"",IF(M55<=H51,1,IF(M55<=H52,2,IF(M55<=H53,3,IF(M55<=H54,4,""))))) ->  | O55: A | P55: 8 | R55: =IF(OR(Q55=0,Q55=""),"",IF(O46="F",HLOOKUP(Q55,females,O47,FALSE),IF(O46="M",HLOOKUP(Q55,males,O47,FALSE),""))) ->  | U55: =IF(OR(T55=0,T55="",O51=0,O51="",O52=0,O52="",O53=0,O53="",O54=0,O54=""),"",IF(T55<=O51,1,IF(T55<=O52,2,IF(T55<=O53,3,IF(T55<=O54,4,""))))) ->  | W55: 0 | X55: 0 | Y55: 0
W56: 0 | X56: =IF(OR(I56=0,I56="",J56=0,J56="",M56=0,M56="",LEFT(M56,1)="D",LEFT(I56,1)="P",LEFT(I56,1)="T"),0,VLOOKUP(I56,points,2,FALSE)) -> 0 | Y56: 0
A57: =VLOOKUP(B57,eventno,5,FALSE) -> F | B57: T8 | C57: =CONCATENATE(VLOOKUP(B57,eventno,4,FALSE)," '",A66,"'") -> U15G 800m 'B' | E57: =IF(A60="W","Wind =","") ->  | G57: =IF(OR(F59=0,F59="",A61=0,A61=""),"",IF(A59="T",IF(F59<A61,"LR",IF(F59=A61,"LR=","")))) ->  | H57: =VLOOKUP(I57,eventno,5,FALSE) -> F | I57: T9 | J57: =CONCATENATE(VLOOKUP(I57,eventno,4,FALSE)," '",H66,"'") -> U13G 800m 'A' | L57: =IF(H60="W","Wind =","") ->  | N57: =IF(OR(M59=0,M59="",H61=0,H61=""),"",IF(H59="T",IF(M59<H61,"LR",IF(M59=H61,"LR=","")))) ->  | O57: =VLOOKUP(P57,eventno,5,FALSE) -> F | P57: T9 | Q57: =CONCATENATE(VLOOKUP(P57,eventno,4,FALSE)," '",O66,"'") -> U13G 800m 'B' | S57: =IF(O60="W","Wind =","") ->  | U57: =IF(OR(T59=0,T59="",O61=0,O61=""),"",IF(O59="T",IF(T59<O61,"LR",IF(T59=O61,"LR=","")))) ->  | W57: =IF(OR(B57=0,B57="",C57=0,C57="",F57=0,F57="",LEFT(F57,1)="D",LEFT(B57,1)="T",LEFT(B57,1)="P"),0,VLOOKUP(B57,points,2,FALSE)-2) -> 0 | X57: 0 | Y57: =IF(OR(P57=0,P57="",Q57=0,Q57="",T57=0,T57="",LEFT(T57,1)="D",LEFT(P57)="T",LEFT(P57)="P"),0,VLOOKUP(P57,points,2,FALSE)-2) -> 0
A58: =IF(A57="M",VLOOKUP(B57,males,25,FALSE),VLOOKUP(B57,females,25,FALSE)) -> 6 | B58: Posn | C58: Bib | D58: Athlete | E58: Club | F58: Perf | G58: Gr | H58: =IF(H57="M",VLOOKUP(I57,males,25,FALSE),VLOOKUP(I57,females,25,FALSE)) -> 5 | I58: Posn | J58: Bib | K58: Athlete | L58: Club | M58: Perf | N58: Gr | O58: =IF(O57="M",VLOOKUP(P57,males,25,FALSE),VLOOKUP(P57,females,25,FALSE)) -> 5 | P58: Posn | Q58: Bib | R58: Athlete | S58: Club | T58: Perf | U58: Gr | W58: 0 | X58: 0 | Y58: 0
A59: =LEFT(B57,1) -> T | B59: 1 | C59: 33 | D59: =IF(OR(C59=0,C59=""),"",IF(A57="F",HLOOKUP(C59,females,A58,FALSE),IF(A57="M",HLOOKUP(C59,males,A58,FALSE),""))) -> Shannon Riskey | E59: =IF(OR(C59=0,C59="",C59="-"),"",IF(C59>8,VLOOKUP(C59/11,match_teams,4,FALSE),VLOOKUP(C59,match_teams,4,FALSE))) -> B&B | F59: 00:02:27 | G59: =IF(OR(F59=0,F59="",A62=0,A62="",A63=0,A63="",A64=0,A64="",A65=0,A65=""),"",IF(F59<=A62,1,IF(F59<=A63,2,IF(F59<=A64,3,IF(F59<=A65,4,""))))) -> 3 | H59: =LEFT(I57,1) -> T | I59: 1 | J59: 4 | K59: =IF(OR(J59=0,J59=""),"",IF(H57="F",HLOOKUP(J59,females,H58,FALSE),IF(H57="M",HLOOKUP(J59,males,H58,FALSE),""))) -> Ellie McCormack | L59: =IF(OR(J59=0,J59="",J59="-"),"",IF(J59>8,VLOOKUP(J59/11,match_teams,4,FALSE),VLOOKUP(J59,match_teams,4,FALSE))) -> Croy | M59: 00:02:36.800 | N59: =IF(OR(M59=0,M59="",H62=0,H62="",H63=0,H63="",H64=0,H64="",H65=0,H65=""),"",IF(M59<=H62,1,IF(M59<=H63,2,IF(M59<=H64,3,IF(M59<=H65,4,""))))) -> 3 | O59: =LEFT(P57,1) -> T | P59: 1 | Q59: 33 | R59: =IF(OR(Q59=0,Q59=""),"",IF(O57="F",HLOOKUP(Q59,females,O58,FALSE),IF(O57="M",HLOOKUP(Q59,males,O58,FALSE),""))) -> Safiya Atkins-Dyke | S59: =IF(OR(Q59=0,Q59="",Q59="-"),"",IF(Q59>8,VLOOKUP(Q59/11,match_teams,4,FALSE),VLOOKUP(Q59,match_teams,4,FALSE))) -> B&B | T59: 00:02:40.300 | U59: =IF(OR(T59=0,T59="",O62=0,O62="",O63=0,O63="",O64=0,O64="",O65=0,O65=""),"",IF(T59<=O62,1,IF(T59<=O63,2,IF(T59<=O64,3,IF(T59<=O65,4,""))))) -> 4 | W59: 7 | X59: 9 | Y59: 7 | AA59: =COUNTA(M59) -> 1
A60: =VLOOKUP(B57,eventno,6,FALSE) -> 0 | B60: 2 | C60: 66 | D60: =IF(OR(C60=0,C60=""),"",IF(A57="F",HLOOKUP(C60,females,A58,FALSE),IF(A57="M",HLOOKUP(C60,males,A58,FALSE),""))) -> ALICE RALPH | E60: Ton | F60: 00:02:29 | G60: =IF(OR(F60=0,F60="",A62=0,A62="",A63=0,A63="",A64=0,A64="",A65=0,A65=""),"",IF(F60<=A62,1,IF(F60<=A63,2,IF(F60<=A64,3,IF(F60<=A65,4,""))))) -> 4 | H60: =VLOOKUP(I57,eventno,6,FALSE) -> 0 | I60: 2 | J60: 5 | K60: =IF(OR(J60=0,J60=""),"",IF(H57="F",HLOOKUP(J60,females,H58,FALSE),IF(H57="M",HLOOKUP(J60,males,H58,FALSE),""))) -> Rebecca Brown | L60: HavM | M60: 00:02:38.100 | N60: =IF(OR(M60=0,M60="",H62=0,H62="",H63=0,H63="",H64=0,H64="",H65=0,H65=""),"",IF(M60<=H62,1,IF(M60<=H63,2,IF(M60<=H64,3,IF(M60<=H65,4,""))))) -> 3 | O60: =VLOOKUP(P57,eventno,6,FALSE) -> 0 | P60: 2 | Q60: 66 | R60: =IF(OR(Q60=0,Q60=""),"",IF(O57="F",HLOOKUP(Q60,females,O58,FALSE),IF(O57="M",HLOOKUP(Q60,males,O58,FALSE),""))) -> Rosie Fenton | S60: Ton | T60: 00:02:41.200 | U60: =IF(OR(T60=0,T60="",O62=0,O62="",O63=0,O63="",O64=0,O64="",O65=0,O65=""),"",IF(T60<=O62,1,IF(T60<=O63,2,IF(T60<=O64,3,IF(T60<=O65,4,""))))) -> 4 | W60: 5 | X60: 7 | Y60: 5
A61: =VLOOKUP(B57,eventno,7,FALSE) -> 0.001530092593 | B61: 3 | C61: 22 | D61: =IF(OR(C61=0,C61=""),"",IF(A57="F",HLOOKUP(C61,females,A58,FALSE),IF(A57="M",HLOOKUP(C61,males,A58,FALSE),""))) -> Elise Coombs | E61: Bas | F61: 00:02:44.300 | G61: =IF(OR(F61=0,F61="",A62=0,A62="",A63=0,A63="",A64=0,A64="",A65=0,A65=""),"",IF(F61<=A62,1,IF(F61<=A63,2,IF(F61<=A64,3,IF(F61<=A65,4,""))))) ->  | H61: =VLOOKUP(I57,eventno,7,FALSE) -> 0.001619212963 | I61: 3 | J61: 6 | K61: =IF(OR(J61=0,J61=""),"",IF(H57="F",HLOOKUP(J61,females,H58,FALSE),IF(H57="M",HLOOKUP(J61,males,H58,FALSE),""))) -> KATHLEEN FAES | L61: Ton | M61: 00:02:38.700 | N61: =IF(OR(M61=0,M61="",H62=0,H62="",H63=0,H63="",H64=0,H64="",H65=0,H65=""),"",IF(M61<=H62,1,IF(M61<=H63,2,IF(M61<=H64,3,IF(M61<=H65,4,""))))) -> 3 | O61: =VLOOKUP(P57,eventno,7,FALSE) -> 0.001619212963 | P61: 3 | Q61: 55 | R61: =IF(OR(Q61=0,Q61=""),"",IF(O57="F",HLOOKUP(Q61,females,O58,FALSE),IF(O57="M",HLOOKUP(Q61,males,O58,FALSE),""))) -> Jessica Mitchell | S61: HavM | T61: 00:02:50.200 | U61: =IF(OR(T61=0,T61="",O62=0,O62="",O63=0,O63="",O64=0,O64="",O65=0,O65=""),"",IF(T61<=O62,1,IF(T61<=O63,2,IF(T61<=O64,3,IF(T61<=O65,4,""))))) ->  | W61: 4 | X61: 6 | Y61: 4
A62: =VLOOKUP(B57,eventno,8,FALSE) -> 0.001631944444 | B62: 4 | C62: 44 | D62: =IF(OR(C62=0,C62=""),"",IF(A57="F",HLOOKUP(C62,females,A58,FALSE),IF(A57="M",HLOOKUP(C62,males,A58,FALSE),""))) -> Sabrina Stoute | E62: Croy | F62: 00:02:53.100 | G62: =IF(OR(F62=0,F62="",A62=0,A62="",A63=0,A63="",A64=0,A64="",A65=0,A65=""),"",IF(F62<=A62,1,IF(F62<=A63,2,IF(F62<=A64,3,IF(F62<=A65,4,""))))) ->  | H62: =VLOOKUP(I57,eventno,8,FALSE) -> 0.001759259259 | I62: 4 | J62: 3 | K62: =IF(OR(J62=0,J62=""),"",IF(H57="F",HLOOKUP(J62,females,H58,FALSE),IF(H57="M",HLOOKUP(J62,males,H58,FALSE),""))) -> Catrin Murphy | L62: B&B | M62: 00:02:40.100 | N62: =IF(OR(M62=0,M62="",H62=0,H62="",H63=0,H63="",H64=0,H64="",H65=0,H65=""),"",IF(M62<=H62,1,IF(M62<=H63,2,IF(M62<=H64,3,IF(M62<=H65,4,""))))) -> 4 | O62: =VLOOKUP(P57,eventno,8,FALSE) -> 0.001759259259 | P62: 4 | Q62: 44 | R62: =IF(OR(Q62=0,Q62=""),"",IF(O57="F",HLOOKUP(Q62,females,O58,FALSE),IF(O57="M",HLOOKUP(Q62,males,O58,FALSE),""))) -> Chloe Kristaki | S62: Croy | T62: 00:03:09.700 | U62: =IF(OR(T62=0,T62="",O62=0,O62="",O63=0,O63="",O64=0,O64="",O65=0,O65=""),"",IF(T62<=O62,1,IF(T62<=O63,2,IF(T62<=O64,3,IF(T62<=O65,4,""))))) ->  | W62: 3 | X62: 5 | Y62: 3
A63: =VLOOKUP(B57,eventno,9,FALSE) -> 0.00166087963 | B63: 5 | C63: 11 | D63: =IF(OR(C63=0,C63=""),"",IF(A57="F",HLOOKUP(C63,females,A58,FALSE),IF(A57="M",HLOOKUP(C63,males,A58,FALSE),""))) -> Ruby Cox | E63: Ash | F63: 00:03:19.400 | G63: =IF(OR(F63=0,F63="",A62=0,A62="",A63=0,A63="",A64=0,A64="",A65=0,A65=""),"",IF(F63<=A62,1,IF(F63<=A63,2,IF(F63<=A64,3,IF(F63<=A65,4,""))))) ->  | H63: =VLOOKUP(I57,eventno,9,FALSE) -> 0.001799768519 | I63: 5 | J63: 2 | K63: =IF(OR(J63=0,J63=""),"",IF(H57="F",HLOOKUP(J63,females,H58,FALSE),IF(H57="M",HLOOKUP(J63,males,H58,FALSE),""))) -> Katy Fenner | L63: Bas | M63: 00:02:50.300 | N63: =IF(OR(M63=0,M63="",H62=0,H62="",H63=0,H63="",H64=0,H64="",H65=0,H65=""),"",IF(M63<=H62,1,IF(M63<=H63,2,IF(M63<=H64,3,IF(M63<=H65,4,""))))) ->  | O63: =VLOOKUP(P57,eventno,9,FALSE) -> 0.001799768519 | P63: 5 | Q63: 11 | R63: =IF(OR(Q63=0,Q63=""),"",IF(O57="F",HLOOKUP(Q63,females,O58,FALSE),IF(O57="M",HLOOKUP(Q63,males,O58,FALSE),""))) -> Hannah Graham | S63: Ash | T63: 00:03:32.200 | U63: =IF(OR(T63=0,T63="",O62=0,O62="",O63=0,O63="",O64=0,O64="",O65=0,O65=""),"",IF(T63<=O62,1,IF(T63<=O63,2,IF(T63<=O64,3,IF(T63<=O65,4,""))))) ->  | W63: 2 | X63: 4 | Y63: 2
A64: =VLOOKUP(B57,eventno,10,FALSE) -> 0.001707175926 | B64: 6 | D64: =IF(OR(C64=0,C64=""),"",IF(A57="F",HLOOKUP(C64,females,A58,FALSE),IF(A57="M",HLOOKUP(C64,males,A58,FALSE),""))) ->  | G64: =IF(OR(F64=0,F64="",A62=0,A62="",A63=0,A63="",A64=0,A64="",A65=0,A65=""),"",IF(F64<=A62,1,IF(F64<=A63,2,IF(F64<=A64,3,IF(F64<=A65,4,""))))) ->  | H64: =VLOOKUP(I57,eventno,10,FALSE) -> 0.001851851852 | I64: 6 | J64: 1 | K64: =IF(OR(J64=0,J64=""),"",IF(H57="F",HLOOKUP(J64,females,H58,FALSE),IF(H57="M",HLOOKUP(J64,males,H58,FALSE),""))) -> Alex Prickett | L64: Ash | M64: 00:03:02.800 | N64: =IF(OR(M64=0,M64="",H62=0,H62="",H63=0,H63="",H64=0,H64="",H65=0,H65=""),"",IF(M64<=H62,1,IF(M64<=H63,2,IF(M64<=H64,3,IF(M64<=H65,4,""))))) ->  | O64: =VLOOKUP(P57,eventno,10,FALSE) -> 0.001851851852 | P64: 6 | R64: =IF(OR(Q64=0,Q64=""),"",IF(O57="F",HLOOKUP(Q64,females,O58,FALSE),IF(O57="M",HLOOKUP(Q64,males,O58,FALSE),""))) ->  | U64: =IF(OR(T64=0,T64="",O62=0,O62="",O63=0,O63="",O64=0,O64="",O65=0,O65=""),"",IF(T64<=O62,1,IF(T64<=O63,2,IF(T64<=O64,3,IF(T64<=O65,4,""))))) ->  | W64: 0 | X64: 3 | Y64: 0
A65: =VLOOKUP(B57,eventno,11,FALSE) -> 0.001759259259 | B65: 7 | D65: =IF(OR(C65=0,C65=""),"",IF(A57="F",HLOOKUP(C65,females,A58,FALSE),IF(A57="M",HLOOKUP(C65,males,A58,FALSE),""))) ->  | G65: =IF(OR(F65=0,F65="",A62=0,A62="",A63=0,A63="",A64=0,A64="",A65=0,A65=""),"",IF(F65<=A62,1,IF(F65<=A63,2,IF(F65<=A64,3,IF(F65<=A65,4,""))))) ->  | H65: =VLOOKUP(I57,eventno,11,FALSE) -> 0.001921296296 | I65: 7 | K65: =IF(OR(J65=0,J65=""),"",IF(H57="F",HLOOKUP(J65,females,H58,FALSE),IF(H57="M",HLOOKUP(J65,males,H58,FALSE),""))) ->  | N65: =IF(OR(M65=0,M65="",H62=0,H62="",H63=0,H63="",H64=0,H64="",H65=0,H65=""),"",IF(M65<=H62,1,IF(M65<=H63,2,IF(M65<=H64,3,IF(M65<=H65,4,""))))) ->  | O65: =VLOOKUP(P57,eventno,11,FALSE) -> 0.001921296296 | P65: 7 | R65: =IF(OR(Q65=0,Q65=""),"",IF(O57="F",HLOOKUP(Q65,females,O58,FALSE),IF(O57="M",HLOOKUP(Q65,males,O58,FALSE),""))) ->  | U65: =IF(OR(T65=0,T65="",O62=0,O62="",O63=0,O63="",O64=0,O64="",O65=0,O65=""),"",IF(T65<=O62,1,IF(T65<=O63,2,IF(T65<=O64,3,IF(T65<=O65,4,""))))) ->  | W65: 0 | X65: 0 | Y65: 0
A66: B | B66: 8 | D66: =IF(OR(C66=0,C66=""),"",IF(A57="F",HLOOKUP(C66,females,A58,FALSE),IF(A57="M",HLOOKUP(C66,males,A58,FALSE),""))) ->  | G66: =IF(OR(F66=0,F66="",A62=0,A62="",A63=0,A63="",A64=0,A64="",A65=0,A65=""),"",IF(F66<=A62,1,IF(F66<=A63,2,IF(F66<=A64,3,IF(F66<=A65,4,""))))) ->  | H66: A | I66: 8 | K66: =IF(OR(J66=0,J66=""),"",IF(H57="F",HLOOKUP(J66,females,H58,FALSE),IF(H57="M",HLOOKUP(J66,males,H58,FALSE),""))) ->  | N66: =IF(OR(M66=0,M66="",H62=0,H62="",H63=0,H63="",H64=0,H64="",H65=0,H65=""),"",IF(M66<=H62,1,IF(M66<=H63,2,IF(M66<=H64,3,IF(M66<=H65,4,""))))) ->  | O66: B | P66: 8 | R66: =IF(OR(Q66=0,Q66=""),"",IF(O57="F",HLOOKUP(Q66,females,O58,FALSE),IF(O57="M",HLOOKUP(Q66,males,O58,FALSE),""))) ->  | U66: =IF(OR(T66=0,T66="",O62=0,O62="",O63=0,O63="",O64=0,O64="",O65=0,O65=""),"",IF(T66<=O62,1,IF(T66<=O63,2,IF(T66<=O64,3,IF(T66<=O65,4,""))))) ->  | W66: 0 | X66: 0 | Y66: 0
W67: =IF(OR(B67=0,B67="",C67=0,C67="",F67=0,F67="",LEFT(F67,1)="D",LEFT(B67,1)="T",LEFT(B67,1)="P"),0,VLOOKUP(B67,points,2,FALSE)) -> 0 | X67: =IF(OR(I67=0,I67="",J67=0,J67="",M67=0,M67="",LEFT(M67,1)="D",LEFT(I67,1)="P",LEFT(I67,1)="T"),0,VLOOKUP(I67,points,2,FALSE)) -> 0 | Y67: =IF(OR(P67=0,P67="",Q67=0,Q67="",T67=0,T67="",LEFT(T67,1)="D",LEFT(P67)="T",LEFT(P67)="P"),0,VLOOKUP(P67,points,2,FALSE)) -> 0
A68: =VLOOKUP(B68,eventno,5,FALSE) -> M | B68: T10 | C68: =CONCATENATE(VLOOKUP(B68,eventno,4,FALSE)," '",A77,"'") -> U17M 800m 'A' | E68: =IF(A71="W","Wind =","") ->  | G68: =IF(OR(F70=0,F70="",A72=0,A72=""),"",IF(A70="T",IF(F70<A72,"LR",IF(F70=A72,"LR=","")))) ->  | H68: =VLOOKUP(I68,eventno,5,FALSE) -> M | I68: T10 | J68: =CONCATENATE(VLOOKUP(I68,eventno,4,FALSE)," '",H77,"'") -> U17M 800m 'B' | L68: =IF(H71="W","Wind =","") ->  | N68: =IF(OR(M70=0,M70="",H72=0,H72=""),"",IF(H70="T",IF(M70<H72,"LR",IF(M70=H72,"LR=","")))) ->  | O68: =VLOOKUP(P68,eventno,5,FALSE) -> M | P68: T11 | Q68: =CONCATENATE(VLOOKUP(P68,eventno,4,FALSE)," '",O77,"'") -> U15B 800m 'A' | S68: =IF(O71="W","Wind =","") ->  | U68: =IF(OR(T70=0,T70="",O72=0,O72=""),"",IF(O70="T",IF(T70<O72,"LR",IF(T70=O72,"LR=","")))) ->  | W68: =IF(OR(B68=0,B68="",C68=0,C68="",F68=0,F68="",LEFT(F68,1)="D",LEFT(B68,1)="P"),0,VLOOKUP(B68,points,2,FALSE)) -> 0 | X68: =IF(OR(I68=0,I68="",J68=0,J68="",M68=0,M68="",LEFT(M68,1)="D",LEFT(I68,1)="P",LEFT(I68,1)="T"),0,VLOOKUP(I68,points,2,FALSE)-2) -> 0 | Y68: 0
A69: =IF(A68="M",VLOOKUP(B68,males,25,FALSE),VLOOKUP(B68,females,25,FALSE)) -> 7 | B69: Posn | C69: Bib | D69: Athlete | E69: Club | F69: Perf | G69: Gr | H69: =IF(H68="M",VLOOKUP(I68,males,25,FALSE),VLOOKUP(I68,females,25,FALSE)) -> 7 | I69: Posn | J69: Bib | K69: Athlete | L69: Club | M69: Perf | N69: Gr | O69: =IF(O68="M",VLOOKUP(P68,males,25,FALSE),VLOOKUP(P68,females,25,FALSE)) -> 6 | P69: Posn | Q69: Bib | R69: Athlete | S69: Club | T69: Perf | U69: Gr | W69: =IF(OR(B69=0,B69="",C69=0,C69="",F69=0,F69="",LEFT(F69,1)="D",LEFT(B69,1)="T",LEFT(B69,1)="P"),0,VLOOKUP(B69,points,2,FALSE)) -> 0 | X69: 0 | Y69: 0
A70: =LEFT(B68,1) -> T | B70: 1 | C70: 4 | D70: =IF(OR(C70=0,C70=""),"",IF(A68="F",HLOOKUP(C70,females,A69,FALSE),IF(A68="M",HLOOKUP(C70,males,A69,FALSE),""))) -> Patrick Lucas | E70: =IF(OR(C70=0,C70="",C70="-"),"",IF(C70>8,VLOOKUP(C70/11,match_teams,4,FALSE),VLOOKUP(C70,match_teams,4,FALSE))) -> Croy | F70: 00:02:01.800 | G70: =IF(OR(F70=0,F70="",A73=0,A73="",A74=0,A74="",A75=0,A75="",A76=0,A76=""),"",IF(F70<=A73,1,IF(F70<=A74,2,IF(F70<=A75,3,IF(F70<=A76,4,""))))) -> 3 | H70: =LEFT(I68,1) -> T | I70: 1 | J70: 66 | K70: =IF(OR(J70=0,J70=""),"",IF(H68="F",HLOOKUP(J70,females,H69,FALSE),IF(H68="M",HLOOKUP(J70,males,H69,FALSE),""))) -> WILL ROUD | L70: =IF(OR(J70=0,J70="",J70="-"),"",IF(J70>8,VLOOKUP(J70/11,match_teams,4,FALSE),VLOOKUP(J70,match_teams,4,FALSE))) -> Ton | M70: 00:02:12.200 | N70: =IF(OR(M70=0,M70="",H73=0,H73="",H74=0,H74="",H75=0,H75="",H76=0,H76=""),"",IF(M70<=H73,1,IF(M70<=H74,2,IF(M70<=H75,3,IF(M70<=H76,4,""))))) ->  | O70: =LEFT(P68,1) -> T | P70: 1 | Q70: 3 | R70: =IF(OR(Q70=0,Q70=""),"",IF(O68="F",HLOOKUP(Q70,females,O69,FALSE),IF(O68="M",HLOOKUP(Q70,males,O69,FALSE),""))) -> Bailey Stickings | S70: =IF(OR(Q70=0,Q70="",Q70="-"),"",IF(Q70>8,VLOOKUP(Q70/11,match_teams,4,FALSE),VLOOKUP(Q70,match_teams,4,FALSE))) -> B&B | T70: 00:02:10 | U70: =IF(OR(T70=0,T70="",O73=0,O73="",O74=0,O74="",O75=0,O75="",O76=0,O76=""),"",IF(T70<=O73,1,IF(T70<=O74,2,IF(T70<=O75,3,IF(T70<=O76,4,""))))) -> 2 | W70: 9 | X70: 7 | Y70: 9 | AA70: =COUNTA(F70) -> 1
A71: =VLOOKUP(B68,eventno,6,FALSE) -> 0 | B71: 2 | C71: 6 | D71: =IF(OR(C71=0,C71=""),"",IF(A68="F",HLOOKUP(C71,females,A69,FALSE),IF(A68="M",HLOOKUP(C71,males,A69,FALSE),""))) -> GEORGE DUGGAN | E71: Ton | F71: 00:02:02.200 | G71: =IF(OR(F71=0,F71="",A73=0,A73="",A74=0,A74="",A75=0,A75="",A76=0,A76=""),"",IF(F71<=A73,1,IF(F71<=A74,2,IF(F71<=A75,3,IF(F71<=A76,4,""))))) -> 3 | H71: =VLOOKUP(I68,eventno,6,FALSE) -> 0 | I71: 2 | J71: 55 | K71: =IF(OR(J71=0,J71=""),"",IF(H68="F",HLOOKUP(J71,females,H69,FALSE),IF(H68="M",HLOOKUP(J71,males,H69,FALSE),""))) -> Edward Thompson | L71: HavM | M71: 00:02:16.300 | N71: =IF(OR(M71=0,M71="",H73=0,H73="",H74=0,H74="",H75=0,H75="",H76=0,H76=""),"",IF(M71<=H73,1,IF(M71<=H74,2,IF(M71<=H75,3,IF(M71<=H76,4,""))))) ->  | O71: =VLOOKUP(P68,eventno,6,FALSE) -> 0 | P71: 2 | Q71: 6 | R71: =IF(OR(Q71=0,Q71=""),"",IF(O68="F",HLOOKUP(Q71,females,O69,FALSE),IF(O68="M",HLOOKUP(Q71,males,O69,FALSE),""))) -> CHRIS COHEN | S71: Ton | T71: 00:02:11.500 | U71: =IF(OR(T71=0,T71="",O73=0,O73="",O74=0,O74="",O75=0,O75="",O76=0,O76=""),"",IF(T71<=O73,1,IF(T71<=O74,2,IF(T71<=O75,3,IF(T71<=O76,4,""))))) -> 3 | W71: 7 | X71: 5 | Y71: 7 | AA71: =COUNTA(T70) -> 1
A72: =VLOOKUP(B68,eventno,7,FALSE) -> 0.001311342593 | B72: 3 | C72: 3 | D72: =IF(OR(C72=0,C72=""),"",IF(A68="F",HLOOKUP(C72,females,A69,FALSE),IF(A68="M",HLOOKUP(C72,males,A69,FALSE),""))) -> William Ruiz | E72: B&B | F72: 00:02:12.700 | G72: =IF(OR(F72=0,F72="",A73=0,A73="",A74=0,A74="",A75=0,A75="",A76=0,A76=""),"",IF(F72<=A73,1,IF(F72<=A74,2,IF(F72<=A75,3,IF(F72<=A76,4,""))))) ->  | H72: =VLOOKUP(I68,eventno,7,FALSE) -> 0.001311342593 | I72: 3 | J72: 33 | K72: =IF(OR(J72=0,J72=""),"",IF(H68="F",HLOOKUP(J72,females,H69,FALSE),IF(H68="M",HLOOKUP(J72,males,H69,FALSE),""))) -> Luke Russell | L72: B&B | M72: 00:02:20.500 | N72: =IF(OR(M72=0,M72="",H73=0,H73="",H74=0,H74="",H75=0,H75="",H76=0,H76=""),"",IF(M72<=H73,1,IF(M72<=H74,2,IF(M72<=H75,3,IF(M72<=H76,4,""))))) ->  | O72: =VLOOKUP(P68,eventno,7,FALSE) -> 0.001362268519 | P72: 3 | Q72: 2 | R72: =IF(OR(Q72=0,Q72=""),"",IF(O68="F",HLOOKUP(Q72,females,O69,FALSE),IF(O68="M",HLOOKUP(Q72,males,O69,FALSE),""))) -> Daniel Ashley | S72: Bas | T72: 00:02:11.900 | U72: =IF(OR(T72=0,T72="",O73=0,O73="",O74=0,O74="",O75=0,O75="",O76=0,O76=""),"",IF(T72<=O73,1,IF(T72<=O74,2,IF(T72<=O75,3,IF(T72<=O76,4,""))))) -> 3 | W72: 6 | X72: 4 | Y72: 6
A73: =VLOOKUP(B68,eventno,8,FALSE) -> 0.001377314815 | B73: 4 | C73: 5 | D73: =IF(OR(C73=0,C73=""),"",IF(A68="F",HLOOKUP(C73,females,A69,FALSE),IF(A68="M",HLOOKUP(C73,males,A69,FALSE),""))) -> Nick Duffey | E73: HavM | F73: 00:02:15.200 | G73: =IF(OR(F73=0,F73="",A73=0,A73="",A74=0,A74="",A75=0,A75="",A76=0,A76=""),"",IF(F73<=A73,1,IF(F73<=A74,2,IF(F73<=A75,3,IF(F73<=A76,4,""))))) ->  | H73: =VLOOKUP(I68,eventno,8,FALSE) -> 0.001377314815 | I73: 4 | J73: 44 | K73: =IF(OR(J73=0,J73=""),"",IF(H68="F",HLOOKUP(J73,females,H69,FALSE),IF(H68="M",HLOOKUP(J73,males,H69,FALSE),""))) -> Stirling Gibbons | L73: Croy | M73: 00:02:34.900 | N73: =IF(OR(M73=0,M73="",H73=0,H73="",H74=0,H74="",H75=0,H75="",H76=0,H76=""),"",IF(M73<=H73,1,IF(M73<=H74,2,IF(M73<=H75,3,IF(M73<=H76,4,""))))) ->  | O73: =VLOOKUP(P68,eventno,8,FALSE) -> 0.001469907407 | P73: 4 | Q73: 5 | R73: =IF(OR(Q73=0,Q73=""),"",IF(O68="F",HLOOKUP(Q73,females,O69,FALSE),IF(O68="M",HLOOKUP(Q73,males,O69,FALSE),""))) -> Benji Ellis | S73: HavM | T73: 00:02:21.300 | U73: =IF(OR(T73=0,T73="",O73=0,O73="",O74=0,O74="",O75=0,O75="",O76=0,O76=""),"",IF(T73<=O73,1,IF(T73<=O74,2,IF(T73<=O75,3,IF(T73<=O76,4,""))))) ->  | W73: 5 | X73: 3 | Y73: 5
A74: =VLOOKUP(B68,eventno,9,FALSE) -> 0.001400462963 | B74: 5 | C74: 1 | D74: =IF(OR(C74=0,C74=""),"",IF(A68="F",HLOOKUP(C74,females,A69,FALSE),IF(A68="M",HLOOKUP(C74,males,A69,FALSE),""))) -> Jake Thacker | E74: Ash | F74: 00:02:27.600 | G74: =IF(OR(F74=0,F74="",A73=0,A73="",A74=0,A74="",A75=0,A75="",A76=0,A76=""),"",IF(F74<=A73,1,IF(F74<=A74,2,IF(F74<=A75,3,IF(F74<=A76,4,""))))) ->  | H74: =VLOOKUP(I68,eventno,9,FALSE) -> 0.001400462963 | I74: 5 | K74: =IF(OR(J74=0,J74=""),"",IF(H68="F",HLOOKUP(J74,females,H69,FALSE),IF(H68="M",HLOOKUP(J74,males,H69,FALSE),""))) ->  | N74: =IF(OR(M74=0,M74="",H73=0,H73="",H74=0,H74="",H75=0,H75="",H76=0,H76=""),"",IF(M74<=H73,1,IF(M74<=H74,2,IF(M74<=H75,3,IF(M74<=H76,4,""))))) ->  | O74: =VLOOKUP(P68,eventno,9,FALSE) -> 0.00150462963 | P74: 5 | Q74: 4 | R74: =IF(OR(Q74=0,Q74=""),"",IF(O68="F",HLOOKUP(Q74,females,O69,FALSE),IF(O68="M",HLOOKUP(Q74,males,O69,FALSE),""))) -> Robert Spalding | S74: Croy | T74: 00:02:22.700 | U74: =IF(OR(T74=0,T74="",O73=0,O73="",O74=0,O74="",O75=0,O75="",O76=0,O76=""),"",IF(T74<=O73,1,IF(T74<=O74,2,IF(T74<=O75,3,IF(T74<=O76,4,""))))) ->  | W74: 4 | X74: 0 | Y74: 4
A75: =VLOOKUP(B68,eventno,10,FALSE) -> 0.001429398148 | B75: 6 | D75: =IF(OR(C75=0,C75=""),"",IF(A68="F",HLOOKUP(C75,females,A69,FALSE),IF(A68="M",HLOOKUP(C75,males,A69,FALSE),""))) ->  | G75: =IF(OR(F75=0,F75="",A73=0,A73="",A74=0,A74="",A75=0,A75="",A76=0,A76=""),"",IF(F75<=A73,1,IF(F75<=A74,2,IF(F75<=A75,3,IF(F75<=A76,4,""))))) ->  | H75: =VLOOKUP(I68,eventno,10,FALSE) -> 0.001429398148 | I75: 6 | K75: =IF(OR(J75=0,J75=""),"",IF(H68="F",HLOOKUP(J75,females,H69,FALSE),IF(H68="M",HLOOKUP(J75,males,H69,FALSE),""))) ->  | N75: =IF(OR(M75=0,M75="",H73=0,H73="",H74=0,H74="",H75=0,H75="",H76=0,H76=""),"",IF(M75<=H73,1,IF(M75<=H74,2,IF(M75<=H75,3,IF(M75<=H76,4,""))))) ->  | O75: =VLOOKUP(P68,eventno,10,FALSE) -> 0.001545138889 | P75: 6 | Q75: 1 | R75: =IF(OR(Q75=0,Q75=""),"",IF(O68="F",HLOOKUP(Q75,females,O69,FALSE),IF(O68="M",HLOOKUP(Q75,males,O69,FALSE),""))) -> Kieran Eland | S75: Ash | T75: 00:02:26.800 | U75: =IF(OR(T75=0,T75="",O73=0,O73="",O74=0,O74="",O75=0,O75="",O76=0,O76=""),"",IF(T75<=O73,1,IF(T75<=O74,2,IF(T75<=O75,3,IF(T75<=O76,4,""))))) ->  | W75: 0 | X75: 0 | Y75: 3
A76: =VLOOKUP(B68,eventno,11,FALSE) -> 0.001469907407 | B76: 7 | D76: =IF(OR(C76=0,C76=""),"",IF(A68="F",HLOOKUP(C76,females,A69,FALSE),IF(A68="M",HLOOKUP(C76,males,A69,FALSE),""))) ->  | G76: =IF(OR(F76=0,F76="",A73=0,A73="",A74=0,A74="",A75=0,A75="",A76=0,A76=""),"",IF(F76<=A73,1,IF(F76<=A74,2,IF(F76<=A75,3,IF(F76<=A76,4,""))))) ->  | H76: =VLOOKUP(I68,eventno,11,FALSE) -> 0.001469907407 | I76: 7 | K76: =IF(OR(J76=0,J76=""),"",IF(H68="F",HLOOKUP(J76,females,H69,FALSE),IF(H68="M",HLOOKUP(J76,males,H69,FALSE),""))) ->  | N76: =IF(OR(M76=0,M76="",H73=0,H73="",H74=0,H74="",H75=0,H75="",H76=0,H76=""),"",IF(M76<=H73,1,IF(M76<=H74,2,IF(M76<=H75,3,IF(M76<=H76,4,""))))) ->  | O76: =VLOOKUP(P68,eventno,11,FALSE) -> 0.001603009259 | P76: 7 | R76: =IF(OR(Q76=0,Q76=""),"",IF(O68="F",HLOOKUP(Q76,females,O69,FALSE),IF(O68="M",HLOOKUP(Q76,males,O69,FALSE),""))) ->  | U76: =IF(OR(T76=0,T76="",O73=0,O73="",O74=0,O74="",O75=0,O75="",O76=0,O76=""),"",IF(T76<=O73,1,IF(T76<=O74,2,IF(T76<=O75,3,IF(T76<=O76,4,""))))) ->  | W76: 0 | X76: 0 | Y76: 0
A77: A | B77: 8 | D77: =IF(OR(C77=0,C77=""),"",IF(A68="F",HLOOKUP(C77,females,A69,FALSE),IF(A68="M",HLOOKUP(C77,males,A69,FALSE),""))) ->  | G77: =IF(OR(F77=0,F77="",A73=0,A73="",A74=0,A74="",A75=0,A75="",A76=0,A76=""),"",IF(F77<=A73,1,IF(F77<=A74,2,IF(F77<=A75,3,IF(F77<=A76,4,""))))) ->  | H77: B | I77: 8 | K77: =IF(OR(J77=0,J77=""),"",IF(H68="F",HLOOKUP(J77,females,H69,FALSE),IF(H68="M",HLOOKUP(J77,males,H69,FALSE),""))) ->  | N77: =IF(OR(M77=0,M77="",H73=0,H73="",H74=0,H74="",H75=0,H75="",H76=0,H76=""),"",IF(M77<=H73,1,IF(M77<=H74,2,IF(M77<=H75,3,IF(M77<=H76,4,""))))) ->  | O77: A | P77: 8 | R77: =IF(OR(Q77=0,Q77=""),"",IF(O68="F",HLOOKUP(Q77,females,O69,FALSE),IF(O68="M",HLOOKUP(Q77,males,O69,FALSE),""))) ->  | U77: =IF(OR(T77=0,T77="",O73=0,O73="",O74=0,O74="",O75=0,O75="",O76=0,O76=""),"",IF(T77<=O73,1,IF(T77<=O74,2,IF(T77<=O75,3,IF(T77<=O76,4,""))))) ->  | W77: 0 | X77: 0 | Y77: 0
W78: 0 | X78: =IF(OR(I78=0,I78="",J78=0,J78="",M78=0,M78="",LEFT(M78,1)="D",LEFT(I78,1)="P",LEFT(I78,1)="T"),0,VLOOKUP(I78,points,2,FALSE)) -> 0 | Y78: 0
A79: =VLOOKUP(B79,eventno,5,FALSE) -> M | B79: T11 | C79: =CONCATENATE(VLOOKUP(B79,eventno,4,FALSE)," '",A88,"'") -> U15B 800m 'B' | E79: =IF(A82="W","Wind =","") ->  | G79: =IF(OR(F81=0,F81="",A83=0,A83=""),"",IF(A81="T",IF(F81<A83,"LR",IF(F81=A83,"LR=","")))) ->  | H79: =VLOOKUP(I79,eventno,5,FALSE) -> M | I79: T12 | J79: =CONCATENATE(VLOOKUP(I79,eventno,4,FALSE)," '",H88,"'") -> U13B 800m 'A' | L79: =IF(H82="W","Wind =","") ->  | N79: =IF(OR(M81=0,M81="",H83=0,H83=""),"",IF(H81="T",IF(M81<H83,"LR",IF(M81=H83,"LR=","")))) ->  | O79: =VLOOKUP(P79,eventno,5,FALSE) -> M | P79: T12 | Q79: =CONCATENATE(VLOOKUP(P79,eventno,4,FALSE)," '",O88,"'") -> U13B 800m 'B' | S79: =IF(O82="W","Wind =","") ->  | U79: =IF(OR(T81=0,T81="",O83=0,O83=""),"",IF(O81="T",IF(T81<O83,"LR",IF(T81=O83,"LR=","")))) ->  | W79: =IF(OR(B79=0,B79="",C79=0,C79="",F79=0,F79="",LEFT(F79,1)="D",LEFT(B79,1)="T",LEFT(B79,1)="P"),0,VLOOKUP(B79,points,2,FALSE)-2) -> 0 | X79: 0 | Y79: =IF(OR(P79=0,P79="",Q79=0,Q79="",T79=0,T79="",LEFT(T79,1)="D",LEFT(P79)="T",LEFT(P79)="P"),0,VLOOKUP(P79,points,2,FALSE)-2) -> 0
A80: =IF(A79="M",VLOOKUP(B79,males,25,FALSE),VLOOKUP(B79,females,25,FALSE)) -> 6 | B80: Posn | C80: Bib | D80: Athlete | E80: Club | F80: Perf | G80: Gr | H80: =IF(H79="M",VLOOKUP(I79,males,25,FALSE),VLOOKUP(I79,females,25,FALSE)) -> 5 | I80: Posn | J80: Bib | K80: Athlete | L80: Club | M80: Perf | N80: Gr | O80: =IF(O79="M",VLOOKUP(P79,males,25,FALSE),VLOOKUP(P79,females,25,FALSE)) -> 5 | P80: Posn | Q80: Bib | R80: Athlete | S80: Club | T80: Perf | U80: Gr | W80: 0 | X80: 0 | Y80: 0
A81: =LEFT(B79,1) -> T | B81: 1 | C81: 66 | D81: =IF(OR(C81=0,C81=""),"",IF(A79="F",HLOOKUP(C81,females,A80,FALSE),IF(A79="M",HLOOKUP(C81,males,A80,FALSE),""))) -> EUAN NICHOLLS | E81: =IF(OR(C81=0,C81="",C81="-"),"",IF(C81>8,VLOOKUP(C81/11,match_teams,4,FALSE),VLOOKUP(C81,match_teams,4,FALSE))) -> Ton | F81: 00:02:23.700 | G81: =IF(OR(F81=0,F81="",A84=0,A84="",A85=0,A85="",A86=0,A86="",A87=0,A87=""),"",IF(F81<=A84,1,IF(F81<=A85,2,IF(F81<=A86,3,IF(F81<=A87,4,""))))) ->  | H81: =LEFT(I79,1) -> T | I81: 1 | J81: 6 | K81: =IF(OR(J81=0,J81=""),"",IF(H79="F",HLOOKUP(J81,females,H80,FALSE),IF(H79="M",HLOOKUP(J81,males,H80,FALSE),""))) -> TOM KENDRICK | L81: =IF(OR(J81=0,J81="",J81="-"),"",IF(J81>8,VLOOKUP(J81/11,match_teams,4,FALSE),VLOOKUP(J81,match_teams,4,FALSE))) -> Ton | M81: 00:02:22.200 | N81: =IF(OR(M81=0,M81="",H84=0,H84="",H85=0,H85="",H86=0,H86="",H87=0,H87=""),"",IF(M81<=H84,1,IF(M81<=H85,2,IF(M81<=H86,3,IF(M81<=H87,4,""))))) -> 1 | O81: =LEFT(P79,1) -> T | P81: 1 | Q81: 66 | R81: =IF(OR(Q81=0,Q81=""),"",IF(O79="F",HLOOKUP(Q81,females,O80,FALSE),IF(O79="M",HLOOKUP(Q81,males,O80,FALSE),""))) -> CHARLIE CRICK | S81: =IF(OR(Q81=0,Q81="",Q81="-"),"",IF(Q81>8,VLOOKUP(Q81/11,match_teams,4,FALSE),VLOOKUP(Q81,match_teams,4,FALSE))) -> Ton | T81: 00:02:24.700 | U81: =IF(OR(T81=0,T81="",O84=0,O84="",O85=0,O85="",O86=0,O86="",O87=0,O87=""),"",IF(T81<=O84,1,IF(T81<=O85,2,IF(T81<=O86,3,IF(T81<=O87,4,""))))) -> 2 | W81: 7 | X81: 9 | Y81: 7 | AA81: =COUNTA(M81) -> 1
A82: =VLOOKUP(B79,eventno,6,FALSE) -> 0 | B82: 2 | C82: 55 | D82: =IF(OR(C82=0,C82=""),"",IF(A79="F",HLOOKUP(C82,females,A80,FALSE),IF(A79="M",HLOOKUP(C82,males,A80,FALSE),""))) -> Elliott Nunn | E82: HavM | F82: 00:02:25.300 | G82: =IF(OR(F82=0,F82="",A84=0,A84="",A85=0,A85="",A86=0,A86="",A87=0,A87=""),"",IF(F82<=A84,1,IF(F82<=A85,2,IF(F82<=A86,3,IF(F82<=A87,4,""))))) ->  | H82: =VLOOKUP(I79,eventno,6,FALSE) -> 0 | I82: 2 | J82: 22 | K82: =IF(OR(J82=0,J82=""),"",IF(H79="F",HLOOKUP(J82,females,H80,FALSE),IF(H79="M",HLOOKUP(J82,males,H80,FALSE),""))) -> Joe Wakerley | L82: Bas | M82: 00:02:28.900 | N82: =IF(OR(M82=0,M82="",H84=0,H84="",H85=0,H85="",H86=0,H86="",H87=0,H87=""),"",IF(M82<=H84,1,IF(M82<=H85,2,IF(M82<=H86,3,IF(M82<=H87,4,""))))) -> 3 | O82: =VLOOKUP(P79,eventno,6,FALSE) -> 0 | P82: 2 | Q82: 2 | R82: =IF(OR(Q82=0,Q82=""),"",IF(O79="F",HLOOKUP(Q82,females,O80,FALSE),IF(O79="M",HLOOKUP(Q82,males,O80,FALSE),""))) -> Mitchell Cox | S82: Bas | T82: 00:02:30 | U82: =IF(OR(T82=0,T82="",O84=0,O84="",O85=0,O85="",O86=0,O86="",O87=0,O87=""),"",IF(T82<=O84,1,IF(T82<=O85,2,IF(T82<=O86,3,IF(T82<=O87,4,""))))) -> 3 | W82: 5 | X82: 7 | Y82: 5
A83: =VLOOKUP(B79,eventno,7,FALSE) -> 0.001362268519 | B83: 3 | C83: 22 | D83: =IF(OR(C83=0,C83=""),"",IF(A79="F",HLOOKUP(C83,females,A80,FALSE),IF(A79="M",HLOOKUP(C83,males,A80,FALSE),""))) -> Ben Haynes | E83: Bas | F83: 00:02:28 | G83: =IF(OR(F83=0,F83="",A84=0,A84="",A85=0,A85="",A86=0,A86="",A87=0,A87=""),"",IF(F83<=A84,1,IF(F83<=A85,2,IF(F83<=A86,3,IF(F83<=A87,4,""))))) ->  | H83: =VLOOKUP(I79,eventno,7,FALSE) -> 0.00146412037 | I83: 3 | J83: 5 | K83: =IF(OR(J83=0,J83=""),"",IF(H79="F",HLOOKUP(J83,females,H80,FALSE),IF(H79="M",HLOOKUP(J83,males,H80,FALSE),""))) -> Bailey Hearne | L83: HavM | M83: 00:02:37.800 | N83: =IF(OR(M83=0,M83="",H84=0,H84="",H85=0,H85="",H86=0,H86="",H87=0,H87=""),"",IF(M83<=H84,1,IF(M83<=H85,2,IF(M83<=H86,3,IF(M83<=H87,4,""))))) ->  | O83: =VLOOKUP(P79,eventno,7,FALSE) -> 0.00146412037 | P83: 3 | Q83: 33 | R83: =IF(OR(Q83=0,Q83=""),"",IF(O79="F",HLOOKUP(Q83,females,O80,FALSE),IF(O79="M",HLOOKUP(Q83,males,O80,FALSE),""))) -> Lewis Stickings | S83: B&B | T83: 00:02:45.300 | U83: =IF(OR(T83=0,T83="",O84=0,O84="",O85=0,O85="",O86=0,O86="",O87=0,O87=""),"",IF(T83<=O84,1,IF(T83<=O85,2,IF(T83<=O86,3,IF(T83<=O87,4,""))))) ->  | W83: 4 | X83: 6 | Y83: 4
A84: =VLOOKUP(B79,eventno,8,FALSE) -> 0.001469907407 | B84: 4 | C84: 33 | D84: =IF(OR(C84=0,C84=""),"",IF(A79="F",HLOOKUP(C84,females,A80,FALSE),IF(A79="M",HLOOKUP(C84,males,A80,FALSE),""))) -> Koredi Osinibi | E84: B&B | F84: 00:02:30.300 | G84: =IF(OR(F84=0,F84="",A84=0,A84="",A85=0,A85="",A86=0,A86="",A87=0,A87=""),"",IF(F84<=A84,1,IF(F84<=A85,2,IF(F84<=A86,3,IF(F84<=A87,4,""))))) ->  | H84: =VLOOKUP(I79,eventno,8,FALSE) -> 0.001666666667 | I84: 4 | J84: 3 | K84: =IF(OR(J84=0,J84=""),"",IF(H79="F",HLOOKUP(J84,females,H80,FALSE),IF(H79="M",HLOOKUP(J84,males,H80,FALSE),""))) -> Joe Smith | L84: B&B | M84: 00:02:42.100 | N84: =IF(OR(M84=0,M84="",H84=0,H84="",H85=0,H85="",H86=0,H86="",H87=0,H87=""),"",IF(M84<=H84,1,IF(M84<=H85,2,IF(M84<=H86,3,IF(M84<=H87,4,""))))) ->  | O84: =VLOOKUP(P79,eventno,8,FALSE) -> 0.001666666667 | P84: 4 | Q84: 11 | R84: =IF(OR(Q84=0,Q84=""),"",IF(O79="F",HLOOKUP(Q84,females,O80,FALSE),IF(O79="M",HLOOKUP(Q84,males,O80,FALSE),""))) -> Kian Crawford | S84: Ash | T84: 00:03:02.900 | U84: =IF(OR(T84=0,T84="",O84=0,O84="",O85=0,O85="",O86=0,O86="",O87=0,O87=""),"",IF(T84<=O84,1,IF(T84<=O85,2,IF(T84<=O86,3,IF(T84<=O87,4,""))))) ->  | W84: 3 | X84: 5 | Y84: 3
A85: =VLOOKUP(B79,eventno,9,FALSE) -> 0.00150462963 | B85: 5 | C85: 44 | D85: =IF(OR(C85=0,C85=""),"",IF(A79="F",HLOOKUP(C85,females,A80,FALSE),IF(A79="M",HLOOKUP(C85,males,A80,FALSE),""))) -> Alex Thompson | E85: Croy | F85: 00:02:30.600 | G85: =IF(OR(F85=0,F85="",A84=0,A84="",A85=0,A85="",A86=0,A86="",A87=0,A87=""),"",IF(F85<=A84,1,IF(F85<=A85,2,IF(F85<=A86,3,IF(F85<=A87,4,""))))) ->  | H85: =VLOOKUP(I79,eventno,9,FALSE) -> 0.001707175926 | I85: 5 | J85: 4 | K85: =IF(OR(J85=0,J85=""),"",IF(H79="F",HLOOKUP(J85,females,H80,FALSE),IF(H79="M",HLOOKUP(J85,males,H80,FALSE),""))) -> Marcus Stoute | L85: Croy | M85: 00:03:00.800 | N85: =IF(OR(M85=0,M85="",H84=0,H84="",H85=0,H85="",H86=0,H86="",H87=0,H87=""),"",IF(M85<=H84,1,IF(M85<=H85,2,IF(M85<=H86,3,IF(M85<=H87,4,""))))) ->  | O85: =VLOOKUP(P79,eventno,9,FALSE) -> 0.001707175926 | P85: 5 | Q85: 44 | R85: =IF(OR(Q85=0,Q85=""),"",IF(O79="F",HLOOKUP(Q85,females,O80,FALSE),IF(O79="M",HLOOKUP(Q85,males,O80,FALSE),""))) -> Mosope Bangura | S85: Croy | T85: 00:03:08 | U85: =IF(OR(T85=0,T85="",O84=0,O84="",O85=0,O85="",O86=0,O86="",O87=0,O87=""),"",IF(T85<=O84,1,IF(T85<=O85,2,IF(T85<=O86,3,IF(T85<=O87,4,""))))) ->  | W85: 2 | X85: 4 | Y85: 2
A86: =VLOOKUP(B79,eventno,10,FALSE) -> 0.001545138889 | B86: 6 | C86: 11 | D86: =IF(OR(C86=0,C86=""),"",IF(A79="F",HLOOKUP(C86,females,A80,FALSE),IF(A79="M",HLOOKUP(C86,males,A80,FALSE),""))) -> Matt Brisley | E86: Ash | F86: 00:02:51.100 | G86: =IF(OR(F86=0,F86="",A84=0,A84="",A85=0,A85="",A86=0,A86="",A87=0,A87=""),"",IF(F86<=A84,1,IF(F86<=A85,2,IF(F86<=A86,3,IF(F86<=A87,4,""))))) ->  | H86: =VLOOKUP(I79,eventno,10,FALSE) -> 0.001747685185 | I86: 6 | J86: 1 | K86: =IF(OR(J86=0,J86=""),"",IF(H79="F",HLOOKUP(J86,females,H80,FALSE),IF(H79="M",HLOOKUP(J86,males,H80,FALSE),""))) -> Ryan Miller-Leslie | L86: Ash | M86: 00:03:02.500 | N86: =IF(OR(M86=0,M86="",H84=0,H84="",H85=0,H85="",H86=0,H86="",H87=0,H87=""),"",IF(M86<=H84,1,IF(M86<=H85,2,IF(M86<=H86,3,IF(M86<=H87,4,""))))) ->  | O86: =VLOOKUP(P79,eventno,10,FALSE) -> 0.001747685185 | P86: 6 | Q86: 55 | R86: =IF(OR(Q86=0,Q86=""),"",IF(O79="F",HLOOKUP(Q86,females,O80,FALSE),IF(O79="M",HLOOKUP(Q86,males,O80,FALSE),""))) -> James Rowell | S86: HavM | T86: 00:03:13.400 | U86: =IF(OR(T86=0,T86="",O84=0,O84="",O85=0,O85="",O86=0,O86="",O87=0,O87=""),"",IF(T86<=O84,1,IF(T86<=O85,2,IF(T86<=O86,3,IF(T86<=O87,4,""))))) ->  | W86: 1 | X86: 3 | Y86: 1
A87: =VLOOKUP(B79,eventno,11,FALSE) -> 0.001603009259 | B87: 7 | D87: =IF(OR(C87=0,C87=""),"",IF(A79="F",HLOOKUP(C87,females,A80,FALSE),IF(A79="M",HLOOKUP(C87,males,A80,FALSE),""))) ->  | G87: =IF(OR(F87=0,F87="",A84=0,A84="",A85=0,A85="",A86=0,A86="",A87=0,A87=""),"",IF(F87<=A84,1,IF(F87<=A85,2,IF(F87<=A86,3,IF(F87<=A87,4,""))))) ->  | H87: =VLOOKUP(I79,eventno,11,FALSE) -> 0.001805555556 | I87: 7 | K87: =IF(OR(J87=0,J87=""),"",IF(H79="F",HLOOKUP(J87,females,H80,FALSE),IF(H79="M",HLOOKUP(J87,males,H80,FALSE),""))) ->  | N87: =IF(OR(M87=0,M87="",H84=0,H84="",H85=0,H85="",H86=0,H86="",H87=0,H87=""),"",IF(M87<=H84,1,IF(M87<=H85,2,IF(M87<=H86,3,IF(M87<=H87,4,""))))) ->  | O87: =VLOOKUP(P79,eventno,11,FALSE) -> 0.001805555556 | P87: 7 | R87: =IF(OR(Q87=0,Q87=""),"",IF(O79="F",HLOOKUP(Q87,females,O80,FALSE),IF(O79="M",HLOOKUP(Q87,males,O80,FALSE),""))) ->  | U87: =IF(OR(T87=0,T87="",O84=0,O84="",O85=0,O85="",O86=0,O86="",O87=0,O87=""),"",IF(T87<=O84,1,IF(T87<=O85,2,IF(T87<=O86,3,IF(T87<=O87,4,""))))) ->  | W87: 0 | X87: 0 | Y87: 0
A88: B | B88: 8 | D88: =IF(OR(C88=0,C88=""),"",IF(A79="F",HLOOKUP(C88,females,A80,FALSE),IF(A79="M",HLOOKUP(C88,males,A80,FALSE),""))) ->  | G88: =IF(OR(F88=0,F88="",A84=0,A84="",A85=0,A85="",A86=0,A86="",A87=0,A87=""),"",IF(F88<=A84,1,IF(F88<=A85,2,IF(F88<=A86,3,IF(F88<=A87,4,""))))) ->  | H88: A | I88: 8 | K88: =IF(OR(J88=0,J88=""),"",IF(H79="F",HLOOKUP(J88,females,H80,FALSE),IF(H79="M",HLOOKUP(J88,males,H80,FALSE),""))) ->  | N88: =IF(OR(M88=0,M88="",H84=0,H84="",H85=0,H85="",H86=0,H86="",H87=0,H87=""),"",IF(M88<=H84,1,IF(M88<=H85,2,IF(M88<=H86,3,IF(M88<=H87,4,""))))) ->  | O88: B | P88: 8 | R88: =IF(OR(Q88=0,Q88=""),"",IF(O79="F",HLOOKUP(Q88,females,O80,FALSE),IF(O79="M",HLOOKUP(Q88,males,O80,FALSE),""))) ->  | U88: =IF(OR(T88=0,T88="",O84=0,O84="",O85=0,O85="",O86=0,O86="",O87=0,O87=""),"",IF(T88<=O84,1,IF(T88<=O85,2,IF(T88<=O86,3,IF(T88<=O87,4,""))))) ->  | W88: 0 | X88: 0 | Y88: 0
W89: 0 | X89: 0 | Y89: 0
A90: =VLOOKUP(B90,eventno,5,FALSE) -> F | B90: T13 | C90: =CONCATENATE(VLOOKUP(B90,eventno,4,FALSE)," '",A99,"'") -> U13G 75m 'A' | E90: =IF(A93="W","Wind =","") -> Wind = | G90: =IF(OR(F92=0,F92="",A94=0,A94=""),"",IF(A92="T",IF(F92<A94,"LR",IF(F92=A94,"LR=","")))) ->  | H90: =VLOOKUP(I90,eventno,5,FALSE) -> F | I90: T13 | J90: =CONCATENATE(VLOOKUP(I90,eventno,4,FALSE)," '",H99,"'") -> U13G 75m 'B' | L90: =IF(H93="W","Wind =","") -> Wind = | N90: =IF(OR(M92=0,M92="",H94=0,H94=""),"",IF(H92="T",IF(M92<H94,"LR",IF(M92=H94,"LR=","")))) ->  | O90: =VLOOKUP(P90,eventno,5,FALSE) -> F | P90: T14 | Q90: =CONCATENATE(VLOOKUP(P90,eventno,4,FALSE)," '",O99,"'") -> U17W 100m 'A' | S90: =IF(O93="W","Wind =","") -> Wind = | U90: =IF(OR(T92=0,T92="",O94=0,O94=""),"",IF(O92="T",IF(T92<O94,"LR",IF(T92=O94,"LR=","")))) ->  | W90: =IF(OR(B90=0,B90="",C90=0,C90="",F90=0,F90="",LEFT(F90,1)="D",LEFT(B90,1)="P"),0,VLOOKUP(B90,points,2,FALSE)) -> 0 | X90: =IF(OR(I90=0,I90="",J90=0,J90="",M90=0,M90="",LEFT(M90,1)="D",LEFT(I90,1)="P",LEFT(I90,1)="T"),0,VLOOKUP(I90,points,2,FALSE)-2) -> 0 | Y90: 0
A91: =IF(A90="M",VLOOKUP(B90,males,25,FALSE),VLOOKUP(B90,females,25,FALSE)) -> 10 | B91: Posn | C91: Bib | D91: Athlete | E91: Club | F91: Perf | G91: Gr | H91: =IF(H90="M",VLOOKUP(I90,males,25,FALSE),VLOOKUP(I90,females,25,FALSE)) -> 10 | I91: Posn | J91: Bib | K91: Athlete | L91: Club | M91: Perf | N91: Gr | O91: =IF(O90="M",VLOOKUP(P90,males,25,FALSE),VLOOKUP(P90,females,25,FALSE)) -> 8 | P91: Posn | Q91: Bib | R91: Athlete | S91: Club | T91: Perf | U91: Gr | W91: =IF(OR(B91=0,B91="",C91=0,C91="",F91=0,F91="",LEFT(F91,1)="D",LEFT(B91,1)="T",LEFT(B91,1)="P"),0,VLOOKUP(B91,points,2,FALSE)) -> 0 | X91: 0 | Y91: 0
A92: =LEFT(B90,1) -> T | B92: 1 | C92: 3 | D92: =IF(OR(C92=0,C92=""),"",IF(A90="F",HLOOKUP(C92,females,A91,FALSE),IF(A90="M",HLOOKUP(C92,males,A91,FALSE),""))) -> Nicole Farmer | E92: =IF(OR(C92=0,C92="",C92="-"),"",IF(C92>8,VLOOKUP(C92/11,match_teams,4,FALSE),VLOOKUP(C92,match_teams,4,FALSE))) -> B&B | F92: 10.3 | G92: =IF(OR(F92=0,F92="",A95=0,A95="",A96=0,A96="",A97=0,A97="",A98=0,A98=""),"",IF(F92<=A95,1,IF(F92<=A96,2,IF(F92<=A97,3,IF(F92<=A98,4,""))))) -> 1 | H92: =LEFT(I90,1) -> T | I92: 1 | J92: 44 | K92: =IF(OR(J92=0,J92=""),"",IF(H90="F",HLOOKUP(J92,females,H91,FALSE),IF(H90="M",HLOOKUP(J92,males,H91,FALSE),""))) -> Imogen O t u | L92: =IF(OR(J92=0,J92="",J92="-"),"",IF(J92>8,VLOOKUP(J92/11,match_teams,4,FALSE),VLOOKUP(J92,match_teams,4,FALSE))) -> Croy | M92: 11.1 | N92: =IF(OR(M92=0,M92="",H95=0,H95="",H96=0,H96="",H97=0,H97="",H98=0,H98=""),"",IF(M92<=H95,1,IF(M92<=H96,2,IF(M92<=H97,3,IF(M92<=H98,4,""))))) -> 4 | O92: =LEFT(P90,1) -> T | P92: 1 | Q92: 3 | R92: =IF(OR(Q92=0,Q92=""),"",IF(O90="F",HLOOKUP(Q92,females,O91,FALSE),IF(O90="M",HLOOKUP(Q92,males,O91,FALSE),""))) -> Shannon Hylton | S92: =IF(OR(Q92=0,Q92="",Q92="-"),"",IF(Q92>8,VLOOKUP(Q92/11,match_teams,4,FALSE),VLOOKUP(Q92,match_teams,4,FALSE))) -> B&B | T92: 12.3 | U92: =IF(OR(T92=0,T92="",O95=0,O95="",O96=0,O96="",O97=0,O97="",O98=0,O98=""),"",IF(T92<=O95,1,IF(T92<=O96,2,IF(T92<=O97,3,IF(T92<=O98,4,""))))) -> 1 | W92: 9 | X92: 7 | Y92: 9 | AA92: =COUNTA(F92) -> 1
A93: =VLOOKUP(B90,eventno,6,FALSE) -> W | B93: 2 | C93: 5 | D93: =IF(OR(C93=0,C93=""),"",IF(A90="F",HLOOKUP(C93,females,A91,FALSE),IF(A90="M",HLOOKUP(C93,males,A91,FALSE),""))) -> Josie Waddams | E93: HavM | F93: 10.9 | G93: =IF(OR(F93=0,F93="",A95=0,A95="",A96=0,A96="",A97=0,A97="",A98=0,A98=""),"",IF(F93<=A95,1,IF(F93<=A96,2,IF(F93<=A97,3,IF(F93<=A98,4,""))))) -> 4 | H93: =VLOOKUP(I90,eventno,6,FALSE) -> W | I93: 2 | J93: 55 | K93: =IF(OR(J93=0,J93=""),"",IF(H90="F",HLOOKUP(J93,females,H91,FALSE),IF(H90="M",HLOOKUP(J93,males,H91,FALSE),""))) -> Holly Nash | L93: HavM | M93: 11.2 | N93: =IF(OR(M93=0,M93="",H95=0,H95="",H96=0,H96="",H97=0,H97="",H98=0,H98=""),"",IF(M93<=H95,1,IF(M93<=H96,2,IF(M93<=H97,3,IF(M93<=H98,4,""))))) -> 4 | O93: =VLOOKUP(P90,eventno,6,FALSE) -> W | P93: 2 | Q93: 4 | R93: =IF(OR(Q93=0,Q93=""),"",IF(O90="F",HLOOKUP(Q93,females,O91,FALSE),IF(O90="M",HLOOKUP(Q93,males,O91,FALSE),""))) -> Eleanor Smith-Hahn | S93: Croy | T93: 12.4 | U93: =IF(OR(T93=0,T93="",O95=0,O95="",O96=0,O96="",O97=0,O97="",O98=0,O98=""),"",IF(T93<=O95,1,IF(T93<=O96,2,IF(T93<=O97,3,IF(T93<=O98,4,""))))) -> 1 | W93: 7 | X93: 5 | Y93: 7 | AA93: =COUNTA(T92) -> 1
A94: =VLOOKUP(B90,eventno,7,FALSE) -> 9.5 | B94: 3 | C94: 4 | D94: =IF(OR(C94=0,C94=""),"",IF(A90="F",HLOOKUP(C94,females,A91,FALSE),IF(A90="M",HLOOKUP(C94,males,A91,FALSE),""))) -> Rianna Larkai | E94: Croy | F94: 11 | G94: =IF(OR(F94=0,F94="",A95=0,A95="",A96=0,A96="",A97=0,A97="",A98=0,A98=""),"",IF(F94<=A95,1,IF(F94<=A96,2,IF(F94<=A97,3,IF(F94<=A98,4,""))))) -> 4 | H94: =VLOOKUP(I90,eventno,7,FALSE) -> 9.5 | I94: 3 | J94: 33 | K94: =IF(OR(J94=0,J94=""),"",IF(H90="F",HLOOKUP(J94,females,H91,FALSE),IF(H90="M",HLOOKUP(J94,males,H91,FALSE),""))) -> Andi Desborough | L94: B&B | M94: 11.4 | N94: =IF(OR(M94=0,M94="",H95=0,H95="",H96=0,H96="",H97=0,H97="",H98=0,H98=""),"",IF(M94<=H95,1,IF(M94<=H96,2,IF(M94<=H97,3,IF(M94<=H98,4,""))))) ->  | O94: =VLOOKUP(P90,eventno,7,FALSE) -> 11.7 | P94: 3 | Q94: 6 | R94: =IF(OR(Q94=0,Q94=""),"",IF(O90="F",HLOOKUP(Q94,females,O91,FALSE),IF(O90="M",HLOOKUP(Q94,males,O91,FALSE),""))) -> FLORENCE COCHRANE | S94: Ton | T94: 13 | U94: =IF(OR(T94=0,T94="",O95=0,O95="",O96=0,O96="",O97=0,O97="",O98=0,O98=""),"",IF(T94<=O95,1,IF(T94<=O96,2,IF(T94<=O97,3,IF(T94<=O98,4,""))))) -> 4 | W94: 6 | X94: 4 | Y94: 6
A95: =VLOOKUP(B90,eventno,8,FALSE) -> 10.4 | B95: 4 | C95: 1 | D95: =IF(OR(C95=0,C95=""),"",IF(A90="F",HLOOKUP(C95,females,A91,FALSE),IF(A90="M",HLOOKUP(C95,males,A91,FALSE),""))) -> Jess Carley | E95: Ash | F95: 11.4 | G95: =IF(OR(F95=0,F95="",A95=0,A95="",A96=0,A96="",A97=0,A97="",A98=0,A98=""),"",IF(F95<=A95,1,IF(F95<=A96,2,IF(F95<=A97,3,IF(F95<=A98,4,""))))) ->  | H95: =VLOOKUP(I90,eventno,8,FALSE) -> 10.4 | I95: 4 | J95: 66 | K95: =IF(OR(J95=0,J95=""),"",IF(H90="F",HLOOKUP(J95,females,H91,FALSE),IF(H90="M",HLOOKUP(J95,males,H91,FALSE),""))) -> LOUISA TRUSCOTT | L95: Ton | M95: 11.8 | N95: =IF(OR(M95=0,M95="",H95=0,H95="",H96=0,H96="",H97=0,H97="",H98=0,H98=""),"",IF(M95<=H95,1,IF(M95<=H96,2,IF(M95<=H97,3,IF(M95<=H98,4,""))))) ->  | O95: =VLOOKUP(P90,eventno,8,FALSE) -> 12.5 | P95: 4 | Q95: 1 | R95: =IF(OR(Q95=0,Q95=""),"",IF(O90="F",HLOOKUP(Q95,females,O91,FALSE),IF(O90="M",HLOOKUP(Q95,males,O91,FALSE),""))) -> Kayleigh Miller Leslie | S95: Ash | T95: 13.6 | U95: =IF(OR(T95=0,T95="",O95=0,O95="",O96=0,O96="",O97=0,O97="",O98=0,O98=""),"",IF(T95<=O95,1,IF(T95<=O96,2,IF(T95<=O97,3,IF(T95<=O98,4,""))))) ->  | W95: 5 | X95: 3 | Y95: 5
A96: =VLOOKUP(B90,eventno,9,FALSE) -> 10.6 | B96: 5 | C96: 2 | D96: =IF(OR(C96=0,C96=""),"",IF(A90="F",HLOOKUP(C96,females,A91,FALSE),IF(A90="M",HLOOKUP(C96,males,A91,FALSE),""))) -> Priscilla Ijoma | E96: Bas | F96: 12 | G96: =IF(OR(F96=0,F96="",A95=0,A95="",A96=0,A96="",A97=0,A97="",A98=0,A98=""),"",IF(F96<=A95,1,IF(F96<=A96,2,IF(F96<=A97,3,IF(F96<=A98,4,""))))) ->  | H96: =VLOOKUP(I90,eventno,9,FALSE) -> 10.6 | I96: 5 | J96: 11 | K96: =IF(OR(J96=0,J96=""),"",IF(H90="F",HLOOKUP(J96,females,H91,FALSE),IF(H90="M",HLOOKUP(J96,males,H91,FALSE),""))) -> Hannah Brooks | L96: Ash | M96: 12 | N96: =IF(OR(M96=0,M96="",H95=0,H95="",H96=0,H96="",H97=0,H97="",H98=0,H98=""),"",IF(M96<=H95,1,IF(M96<=H96,2,IF(M96<=H97,3,IF(M96<=H98,4,""))))) ->  | O96: =VLOOKUP(P90,eventno,9,FALSE) -> 12.7 | P96: 5 | Q96: 5 | R96: =IF(OR(Q96=0,Q96=""),"",IF(O90="F",HLOOKUP(Q96,females,O91,FALSE),IF(O90="M",HLOOKUP(Q96,males,O91,FALSE),""))) -> Tomi Akingbade | S96: HavM | T96: 13.7 | U96: =IF(OR(T96=0,T96="",O95=0,O95="",O96=0,O96="",O97=0,O97="",O98=0,O98=""),"",IF(T96<=O95,1,IF(T96<=O96,2,IF(T96<=O97,3,IF(T96<=O98,4,""))))) ->  | W96: 4 | X96: 2 | Y96: 4
A97: =VLOOKUP(B90,eventno,10,FALSE) -> 10.8 | B97: 6 | C97: 6 | D97: =IF(OR(C97=0,C97=""),"",IF(A90="F",HLOOKUP(C97,females,A91,FALSE),IF(A90="M",HLOOKUP(C97,males,A91,FALSE),""))) -> LIBBY RUSSELL | E97: Ton | F97: 12.1 | G97: =IF(OR(F97=0,F97="",A95=0,A95="",A96=0,A96="",A97=0,A97="",A98=0,A98=""),"",IF(F97<=A95,1,IF(F97<=A96,2,IF(F97<=A97,3,IF(F97<=A98,4,""))))) ->  | H97: =VLOOKUP(I90,eventno,10,FALSE) -> 10.8 | I97: 6 | K97: =IF(OR(J97=0,J97=""),"",IF(H90="F",HLOOKUP(J97,females,H91,FALSE),IF(H90="M",HLOOKUP(J97,males,H91,FALSE),""))) ->  | N97: =IF(OR(M97=0,M97="",H95=0,H95="",H96=0,H96="",H97=0,H97="",H98=0,H98=""),"",IF(M97<=H95,1,IF(M97<=H96,2,IF(M97<=H97,3,IF(M97<=H98,4,""))))) ->  | O97: =VLOOKUP(P90,eventno,10,FALSE) -> 12.9 | P97: 6 | Q97: 2 | R97: =IF(OR(Q97=0,Q97=""),"",IF(O90="F",HLOOKUP(Q97,females,O91,FALSE),IF(O90="M",HLOOKUP(Q97,males,O91,FALSE),""))) -> Rebecca Fraser | S97: Bas | T97: 13.7 | U97: =IF(OR(T97=0,T97="",O95=0,O95="",O96=0,O96="",O97=0,O97="",O98=0,O98=""),"",IF(T97<=O95,1,IF(T97<=O96,2,IF(T97<=O97,3,IF(T97<=O98,4,""))))) ->  | W97: 3 | X97: 0 | Y97: 3
A98: =VLOOKUP(B90,eventno,11,FALSE) -> 11.2 | B98: 7 | D98: =IF(OR(C98=0,C98=""),"",IF(A90="F",HLOOKUP(C98,females,A91,FALSE),IF(A90="M",HLOOKUP(C98,males,A91,FALSE),""))) ->  | G98: =IF(OR(F98=0,F98="",A95=0,A95="",A96=0,A96="",A97=0,A97="",A98=0,A98=""),"",IF(F98<=A95,1,IF(F98<=A96,2,IF(F98<=A97,3,IF(F98<=A98,4,""))))) ->  | H98: =VLOOKUP(I90,eventno,11,FALSE) -> 11.2 | I98: 7 | K98: =IF(OR(J98=0,J98=""),"",IF(H90="F",HLOOKUP(J98,females,H91,FALSE),IF(H90="M",HLOOKUP(J98,males,H91,FALSE),""))) ->  | N98: =IF(OR(M98=0,M98="",H95=0,H95="",H96=0,H96="",H97=0,H97="",H98=0,H98=""),"",IF(M98<=H95,1,IF(M98<=H96,2,IF(M98<=H97,3,IF(M98<=H98,4,""))))) ->  | O98: =VLOOKUP(P90,eventno,11,FALSE) -> 13.1 | P98: 7 | R98: =IF(OR(Q98=0,Q98=""),"",IF(O90="F",HLOOKUP(Q98,females,O91,FALSE),IF(O90="M",HLOOKUP(Q98,males,O91,FALSE),""))) ->  | U98: =IF(OR(T98=0,T98="",O95=0,O95="",O96=0,O96="",O97=0,O97="",O98=0,O98=""),"",IF(T98<=O95,1,IF(T98<=O96,2,IF(T98<=O97,3,IF(T98<=O98,4,""))))) ->  | W98: 0 | X98: 0 | Y98: 0
A99: A | B99: 8 | D99: =IF(OR(C99=0,C99=""),"",IF(A90="F",HLOOKUP(C99,females,A91,FALSE),IF(A90="M",HLOOKUP(C99,males,A91,FALSE),""))) ->  | G99: =IF(OR(F99=0,F99="",A95=0,A95="",A96=0,A96="",A97=0,A97="",A98=0,A98=""),"",IF(F99<=A95,1,IF(F99<=A96,2,IF(F99<=A97,3,IF(F99<=A98,4,""))))) ->  | H99: B | I99: 8 | K99: =IF(OR(J99=0,J99=""),"",IF(H90="F",HLOOKUP(J99,females,H91,FALSE),IF(H90="M",HLOOKUP(J99,males,H91,FALSE),""))) ->  | N99: =IF(OR(M99=0,M99="",H95=0,H95="",H96=0,H96="",H97=0,H97="",H98=0,H98=""),"",IF(M99<=H95,1,IF(M99<=H96,2,IF(M99<=H97,3,IF(M99<=H98,4,""))))) ->  | O99: A | P99: 8 | R99: =IF(OR(Q99=0,Q99=""),"",IF(O90="F",HLOOKUP(Q99,females,O91,FALSE),IF(O90="M",HLOOKUP(Q99,males,O91,FALSE),""))) ->  | U99: =IF(OR(T99=0,T99="",O95=0,O95="",O96=0,O96="",O97=0,O97="",O98=0,O98=""),"",IF(T99<=O95,1,IF(T99<=O96,2,IF(T99<=O97,3,IF(T99<=O98,4,""))))) ->  | W99: 0 | X99: 0 | Y99: 0
W100: 0 | X100: =IF(OR(I100=0,I100="",J100=0,J100="",M100=0,M100="",LEFT(M100,1)="D",LEFT(I100,1)="P",LEFT(I100,1)="T"),0,VLOOKUP(I100,points,2,FALSE)) -> 0 | Y100: 0
A101: =VLOOKUP(B101,eventno,5,FALSE) -> F | B101: T14 | C101: =CONCATENATE(VLOOKUP(B101,eventno,4,FALSE)," '",A110,"'") -> U17W 100m 'B' | E101: =IF(A104="W","Wind =","") -> Wind = | G101: =IF(OR(F103=0,F103="",A105=0,A105=""),"",IF(A103="T",IF(F103<A105,"LR",IF(F103=A105,"LR=","")))) ->  | H101: =VLOOKUP(I101,eventno,5,FALSE) -> F | I101: T15 | J101: =CONCATENATE(VLOOKUP(I101,eventno,4,FALSE)," '",H110,"'") -> U15G 100m 'A' | L101: =IF(H104="W","Wind =","") -> Wind = | N101: =IF(OR(M103=0,M103="",H105=0,H105=""),"",IF(H103="T",IF(M103<H105,"LR",IF(M103=H105,"LR=","")))) ->  | O101: =VLOOKUP(P101,eventno,5,FALSE) -> F | P101: T15 | Q101: =CONCATENATE(VLOOKUP(P101,eventno,4,FALSE)," '",O110,"'") -> U15G 100m 'B' | S101: =IF(O104="W","Wind =","") -> Wind = | U101: =IF(OR(T103=0,T103="",O105=0,O105=""),"",IF(O103="T",IF(T103<O105,"LR",IF(T103=O105,"LR=","")))) ->  | W101: =IF(OR(B101=0,B101="",C101=0,C101="",F101=0,F101="",LEFT(F101,1)="D",LEFT(B101,1)="T",LEFT(B101,1)="P"),0,VLOOKUP(B101,points,2,FALSE)-2) -> 0 | X101: 0 | Y101: =IF(OR(P101=0,P101="",Q101=0,Q101="",T101=0,T101="",LEFT(T101,1)="D",LEFT(P101)="T",LEFT(P101)="P"),0,VLOOKUP(P101,points,2,FALSE)-2) -> 0
A102: =IF(A101="M",VLOOKUP(B101,males,25,FALSE),VLOOKUP(B101,females,25,FALSE)) -> 8 | B102: Posn | C102: Bib | D102: Athlete | E102: Club | F102: Perf | G102: Gr | H102: =IF(H101="M",VLOOKUP(I101,males,25,FALSE),VLOOKUP(I101,females,25,FALSE)) -> 9 | I102: Posn | J102: Bib | K102: Athlete | L102: Club | M102: Perf | N102: Gr | O102: =IF(O101="M",VLOOKUP(P101,males,25,FALSE),VLOOKUP(P101,females,25,FALSE)) -> 9 | P102: Posn | Q102: Bib | R102: Athlete | S102: Club | T102: Perf | U102: Gr | W102: 0 | X102: 0 | Y102: 0
A103: =LEFT(B101,1) -> T | B103: 1 | C103: 33 | D103: =IF(OR(C103=0,C103=""),"",IF(A101="F",HLOOKUP(C103,females,A102,FALSE),IF(A101="M",HLOOKUP(C103,males,A102,FALSE),""))) -> Vivien Olatunji | E103: =IF(OR(C103=0,C103="",C103="-"),"",IF(C103>8,VLOOKUP(C103/11,match_teams,4,FALSE),VLOOKUP(C103,match_teams,4,FALSE))) -> B&B | F103: 13.2 | G103: =IF(OR(F103=0,F103="",A106=0,A106="",A107=0,A107="",A108=0,A108="",A109=0,A109=""),"",IF(F103<=A106,1,IF(F103<=A107,2,IF(F103<=A108,3,IF(F103<=A109,4,""))))) ->  | H103: =LEFT(I101,1) -> T | I103: 1 | J103: 3 | K103: =IF(OR(J103=0,J103=""),"",IF(H101="F",HLOOKUP(J103,females,H102,FALSE),IF(H101="M",HLOOKUP(J103,males,H102,FALSE),""))) -> Maya Bruney | L103: =IF(OR(J103=0,J103="",J103="-"),"",IF(J103>8,VLOOKUP(J103/11,match_teams,4,FALSE),VLOOKUP(J103,match_teams,4,FALSE))) -> B&B | M103: 12.5 | N103: =IF(OR(M103=0,M103="",H106=0,H106="",H107=0,H107="",H108=0,H108="",H109=0,H109=""),"",IF(M103<=H106,1,IF(M103<=H107,2,IF(M103<=H108,3,IF(M103<=H109,4,""))))) -> 1 | O103: =LEFT(P101,1) -> T | P103: 1 | Q103: 33 | R103: =IF(OR(Q103=0,Q103=""),"",IF(O101="F",HLOOKUP(Q103,females,O102,FALSE),IF(O101="M",HLOOKUP(Q103,males,O102,FALSE),""))) -> Jamilya Pascal - Robinson | S103: =IF(OR(Q103=0,Q103="",Q103="-"),"",IF(Q103>8,VLOOKUP(Q103/11,match_teams,4,FALSE),VLOOKUP(Q103,match_teams,4,FALSE))) -> B&B | T103: 13.4 | U103: =IF(OR(T103=0,T103="",O106=0,O106="",O107=0,O107="",O108=0,O108="",O109=0,O109=""),"",IF(T103<=O106,1,IF(T103<=O107,2,IF(T103<=O108,3,IF(T103<=O109,4,""))))) -> 4 | W103: 7 | X103: 9 | Y103: 7 | AA103: =COUNTA(M103) -> 1
A104: =VLOOKUP(B101,eventno,6,FALSE) -> W | B104: 2 | C104: 44 | D104: =IF(OR(C104=0,C104=""),"",IF(A101="F",HLOOKUP(C104,females,A102,FALSE),IF(A101="M",HLOOKUP(C104,males,A102,FALSE),""))) -> Melissa Mendez | E104: Croy | F104: 13.4 | G104: =IF(OR(F104=0,F104="",A106=0,A106="",A107=0,A107="",A108=0,A108="",A109=0,A109=""),"",IF(F104<=A106,1,IF(F104<=A107,2,IF(F104<=A108,3,IF(F104<=A109,4,""))))) ->  | H104: =VLOOKUP(I101,eventno,6,FALSE) -> W | I104: 2 | J104: 4 | K104: =IF(OR(J104=0,J104=""),"",IF(H101="F",HLOOKUP(J104,females,H102,FALSE),IF(H101="M",HLOOKUP(J104,males,H102,FALSE),""))) -> Ashleigh Clarke | L104: Croy | M104: 12.8 | N104: =IF(OR(M104=0,M104="",H106=0,H106="",H107=0,H107="",H108=0,H108="",H109=0,H109=""),"",IF(M104<=H106,1,IF(M104<=H107,2,IF(M104<=H108,3,IF(M104<=H109,4,""))))) -> 1 | O104: =VLOOKUP(P101,eventno,6,FALSE) -> W | P104: 2 | Q104: 44 | R104: =IF(OR(Q104=0,Q104=""),"",IF(O101="F",HLOOKUP(Q104,females,O102,FALSE),IF(O101="M",HLOOKUP(Q104,males,O102,FALSE),""))) -> Coralee Mido | S104: Croy | T104: 13.7 | U104: =IF(OR(T104=0,T104="",O106=0,O106="",O107=0,O107="",O108=0,O108="",O109=0,O109=""),"",IF(T104<=O106,1,IF(T104<=O107,2,IF(T104<=O108,3,IF(T104<=O109,4,""))))) ->  | W104: 5 | X104: 7 | Y104: 5
A105: =VLOOKUP(B101,eventno,7,FALSE) -> 11.7 | B105: 3 | C105: 66 | D105: =IF(OR(C105=0,C105=""),"",IF(A101="F",HLOOKUP(C105,females,A102,FALSE),IF(A101="M",HLOOKUP(C105,males,A102,FALSE),""))) -> SIMONE BAXTER | E105: Ton | F105: 13.6 | G105: =IF(OR(F105=0,F105="",A106=0,A106="",A107=0,A107="",A108=0,A108="",A109=0,A109=""),"",IF(F105<=A106,1,IF(F105<=A107,2,IF(F105<=A108,3,IF(F105<=A109,4,""))))) ->  | H105: =VLOOKUP(I101,eventno,7,FALSE) -> 11.9 | I105: 3 | J105: 5 | K105: =IF(OR(J105=0,J105=""),"",IF(H101="F",HLOOKUP(J105,females,H102,FALSE),IF(H101="M",HLOOKUP(J105,males,H102,FALSE),""))) -> Modupe Shokunbi | L105: HavM | M105: 13.2 | N105: =IF(OR(M105=0,M105="",H106=0,H106="",H107=0,H107="",H108=0,H108="",H109=0,H109=""),"",IF(M105<=H106,1,IF(M105<=H107,2,IF(M105<=H108,3,IF(M105<=H109,4,""))))) -> 3 | O105: =VLOOKUP(P101,eventno,7,FALSE) -> 11.9 | P105: 3 | Q105: 55 | R105: =IF(OR(Q105=0,Q105=""),"",IF(O101="F",HLOOKUP(Q105,females,O102,FALSE),IF(O101="M",HLOOKUP(Q105,males,O102,FALSE),""))) -> Tolu Akingbade | S105: HavM | T105: 14 | U105: =IF(OR(T105=0,T105="",O106=0,O106="",O107=0,O107="",O108=0,O108="",O109=0,O109=""),"",IF(T105<=O106,1,IF(T105<=O107,2,IF(T105<=O108,3,IF(T105<=O109,4,""))))) ->  | W105: 4 | X105: 6 | Y105: 4
A106: =VLOOKUP(B101,eventno,8,FALSE) -> 12.5 | B106: 4 | C106: 11 | D106: =IF(OR(C106=0,C106=""),"",IF(A101="F",HLOOKUP(C106,females,A102,FALSE),IF(A101="M",HLOOKUP(C106,males,A102,FALSE),""))) -> Abbie Purkis | E106: Ash | F106: 14.3 | G106: =IF(OR(F106=0,F106="",A106=0,A106="",A107=0,A107="",A108=0,A108="",A109=0,A109=""),"",IF(F106<=A106,1,IF(F106<=A107,2,IF(F106<=A108,3,IF(F106<=A109,4,""))))) ->  | H106: =VLOOKUP(I101,eventno,8,FALSE) -> 12.8 | I106: 4 | J106: 1 | K106: =IF(OR(J106=0,J106=""),"",IF(H101="F",HLOOKUP(J106,females,H102,FALSE),IF(H101="M",HLOOKUP(J106,males,H102,FALSE),""))) -> Ciara Ewart | L106: Ash | M106: 13.4 | N106: =IF(OR(M106=0,M106="",H106=0,H106="",H107=0,H107="",H108=0,H108="",H109=0,H109=""),"",IF(M106<=H106,1,IF(M106<=H107,2,IF(M106<=H108,3,IF(M106<=H109,4,""))))) -> 4 | O106: =VLOOKUP(P101,eventno,8,FALSE) -> 12.8 | P106: 4 | Q106: 66 | R106: =IF(OR(Q106=0,Q106=""),"",IF(O101="F",HLOOKUP(Q106,females,O102,FALSE),IF(O101="M",HLOOKUP(Q106,males,O102,FALSE),""))) -> JASMIN SMITH | S106: Ton | T106: 14 | U106: =IF(OR(T106=0,T106="",O106=0,O106="",O107=0,O107="",O108=0,O108="",O109=0,O109=""),"",IF(T106<=O106,1,IF(T106<=O107,2,IF(T106<=O108,3,IF(T106<=O109,4,""))))) ->  | W106: 3 | X106: 5 | Y106: 3
A107: =VLOOKUP(B101,eventno,9,FALSE) -> 12.7 | B107: 5 | C107: 22 | D107: =IF(OR(C107=0,C107=""),"",IF(A101="F",HLOOKUP(C107,females,A102,FALSE),IF(A101="M",HLOOKUP(C107,males,A102,FALSE),""))) -> Vicky Oshunremi | E107: Bas | F107: 14.5 | G107: =IF(OR(F107=0,F107="",A106=0,A106="",A107=0,A107="",A108=0,A108="",A109=0,A109=""),"",IF(F107<=A106,1,IF(F107<=A107,2,IF(F107<=A108,3,IF(F107<=A109,4,""))))) ->  | H107: =VLOOKUP(I101,eventno,9,FALSE) -> 13 | I107: 5 | J107: 6 | K107: =IF(OR(J107=0,J107=""),"",IF(H101="F",HLOOKUP(J107,females,H102,FALSE),IF(H101="M",HLOOKUP(J107,males,H102,FALSE),""))) -> BECKY O'HARA | L107: Ton | M107: 13.4 | N107: =IF(OR(M107=0,M107="",H106=0,H106="",H107=0,H107="",H108=0,H108="",H109=0,H109=""),"",IF(M107<=H106,1,IF(M107<=H107,2,IF(M107<=H108,3,IF(M107<=H109,4,""))))) -> 4 | O107: =VLOOKUP(P101,eventno,9,FALSE) -> 13 | P107: 5 | Q107: 22 | R107: =IF(OR(Q107=0,Q107=""),"",IF(O101="F",HLOOKUP(Q107,females,O102,FALSE),IF(O101="M",HLOOKUP(Q107,males,O102,FALSE),""))) -> Francesca Roast | S107: Bas | T107: 14.3 | U107: =IF(OR(T107=0,T107="",O106=0,O106="",O107=0,O107="",O108=0,O108="",O109=0,O109=""),"",IF(T107<=O106,1,IF(T107<=O107,2,IF(T107<=O108,3,IF(T107<=O109,4,""))))) ->  | W107: 2 | X107: 4 | Y107: 2
A108: =VLOOKUP(B101,eventno,10,FALSE) -> 12.9 | B108: 6 | C108: 55 | D108: =IF(OR(C108=0,C108=""),"",IF(A101="F",HLOOKUP(C108,females,A102,FALSE),IF(A101="M",HLOOKUP(C108,males,A102,FALSE),""))) -> Thiziri Dendani | E108: HavM | F108: 16.3 | G108: =IF(OR(F108=0,F108="",A106=0,A106="",A107=0,A107="",A108=0,A108="",A109=0,A109=""),"",IF(F108<=A106,1,IF(F108<=A107,2,IF(F108<=A108,3,IF(F108<=A109,4,""))))) ->  | H108: =VLOOKUP(I101,eventno,10,FALSE) -> 13.3 | I108: 6 | J108: 2 | K108: =IF(OR(J108=0,J108=""),"",IF(H101="F",HLOOKUP(J108,females,H102,FALSE),IF(H101="M",HLOOKUP(J108,males,H102,FALSE),""))) -> Shannon Sims | L108: Bas | M108: 14.4 | N108: =IF(OR(M108=0,M108="",H106=0,H106="",H107=0,H107="",H108=0,H108="",H109=0,H109=""),"",IF(M108<=H106,1,IF(M108<=H107,2,IF(M108<=H108,3,IF(M108<=H109,4,""))))) ->  | O108: =VLOOKUP(P101,eventno,10,FALSE) -> 13.3 | P108: 6 | Q108: 11 | R108: =IF(OR(Q108=0,Q108=""),"",IF(O101="F",HLOOKUP(Q108,females,O102,FALSE),IF(O101="M",HLOOKUP(Q108,males,O102,FALSE),""))) -> Hannah Owen | S108: Ash | T108: 14.4 | U108: =IF(OR(T108=0,T108="",O106=0,O106="",O107=0,O107="",O108=0,O108="",O109=0,O109=""),"",IF(T108<=O106,1,IF(T108<=O107,2,IF(T108<=O108,3,IF(T108<=O109,4,""))))) ->  | W108: 1 | X108: 3 | Y108: 1
A109: =VLOOKUP(B101,eventno,11,FALSE) -> 13.1 | B109: 7 | D109: =IF(OR(C109=0,C109=""),"",IF(A101="F",HLOOKUP(C109,females,A102,FALSE),IF(A101="M",HLOOKUP(C109,males,A102,FALSE),""))) ->  | G109: =IF(OR(F109=0,F109="",A106=0,A106="",A107=0,A107="",A108=0,A108="",A109=0,A109=""),"",IF(F109<=A106,1,IF(F109<=A107,2,IF(F109<=A108,3,IF(F109<=A109,4,""))))) ->  | H109: =VLOOKUP(I101,eventno,11,FALSE) -> 13.6 | I109: 7 | K109: =IF(OR(J109=0,J109=""),"",IF(H101="F",HLOOKUP(J109,females,H102,FALSE),IF(H101="M",HLOOKUP(J109,males,H102,FALSE),""))) ->  | N109: =IF(OR(M109=0,M109="",H106=0,H106="",H107=0,H107="",H108=0,H108="",H109=0,H109=""),"",IF(M109<=H106,1,IF(M109<=H107,2,IF(M109<=H108,3,IF(M109<=H109,4,""))))) ->  | O109: =VLOOKUP(P101,eventno,11,FALSE) -> 13.6 | P109: 7 | R109: =IF(OR(Q109=0,Q109=""),"",IF(O101="F",HLOOKUP(Q109,females,O102,FALSE),IF(O101="M",HLOOKUP(Q109,males,O102,FALSE),""))) ->  | U109: =IF(OR(T109=0,T109="",O106=0,O106="",O107=0,O107="",O108=0,O108="",O109=0,O109=""),"",IF(T109<=O106,1,IF(T109<=O107,2,IF(T109<=O108,3,IF(T109<=O109,4,""))))) ->  | W109: 0 | X109: 0 | Y109: 0
A110: B | B110: 8 | D110: =IF(OR(C110=0,C110=""),"",IF(A101="F",HLOOKUP(C110,females,A102,FALSE),IF(A101="M",HLOOKUP(C110,males,A102,FALSE),""))) ->  | G110: =IF(OR(F110=0,F110="",A106=0,A106="",A107=0,A107="",A108=0,A108="",A109=0,A109=""),"",IF(F110<=A106,1,IF(F110<=A107,2,IF(F110<=A108,3,IF(F110<=A109,4,""))))) ->  | H110: A | I110: 8 | K110: =IF(OR(J110=0,J110=""),"",IF(H101="F",HLOOKUP(J110,females,H102,FALSE),IF(H101="M",HLOOKUP(J110,males,H102,FALSE),""))) ->  | N110: =IF(OR(M110=0,M110="",H106=0,H106="",H107=0,H107="",H108=0,H108="",H109=0,H109=""),"",IF(M110<=H106,1,IF(M110<=H107,2,IF(M110<=H108,3,IF(M110<=H109,4,""))))) ->  | O110: B | P110: 8 | R110: =IF(OR(Q110=0,Q110=""),"",IF(O101="F",HLOOKUP(Q110,females,O102,FALSE),IF(O101="M",HLOOKUP(Q110,males,O102,FALSE),""))) ->  | U110: =IF(OR(T110=0,T110="",O106=0,O106="",O107=0,O107="",O108=0,O108="",O109=0,O109=""),"",IF(T110<=O106,1,IF(T110<=O107,2,IF(T110<=O108,3,IF(T110<=O109,4,""))))) ->  | W110: 0 | X110: 0 | Y110: 0
W111: 0 | X111: 0 | Y111: 0
A112: =VLOOKUP(B112,eventno,5,FALSE) -> M | B112: T16 | C112: =CONCATENATE(VLOOKUP(B112,eventno,4,FALSE)," '",A121,"'") -> U17M 100m 'A' | E112: =IF(A115="W","Wind =","") -> Wind = | G112: =IF(OR(F114=0,F114="",A116=0,A116=""),"",IF(A114="T",IF(F114<A116,"LR",IF(F114=A116,"LR=","")))) ->  | H112: =VLOOKUP(I112,eventno,5,FALSE) -> M | I112: T16 | J112: =CONCATENATE(VLOOKUP(I112,eventno,4,FALSE)," '",H121,"'") -> U17M 100m 'B' | L112: =IF(H115="W","Wind =","") -> Wind = | N112: =IF(OR(M114=0,M114="",H116=0,H116=""),"",IF(H114="T",IF(M114<H116,"LR",IF(M114=H116,"LR=","")))) ->  | O112: =VLOOKUP(P112,eventno,5,FALSE) -> M | P112: T17 | Q112: =CONCATENATE(VLOOKUP(P112,eventno,4,FALSE)," '",O121,"'") -> U15B 100m 'A' | S112: =IF(O115="W","Wind =","") -> Wind = | U112: =IF(OR(T114=0,T114="",O116=0,O116=""),"",IF(O114="T",IF(T114<O116,"LR",IF(T114=O116,"LR=","")))) ->  | W112: =IF(OR(B112=0,B112="",C112=0,C112="",F112=0,F112="",LEFT(F112,1)="D",LEFT(B112,1)="P"),0,VLOOKUP(B112,points,2,FALSE)) -> 0 | X112: =IF(OR(I112=0,I112="",J112=0,J112="",M112=0,M112="",LEFT(M112,1)="D",LEFT(I112,1)="P",LEFT(I112,1)="T"),0,VLOOKUP(I112,points,2,FALSE)-2) -> 0 | Y112: 0
A113: =IF(A112="M",VLOOKUP(B112,males,25,FALSE),VLOOKUP(B112,females,25,FALSE)) -> 8 | B113: Posn | C113: Bib | D113: Athlete | E113: Club | F113: Perf | G113: Gr | H113: =IF(H112="M",VLOOKUP(I112,males,25,FALSE),VLOOKUP(I112,females,25,FALSE)) -> 8 | I113: Posn | J113: Bib | K113: Athlete | L113: Club | M113: Perf | N113: Gr | O113: =IF(O112="M",VLOOKUP(P112,males,25,FALSE),VLOOKUP(P112,females,25,FALSE)) -> 9 | P113: Posn | Q113: Bib | R113: Athlete | S113: Club | T113: Perf | U113: Gr | W113: =IF(OR(B113=0,B113="",C113=0,C113="",F113=0,F113="",LEFT(F113,1)="D",LEFT(B113,1)="T",LEFT(B113,1)="P"),0,VLOOKUP(B113,points,2,FALSE)) -> 0 | X113: 0 | Y113: 0
A114: =LEFT(B112,1) -> T | B114: 1 | C114: 4 | D114: =IF(OR(C114=0,C114=""),"",IF(A112="F",HLOOKUP(C114,females,A113,FALSE),IF(A112="M",HLOOKUP(C114,males,A113,FALSE),""))) -> Damian Powell | E114: =IF(OR(C114=0,C114="",C114="-"),"",IF(C114>8,VLOOKUP(C114/11,match_teams,4,FALSE),VLOOKUP(C114,match_teams,4,FALSE))) -> Croy | F114: 11.2 | G114: =IF(OR(F114=0,F114="",A117=0,A117="",A118=0,A118="",A119=0,A119="",A120=0,A120=""),"",IF(F114<=A117,1,IF(F114<=A118,2,IF(F114<=A119,3,IF(F114<=A120,4,""))))) -> 1 | H114: =LEFT(I112,1) -> T | I114: 1 | J114: 44 | K114: =IF(OR(J114=0,J114=""),"",IF(H112="F",HLOOKUP(J114,females,H113,FALSE),IF(H112="M",HLOOKUP(J114,males,H113,FALSE),""))) -> Aaron Adekoya | L114: =IF(OR(J114=0,J114="",J114="-"),"",IF(J114>8,VLOOKUP(J114/11,match_teams,4,FALSE),VLOOKUP(J114,match_teams,4,FALSE))) -> Croy | M114: 11.6 | N114: =IF(OR(M114=0,M114="",H117=0,H117="",H118=0,H118="",H119=0,H119="",H120=0,H120=""),"",IF(M114<=H117,1,IF(M114<=H118,2,IF(M114<=H119,3,IF(M114<=H120,4,""))))) -> 4 | O114: =LEFT(P112,1) -> T | P114: 1 | Q114: 4 | R114: =IF(OR(Q114=0,Q114=""),"",IF(O112="F",HLOOKUP(Q114,females,O113,FALSE),IF(O112="M",HLOOKUP(Q114,males,O113,FALSE),""))) -> Daniel Luke | S114: =IF(OR(Q114=0,Q114="",Q114="-"),"",IF(Q114>8,VLOOKUP(Q114/11,match_teams,4,FALSE),VLOOKUP(Q114,match_teams,4,FALSE))) -> Croy | T114: 12 | U114: =IF(OR(T114=0,T114="",O117=0,O117="",O118=0,O118="",O119=0,O119="",O120=0,O120=""),"",IF(T114<=O117,1,IF(T114<=O118,2,IF(T114<=O119,3,IF(T114<=O120,4,""))))) -> 3 | W114: 9 | X114: 7 | Y114: 9 | AA114: =COUNTA(F114) -> 1
A115: =VLOOKUP(B112,eventno,6,FALSE) -> W | B115: 2 | C115: 5 | D115: =IF(OR(C115=0,C115=""),"",IF(A112="F",HLOOKUP(C115,females,A113,FALSE),IF(A112="M",HLOOKUP(C115,males,A113,FALSE),""))) -> Robbie Clarricoats | E115: HavM | F115: 11.5 | G115: =IF(OR(F115=0,F115="",A117=0,A117="",A118=0,A118="",A119=0,A119="",A120=0,A120=""),"",IF(F115<=A117,1,IF(F115<=A118,2,IF(F115<=A119,3,IF(F115<=A120,4,""))))) -> 3 | H115: =VLOOKUP(I112,eventno,6,FALSE) -> W | I115: 2 | J115: 55 | K115: =IF(OR(J115=0,J115=""),"",IF(H112="F",HLOOKUP(J115,females,H113,FALSE),IF(H112="M",HLOOKUP(J115,males,H113,FALSE),""))) -> Patrick Chimhini | L115: HavM | M115: 12 | N115: =IF(OR(M115=0,M115="",H117=0,H117="",H118=0,H118="",H119=0,H119="",H120=0,H120=""),"",IF(M115<=H117,1,IF(M115<=H118,2,IF(M115<=H119,3,IF(M115<=H120,4,""))))) ->  | O115: =VLOOKUP(P112,eventno,6,FALSE) -> W | P115: 2 | Q115: 3 | R115: =IF(OR(Q115=0,Q115=""),"",IF(O112="F",HLOOKUP(Q115,females,O113,FALSE),IF(O112="M",HLOOKUP(Q115,males,O113,FALSE),""))) -> Dotun Ayodele | S115: B&B | T115: 12.1 | U115: =IF(OR(T115=0,T115="",O117=0,O117="",O118=0,O118="",O119=0,O119="",O120=0,O120=""),"",IF(T115<=O117,1,IF(T115<=O118,2,IF(T115<=O119,3,IF(T115<=O120,4,""))))) -> 3 | W115: 7 | X115: 5 | Y115: 7 | AA115: =COUNTA(T114) -> 1
A116: =VLOOKUP(B112,eventno,7,FALSE) -> 10.5 | B116: 3 | C116: 1 | D116: =IF(OR(C116=0,C116=""),"",IF(A112="F",HLOOKUP(C116,females,A113,FALSE),IF(A112="M",HLOOKUP(C116,males,A113,FALSE),""))) -> Ben Cox | E116: Ash | F116: 11.6 | G116: =IF(OR(F116=0,F116="",A117=0,A117="",A118=0,A118="",A119=0,A119="",A120=0,A120=""),"",IF(F116<=A117,1,IF(F116<=A118,2,IF(F116<=A119,3,IF(F116<=A120,4,""))))) -> 4 | H116: =VLOOKUP(I112,eventno,7,FALSE) -> 10.5 | I116: 3 | J116: 33 | K116: =IF(OR(J116=0,J116=""),"",IF(H112="F",HLOOKUP(J116,females,H113,FALSE),IF(H112="M",HLOOKUP(J116,males,H113,FALSE),""))) -> Stefan Amokwandoh | L116: B&B | M116: 12 | N116: =IF(OR(M116=0,M116="",H117=0,H117="",H118=0,H118="",H119=0,H119="",H120=0,H120=""),"",IF(M116<=H117,1,IF(M116<=H118,2,IF(M116<=H119,3,IF(M116<=H120,4,""))))) ->  | O116: =VLOOKUP(P112,eventno,7,FALSE) -> 10.9 | P116: 3 | Q116: 6 | R116: =IF(OR(Q116=0,Q116=""),"",IF(O112="F",HLOOKUP(Q116,females,O113,FALSE),IF(O112="M",HLOOKUP(Q116,males,O113,FALSE),""))) -> DILLON PALMER | S116: Ton | T116: 12.4 | U116: =IF(OR(T116=0,T116="",O117=0,O117="",O118=0,O118="",O119=0,O119="",O120=0,O120=""),"",IF(T116<=O117,1,IF(T116<=O118,2,IF(T116<=O119,3,IF(T116<=O120,4,""))))) -> 4 | W116: 6 | X116: 4 | Y116: 6
A117: =VLOOKUP(B112,eventno,8,FALSE) -> 11.2 | B117: 4 | C117: 2 | D117: =IF(OR(C117=0,C117=""),"",IF(A112="F",HLOOKUP(C117,females,A113,FALSE),IF(A112="M",HLOOKUP(C117,males,A113,FALSE),""))) -> Liam Vaughan | E117: Bas | F117: 11.6 | G117: =IF(OR(F117=0,F117="",A117=0,A117="",A118=0,A118="",A119=0,A119="",A120=0,A120=""),"",IF(F117<=A117,1,IF(F117<=A118,2,IF(F117<=A119,3,IF(F117<=A120,4,""))))) -> 4 | H117: =VLOOKUP(I112,eventno,8,FALSE) -> 11.2 | I117: 4 | J117: 11 | K117: =IF(OR(J117=0,J117=""),"",IF(H112="F",HLOOKUP(J117,females,H113,FALSE),IF(H112="M",HLOOKUP(J117,males,H113,FALSE),""))) -> Aaron Sekwalor | L117: Ash | M117: 12.1 | N117: =IF(OR(M117=0,M117="",H117=0,H117="",H118=0,H118="",H119=0,H119="",H120=0,H120=""),"",IF(M117<=H117,1,IF(M117<=H118,2,IF(M117<=H119,3,IF(M117<=H120,4,""))))) ->  | O117: =VLOOKUP(P112,eventno,8,FALSE) -> 11.7 | P117: 4 | Q117: 1 | R117: =IF(OR(Q117=0,Q117=""),"",IF(O112="F",HLOOKUP(Q117,females,O113,FALSE),IF(O112="M",HLOOKUP(Q117,males,O113,FALSE),""))) -> Ben Isaac | S117: Ash | T117: 12.8 | U117: =IF(OR(T117=0,T117="",O117=0,O117="",O118=0,O118="",O119=0,O119="",O120=0,O120=""),"",IF(T117<=O117,1,IF(T117<=O118,2,IF(T117<=O119,3,IF(T117<=O120,4,""))))) ->  | W117: 5 | X117: 3 | Y117: 5
A118: =VLOOKUP(B112,eventno,9,FALSE) -> 11.3 | B118: 5 | C118: 6 | D118: =IF(OR(C118=0,C118=""),"",IF(A112="F",HLOOKUP(C118,females,A113,FALSE),IF(A112="M",HLOOKUP(C118,males,A113,FALSE),""))) -> BRADLEY BARRETT | E118: Ton | F118: 12.4 | G118: =IF(OR(F118=0,F118="",A117=0,A117="",A118=0,A118="",A119=0,A119="",A120=0,A120=""),"",IF(F118<=A117,1,IF(F118<=A118,2,IF(F118<=A119,3,IF(F118<=A120,4,""))))) ->  | H118: =VLOOKUP(I112,eventno,9,FALSE) -> 11.3 | I118: 5 | J118: 66 | K118: =IF(OR(J118=0,J118=""),"",IF(H112="F",HLOOKUP(J118,females,H113,FALSE),IF(H112="M",HLOOKUP(J118,males,H113,FALSE),""))) -> RYAN MCLELLON | L118: Ton | M118: 13.7 | N118: =IF(OR(M118=0,M118="",H117=0,H117="",H118=0,H118="",H119=0,H119="",H120=0,H120=""),"",IF(M118<=H117,1,IF(M118<=H118,2,IF(M118<=H119,3,IF(M118<=H120,4,""))))) ->  | O118: =VLOOKUP(P112,eventno,9,FALSE) -> 11.9 | P118: 5 | Q118: 5 | R118: =IF(OR(Q118=0,Q118=""),"",IF(O112="F",HLOOKUP(Q118,females,O113,FALSE),IF(O112="M",HLOOKUP(Q118,males,O113,FALSE),""))) -> Alex Hewitt | S118: HavM | T118: 12.9 | U118: =IF(OR(T118=0,T118="",O117=0,O117="",O118=0,O118="",O119=0,O119="",O120=0,O120=""),"",IF(T118<=O117,1,IF(T118<=O118,2,IF(T118<=O119,3,IF(T118<=O120,4,""))))) ->  | W118: 4 | X118: 2 | Y118: 4
A119: =VLOOKUP(B112,eventno,10,FALSE) -> 11.5 | B119: 6 | C119: 3 | D119: =IF(OR(C119=0,C119=""),"",IF(A112="F",HLOOKUP(C119,females,A113,FALSE),IF(A112="M",HLOOKUP(C119,males,A113,FALSE),""))) -> Paul Formanico | E119: B&B | F119: 12.5 | G119: =IF(OR(F119=0,F119="",A117=0,A117="",A118=0,A118="",A119=0,A119="",A120=0,A120=""),"",IF(F119<=A117,1,IF(F119<=A118,2,IF(F119<=A119,3,IF(F119<=A120,4,""))))) ->  | H119: =VLOOKUP(I112,eventno,10,FALSE) -> 11.5 | I119: 6 | K119: =IF(OR(J119=0,J119=""),"",IF(H112="F",HLOOKUP(J119,females,H113,FALSE),IF(H112="M",HLOOKUP(J119,males,H113,FALSE),""))) ->  | N119: =IF(OR(M119=0,M119="",H117=0,H117="",H118=0,H118="",H119=0,H119="",H120=0,H120=""),"",IF(M119<=H117,1,IF(M119<=H118,2,IF(M119<=H119,3,IF(M119<=H120,4,""))))) ->  | O119: =VLOOKUP(P112,eventno,10,FALSE) -> 12.1 | P119: 6 | Q119: 2 | R119: =IF(OR(Q119=0,Q119=""),"",IF(O112="F",HLOOKUP(Q119,females,O113,FALSE),IF(O112="M",HLOOKUP(Q119,males,O113,FALSE),""))) -> Daniel Rugg | S119: Bas | T119: 13 | U119: =IF(OR(T119=0,T119="",O117=0,O117="",O118=0,O118="",O119=0,O119="",O120=0,O120=""),"",IF(T119<=O117,1,IF(T119<=O118,2,IF(T119<=O119,3,IF(T119<=O120,4,""))))) ->  | W119: 3 | X119: 0 | Y119: 3
A120: =VLOOKUP(B112,eventno,11,FALSE) -> 11.8 | B120: 7 | D120: =IF(OR(C120=0,C120=""),"",IF(A112="F",HLOOKUP(C120,females,A113,FALSE),IF(A112="M",HLOOKUP(C120,males,A113,FALSE),""))) ->  | G120: =IF(OR(F120=0,F120="",A117=0,A117="",A118=0,A118="",A119=0,A119="",A120=0,A120=""),"",IF(F120<=A117,1,IF(F120<=A118,2,IF(F120<=A119,3,IF(F120<=A120,4,""))))) ->  | H120: =VLOOKUP(I112,eventno,11,FALSE) -> 11.8 | I120: 7 | K120: =IF(OR(J120=0,J120=""),"",IF(H112="F",HLOOKUP(J120,females,H113,FALSE),IF(H112="M",HLOOKUP(J120,males,H113,FALSE),""))) ->  | N120: =IF(OR(M120=0,M120="",H117=0,H117="",H118=0,H118="",H119=0,H119="",H120=0,H120=""),"",IF(M120<=H117,1,IF(M120<=H118,2,IF(M120<=H119,3,IF(M120<=H120,4,""))))) ->  | O120: =VLOOKUP(P112,eventno,11,FALSE) -> 12.5 | P120: 7 | R120: =IF(OR(Q120=0,Q120=""),"",IF(O112="F",HLOOKUP(Q120,females,O113,FALSE),IF(O112="M",HLOOKUP(Q120,males,O113,FALSE),""))) ->  | U120: =IF(OR(T120=0,T120="",O117=0,O117="",O118=0,O118="",O119=0,O119="",O120=0,O120=""),"",IF(T120<=O117,1,IF(T120<=O118,2,IF(T120<=O119,3,IF(T120<=O120,4,""))))) ->  | W120: 0 | X120: 0 | Y120: 0
A121: A | B121: 8 | D121: =IF(OR(C121=0,C121=""),"",IF(A112="F",HLOOKUP(C121,females,A113,FALSE),IF(A112="M",HLOOKUP(C121,males,A113,FALSE),""))) ->  | G121: =IF(OR(F121=0,F121="",A117=0,A117="",A118=0,A118="",A119=0,A119="",A120=0,A120=""),"",IF(F121<=A117,1,IF(F121<=A118,2,IF(F121<=A119,3,IF(F121<=A120,4,""))))) ->  | H121: B | I121: 8 | K121: =IF(OR(J121=0,J121=""),"",IF(H112="F",HLOOKUP(J121,females,H113,FALSE),IF(H112="M",HLOOKUP(J121,males,H113,FALSE),""))) ->  | N121: =IF(OR(M121=0,M121="",H117=0,H117="",H118=0,H118="",H119=0,H119="",H120=0,H120=""),"",IF(M121<=H117,1,IF(M121<=H118,2,IF(M121<=H119,3,IF(M121<=H120,4,""))))) ->  | O121: A | P121: 8 | R121: =IF(OR(Q121=0,Q121=""),"",IF(O112="F",HLOOKUP(Q121,females,O113,FALSE),IF(O112="M",HLOOKUP(Q121,males,O113,FALSE),""))) ->  | U121: =IF(OR(T121=0,T121="",O117=0,O117="",O118=0,O118="",O119=0,O119="",O120=0,O120=""),"",IF(T121<=O117,1,IF(T121<=O118,2,IF(T121<=O119,3,IF(T121<=O120,4,""))))) ->  | W121: 0 | X121: 0 | Y121: 0
W122: 0 | X122: =IF(OR(I122=0,I122="",J122=0,J122="",M122=0,M122="",LEFT(M122,1)="D",LEFT(I122,1)="P",LEFT(I122,1)="T"),0,VLOOKUP(I122,points,2,FALSE)) -> 0 | Y122: 0
A123: =VLOOKUP(B123,eventno,5,FALSE) -> M | B123: T17 | C123: =CONCATENATE(VLOOKUP(B123,eventno,4,FALSE)," '",A132,"'") -> U15B 100m 'B' | E123: =IF(A126="W","Wind =","") -> Wind = | G123: =IF(OR(F125=0,F125="",A127=0,A127=""),"",IF(A125="T",IF(F125<A127,"LR",IF(F125=A127,"LR=","")))) ->  | H123: =VLOOKUP(I123,eventno,5,FALSE) -> M | I123: T18 | J123: =CONCATENATE(VLOOKUP(I123,eventno,4,FALSE)," '",H132,"'") -> U13B 100m 'A' | L123: =IF(H126="W","Wind =","") -> Wind = | N123: =IF(OR(M125=0,M125="",H127=0,H127=""),"",IF(H125="T",IF(M125<H127,"LR",IF(M125=H127,"LR=","")))) ->  | O123: =VLOOKUP(P123,eventno,5,FALSE) -> M | P123: T18 | Q123: =CONCATENATE(VLOOKUP(P123,eventno,4,FALSE)," '",O132,"'") -> U13B 100m 'B' | S123: =IF(O126="W","Wind =","") -> Wind = | U123: =IF(OR(T125=0,T125="",O127=0,O127=""),"",IF(O125="T",IF(T125<O127,"LR",IF(T125=O127,"LR=","")))) ->  | W123: =IF(OR(B123=0,B123="",C123=0,C123="",F123=0,F123="",LEFT(F123,1)="D",LEFT(B123,1)="T",LEFT(B123,1)="P"),0,VLOOKUP(B123,points,2,FALSE)-2) -> 0 | X123: 0 | Y123: =IF(OR(P123=0,P123="",Q123=0,Q123="",T123=0,T123="",LEFT(T123,1)="D",LEFT(P123)="T",LEFT(P123)="P"),0,VLOOKUP(P123,points,2,FALSE)-2) -> 0
A124: =IF(A123="M",VLOOKUP(B123,males,25,FALSE),VLOOKUP(B123,females,25,FALSE)) -> 9 | B124: Posn | C124: Bib | D124: Athlete | E124: Club | F124: Perf | G124: Gr | H124: =IF(H123="M",VLOOKUP(I123,males,25,FALSE),VLOOKUP(I123,females,25,FALSE)) -> 10 | I124: Posn | J124: Bib | K124: Athlete | L124: Club | M124: Perf | N124: Gr | O124: =IF(O123="M",VLOOKUP(P123,males,25,FALSE),VLOOKUP(P123,females,25,FALSE)) -> 10 | P124: Posn | Q124: Bib | R124: Athlete | S124: Club | T124: Perf | U124: Gr | W124: 0 | X124: 0 | Y124: 0
A125: =LEFT(B123,1) -> T | B125: 1 | C125: 33 | D125: =IF(OR(C125=0,C125=""),"",IF(A123="F",HLOOKUP(C125,females,A124,FALSE),IF(A123="M",HLOOKUP(C125,males,A124,FALSE),""))) -> Lucas Pacary | E125: =IF(OR(C125=0,C125="",C125="-"),"",IF(C125>8,VLOOKUP(C125/11,match_teams,4,FALSE),VLOOKUP(C125,match_teams,4,FALSE))) -> B&B | F125: 12.8 | G125: =IF(OR(F125=0,F125="",A128=0,A128="",A129=0,A129="",A130=0,A130="",A131=0,A131=""),"",IF(F125<=A128,1,IF(F125<=A129,2,IF(F125<=A130,3,IF(F125<=A131,4,""))))) ->  | H125: =LEFT(I123,1) -> T | I125: 1 | J125: 3 | K125: =IF(OR(J125=0,J125=""),"",IF(H123="F",HLOOKUP(J125,females,H124,FALSE),IF(H123="M",HLOOKUP(J125,males,H124,FALSE),""))) -> Daniel Ndukwe | L125: =IF(OR(J125=0,J125="",J125="-"),"",IF(J125>8,VLOOKUP(J125/11,match_teams,4,FALSE),VLOOKUP(J125,match_teams,4,FALSE))) -> B&B | M125: 13.2 | N125: =IF(OR(M125=0,M125="",H128=0,H128="",H129=0,H129="",H130=0,H130="",H131=0,H131=""),"",IF(M125<=H128,1,IF(M125<=H129,2,IF(M125<=H130,3,IF(M125<=H131,4,""))))) -> 2 | O125: =LEFT(P123,1) -> T | P125: 1 | Q125: 44 | R125: =IF(OR(Q125=0,Q125=""),"",IF(O123="F",HLOOKUP(Q125,females,O124,FALSE),IF(O123="M",HLOOKUP(Q125,males,O124,FALSE),""))) -> Elliot Bailey | S125: =IF(OR(Q125=0,Q125="",Q125="-"),"",IF(Q125>8,VLOOKUP(Q125/11,match_teams,4,FALSE),VLOOKUP(Q125,match_teams,4,FALSE))) -> Croy | T125: 13.8 | U125: =IF(OR(T125=0,T125="",O128=0,O128="",O129=0,O129="",O130=0,O130="",O131=0,O131=""),"",IF(T125<=O128,1,IF(T125<=O129,2,IF(T125<=O130,3,IF(T125<=O131,4,""))))) -> 4 | W125: 7 | X125: 9 | Y125: 7 | AA125: =COUNTA(M125) -> 1
A126: =VLOOKUP(B123,eventno,6,FALSE) -> W | B126: 2 | C126: 66 | D126: =IF(OR(C126=0,C126=""),"",IF(A123="F",HLOOKUP(C126,females,A124,FALSE),IF(A123="M",HLOOKUP(C126,males,A124,FALSE),""))) -> JACKSON MOFFATT | E126: Ton | F126: 13.1 | G126: =IF(OR(F126=0,F126="",A128=0,A128="",A129=0,A129="",A130=0,A130="",A131=0,A131=""),"",IF(F126<=A128,1,IF(F126<=A129,2,IF(F126<=A130,3,IF(F126<=A131,4,""))))) ->  | H126: =VLOOKUP(I123,eventno,6,FALSE) -> W | I126: 2 | J126: 4 | K126: =IF(OR(J126=0,J126=""),"",IF(H123="F",HLOOKUP(J126,females,H124,FALSE),IF(H123="M",HLOOKUP(J126,males,H124,FALSE),""))) -> Ryan Campbell-Walton | L126: Croy | M126: 13.6 | N126: =IF(OR(M126=0,M126="",H128=0,H128="",H129=0,H129="",H130=0,H130="",H131=0,H131=""),"",IF(M126<=H128,1,IF(M126<=H129,2,IF(M126<=H130,3,IF(M126<=H131,4,""))))) -> 3 | O126: =VLOOKUP(P123,eventno,6,FALSE) -> W | P126: 2 | Q126: 33 | R126: =IF(OR(Q126=0,Q126=""),"",IF(O123="F",HLOOKUP(Q126,females,O124,FALSE),IF(O123="M",HLOOKUP(Q126,males,O124,FALSE),""))) -> James Low | S126: B&B | T126: 13.8 | U126: =IF(OR(T126=0,T126="",O128=0,O128="",O129=0,O129="",O130=0,O130="",O131=0,O131=""),"",IF(T126<=O128,1,IF(T126<=O129,2,IF(T126<=O130,3,IF(T126<=O131,4,""))))) -> 4 | W126: 5 | X126: 7 | Y126: 5
A127: =VLOOKUP(B123,eventno,7,FALSE) -> 10.9 | B127: 3 | C127: 44 | D127: =IF(OR(C127=0,C127=""),"",IF(A123="F",HLOOKUP(C127,females,A124,FALSE),IF(A123="M",HLOOKUP(C127,males,A124,FALSE),""))) -> Derel Stone | E127: Croy | F127: 13.2 | G127: =IF(OR(F127=0,F127="",A128=0,A128="",A129=0,A129="",A130=0,A130="",A131=0,A131=""),"",IF(F127<=A128,1,IF(F127<=A129,2,IF(F127<=A130,3,IF(F127<=A131,4,""))))) ->  | H127: =VLOOKUP(I123,eventno,7,FALSE) -> 11.71 | I127: 3 | J127: 2 | K127: =IF(OR(J127=0,J127=""),"",IF(H123="F",HLOOKUP(J127,females,H124,FALSE),IF(H123="M",HLOOKUP(J127,males,H124,FALSE),""))) -> William Harland-Dornan | L127: Bas | M127: 14.1 | N127: =IF(OR(M127=0,M127="",H128=0,H128="",H129=0,H129="",H130=0,H130="",H131=0,H131=""),"",IF(M127<=H128,1,IF(M127<=H129,2,IF(M127<=H130,3,IF(M127<=H131,4,""))))) -> 4 | O127: =VLOOKUP(P123,eventno,7,FALSE) -> 11.71 | P127: 3 | Q127: 22 | R127: =IF(OR(Q127=0,Q127=""),"",IF(O123="F",HLOOKUP(Q127,females,O124,FALSE),IF(O123="M",HLOOKUP(Q127,males,O124,FALSE),""))) -> Luke Dooley | S127: Bas | T127: 15 | U127: =IF(OR(T127=0,T127="",O128=0,O128="",O129=0,O129="",O130=0,O130="",O131=0,O131=""),"",IF(T127<=O128,1,IF(T127<=O129,2,IF(T127<=O130,3,IF(T127<=O131,4,""))))) ->  | W127: 4 | X127: 6 | Y127: 4
A128: =VLOOKUP(B123,eventno,8,FALSE) -> 11.7 | B128: 4 | C128: 11 | D128: =IF(OR(C128=0,C128=""),"",IF(A123="F",HLOOKUP(C128,females,A124,FALSE),IF(A123="M",HLOOKUP(C128,males,A124,FALSE),""))) -> Daniel Hall | E128: Ash | F128: 13.6 | G128: =IF(OR(F128=0,F128="",A128=0,A128="",A129=0,A129="",A130=0,A130="",A131=0,A131=""),"",IF(F128<=A128,1,IF(F128<=A129,2,IF(F128<=A130,3,IF(F128<=A131,4,""))))) ->  | H128: =VLOOKUP(I123,eventno,8,FALSE) -> 13.1 | I128: 4 | J128: 6 | K128: =IF(OR(J128=0,J128=""),"",IF(H123="F",HLOOKUP(J128,females,H124,FALSE),IF(H123="M",HLOOKUP(J128,males,H124,FALSE),""))) -> OLIVER PHILIPS | L128: Ton | M128: 14.2 | N128: =IF(OR(M128=0,M128="",H128=0,H128="",H129=0,H129="",H130=0,H130="",H131=0,H131=""),"",IF(M128<=H128,1,IF(M128<=H129,2,IF(M128<=H130,3,IF(M128<=H131,4,""))))) ->  | O128: =VLOOKUP(P123,eventno,8,FALSE) -> 13.1 | P128: 4 | Q128: 11 | R128: =IF(OR(Q128=0,Q128=""),"",IF(O123="F",HLOOKUP(Q128,females,O124,FALSE),IF(O123="M",HLOOKUP(Q128,males,O124,FALSE),""))) -> Kian Crawford | S128: Ash | T128: 15 | U128: =IF(OR(T128=0,T128="",O128=0,O128="",O129=0,O129="",O130=0,O130="",O131=0,O131=""),"",IF(T128<=O128,1,IF(T128<=O129,2,IF(T128<=O130,3,IF(T128<=O131,4,""))))) ->  | W128: 3 | X128: 5 | Y128: 3
A129: =VLOOKUP(B123,eventno,9,FALSE) -> 11.9 | B129: 5 | C129: 22 | D129: =IF(OR(C129=0,C129=""),"",IF(A123="F",HLOOKUP(C129,females,A124,FALSE),IF(A123="M",HLOOKUP(C129,males,A124,FALSE),""))) -> Clark Kelman | E129: Bas | F129: 13.8 | G129: =IF(OR(F129=0,F129="",A128=0,A128="",A129=0,A129="",A130=0,A130="",A131=0,A131=""),"",IF(F129<=A128,1,IF(F129<=A129,2,IF(F129<=A130,3,IF(F129<=A131,4,""))))) ->  | H129: =VLOOKUP(I123,eventno,9,FALSE) -> 13.4 | I129: 5 | J129: 1 | K129: =IF(OR(J129=0,J129=""),"",IF(H123="F",HLOOKUP(J129,females,H124,FALSE),IF(H123="M",HLOOKUP(J129,males,H124,FALSE),""))) -> Lewis Godden | L129: Ash | M129: 15.1 | N129: =IF(OR(M129=0,M129="",H128=0,H128="",H129=0,H129="",H130=0,H130="",H131=0,H131=""),"",IF(M129<=H128,1,IF(M129<=H129,2,IF(M129<=H130,3,IF(M129<=H131,4,""))))) ->  | O129: =VLOOKUP(P123,eventno,9,FALSE) -> 13.4 | P129: 5 | Q129: 66 | R129: =IF(OR(Q129=0,Q129=""),"",IF(O123="F",HLOOKUP(Q129,females,O124,FALSE),IF(O123="M",HLOOKUP(Q129,males,O124,FALSE),""))) -> SAM CRICK | S129: Ton | T129: 16.2 | U129: =IF(OR(T129=0,T129="",O128=0,O128="",O129=0,O129="",O130=0,O130="",O131=0,O131=""),"",IF(T129<=O128,1,IF(T129<=O129,2,IF(T129<=O130,3,IF(T129<=O131,4,""))))) ->  | W129: 2 | X129: 4 | Y129: 2
A130: =VLOOKUP(B123,eventno,10,FALSE) -> 12.1 | B130: 6 | C130: 55 | D130: =IF(OR(C130=0,C130=""),"",IF(A123="F",HLOOKUP(C130,females,A124,FALSE),IF(A123="M",HLOOKUP(C130,males,A124,FALSE),""))) -> Matthew Owers | E130: HavM | F130: 14 | G130: =IF(OR(F130=0,F130="",A128=0,A128="",A129=0,A129="",A130=0,A130="",A131=0,A131=""),"",IF(F130<=A128,1,IF(F130<=A129,2,IF(F130<=A130,3,IF(F130<=A131,4,""))))) ->  | H130: =VLOOKUP(I123,eventno,10,FALSE) -> 13.7 | I130: 6 | J130: 5 | K130: =IF(OR(J130=0,J130=""),"",IF(H123="F",HLOOKUP(J130,females,H124,FALSE),IF(H123="M",HLOOKUP(J130,males,H124,FALSE),""))) -> James Rowell | L130: HavM | M130: 15.8 | N130: =IF(OR(M130=0,M130="",H128=0,H128="",H129=0,H129="",H130=0,H130="",H131=0,H131=""),"",IF(M130<=H128,1,IF(M130<=H129,2,IF(M130<=H130,3,IF(M130<=H131,4,""))))) ->  | O130: =VLOOKUP(P123,eventno,10,FALSE) -> 13.7 | P130: 6 | R130: =IF(OR(Q130=0,Q130=""),"",IF(O123="F",HLOOKUP(Q130,females,O124,FALSE),IF(O123="M",HLOOKUP(Q130,males,O124,FALSE),""))) ->  | U130: =IF(OR(T130=0,T130="",O128=0,O128="",O129=0,O129="",O130=0,O130="",O131=0,O131=""),"",IF(T130<=O128,1,IF(T130<=O129,2,IF(T130<=O130,3,IF(T130<=O131,4,""))))) ->  | W130: 1 | X130: 3 | Y130: 0
A131: =VLOOKUP(B123,eventno,11,FALSE) -> 12.5 | B131: 7 | D131: =IF(OR(C131=0,C131=""),"",IF(A123="F",HLOOKUP(C131,females,A124,FALSE),IF(A123="M",HLOOKUP(C131,males,A124,FALSE),""))) ->  | G131: =IF(OR(F131=0,F131="",A128=0,A128="",A129=0,A129="",A130=0,A130="",A131=0,A131=""),"",IF(F131<=A128,1,IF(F131<=A129,2,IF(F131<=A130,3,IF(F131<=A131,4,""))))) ->  | H131: =VLOOKUP(I123,eventno,11,FALSE) -> 14.1 | I131: 7 | K131: =IF(OR(J131=0,J131=""),"",IF(H123="F",HLOOKUP(J131,females,H124,FALSE),IF(H123="M",HLOOKUP(J131,males,H124,FALSE),""))) ->  | N131: =IF(OR(M131=0,M131="",H128=0,H128="",H129=0,H129="",H130=0,H130="",H131=0,H131=""),"",IF(M131<=H128,1,IF(M131<=H129,2,IF(M131<=H130,3,IF(M131<=H131,4,""))))) ->  | O131: =VLOOKUP(P123,eventno,11,FALSE) -> 14.1 | P131: 7 | R131: =IF(OR(Q131=0,Q131=""),"",IF(O123="F",HLOOKUP(Q131,females,O124,FALSE),IF(O123="M",HLOOKUP(Q131,males,O124,FALSE),""))) ->  | U131: =IF(OR(T131=0,T131="",O128=0,O128="",O129=0,O129="",O130=0,O130="",O131=0,O131=""),"",IF(T131<=O128,1,IF(T131<=O129,2,IF(T131<=O130,3,IF(T131<=O131,4,""))))) ->  | W131: 0 | X131: 0 | Y131: 0
A132: B | B132: 8 | D132: =IF(OR(C132=0,C132=""),"",IF(A123="F",HLOOKUP(C132,females,A124,FALSE),IF(A123="M",HLOOKUP(C132,males,A124,FALSE),""))) ->  | G132: =IF(OR(F132=0,F132="",A128=0,A128="",A129=0,A129="",A130=0,A130="",A131=0,A131=""),"",IF(F132<=A128,1,IF(F132<=A129,2,IF(F132<=A130,3,IF(F132<=A131,4,""))))) ->  | H132: A | I132: 8 | K132: =IF(OR(J132=0,J132=""),"",IF(H123="F",HLOOKUP(J132,females,H124,FALSE),IF(H123="M",HLOOKUP(J132,males,H124,FALSE),""))) ->  | N132: =IF(OR(M132=0,M132="",H128=0,H128="",H129=0,H129="",H130=0,H130="",H131=0,H131=""),"",IF(M132<=H128,1,IF(M132<=H129,2,IF(M132<=H130,3,IF(M132<=H131,4,""))))) ->  | O132: B | P132: 8 | R132: =IF(OR(Q132=0,Q132=""),"",IF(O123="F",HLOOKUP(Q132,females,O124,FALSE),IF(O123="M",HLOOKUP(Q132,males,O124,FALSE),""))) ->  | U132: =IF(OR(T132=0,T132="",O128=0,O128="",O129=0,O129="",O130=0,O130="",O131=0,O131=""),"",IF(T132<=O128,1,IF(T132<=O129,2,IF(T132<=O130,3,IF(T132<=O131,4,""))))) ->  | W132: 0 | X132: 0 | Y132: 0
W133: =IF(OR(B133=0,B133="",C133=0,C133="",F133=0,F133="",LEFT(F133,1)="D",LEFT(B133,1)="T",LEFT(B133,1)="P"),0,VLOOKUP(B133,points,2,FALSE)) -> 0 | X133: =IF(OR(I133=0,I133="",J133=0,J133="",M133=0,M133="",LEFT(M133,1)="D",LEFT(I133,1)="P",LEFT(I133,1)="T"),0,VLOOKUP(I133,points,2,FALSE)) -> 0 | Y133: =IF(OR(P133=0,P133="",Q133=0,Q133="",T133=0,T133="",LEFT(T133,1)="D",LEFT(P133)="T",LEFT(P133)="P"),0,VLOOKUP(P133,points,2,FALSE)) -> 0
A134: =VLOOKUP(B134,eventno,5,FALSE) -> F | B134: T19 | C134: =CONCATENATE(VLOOKUP(B134,eventno,4,FALSE)," '",A143,"'") -> U17W 3000m 'A' | E134: =IF(A137="W","Wind =","") ->  | G134: =IF(OR(F136=0,F136="",A138=0,A138=""),"",IF(A136="T",IF(F136<A138,"LR",IF(F136=A138,"LR=","")))) ->  | H134: =VLOOKUP(I134,eventno,5,FALSE) -> F | I134: T19 | J134: =CONCATENATE(VLOOKUP(I134,eventno,4,FALSE)," '",H143,"'") -> U17W 3000m 'B' | L134: =IF(H137="W","Wind =","") ->  | N134: =IF(OR(M136=0,M136="",H138=0,H138=""),"",IF(H136="T",IF(M136<H138,"LR",IF(M136=H138,"LR=","")))) ->  | O134: =VLOOKUP(P134,eventno,5,FALSE) -> M | P134: T20 | Q134: =CONCATENATE(VLOOKUP(P134,eventno,4,FALSE)," '",O143,"'") -> U17M 3000m 'A' | S134: =IF(O137="W","Wind =","") ->  | U134: =IF(OR(T136=0,T136="",O138=0,O138=""),"",IF(O136="T",IF(T136<O138,"LR",IF(T136=O138,"LR=","")))) ->  | W134: =IF(OR(B134=0,B134="",C134=0,C134="",F134=0,F134="",LEFT(F134,1)="D",LEFT(B134,1)="P"),0,VLOOKUP(B134,points,2,FALSE)) -> 0 | X134: =IF(OR(I134=0,I134="",J134=0,J134="",M134=0,M134="",LEFT(M134,1)="D",LEFT(I134,1)="P",LEFT(I134,1)="T"),0,VLOOKUP(I134,points,2,FALSE)-2) -> 0 | Y134: 0
A135: =IF(A134="M",VLOOKUP(B134,males,25,FALSE),VLOOKUP(B134,females,25,FALSE)) -> 11 | B135: Posn | C135: Bib | D135: Athlete | E135: Club | F135: Perf | G135: Gr | H135: =IF(H134="M",VLOOKUP(I134,males,25,FALSE),VLOOKUP(I134,females,25,FALSE)) -> 11 | I135: Posn | J135: Bib | K135: Athlete | L135: Club | M135: Perf | N135: Gr | O135: =IF(O134="M",VLOOKUP(P134,males,25,FALSE),VLOOKUP(P134,females,25,FALSE)) -> 11 | P135: Posn | Q135: Bib | R135: Athlete | S135: Club | T135: Perf | U135: Gr | W135: =IF(OR(B135=0,B135="",C135=0,C135="",F135=0,F135="",LEFT(F135,1)="D",LEFT(B135,1)="T",LEFT(B135,1)="P"),0,VLOOKUP(B135,points,2,FALSE)) -> 0 | X135: 0 | Y135: 0
A136: =LEFT(B134,1) -> T | B136: 1 | C136: 4 | D136: =IF(OR(C136=0,C136=""),"",IF(A134="F",HLOOKUP(C136,females,A135,FALSE),IF(A134="M",HLOOKUP(C136,males,A135,FALSE),""))) -> Stevie Lawrence | E136: =IF(OR(C136=0,C136="",C136="-"),"",IF(C136>8,VLOOKUP(C136/11,match_teams,4,FALSE),VLOOKUP(C136,match_teams,4,FALSE))) -> Croy | F136: 00:11:11.300 | G136: =IF(OR(F136=0,F136="",A139=0,A139="",A140=0,A140="",A141=0,A141="",A142=0,A142=""),"",IF(F136<=A139,1,IF(F136<=A140,2,IF(F136<=A141,3,IF(F136<=A142,4,""))))) -> 4 | H136: =LEFT(I134,1) -> T | I136: 1 | J136: 33 | K136: =IF(OR(J136=0,J136=""),"",IF(H134="F",HLOOKUP(J136,females,H135,FALSE),IF(H134="M",HLOOKUP(J136,males,H135,FALSE),""))) -> Bethany Frost | L136: =IF(OR(J136=0,J136="",J136="-"),"",IF(J136>8,VLOOKUP(J136/11,match_teams,4,FALSE),VLOOKUP(J136,match_teams,4,FALSE))) -> B&B | M136: 00:12:01.600 | N136: =IF(OR(M136=0,M136="",H139=0,H139="",H140=0,H140="",H141=0,H141="",H142=0,H142=""),"",IF(M136<=H139,1,IF(M136<=H140,2,IF(M136<=H141,3,IF(M136<=H142,4,""))))) ->  | O136: =LEFT(P134,1) -> T | P136: 1 | Q136: 6 | R136: =IF(OR(Q136=0,Q136=""),"",IF(O134="F",HLOOKUP(Q136,females,O135,FALSE),IF(O134="M",HLOOKUP(Q136,males,O135,FALSE),""))) -> JAMES WEST | S136: =IF(OR(Q136=0,Q136="",Q136="-"),"",IF(Q136>8,VLOOKUP(Q136/11,match_teams,4,FALSE),VLOOKUP(Q136,match_teams,4,FALSE))) -> Ton | T136: 00:09:09.400 | U136: =IF(OR(T136=0,T136="",O139=0,O139="",O140=0,O140="",O141=0,O141="",O142=0,O142=""),"",IF(T136<=O139,1,IF(T136<=O140,2,IF(T136<=O141,3,IF(T136<=O142,4,""))))) -> 2 | W136: 9 | X136: 7 | Y136: 9 | AA136: =COUNTA(F136) -> 1
A137: =VLOOKUP(B134,eventno,6,FALSE) -> 0 | B137: 2 | C137: 2 | D137: =IF(OR(C137=0,C137=""),"",IF(A134="F",HLOOKUP(C137,females,A135,FALSE),IF(A134="M",HLOOKUP(C137,males,A135,FALSE),""))) -> Maisie Jones | E137: Bas | F137: 00:11:22.100 | G137: =IF(OR(F137=0,F137="",A139=0,A139="",A140=0,A140="",A141=0,A141="",A142=0,A142=""),"",IF(F137<=A139,1,IF(F137<=A140,2,IF(F137<=A141,3,IF(F137<=A142,4,""))))) -> 4 | H137: =VLOOKUP(I134,eventno,6,FALSE) -> 0 | I137: 2 | K137: =IF(OR(J137=0,J137=""),"",IF(H134="F",HLOOKUP(J137,females,H135,FALSE),IF(H134="M",HLOOKUP(J137,males,H135,FALSE),""))) ->  | N137: =IF(OR(M137=0,M137="",H139=0,H139="",H140=0,H140="",H141=0,H141="",H142=0,H142=""),"",IF(M137<=H139,1,IF(M137<=H140,2,IF(M137<=H141,3,IF(M137<=H142,4,""))))) ->  | O137: =VLOOKUP(P134,eventno,6,FALSE) -> 0 | P137: 2 | Q137: 4 | R137: =IF(OR(Q137=0,Q137=""),"",IF(O134="F",HLOOKUP(Q137,females,O135,FALSE),IF(O134="M",HLOOKUP(Q137,males,O135,FALSE),""))) -> Josh Haasz | S137: Croy | T137: 00:10:18.500 | U137: =IF(OR(T137=0,T137="",O139=0,O139="",O140=0,O140="",O141=0,O141="",O142=0,O142=""),"",IF(T137<=O139,1,IF(T137<=O140,2,IF(T137<=O141,3,IF(T137<=O142,4,""))))) ->  | W137: 7 | X137: 0 | Y137: 7 | AA137: =COUNTA(T136) -> 1
A138: =VLOOKUP(B134,eventno,7,FALSE) -> 0.006717592593 | B138: 3 | C138: 3 | D138: =IF(OR(C138=0,C138=""),"",IF(A134="F",HLOOKUP(C138,females,A135,FALSE),IF(A134="M",HLOOKUP(C138,males,A135,FALSE),""))) -> Samantha Leighton | E138: B&B | F138: 00:11:42.100 | G138: =IF(OR(F138=0,F138="",A139=0,A139="",A140=0,A140="",A141=0,A141="",A142=0,A142=""),"",IF(F138<=A139,1,IF(F138<=A140,2,IF(F138<=A141,3,IF(F138<=A142,4,""))))) ->  | H138: =VLOOKUP(I134,eventno,7,FALSE) -> 0.006717592593 | I138: 3 | K138: =IF(OR(J138=0,J138=""),"",IF(H134="F",HLOOKUP(J138,females,H135,FALSE),IF(H134="M",HLOOKUP(J138,males,H135,FALSE),""))) ->  | N138: =IF(OR(M138=0,M138="",H139=0,H139="",H140=0,H140="",H141=0,H141="",H142=0,H142=""),"",IF(M138<=H139,1,IF(M138<=H140,2,IF(M138<=H141,3,IF(M138<=H142,4,""))))) ->  | O138: =VLOOKUP(P134,eventno,7,FALSE) -> 0.005905092593 | P138: 3 | Q138: 3 | R138: =IF(OR(Q138=0,Q138=""),"",IF(O134="F",HLOOKUP(Q138,females,O135,FALSE),IF(O134="M",HLOOKUP(Q138,males,O135,FALSE),""))) -> Thomas Desborough | S138: B&B | T138: 00:10:22.700 | U138: =IF(OR(T138=0,T138="",O139=0,O139="",O140=0,O140="",O141=0,O141="",O142=0,O142=""),"",IF(T138<=O139,1,IF(T138<=O140,2,IF(T138<=O141,3,IF(T138<=O142,4,""))))) ->  | W138: 6 | X138: 0 | Y138: 6
A139: =VLOOKUP(B134,eventno,8,FALSE) -> 0.007112268519 | B139: 4 | D139: =IF(OR(C139=0,C139=""),"",IF(A134="F",HLOOKUP(C139,females,A135,FALSE),IF(A134="M",HLOOKUP(C139,males,A135,FALSE),""))) ->  | G139: =IF(OR(F139=0,F139="",A139=0,A139="",A140=0,A140="",A141=0,A141="",A142=0,A142=""),"",IF(F139<=A139,1,IF(F139<=A140,2,IF(F139<=A141,3,IF(F139<=A142,4,""))))) ->  | H139: =VLOOKUP(I134,eventno,8,FALSE) -> 0.007112268519 | I139: 4 | K139: =IF(OR(J139=0,J139=""),"",IF(H134="F",HLOOKUP(J139,females,H135,FALSE),IF(H134="M",HLOOKUP(J139,males,H135,FALSE),""))) ->  | N139: =IF(OR(M139=0,M139="",H139=0,H139="",H140=0,H140="",H141=0,H141="",H142=0,H142=""),"",IF(M139<=H139,1,IF(M139<=H140,2,IF(M139<=H141,3,IF(M139<=H142,4,""))))) ->  | O139: =VLOOKUP(P134,eventno,8,FALSE) -> 0.006278935185 | P139: 4 | Q139: 2 | R139: =IF(OR(Q139=0,Q139=""),"",IF(O134="F",HLOOKUP(Q139,females,O135,FALSE),IF(O134="M",HLOOKUP(Q139,males,O135,FALSE),""))) -> Stephen Davies | S139: Bas | T139: 00:10:31.600 | U139: =IF(OR(T139=0,T139="",O139=0,O139="",O140=0,O140="",O141=0,O141="",O142=0,O142=""),"",IF(T139<=O139,1,IF(T139<=O140,2,IF(T139<=O141,3,IF(T139<=O142,4,""))))) ->  | W139: 0 | X139: 0 | Y139: 5
A140: =VLOOKUP(B134,eventno,9,FALSE) -> 0.007332175926 | B140: 5 | D140: =IF(OR(C140=0,C140=""),"",IF(A134="F",HLOOKUP(C140,females,A135,FALSE),IF(A134="M",HLOOKUP(C140,males,A135,FALSE),""))) ->  | G140: =IF(OR(F140=0,F140="",A139=0,A139="",A140=0,A140="",A141=0,A141="",A142=0,A142=""),"",IF(F140<=A139,1,IF(F140<=A140,2,IF(F140<=A141,3,IF(F140<=A142,4,""))))) ->  | H140: =VLOOKUP(I134,eventno,9,FALSE) -> 0.007332175926 | I140: 5 | K140: =IF(OR(J140=0,J140=""),"",IF(H134="F",HLOOKUP(J140,females,H135,FALSE),IF(H134="M",HLOOKUP(J140,males,H135,FALSE),""))) ->  | N140: =IF(OR(M140=0,M140="",H139=0,H139="",H140=0,H140="",H141=0,H141="",H142=0,H142=""),"",IF(M140<=H139,1,IF(M140<=H140,2,IF(M140<=H141,3,IF(M140<=H142,4,""))))) ->  | O140: =VLOOKUP(P134,eventno,9,FALSE) -> 0.006400462963 | P140: 5 | R140: =IF(OR(Q140=0,Q140=""),"",IF(O134="F",HLOOKUP(Q140,females,O135,FALSE),IF(O134="M",HLOOKUP(Q140,males,O135,FALSE),""))) ->  | U140: =IF(OR(T140=0,T140="",O139=0,O139="",O140=0,O140="",O141=0,O141="",O142=0,O142=""),"",IF(T140<=O139,1,IF(T140<=O140,2,IF(T140<=O141,3,IF(T140<=O142,4,""))))) ->  | W140: 0 | X140: 0 | Y140: 0
A141: =VLOOKUP(B134,eventno,10,FALSE) -> 0.007630787037 | B141: 6 | D141: =IF(OR(C141=0,C141=""),"",IF(A134="F",HLOOKUP(C141,females,A135,FALSE),IF(A134="M",HLOOKUP(C141,males,A135,FALSE),""))) ->  | G141: =IF(OR(F141=0,F141="",A139=0,A139="",A140=0,A140="",A141=0,A141="",A142=0,A142=""),"",IF(F141<=A139,1,IF(F141<=A140,2,IF(F141<=A141,3,IF(F141<=A142,4,""))))) ->  | H141: =VLOOKUP(I134,eventno,10,FALSE) -> 0.007630787037 | I141: 6 | K141: =IF(OR(J141=0,J141=""),"",IF(H134="F",HLOOKUP(J141,females,H135,FALSE),IF(H134="M",HLOOKUP(J141,males,H135,FALSE),""))) ->  | N141: =IF(OR(M141=0,M141="",H139=0,H139="",H140=0,H140="",H141=0,H141="",H142=0,H142=""),"",IF(M141<=H139,1,IF(M141<=H140,2,IF(M141<=H141,3,IF(M141<=H142,4,""))))) ->  | O141: =VLOOKUP(P134,eventno,10,FALSE) -> 0.006574074074 | P141: 6 | R141: =IF(OR(Q141=0,Q141=""),"",IF(O134="F",HLOOKUP(Q141,females,O135,FALSE),IF(O134="M",HLOOKUP(Q141,males,O135,FALSE),""))) ->  | U141: =IF(OR(T141=0,T141="",O139=0,O139="",O140=0,O140="",O141=0,O141="",O142=0,O142=""),"",IF(T141<=O139,1,IF(T141<=O140,2,IF(T141<=O141,3,IF(T141<=O142,4,""))))) ->  | W141: 0 | X141: 0 | Y141: 0
A142: =VLOOKUP(B134,eventno,11,FALSE) -> 0.00803587963 | B142: 7 | D142: =IF(OR(C142=0,C142=""),"",IF(A134="F",HLOOKUP(C142,females,A135,FALSE),IF(A134="M",HLOOKUP(C142,males,A135,FALSE),""))) ->  | G142: =IF(OR(F142=0,F142="",A139=0,A139="",A140=0,A140="",A141=0,A141="",A142=0,A142=""),"",IF(F142<=A139,1,IF(F142<=A140,2,IF(F142<=A141,3,IF(F142<=A142,4,""))))) ->  | H142: =VLOOKUP(I134,eventno,11,FALSE) -> 0.00803587963 | I142: 7 | K142: =IF(OR(J142=0,J142=""),"",IF(H134="F",HLOOKUP(J142,females,H135,FALSE),IF(H134="M",HLOOKUP(J142,males,H135,FALSE),""))) ->  | N142: =IF(OR(M142=0,M142="",H139=0,H139="",H140=0,H140="",H141=0,H141="",H142=0,H142=""),"",IF(M142<=H139,1,IF(M142<=H140,2,IF(M142<=H141,3,IF(M142<=H142,4,""))))) ->  | O142: =VLOOKUP(P134,eventno,11,FALSE) -> 0.006828703704 | P142: 7 | R142: =IF(OR(Q142=0,Q142=""),"",IF(O134="F",HLOOKUP(Q142,females,O135,FALSE),IF(O134="M",HLOOKUP(Q142,males,O135,FALSE),""))) ->  | U142: =IF(OR(T142=0,T142="",O139=0,O139="",O140=0,O140="",O141=0,O141="",O142=0,O142=""),"",IF(T142<=O139,1,IF(T142<=O140,2,IF(T142<=O141,3,IF(T142<=O142,4,""))))) ->  | W142: 0 | X142: 0 | Y142: 0
A143: A | B143: 8 | D143: =IF(OR(C143=0,C143=""),"",IF(A134="F",HLOOKUP(C143,females,A135,FALSE),IF(A134="M",HLOOKUP(C143,males,A135,FALSE),""))) ->  | G143: =IF(OR(F143=0,F143="",A139=0,A139="",A140=0,A140="",A141=0,A141="",A142=0,A142=""),"",IF(F143<=A139,1,IF(F143<=A140,2,IF(F143<=A141,3,IF(F143<=A142,4,""))))) ->  | H143: B | I143: 8 | K143: =IF(OR(J143=0,J143=""),"",IF(H134="F",HLOOKUP(J143,females,H135,FALSE),IF(H134="M",HLOOKUP(J143,males,H135,FALSE),""))) ->  | N143: =IF(OR(M143=0,M143="",H139=0,H139="",H140=0,H140="",H141=0,H141="",H142=0,H142=""),"",IF(M143<=H139,1,IF(M143<=H140,2,IF(M143<=H141,3,IF(M143<=H142,4,""))))) ->  | O143: A | P143: 8 | R143: =IF(OR(Q143=0,Q143=""),"",IF(O134="F",HLOOKUP(Q143,females,O135,FALSE),IF(O134="M",HLOOKUP(Q143,males,O135,FALSE),""))) ->  | U143: =IF(OR(T143=0,T143="",O139=0,O139="",O140=0,O140="",O141=0,O141="",O142=0,O142=""),"",IF(T143<=O139,1,IF(T143<=O140,2,IF(T143<=O141,3,IF(T143<=O142,4,""))))) ->  | W143: 0 | X143: 0 | Y143: 0
W144: 0 | X144: =IF(OR(I144=0,I144="",J144=0,J144="",M144=0,M144="",LEFT(M144,1)="D",LEFT(I144,1)="P",LEFT(I144,1)="T"),0,VLOOKUP(I144,points,2,FALSE)) -> 0 | Y144: 0
A145: =VLOOKUP(B145,eventno,5,FALSE) -> M | B145: T20 | C145: =CONCATENATE(VLOOKUP(B145,eventno,4,FALSE)," '",A154,"'") -> U17M 3000m 'B' | E145: =IF(A148="W","Wind =","") ->  | G145: =IF(OR(F147=0,F147="",A149=0,A149=""),"",IF(A147="T",IF(F147<A149,"LR",IF(F147=A149,"LR=","")))) ->  | H145: =VLOOKUP(I145,eventno,5,FALSE) -> F | I145: T21 | J145: =CONCATENATE(VLOOKUP(I145,eventno,4,FALSE)," '",H154,"'") -> U17W 300m H 'A' | L145: =IF(H148="W","Wind =","") ->  | N145: =IF(OR(M147=0,M147="",H149=0,H149=""),"",IF(H147="T",IF(M147<H149,"LR",IF(M147=H149,"LR=","")))) ->  | O145: =VLOOKUP(P145,eventno,5,FALSE) -> F | P145: T21 | Q145: =CONCATENATE(VLOOKUP(P145,eventno,4,FALSE)," '",O154,"'") -> U17W 300m H 'B' | S145: =IF(O148="W","Wind =","") ->  | U145: =IF(OR(T147=0,T147="",O149=0,O149=""),"",IF(O147="T",IF(T147<O149,"LR",IF(T147=O149,"LR=","")))) ->  | W145: =IF(OR(B145=0,B145="",C145=0,C145="",F145=0,F145="",LEFT(F145,1)="D",LEFT(B145,1)="T",LEFT(B145,1)="P"),0,VLOOKUP(B145,points,2,FALSE)-2) -> 0 | X145: 0 | Y145: =IF(OR(P145=0,P145="",Q145=0,Q145="",T145=0,T145="",LEFT(T145,1)="D",LEFT(P145)="T",LEFT(P145)="P"),0,VLOOKUP(P145,points,2,FALSE)-2) -> 0
A146: =IF(A145="M",VLOOKUP(B145,males,25,FALSE),VLOOKUP(B145,females,25,FALSE)) -> 11 | B146: Posn | C146: Bib | D146: Athlete | E146: Club | F146: Perf | G146: Gr | H146: =IF(H145="M",VLOOKUP(I145,males,25,FALSE),VLOOKUP(I145,females,25,FALSE)) -> 12 | I146: Posn | J146: Bib | K146: Athlete | L146: Club | M146: Perf | N146: Gr | O146: =IF(O145="M",VLOOKUP(P145,males,25,FALSE),VLOOKUP(P145,females,25,FALSE)) -> 12 | P146: Posn | Q146: Bib | R146: Athlete | S146: Club | T146: Perf | U146: Gr | W146: 0 | X146: 0 | Y146: 0
A147: =LEFT(B145,1) -> T | B147: 1 | C147: 66 | D147: =IF(OR(C147=0,C147=""),"",IF(A145="F",HLOOKUP(C147,females,A146,FALSE),IF(A145="M",HLOOKUP(C147,males,A146,FALSE),""))) -> TIM FAES | E147: =IF(OR(C147=0,C147="",C147="-"),"",IF(C147>8,VLOOKUP(C147/11,match_teams,4,FALSE),VLOOKUP(C147,match_teams,4,FALSE))) -> Ton | F147: 00:10:10.800 | G147: =IF(OR(F147=0,F147="",A150=0,A150="",A151=0,A151="",A152=0,A152="",A153=0,A153=""),"",IF(F147<=A150,1,IF(F147<=A151,2,IF(F147<=A152,3,IF(F147<=A153,4,""))))) ->  | H147: =LEFT(I145,1) -> T | I147: 1 | J147: 1 | K147: =IF(OR(J147=0,J147=""),"",IF(H145="F",HLOOKUP(J147,females,H146,FALSE),IF(H145="M",HLOOKUP(J147,males,H146,FALSE),""))) -> Lauren Bamford | L147: =IF(OR(J147=0,J147="",J147="-"),"",IF(J147>8,VLOOKUP(J147/11,match_teams,4,FALSE),VLOOKUP(J147,match_teams,4,FALSE))) -> Ash | M147: 49.9 | N147: =IF(OR(M147=0,M147="",H150=0,H150="",H151=0,H151="",H152=0,H152="",H153=0,H153=""),"",IF(M147<=H150,1,IF(M147<=H151,2,IF(M147<=H152,3,IF(M147<=H153,4,""))))) -> 4 | O147: =LEFT(P145,1) -> T | P147: 1 | Q147: 66 | R147: =IF(OR(Q147=0,Q147=""),"",IF(O145="F",HLOOKUP(Q147,females,O146,FALSE),IF(O145="M",HLOOKUP(Q147,males,O146,FALSE),""))) -> FLORENCE COCHRANE | S147: =IF(OR(Q147=0,Q147="",Q147="-"),"",IF(Q147>8,VLOOKUP(Q147/11,match_teams,4,FALSE),VLOOKUP(Q147,match_teams,4,FALSE))) -> Ton | T147: 49.9 | U147: =IF(OR(T147=0,T147="",O150=0,O150="",O151=0,O151="",O152=0,O152="",O153=0,O153=""),"",IF(T147<=O150,1,IF(T147<=O151,2,IF(T147<=O152,3,IF(T147<=O153,4,""))))) -> 4 | W147: 7 | X147: 9 | Y147: 7 | AA147: =COUNTA(M147) -> 1
A148: =VLOOKUP(B145,eventno,6,FALSE) -> 0 | B148: 2 | C148: 44 | D148: =IF(OR(C148=0,C148=""),"",IF(A145="F",HLOOKUP(C148,females,A146,FALSE),IF(A145="M",HLOOKUP(C148,males,A146,FALSE),""))) -> Kartik Iyer | E148: Croy | F148: 00:10:46.300 | G148: =IF(OR(F148=0,F148="",A150=0,A150="",A151=0,A151="",A152=0,A152="",A153=0,A153=""),"",IF(F148<=A150,1,IF(F148<=A151,2,IF(F148<=A152,3,IF(F148<=A153,4,""))))) ->  | H148: =VLOOKUP(I145,eventno,6,FALSE) -> 0 | I148: 2 | J148: 6 | K148: =IF(OR(J148=0,J148=""),"",IF(H145="F",HLOOKUP(J148,females,H146,FALSE),IF(H145="M",HLOOKUP(J148,males,H146,FALSE),""))) -> ELLA FARNDON | L148: Ton | M148: 51.8 | N148: =IF(OR(M148=0,M148="",H150=0,H150="",H151=0,H151="",H152=0,H152="",H153=0,H153=""),"",IF(M148<=H150,1,IF(M148<=H151,2,IF(M148<=H152,3,IF(M148<=H153,4,""))))) ->  | O148: =VLOOKUP(P145,eventno,6,FALSE) -> 0 | P148: 2 | Q148: 11 | R148: =IF(OR(Q148=0,Q148=""),"",IF(O145="F",HLOOKUP(Q148,females,O146,FALSE),IF(O145="M",HLOOKUP(Q148,males,O146,FALSE),""))) -> Ellie Gooding | S148: Ash | T148: 50.3 | U148: =IF(OR(T148=0,T148="",O150=0,O150="",O151=0,O151="",O152=0,O152="",O153=0,O153=""),"",IF(T148<=O150,1,IF(T148<=O151,2,IF(T148<=O152,3,IF(T148<=O153,4,""))))) -> 4 | W148: 5 | X148: 7 | Y148: 5
A149: =VLOOKUP(B145,eventno,7,FALSE) -> 0.005905092593 | B149: 3 | D149: =IF(OR(C149=0,C149=""),"",IF(A145="F",HLOOKUP(C149,females,A146,FALSE),IF(A145="M",HLOOKUP(C149,males,A146,FALSE),""))) ->  | G149: =IF(OR(F149=0,F149="",A150=0,A150="",A151=0,A151="",A152=0,A152="",A153=0,A153=""),"",IF(F149<=A150,1,IF(F149<=A151,2,IF(F149<=A152,3,IF(F149<=A153,4,""))))) ->  | H149: =VLOOKUP(I145,eventno,7,FALSE) -> 43.76 | I149: 3 | J149: 2 | K149: =IF(OR(J149=0,J149=""),"",IF(H145="F",HLOOKUP(J149,females,H146,FALSE),IF(H145="M",HLOOKUP(J149,males,H146,FALSE),""))) -> Georgia Sleep | L149: Bas | M149: 53.4 | N149: =IF(OR(M149=0,M149="",H150=0,H150="",H151=0,H151="",H152=0,H152="",H153=0,H153=""),"",IF(M149<=H150,1,IF(M149<=H151,2,IF(M149<=H152,3,IF(M149<=H153,4,""))))) ->  | O149: =VLOOKUP(P145,eventno,7,FALSE) -> 43.76 | P149: 3 | Q149: 33 | R149: =IF(OR(Q149=0,Q149=""),"",IF(O145="F",HLOOKUP(Q149,females,O146,FALSE),IF(O145="M",HLOOKUP(Q149,males,O146,FALSE),""))) -> Amber Bryan-Isaacs | S149: B&B | T149: 53.1 | U149: =IF(OR(T149=0,T149="",O150=0,O150="",O151=0,O151="",O152=0,O152="",O153=0,O153=""),"",IF(T149<=O150,1,IF(T149<=O151,2,IF(T149<=O152,3,IF(T149<=O153,4,""))))) ->  | W149: 0 | X149: 6 | Y149: 4
A150: =VLOOKUP(B145,eventno,8,FALSE) -> 0.006278935185 | B150: 4 | D150: =IF(OR(C150=0,C150=""),"",IF(A145="F",HLOOKUP(C150,females,A146,FALSE),IF(A145="M",HLOOKUP(C150,males,A146,FALSE),""))) ->  | G150: =IF(OR(F150=0,F150="",A150=0,A150="",A151=0,A151="",A152=0,A152="",A153=0,A153=""),"",IF(F150<=A150,1,IF(F150<=A151,2,IF(F150<=A152,3,IF(F150<=A153,4,""))))) ->  | H150: =VLOOKUP(I145,eventno,8,FALSE) -> 45.6 | I150: 4 | J150: 3 | K150: =IF(OR(J150=0,J150=""),"",IF(H145="F",HLOOKUP(J150,females,H146,FALSE),IF(H145="M",HLOOKUP(J150,males,H146,FALSE),""))) -> Oshuwa Ogbeta | L150: B&B | M150: 57.6 | N150: =IF(OR(M150=0,M150="",H150=0,H150="",H151=0,H151="",H152=0,H152="",H153=0,H153=""),"",IF(M150<=H150,1,IF(M150<=H151,2,IF(M150<=H152,3,IF(M150<=H153,4,""))))) ->  | O150: =VLOOKUP(P145,eventno,8,FALSE) -> 45.6 | P150: 4 | R150: =IF(OR(Q150=0,Q150=""),"",IF(O145="F",HLOOKUP(Q150,females,O146,FALSE),IF(O145="M",HLOOKUP(Q150,males,O146,FALSE),""))) ->  | U150: =IF(OR(T150=0,T150="",O150=0,O150="",O151=0,O151="",O152=0,O152="",O153=0,O153=""),"",IF(T150<=O150,1,IF(T150<=O151,2,IF(T150<=O152,3,IF(T150<=O153,4,""))))) ->  | W150: 0 | X150: 5 | Y150: 0
A151: =VLOOKUP(B145,eventno,9,FALSE) -> 0.006400462963 | B151: 5 | D151: =IF(OR(C151=0,C151=""),"",IF(A145="F",HLOOKUP(C151,females,A146,FALSE),IF(A145="M",HLOOKUP(C151,males,A146,FALSE),""))) ->  | G151: =IF(OR(F151=0,F151="",A150=0,A150="",A151=0,A151="",A152=0,A152="",A153=0,A153=""),"",IF(F151<=A150,1,IF(F151<=A151,2,IF(F151<=A152,3,IF(F151<=A153,4,""))))) ->  | H151: =VLOOKUP(I145,eventno,9,FALSE) -> 46.8 | I151: 5 | K151: =IF(OR(J151=0,J151=""),"",IF(H145="F",HLOOKUP(J151,females,H146,FALSE),IF(H145="M",HLOOKUP(J151,males,H146,FALSE),""))) ->  | N151: =IF(OR(M151=0,M151="",H150=0,H150="",H151=0,H151="",H152=0,H152="",H153=0,H153=""),"",IF(M151<=H150,1,IF(M151<=H151,2,IF(M151<=H152,3,IF(M151<=H153,4,""))))) ->  | O151: =VLOOKUP(P145,eventno,9,FALSE) -> 46.8 | P151: 5 | R151: =IF(OR(Q151=0,Q151=""),"",IF(O145="F",HLOOKUP(Q151,females,O146,FALSE),IF(O145="M",HLOOKUP(Q151,males,O146,FALSE),""))) ->  | U151: =IF(OR(T151=0,T151="",O150=0,O150="",O151=0,O151="",O152=0,O152="",O153=0,O153=""),"",IF(T151<=O150,1,IF(T151<=O151,2,IF(T151<=O152,3,IF(T151<=O153,4,""))))) ->  | W151: 0 | X151: 0 | Y151: 0
A152: =VLOOKUP(B145,eventno,10,FALSE) -> 0.006574074074 | B152: 6 | D152: =IF(OR(C152=0,C152=""),"",IF(A145="F",HLOOKUP(C152,females,A146,FALSE),IF(A145="M",HLOOKUP(C152,males,A146,FALSE),""))) ->  | G152: =IF(OR(F152=0,F152="",A150=0,A150="",A151=0,A151="",A152=0,A152="",A153=0,A153=""),"",IF(F152<=A150,1,IF(F152<=A151,2,IF(F152<=A152,3,IF(F152<=A153,4,""))))) ->  | H152: =VLOOKUP(I145,eventno,10,FALSE) -> 48.4 | I152: 6 | K152: =IF(OR(J152=0,J152=""),"",IF(H145="F",HLOOKUP(J152,females,H146,FALSE),IF(H145="M",HLOOKUP(J152,males,H146,FALSE),""))) ->  | N152: =IF(OR(M152=0,M152="",H150=0,H150="",H151=0,H151="",H152=0,H152="",H153=0,H153=""),"",IF(M152<=H150,1,IF(M152<=H151,2,IF(M152<=H152,3,IF(M152<=H153,4,""))))) ->  | O152: =VLOOKUP(P145,eventno,10,FALSE) -> 48.4 | P152: 6 | R152: =IF(OR(Q152=0,Q152=""),"",IF(O145="F",HLOOKUP(Q152,females,O146,FALSE),IF(O145="M",HLOOKUP(Q152,males,O146,FALSE),""))) ->  | U152: =IF(OR(T152=0,T152="",O150=0,O150="",O151=0,O151="",O152=0,O152="",O153=0,O153=""),"",IF(T152<=O150,1,IF(T152<=O151,2,IF(T152<=O152,3,IF(T152<=O153,4,""))))) ->  | W152: 0 | X152: 0 | Y152: 0
A153: =VLOOKUP(B145,eventno,11,FALSE) -> 0.006828703704 | B153: 7 | D153: =IF(OR(C153=0,C153=""),"",IF(A145="F",HLOOKUP(C153,females,A146,FALSE),IF(A145="M",HLOOKUP(C153,males,A146,FALSE),""))) ->  | G153: =IF(OR(F153=0,F153="",A150=0,A150="",A151=0,A151="",A152=0,A152="",A153=0,A153=""),"",IF(F153<=A150,1,IF(F153<=A151,2,IF(F153<=A152,3,IF(F153<=A153,4,""))))) ->  | H153: =VLOOKUP(I145,eventno,11,FALSE) -> 50.8 | I153: 7 | K153: =IF(OR(J153=0,J153=""),"",IF(H145="F",HLOOKUP(J153,females,H146,FALSE),IF(H145="M",HLOOKUP(J153,males,H146,FALSE),""))) ->  | N153: =IF(OR(M153=0,M153="",H150=0,H150="",H151=0,H151="",H152=0,H152="",H153=0,H153=""),"",IF(M153<=H150,1,IF(M153<=H151,2,IF(M153<=H152,3,IF(M153<=H153,4,""))))) ->  | O153: =VLOOKUP(P145,eventno,11,FALSE) -> 50.8 | P153: 7 | R153: =IF(OR(Q153=0,Q153=""),"",IF(O145="F",HLOOKUP(Q153,females,O146,FALSE),IF(O145="M",HLOOKUP(Q153,males,O146,FALSE),""))) ->  | U153: =IF(OR(T153=0,T153="",O150=0,O150="",O151=0,O151="",O152=0,O152="",O153=0,O153=""),"",IF(T153<=O150,1,IF(T153<=O151,2,IF(T153<=O152,3,IF(T153<=O153,4,""))))) ->  | W153: 0 | X153: 0 | Y153: 0
A154: B | B154: 8 | D154: =IF(OR(C154=0,C154=""),"",IF(A145="F",HLOOKUP(C154,females,A146,FALSE),IF(A145="M",HLOOKUP(C154,males,A146,FALSE),""))) ->  | G154: =IF(OR(F154=0,F154="",A150=0,A150="",A151=0,A151="",A152=0,A152="",A153=0,A153=""),"",IF(F154<=A150,1,IF(F154<=A151,2,IF(F154<=A152,3,IF(F154<=A153,4,""))))) ->  | H154: A | I154: 8 | K154: =IF(OR(J154=0,J154=""),"",IF(H145="F",HLOOKUP(J154,females,H146,FALSE),IF(H145="M",HLOOKUP(J154,males,H146,FALSE),""))) ->  | N154: =IF(OR(M154=0,M154="",H150=0,H150="",H151=0,H151="",H152=0,H152="",H153=0,H153=""),"",IF(M154<=H150,1,IF(M154<=H151,2,IF(M154<=H152,3,IF(M154<=H153,4,""))))) ->  | O154: B | P154: 8 | R154: =IF(OR(Q154=0,Q154=""),"",IF(O145="F",HLOOKUP(Q154,females,O146,FALSE),IF(O145="M",HLOOKUP(Q154,males,O146,FALSE),""))) ->  | U154: =IF(OR(T154=0,T154="",O150=0,O150="",O151=0,O151="",O152=0,O152="",O153=0,O153=""),"",IF(T154<=O150,1,IF(T154<=O151,2,IF(T154<=O152,3,IF(T154<=O153,4,""))))) ->  | W154: 0 | X154: 0 | Y154: 0
W155: 0 | X155: 0 | Y155: 0
A156: =VLOOKUP(B156,eventno,5,FALSE) -> M | B156: T22 | C156: =CONCATENATE(VLOOKUP(B156,eventno,4,FALSE)," '",A165,"'") -> U17M 400m H 'A' | E156: =IF(A159="W","Wind =","") ->  | G156: =IF(OR(F158=0,F158="",A160=0,A160=""),"",IF(A158="T",IF(F158<A160,"LR",IF(F158=A160,"LR=","")))) ->  | H156: =VLOOKUP(I156,eventno,5,FALSE) -> M | I156: T22 | J156: =CONCATENATE(VLOOKUP(I156,eventno,4,FALSE)," '",H165,"'") -> U17M 400m H 'B' | L156: =IF(H159="W","Wind =","") ->  | N156: =IF(OR(M158=0,M158="",H160=0,H160=""),"",IF(H158="T",IF(M158<H160,"LR",IF(M158=H160,"LR=","")))) ->  | O156: =VLOOKUP(P156,eventno,5,FALSE) -> F | P156: T23 | Q156: =CONCATENATE(VLOOKUP(P156,eventno,4,FALSE)," '",O165,"'") -> U13G 150m 'A' | S156: =IF(O159="W","Wind =","") -> Wind = | U156: =IF(OR(T158=0,T158="",O160=0,O160=""),"",IF(O158="T",IF(T158<O160,"LR",IF(T158=O160,"LR=","")))) ->  | W156: =IF(OR(B156=0,B156="",C156=0,C156="",F156=0,F156="",LEFT(F156,1)="D",LEFT(B156,1)="P"),0,VLOOKUP(B156,points,2,FALSE)) -> 0 | X156: =IF(OR(I156=0,I156="",J156=0,J156="",M156=0,M156="",LEFT(M156,1)="D",LEFT(I156,1)="P",LEFT(I156,1)="T"),0,VLOOKUP(I156,points,2,FALSE)-2) -> 0 | Y156: 0
A157: =IF(A156="M",VLOOKUP(B156,males,25,FALSE),VLOOKUP(B156,females,25,FALSE)) -> 12 | B157: Posn | C157: Bib | D157: Athlete | E157: Club | F157: Perf | G157: Gr | H157: =IF(H156="M",VLOOKUP(I156,males,25,FALSE),VLOOKUP(I156,females,25,FALSE)) -> 12 | I157: Posn | J157: Bib | K157: Athlete | L157: Club | M157: Perf | N157: Gr | O157: =IF(O156="M",VLOOKUP(P156,males,25,FALSE),VLOOKUP(P156,females,25,FALSE)) -> 13 | P157: Posn | Q157: Bib | R157: Athlete | S157: Club | T157: Perf | U157: Gr | W157: =IF(OR(B157=0,B157="",C157=0,C157="",F157=0,F157="",LEFT(F157,1)="D",LEFT(B157,1)="T",LEFT(B157,1)="P"),0,VLOOKUP(B157,points,2,FALSE)) -> 0 | X157: 0 | Y157: 0
A158: =LEFT(B156,1) -> T | B158: 1 | C158: 5 | D158: =IF(OR(C158=0,C158=""),"",IF(A156="F",HLOOKUP(C158,females,A157,FALSE),IF(A156="M",HLOOKUP(C158,males,A157,FALSE),""))) -> Robbie Clarricoats | E158: =IF(OR(C158=0,C158="",C158="-"),"",IF(C158>8,VLOOKUP(C158/11,match_teams,4,FALSE),VLOOKUP(C158,match_teams,4,FALSE))) -> HavM | F158: 61.1 | G158: =IF(OR(F158=0,F158="",A161=0,A161="",A162=0,A162="",A163=0,A163="",A164=0,A164=""),"",IF(F158<=A161,1,IF(F158<=A162,2,IF(F158<=A163,3,IF(F158<=A164,4,""))))) -> 3 | H158: =LEFT(I156,1) -> T | I158: 1 | J158: 44 | K158: =IF(OR(J158=0,J158=""),"",IF(H156="F",HLOOKUP(J158,females,H157,FALSE),IF(H156="M",HLOOKUP(J158,males,H157,FALSE),""))) -> Simpe Mpofu | L158: =IF(OR(J158=0,J158="",J158="-"),"",IF(J158>8,VLOOKUP(J158/11,match_teams,4,FALSE),VLOOKUP(J158,match_teams,4,FALSE))) -> Croy | M158: 65.4 | N158: =IF(OR(M158=0,M158="",H161=0,H161="",H162=0,H162="",H163=0,H163="",H164=0,H164=""),"",IF(M158<=H161,1,IF(M158<=H162,2,IF(M158<=H163,3,IF(M158<=H164,4,""))))) ->  | O158: =LEFT(P156,1) -> T | P158: 1 | Q158: 3 | R158: =IF(OR(Q158=0,Q158=""),"",IF(O156="F",HLOOKUP(Q158,females,O157,FALSE),IF(O156="M",HLOOKUP(Q158,males,O157,FALSE),""))) -> Olivia Richer | S158: =IF(OR(Q158=0,Q158="",Q158="-"),"",IF(Q158>8,VLOOKUP(Q158/11,match_teams,4,FALSE),VLOOKUP(Q158,match_teams,4,FALSE))) -> B&B | T158: 21.3 | U158: =IF(OR(T158=0,T158="",O161=0,O161="",O162=0,O162="",O163=0,O163="",O164=0,O164=""),"",IF(T158<=O161,1,IF(T158<=O162,2,IF(T158<=O163,3,IF(T158<=O164,4,""))))) -> 3 | W158: 9 | X158: 7 | Y158: 9 | AA158: =COUNTA(F158) -> 1
A159: =VLOOKUP(B156,eventno,6,FALSE) -> 0 | B159: 2 | C159: 6 | D159: =IF(OR(C159=0,C159=""),"",IF(A156="F",HLOOKUP(C159,females,A157,FALSE),IF(A156="M",HLOOKUP(C159,males,A157,FALSE),""))) -> LEWIS CHURCH | E159: Ton | F159: 63 | G159: =IF(OR(F159=0,F159="",A161=0,A161="",A162=0,A162="",A163=0,A163="",A164=0,A164=""),"",IF(F159<=A161,1,IF(F159<=A162,2,IF(F159<=A163,3,IF(F159<=A164,4,""))))) -> 4 | H159: =VLOOKUP(I156,eventno,6,FALSE) -> 0 | I159: 2 | J159: 55 | K159: =IF(OR(J159=0,J159=""),"",IF(H156="F",HLOOKUP(J159,females,H157,FALSE),IF(H156="M",HLOOKUP(J159,males,H157,FALSE),""))) -> Karl Tucker | L159: HavM | M159: 68.4 | N159: =IF(OR(M159=0,M159="",H161=0,H161="",H162=0,H162="",H163=0,H163="",H164=0,H164=""),"",IF(M159<=H161,1,IF(M159<=H162,2,IF(M159<=H163,3,IF(M159<=H164,4,""))))) ->  | O159: =VLOOKUP(P156,eventno,6,FALSE) -> W | P159: 2 | Q159: 4 | R159: =IF(OR(Q159=0,Q159=""),"",IF(O156="F",HLOOKUP(Q159,females,O157,FALSE),IF(O156="M",HLOOKUP(Q159,males,O157,FALSE),""))) -> Ellie McCormack | S159: Croy | T159: 21.9 | U159: =IF(OR(T159=0,T159="",O161=0,O161="",O162=0,O162="",O163=0,O163="",O164=0,O164=""),"",IF(T159<=O161,1,IF(T159<=O162,2,IF(T159<=O163,3,IF(T159<=O164,4,""))))) -> 4 | W159: 7 | X159: 5 | Y159: 7 | AA159: =COUNTA(T158) -> 1
A160: =VLOOKUP(B156,eventno,7,FALSE) -> 53.6 | B160: 3 | C160: 4 | D160: =IF(OR(C160=0,C160=""),"",IF(A156="F",HLOOKUP(C160,females,A157,FALSE),IF(A156="M",HLOOKUP(C160,males,A157,FALSE),""))) -> Stirling Gibbons | E160: Croy | F160: 65.9 | G160: =IF(OR(F160=0,F160="",A161=0,A161="",A162=0,A162="",A163=0,A163="",A164=0,A164=""),"",IF(F160<=A161,1,IF(F160<=A162,2,IF(F160<=A163,3,IF(F160<=A164,4,""))))) ->  | H160: =VLOOKUP(I156,eventno,7,FALSE) -> 53.6 | I160: 3 | K160: =IF(OR(J160=0,J160=""),"",IF(H156="F",HLOOKUP(J160,females,H157,FALSE),IF(H156="M",HLOOKUP(J160,males,H157,FALSE),""))) ->  | N160: =IF(OR(M160=0,M160="",H161=0,H161="",H162=0,H162="",H163=0,H163="",H164=0,H164=""),"",IF(M160<=H161,1,IF(M160<=H162,2,IF(M160<=H163,3,IF(M160<=H164,4,""))))) ->  | O160: =VLOOKUP(P156,eventno,7,FALSE) -> 18.8 | P160: 3 | Q160: 5 | R160: =IF(OR(Q160=0,Q160=""),"",IF(O156="F",HLOOKUP(Q160,females,O157,FALSE),IF(O156="M",HLOOKUP(Q160,males,O157,FALSE),""))) -> Josie Waddams | S160: HavM | T160: 22.2 | U160: =IF(OR(T160=0,T160="",O161=0,O161="",O162=0,O162="",O163=0,O163="",O164=0,O164=""),"",IF(T160<=O161,1,IF(T160<=O162,2,IF(T160<=O163,3,IF(T160<=O164,4,""))))) -> 4 | W160: 6 | X160: 0 | Y160: 6
A161: =VLOOKUP(B156,eventno,8,FALSE) -> 57.5 | B161: 4 | D161: =IF(OR(C161=0,C161=""),"",IF(A156="F",HLOOKUP(C161,females,A157,FALSE),IF(A156="M",HLOOKUP(C161,males,A157,FALSE),""))) ->  | G161: =IF(OR(F161=0,F161="",A161=0,A161="",A162=0,A162="",A163=0,A163="",A164=0,A164=""),"",IF(F161<=A161,1,IF(F161<=A162,2,IF(F161<=A163,3,IF(F161<=A164,4,""))))) ->  | H161: =VLOOKUP(I156,eventno,8,FALSE) -> 57.5 | I161: 4 | K161: =IF(OR(J161=0,J161=""),"",IF(H156="F",HLOOKUP(J161,females,H157,FALSE),IF(H156="M",HLOOKUP(J161,males,H157,FALSE),""))) ->  | N161: =IF(OR(M161=0,M161="",H161=0,H161="",H162=0,H162="",H163=0,H163="",H164=0,H164=""),"",IF(M161<=H161,1,IF(M161<=H162,2,IF(M161<=H163,3,IF(M161<=H164,4,""))))) ->  | O161: =VLOOKUP(P156,eventno,8,FALSE) -> 20.5 | P161: 4 | Q161: 2 | R161: =IF(OR(Q161=0,Q161=""),"",IF(O156="F",HLOOKUP(Q161,females,O157,FALSE),IF(O156="M",HLOOKUP(Q161,males,O157,FALSE),""))) -> Priscilla Ijoma | S161: Bas | T161: 22.2 | U161: =IF(OR(T161=0,T161="",O161=0,O161="",O162=0,O162="",O163=0,O163="",O164=0,O164=""),"",IF(T161<=O161,1,IF(T161<=O162,2,IF(T161<=O163,3,IF(T161<=O164,4,""))))) -> 4 | W161: 0 | X161: 0 | Y161: 5
A162: =VLOOKUP(B156,eventno,9,FALSE) -> 59 | B162: 5 | D162: =IF(OR(C162=0,C162=""),"",IF(A156="F",HLOOKUP(C162,females,A157,FALSE),IF(A156="M",HLOOKUP(C162,males,A157,FALSE),""))) ->  | G162: =IF(OR(F162=0,F162="",A161=0,A161="",A162=0,A162="",A163=0,A163="",A164=0,A164=""),"",IF(F162<=A161,1,IF(F162<=A162,2,IF(F162<=A163,3,IF(F162<=A164,4,""))))) ->  | H162: =VLOOKUP(I156,eventno,9,FALSE) -> 59 | I162: 5 | K162: =IF(OR(J162=0,J162=""),"",IF(H156="F",HLOOKUP(J162,females,H157,FALSE),IF(H156="M",HLOOKUP(J162,males,H157,FALSE),""))) ->  | N162: =IF(OR(M162=0,M162="",H161=0,H161="",H162=0,H162="",H163=0,H163="",H164=0,H164=""),"",IF(M162<=H161,1,IF(M162<=H162,2,IF(M162<=H163,3,IF(M162<=H164,4,""))))) ->  | O162: =VLOOKUP(P156,eventno,9,FALSE) -> 20 | P162: 5 | Q162: 1 | R162: =IF(OR(Q162=0,Q162=""),"",IF(O156="F",HLOOKUP(Q162,females,O157,FALSE),IF(O156="M",HLOOKUP(Q162,males,O157,FALSE),""))) -> Jess Box | S162: Ash | T162: 23.5 | U162: =IF(OR(T162=0,T162="",O161=0,O161="",O162=0,O162="",O163=0,O163="",O164=0,O164=""),"",IF(T162<=O161,1,IF(T162<=O162,2,IF(T162<=O163,3,IF(T162<=O164,4,""))))) ->  | W162: 0 | X162: 0 | Y162: 4
A163: =VLOOKUP(B156,eventno,10,FALSE) -> 61.1 | B163: 6 | D163: =IF(OR(C163=0,C163=""),"",IF(A156="F",HLOOKUP(C163,females,A157,FALSE),IF(A156="M",HLOOKUP(C163,males,A157,FALSE),""))) ->  | G163: =IF(OR(F163=0,F163="",A161=0,A161="",A162=0,A162="",A163=0,A163="",A164=0,A164=""),"",IF(F163<=A161,1,IF(F163<=A162,2,IF(F163<=A163,3,IF(F163<=A164,4,""))))) ->  | H163: =VLOOKUP(I156,eventno,10,FALSE) -> 61.1 | I163: 6 | K163: =IF(OR(J163=0,J163=""),"",IF(H156="F",HLOOKUP(J163,females,H157,FALSE),IF(H156="M",HLOOKUP(J163,males,H157,FALSE),""))) ->  | N163: =IF(OR(M163=0,M163="",H161=0,H161="",H162=0,H162="",H163=0,H163="",H164=0,H164=""),"",IF(M163<=H161,1,IF(M163<=H162,2,IF(M163<=H163,3,IF(M163<=H164,4,""))))) ->  | O163: =VLOOKUP(P156,eventno,10,FALSE) -> 21.5 | P163: 6 | Q163: 6 | R163: =IF(OR(Q163=0,Q163=""),"",IF(O156="F",HLOOKUP(Q163,females,O157,FALSE),IF(O156="M",HLOOKUP(Q163,males,O157,FALSE),""))) -> - | S163: Ton | T163: 24 | U163: =IF(OR(T163=0,T163="",O161=0,O161="",O162=0,O162="",O163=0,O163="",O164=0,O164=""),"",IF(T163<=O161,1,IF(T163<=O162,2,IF(T163<=O163,3,IF(T163<=O164,4,""))))) ->  | W163: 0 | X163: 0 | Y163: 3
A164: =VLOOKUP(B156,eventno,11,FALSE) -> 64.5 | B164: 7 | D164: =IF(OR(C164=0,C164=""),"",IF(A156="F",HLOOKUP(C164,females,A157,FALSE),IF(A156="M",HLOOKUP(C164,males,A157,FALSE),""))) ->  | G164: =IF(OR(F164=0,F164="",A161=0,A161="",A162=0,A162="",A163=0,A163="",A164=0,A164=""),"",IF(F164<=A161,1,IF(F164<=A162,2,IF(F164<=A163,3,IF(F164<=A164,4,""))))) ->  | H164: =VLOOKUP(I156,eventno,11,FALSE) -> 64.5 | I164: 7 | K164: =IF(OR(J164=0,J164=""),"",IF(H156="F",HLOOKUP(J164,females,H157,FALSE),IF(H156="M",HLOOKUP(J164,males,H157,FALSE),""))) ->  | N164: =IF(OR(M164=0,M164="",H161=0,H161="",H162=0,H162="",H163=0,H163="",H164=0,H164=""),"",IF(M164<=H161,1,IF(M164<=H162,2,IF(M164<=H163,3,IF(M164<=H164,4,""))))) ->  | O164: =VLOOKUP(P156,eventno,11,FALSE) -> 22.4 | P164: 7 | R164: =IF(OR(Q164=0,Q164=""),"",IF(O156="F",HLOOKUP(Q164,females,O157,FALSE),IF(O156="M",HLOOKUP(Q164,males,O157,FALSE),""))) ->  | U164: =IF(OR(T164=0,T164="",O161=0,O161="",O162=0,O162="",O163=0,O163="",O164=0,O164=""),"",IF(T164<=O161,1,IF(T164<=O162,2,IF(T164<=O163,3,IF(T164<=O164,4,""))))) ->  | W164: 0 | X164: 0 | Y164: 0
A165: A | B165: 8 | D165: =IF(OR(C165=0,C165=""),"",IF(A156="F",HLOOKUP(C165,females,A157,FALSE),IF(A156="M",HLOOKUP(C165,males,A157,FALSE),""))) ->  | G165: =IF(OR(F165=0,F165="",A161=0,A161="",A162=0,A162="",A163=0,A163="",A164=0,A164=""),"",IF(F165<=A161,1,IF(F165<=A162,2,IF(F165<=A163,3,IF(F165<=A164,4,""))))) ->  | H165: B | I165: 8 | K165: =IF(OR(J165=0,J165=""),"",IF(H156="F",HLOOKUP(J165,females,H157,FALSE),IF(H156="M",HLOOKUP(J165,males,H157,FALSE),""))) ->  | N165: =IF(OR(M165=0,M165="",H161=0,H161="",H162=0,H162="",H163=0,H163="",H164=0,H164=""),"",IF(M165<=H161,1,IF(M165<=H162,2,IF(M165<=H163,3,IF(M165<=H164,4,""))))) ->  | O165: A | P165: 8 | R165: =IF(OR(Q165=0,Q165=""),"",IF(O156="F",HLOOKUP(Q165,females,O157,FALSE),IF(O156="M",HLOOKUP(Q165,males,O157,FALSE),""))) ->  | U165: =IF(OR(T165=0,T165="",O161=0,O161="",O162=0,O162="",O163=0,O163="",O164=0,O164=""),"",IF(T165<=O161,1,IF(T165<=O162,2,IF(T165<=O163,3,IF(T165<=O164,4,""))))) ->  | W165: 0 | X165: 0 | Y165: 0
W166: 0 | X166: =IF(OR(I166=0,I166="",J166=0,J166="",M166=0,M166="",LEFT(M166,1)="D",LEFT(I166,1)="P",LEFT(I166,1)="T"),0,VLOOKUP(I166,points,2,FALSE)) -> 0 | Y166: 0
A167: =VLOOKUP(B167,eventno,5,FALSE) -> F | B167: T23 | C167: =CONCATENATE(VLOOKUP(B167,eventno,4,FALSE)," '",A176,"'") -> U13G 150m 'B' | E167: =IF(A170="W","Wind =","") -> Wind = | G167: =IF(OR(F169=0,F169="",A171=0,A171=""),"",IF(A169="T",IF(F169<A171,"LR",IF(F169=A171,"LR=","")))) ->  | H167: =VLOOKUP(I167,eventno,5,FALSE) -> M | I167: T24 | J167: =CONCATENATE(VLOOKUP(I167,eventno,4,FALSE)," '",H176,"'") -> U13B 200m 'A' | L167: =IF(H170="W","Wind =","") -> Wind = | N167: =IF(OR(M169=0,M169="",H171=0,H171=""),"",IF(H169="T",IF(M169<H171,"LR",IF(M169=H171,"LR=","")))) ->  | O167: =VLOOKUP(P167,eventno,5,FALSE) -> M | P167: T24 | Q167: =CONCATENATE(VLOOKUP(P167,eventno,4,FALSE)," '",O176,"'") -> U13B 200m 'B' | S167: =IF(O170="W","Wind =","") -> Wind = | U167: =IF(OR(T169=0,T169="",O171=0,O171=""),"",IF(O169="T",IF(T169<O171,"LR",IF(T169=O171,"LR=","")))) ->  | W167: =IF(OR(B167=0,B167="",C167=0,C167="",F167=0,F167="",LEFT(F167,1)="D",LEFT(B167,1)="T",LEFT(B167,1)="P"),0,VLOOKUP(B167,points,2,FALSE)-2) -> 0 | X167: 0 | Y167: =IF(OR(P167=0,P167="",Q167=0,Q167="",T167=0,T167="",LEFT(T167,1)="D",LEFT(P167)="T",LEFT(P167)="P"),0,VLOOKUP(P167,points,2,FALSE)-2) -> 0
A168: =IF(A167="M",VLOOKUP(B167,males,25,FALSE),VLOOKUP(B167,females,25,FALSE)) -> 13 | B168: Posn | C168: Bib | D168: Athlete | E168: Club | F168: Perf | G168: Gr | H168: =IF(H167="M",VLOOKUP(I167,males,25,FALSE),VLOOKUP(I167,females,25,FALSE)) -> 13 | I168: Posn | J168: Bib | K168: Athlete | L168: Club | M168: Perf | N168: Gr | O168: =IF(O167="M",VLOOKUP(P167,males,25,FALSE),VLOOKUP(P167,females,25,FALSE)) -> 13 | P168: Posn | Q168: Bib | R168: Athlete | S168: Club | T168: Perf | U168: Gr | W168: 0 | X168: 0 | Y168: 0
A169: =LEFT(B167,1) -> T | B169: 1 | C169: 33 | D169: =IF(OR(C169=0,C169=""),"",IF(A167="F",HLOOKUP(C169,females,A168,FALSE),IF(A167="M",HLOOKUP(C169,males,A168,FALSE),""))) -> Emily Sheppard | E169: =IF(OR(C169=0,C169="",C169="-"),"",IF(C169>8,VLOOKUP(C169/11,match_teams,4,FALSE),VLOOKUP(C169,match_teams,4,FALSE))) -> B&B | F169: 21.7 | G169: =IF(OR(F169=0,F169="",A172=0,A172="",A173=0,A173="",A174=0,A174="",A175=0,A175=""),"",IF(F169<=A172,1,IF(F169<=A173,2,IF(F169<=A174,3,IF(F169<=A175,4,""))))) -> 4 | H169: =LEFT(I167,1) -> T | I169: 1 | J169: 4 | K169: =IF(OR(J169=0,J169=""),"",IF(H167="F",HLOOKUP(J169,females,H168,FALSE),IF(H167="M",HLOOKUP(J169,males,H168,FALSE),""))) -> Ryan Campbell-Walton | L169: =IF(OR(J169=0,J169="",J169="-"),"",IF(J169>8,VLOOKUP(J169/11,match_teams,4,FALSE),VLOOKUP(J169,match_teams,4,FALSE))) -> Croy | M169: 28.7 | N169: =IF(OR(M169=0,M169="",H172=0,H172="",H173=0,H173="",H174=0,H174="",H175=0,H175=""),"",IF(M169<=H172,1,IF(M169<=H173,2,IF(M169<=H174,3,IF(M169<=H175,4,""))))) -> 4 | O169: =LEFT(P167,1) -> T | P169: 1 | Q169: 44 | R169: =IF(OR(Q169=0,Q169=""),"",IF(O167="F",HLOOKUP(Q169,females,O168,FALSE),IF(O167="M",HLOOKUP(Q169,males,O168,FALSE),""))) -> Capre Cole | S169: =IF(OR(Q169=0,Q169="",Q169="-"),"",IF(Q169>8,VLOOKUP(Q169/11,match_teams,4,FALSE),VLOOKUP(Q169,match_teams,4,FALSE))) -> Croy | T169: 28.3 | U169: =IF(OR(T169=0,T169="",O172=0,O172="",O173=0,O173="",O174=0,O174="",O175=0,O175=""),"",IF(T169<=O172,1,IF(T169<=O173,2,IF(T169<=O174,3,IF(T169<=O175,4,""))))) -> 3 | W169: 7 | X169: 9 | Y169: 7 | AA169: =COUNTA(M169) -> 1
A170: =VLOOKUP(B167,eventno,6,FALSE) -> W | B170: 2 | C170: 44 | D170: =IF(OR(C170=0,C170=""),"",IF(A167="F",HLOOKUP(C170,females,A168,FALSE),IF(A167="M",HLOOKUP(C170,males,A168,FALSE),""))) -> Rianna Larkai | E170: Croy | F170: 22.6 | G170: =IF(OR(F170=0,F170="",A172=0,A172="",A173=0,A173="",A174=0,A174="",A175=0,A175=""),"",IF(F170<=A172,1,IF(F170<=A173,2,IF(F170<=A174,3,IF(F170<=A175,4,""))))) ->  | H170: =VLOOKUP(I167,eventno,6,FALSE) -> W | I170: 2 | J170: 3 | K170: =IF(OR(J170=0,J170=""),"",IF(H167="F",HLOOKUP(J170,females,H168,FALSE),IF(H167="M",HLOOKUP(J170,males,H168,FALSE),""))) -> Adefela Lipede | L170: B&B | M170: 29 | N170: =IF(OR(M170=0,M170="",H172=0,H172="",H173=0,H173="",H174=0,H174="",H175=0,H175=""),"",IF(M170<=H172,1,IF(M170<=H173,2,IF(M170<=H174,3,IF(M170<=H175,4,""))))) -> 4 | O170: =VLOOKUP(P167,eventno,6,FALSE) -> W | P170: 2 | Q170: 33 | R170: =IF(OR(Q170=0,Q170=""),"",IF(O167="F",HLOOKUP(Q170,females,O168,FALSE),IF(O167="M",HLOOKUP(Q170,males,O168,FALSE),""))) -> James Low | S170: B&B | T170: 29.9 | U170: =IF(OR(T170=0,T170="",O172=0,O172="",O173=0,O173="",O174=0,O174="",O175=0,O175=""),"",IF(T170<=O172,1,IF(T170<=O173,2,IF(T170<=O174,3,IF(T170<=O175,4,""))))) ->  | W170: 5 | X170: 7 | Y170: 5
A171: =VLOOKUP(B167,eventno,7,FALSE) -> 18.8 | B171: 3 | C171: 55 | D171: =IF(OR(C171=0,C171=""),"",IF(A167="F",HLOOKUP(C171,females,A168,FALSE),IF(A167="M",HLOOKUP(C171,males,A168,FALSE),""))) -> Isabella Purdie | E171: HavM | F171: 23.5 | G171: =IF(OR(F171=0,F171="",A172=0,A172="",A173=0,A173="",A174=0,A174="",A175=0,A175=""),"",IF(F171<=A172,1,IF(F171<=A173,2,IF(F171<=A174,3,IF(F171<=A175,4,""))))) ->  | H171: =VLOOKUP(I167,eventno,7,FALSE) -> 23.7 | I171: 3 | J171: 2 | K171: =IF(OR(J171=0,J171=""),"",IF(H167="F",HLOOKUP(J171,females,H168,FALSE),IF(H167="M",HLOOKUP(J171,males,H168,FALSE),""))) -> William Harland-Dornan | L171: Bas | M171: 29.7 | N171: =IF(OR(M171=0,M171="",H172=0,H172="",H173=0,H173="",H174=0,H174="",H175=0,H175=""),"",IF(M171<=H172,1,IF(M171<=H173,2,IF(M171<=H174,3,IF(M171<=H175,4,""))))) ->  | O171: =VLOOKUP(P167,eventno,7,FALSE) -> 23.7 | P171: 3 | Q171: 22 | R171: =IF(OR(Q171=0,Q171=""),"",IF(O167="F",HLOOKUP(Q171,females,O168,FALSE),IF(O167="M",HLOOKUP(Q171,males,O168,FALSE),""))) -> Luke Dooley | S171: Bas | T171: 31 | U171: =IF(OR(T171=0,T171="",O172=0,O172="",O173=0,O173="",O174=0,O174="",O175=0,O175=""),"",IF(T171<=O172,1,IF(T171<=O173,2,IF(T171<=O174,3,IF(T171<=O175,4,""))))) ->  | W171: 4 | X171: 6 | Y171: 4
A172: =VLOOKUP(B167,eventno,8,FALSE) -> 20.5 | B172: 4 | C172: 66 | D172: =IF(OR(C172=0,C172=""),"",IF(A167="F",HLOOKUP(C172,females,A168,FALSE),IF(A167="M",HLOOKUP(C172,males,A168,FALSE),""))) -> LOUISA TRUSCOTT | E172: Ton | F172: 23.9 | G172: =IF(OR(F172=0,F172="",A172=0,A172="",A173=0,A173="",A174=0,A174="",A175=0,A175=""),"",IF(F172<=A172,1,IF(F172<=A173,2,IF(F172<=A174,3,IF(F172<=A175,4,""))))) ->  | H172: =VLOOKUP(I167,eventno,8,FALSE) -> 27 | I172: 4 | J172: 1 | K172: =IF(OR(J172=0,J172=""),"",IF(H167="F",HLOOKUP(J172,females,H168,FALSE),IF(H167="M",HLOOKUP(J172,males,H168,FALSE),""))) -> Ryan Miller-Leslie | L172: Ash | M172: 29.9 | N172: =IF(OR(M172=0,M172="",H172=0,H172="",H173=0,H173="",H174=0,H174="",H175=0,H175=""),"",IF(M172<=H172,1,IF(M172<=H173,2,IF(M172<=H174,3,IF(M172<=H175,4,""))))) ->  | O172: =VLOOKUP(P167,eventno,8,FALSE) -> 27 | P172: 4 | Q172: 66 | R172: =IF(OR(Q172=0,Q172=""),"",IF(O167="F",HLOOKUP(Q172,females,O168,FALSE),IF(O167="M",HLOOKUP(Q172,males,O168,FALSE),""))) -> JAMES PUXTY | S172: Ton | T172: 32.3 | U172: =IF(OR(T172=0,T172="",O172=0,O172="",O173=0,O173="",O174=0,O174="",O175=0,O175=""),"",IF(T172<=O172,1,IF(T172<=O173,2,IF(T172<=O174,3,IF(T172<=O175,4,""))))) ->  | W172: 3 | X172: 5 | Y172: 3
A173: =VLOOKUP(B167,eventno,9,FALSE) -> 20 | B173: 5 | C173: 22 | D173: =IF(OR(C173=0,C173=""),"",IF(A167="F",HLOOKUP(C173,females,A168,FALSE),IF(A167="M",HLOOKUP(C173,males,A168,FALSE),""))) -> Shirley Acquah- Davis | E173: Bas | F173: 24.5 | G173: =IF(OR(F173=0,F173="",A172=0,A172="",A173=0,A173="",A174=0,A174="",A175=0,A175=""),"",IF(F173<=A172,1,IF(F173<=A173,2,IF(F173<=A174,3,IF(F173<=A175,4,""))))) ->  | H173: =VLOOKUP(I167,eventno,9,FALSE) -> 27.6 | I173: 5 | J173: 6 | K173: =IF(OR(J173=0,J173=""),"",IF(H167="F",HLOOKUP(J173,females,H168,FALSE),IF(H167="M",HLOOKUP(J173,males,H168,FALSE),""))) -> LUCAS MUNRO | L173: Ton | M173: 30.4 | N173: =IF(OR(M173=0,M173="",H172=0,H172="",H173=0,H173="",H174=0,H174="",H175=0,H175=""),"",IF(M173<=H172,1,IF(M173<=H173,2,IF(M173<=H174,3,IF(M173<=H175,4,""))))) ->  | O173: =VLOOKUP(P167,eventno,9,FALSE) -> 27.6 | P173: 5 | Q173: 11 | R173: =IF(OR(Q173=0,Q173=""),"",IF(O167="F",HLOOKUP(Q173,females,O168,FALSE),IF(O167="M",HLOOKUP(Q173,males,O168,FALSE),""))) -> Elliott Rudd | S173: Ash | T173: 33.4 | U173: =IF(OR(T173=0,T173="",O172=0,O172="",O173=0,O173="",O174=0,O174="",O175=0,O175=""),"",IF(T173<=O172,1,IF(T173<=O173,2,IF(T173<=O174,3,IF(T173<=O175,4,""))))) ->  | W173: 2 | X173: 4 | Y173: 2
A174: =VLOOKUP(B167,eventno,10,FALSE) -> 21.5 | B174: 6 | C174: 11 | D174: =IF(OR(C174=0,C174=""),"",IF(A167="F",HLOOKUP(C174,females,A168,FALSE),IF(A167="M",HLOOKUP(C174,males,A168,FALSE),""))) -> Hannah Graham | E174: Ash | F174: 25.8 | G174: =IF(OR(F174=0,F174="",A172=0,A172="",A173=0,A173="",A174=0,A174="",A175=0,A175=""),"",IF(F174<=A172,1,IF(F174<=A173,2,IF(F174<=A174,3,IF(F174<=A175,4,""))))) ->  | H174: =VLOOKUP(I167,eventno,10,FALSE) -> 28.3 | I174: 6 | J174: 5 | K174: =IF(OR(J174=0,J174=""),"",IF(H167="F",HLOOKUP(J174,females,H168,FALSE),IF(H167="M",HLOOKUP(J174,males,H168,FALSE),""))) -> Bailey Hearne | L174: HavM | M174: 32.2 | N174: =IF(OR(M174=0,M174="",H172=0,H172="",H173=0,H173="",H174=0,H174="",H175=0,H175=""),"",IF(M174<=H172,1,IF(M174<=H173,2,IF(M174<=H174,3,IF(M174<=H175,4,""))))) ->  | O174: =VLOOKUP(P167,eventno,10,FALSE) -> 28.3 | P174: 6 | R174: =IF(OR(Q174=0,Q174=""),"",IF(O167="F",HLOOKUP(Q174,females,O168,FALSE),IF(O167="M",HLOOKUP(Q174,males,O168,FALSE),""))) ->  | U174: =IF(OR(T174=0,T174="",O172=0,O172="",O173=0,O173="",O174=0,O174="",O175=0,O175=""),"",IF(T174<=O172,1,IF(T174<=O173,2,IF(T174<=O174,3,IF(T174<=O175,4,""))))) ->  | W174: 1 | X174: 3 | Y174: 0
A175: =VLOOKUP(B167,eventno,11,FALSE) -> 22.4 | B175: 7 | D175: =IF(OR(C175=0,C175=""),"",IF(A167="F",HLOOKUP(C175,females,A168,FALSE),IF(A167="M",HLOOKUP(C175,males,A168,FALSE),""))) ->  | G175: =IF(OR(F175=0,F175="",A172=0,A172="",A173=0,A173="",A174=0,A174="",A175=0,A175=""),"",IF(F175<=A172,1,IF(F175<=A173,2,IF(F175<=A174,3,IF(F175<=A175,4,""))))) ->  | H175: =VLOOKUP(I167,eventno,11,FALSE) -> 29.2 | I175: 7 | K175: =IF(OR(J175=0,J175=""),"",IF(H167="F",HLOOKUP(J175,females,H168,FALSE),IF(H167="M",HLOOKUP(J175,males,H168,FALSE),""))) ->  | N175: =IF(OR(M175=0,M175="",H172=0,H172="",H173=0,H173="",H174=0,H174="",H175=0,H175=""),"",IF(M175<=H172,1,IF(M175<=H173,2,IF(M175<=H174,3,IF(M175<=H175,4,""))))) ->  | O175: =VLOOKUP(P167,eventno,11,FALSE) -> 29.2 | P175: 7 | R175: =IF(OR(Q175=0,Q175=""),"",IF(O167="F",HLOOKUP(Q175,females,O168,FALSE),IF(O167="M",HLOOKUP(Q175,males,O168,FALSE),""))) ->  | U175: =IF(OR(T175=0,T175="",O172=0,O172="",O173=0,O173="",O174=0,O174="",O175=0,O175=""),"",IF(T175<=O172,1,IF(T175<=O173,2,IF(T175<=O174,3,IF(T175<=O175,4,""))))) ->  | W175: 0 | X175: 0 | Y175: 0
A176: B | B176: 8 | D176: =IF(OR(C176=0,C176=""),"",IF(A167="F",HLOOKUP(C176,females,A168,FALSE),IF(A167="M",HLOOKUP(C176,males,A168,FALSE),""))) ->  | G176: =IF(OR(F176=0,F176="",A172=0,A172="",A173=0,A173="",A174=0,A174="",A175=0,A175=""),"",IF(F176<=A172,1,IF(F176<=A173,2,IF(F176<=A174,3,IF(F176<=A175,4,""))))) ->  | H176: A | I176: 8 | K176: =IF(OR(J176=0,J176=""),"",IF(H167="F",HLOOKUP(J176,females,H168,FALSE),IF(H167="M",HLOOKUP(J176,males,H168,FALSE),""))) ->  | N176: =IF(OR(M176=0,M176="",H172=0,H172="",H173=0,H173="",H174=0,H174="",H175=0,H175=""),"",IF(M176<=H172,1,IF(M176<=H173,2,IF(M176<=H174,3,IF(M176<=H175,4,""))))) ->  | O176: B | P176: 8 | R176: =IF(OR(Q176=0,Q176=""),"",IF(O167="F",HLOOKUP(Q176,females,O168,FALSE),IF(O167="M",HLOOKUP(Q176,males,O168,FALSE),""))) ->  | U176: =IF(OR(T176=0,T176="",O172=0,O172="",O173=0,O173="",O174=0,O174="",O175=0,O175=""),"",IF(T176<=O172,1,IF(T176<=O173,2,IF(T176<=O174,3,IF(T176<=O175,4,""))))) ->  | W176: 0 | X176: 0 | Y176: 0
W177: 0 | X177: 0 | Y177: 0
A178: =VLOOKUP(B178,eventno,5,FALSE) -> F | B178: T25 | C178: =CONCATENATE(VLOOKUP(B178,eventno,4,FALSE)," '",A187,"'") -> U15G 200m 'A' | E178: =IF(A181="W","Wind =","") -> Wind = | G178: =IF(OR(F180=0,F180="",A182=0,A182=""),"",IF(A180="T",IF(F180<A182,"LR",IF(F180=A182,"LR=","")))) ->  | H178: =VLOOKUP(I178,eventno,5,FALSE) -> F | I178: T25 | J178: =CONCATENATE(VLOOKUP(I178,eventno,4,FALSE)," '",H187,"'") -> U15G 200m 'B' | L178: =IF(H181="W","Wind =","") -> Wind = | N178: =IF(OR(M180=0,M180="",H182=0,H182=""),"",IF(H180="T",IF(M180<H182,"LR",IF(M180=H182,"LR=","")))) ->  | O178: =VLOOKUP(P178,eventno,5,FALSE) -> M | P178: T26 | Q178: =CONCATENATE(VLOOKUP(P178,eventno,4,FALSE)," '",O187,"'") -> U15B 200m 'A' | S178: =IF(O181="W","Wind =","") -> Wind = | U178: =IF(OR(T180=0,T180="",O182=0,O182=""),"",IF(O180="T",IF(T180<O182,"LR",IF(T180=O182,"LR=","")))) ->  | W178: =IF(OR(B178=0,B178="",C178=0,C178="",F178=0,F178="",LEFT(F178,1)="D",LEFT(B178,1)="P"),0,VLOOKUP(B178,points,2,FALSE)) -> 0 | X178: =IF(OR(I178=0,I178="",J178=0,J178="",M178=0,M178="",LEFT(M178,1)="D",LEFT(I178,1)="P",LEFT(I178,1)="T"),0,VLOOKUP(I178,points,2,FALSE)-2) -> 0 | Y178: 0
A179: =IF(A178="M",VLOOKUP(B178,males,25,FALSE),VLOOKUP(B178,females,25,FALSE)) -> 14 | B179: Posn | C179: Bib | D179: Athlete | E179: Club | F179: Perf | G179: Gr | H179: =IF(H178="M",VLOOKUP(I178,males,25,FALSE),VLOOKUP(I178,females,25,FALSE)) -> 14 | I179: Posn | J179: Bib | K179: Athlete | L179: Club | M179: Perf | N179: Gr | O179: =IF(O178="M",VLOOKUP(P178,males,25,FALSE),VLOOKUP(P178,females,25,FALSE)) -> 14 | P179: Posn | Q179: Bib | R179: Athlete | S179: Club | T179: Perf | U179: Gr | W179: =IF(OR(B179=0,B179="",C179=0,C179="",F179=0,F179="",LEFT(F179,1)="D",LEFT(B179,1)="T",LEFT(B179,1)="P"),0,VLOOKUP(B179,points,2,FALSE)) -> 0 | X179: 0 | Y179: 0
A180: =LEFT(B178,1) -> T | B180: 1 | C180: 3 | D180: =IF(OR(C180=0,C180=""),"",IF(A178="F",HLOOKUP(C180,females,A179,FALSE),IF(A178="M",HLOOKUP(C180,males,A179,FALSE),""))) -> Maya Bruney | E180: =IF(OR(C180=0,C180="",C180="-"),"",IF(C180>8,VLOOKUP(C180/11,match_teams,4,FALSE),VLOOKUP(C180,match_teams,4,FALSE))) -> B&B | F180: 25.3 | G180: =IF(OR(F180=0,F180="",A183=0,A183="",A184=0,A184="",A185=0,A185="",A186=0,A186=""),"",IF(F180<=A183,1,IF(F180<=A184,2,IF(F180<=A185,3,IF(F180<=A186,4,""))))) -> 1 | H180: =LEFT(I178,1) -> T | I180: 1 | J180: 55 | K180: =IF(OR(J180=0,J180=""),"",IF(H178="F",HLOOKUP(J180,females,H179,FALSE),IF(H178="M",HLOOKUP(J180,males,H179,FALSE),""))) -> Michelle Hughes | L180: =IF(OR(J180=0,J180="",J180="-"),"",IF(J180>8,VLOOKUP(J180/11,match_teams,4,FALSE),VLOOKUP(J180,match_teams,4,FALSE))) -> HavM | M180: 27.3 | N180: =IF(OR(M180=0,M180="",H183=0,H183="",H184=0,H184="",H185=0,H185="",H186=0,H186=""),"",IF(M180<=H183,1,IF(M180<=H184,2,IF(M180<=H185,3,IF(M180<=H186,4,""))))) -> 3 | O180: =LEFT(P178,1) -> T | P180: 1 | Q180: 4 | R180: =IF(OR(Q180=0,Q180=""),"",IF(O178="F",HLOOKUP(Q180,females,O179,FALSE),IF(O178="M",HLOOKUP(Q180,males,O179,FALSE),""))) -> Daniel Luke | S180: =IF(OR(Q180=0,Q180="",Q180="-"),"",IF(Q180>8,VLOOKUP(Q180/11,match_teams,4,FALSE),VLOOKUP(Q180,match_teams,4,FALSE))) -> Croy | T180: 23.9 | U180: =IF(OR(T180=0,T180="",O183=0,O183="",O184=0,O184="",O185=0,O185="",O186=0,O186=""),"",IF(T180<=O183,1,IF(T180<=O184,2,IF(T180<=O185,3,IF(T180<=O186,4,""))))) -> 1 | W180: 9 | X180: 7 | Y180: 9 | AA180: =COUNTA(F180) -> 1
A181: =VLOOKUP(B178,eventno,6,FALSE) -> W | B181: 2 | C181: 4 | D181: =IF(OR(C181=0,C181=""),"",IF(A178="F",HLOOKUP(C181,females,A179,FALSE),IF(A178="M",HLOOKUP(C181,males,A179,FALSE),""))) -> Ashleigh Clarke | E181: Croy | F181: 26.3 | G181: =IF(OR(F181=0,F181="",A183=0,A183="",A184=0,A184="",A185=0,A185="",A186=0,A186=""),"",IF(F181<=A183,1,IF(F181<=A184,2,IF(F181<=A185,3,IF(F181<=A186,4,""))))) -> 1 | H181: =VLOOKUP(I178,eventno,6,FALSE) -> W | I181: 2 | J181: 33 | K181: =IF(OR(J181=0,J181=""),"",IF(H178="F",HLOOKUP(J181,females,H179,FALSE),IF(H178="M",HLOOKUP(J181,males,H179,FALSE),""))) -> Parris Johnson | L181: B&B | M181: 27.7 | N181: =IF(OR(M181=0,M181="",H183=0,H183="",H184=0,H184="",H185=0,H185="",H186=0,H186=""),"",IF(M181<=H183,1,IF(M181<=H184,2,IF(M181<=H185,3,IF(M181<=H186,4,""))))) -> 4 | O181: =VLOOKUP(P178,eventno,6,FALSE) -> W | P181: 2 | Q181: 1 | R181: =IF(OR(Q181=0,Q181=""),"",IF(O178="F",HLOOKUP(Q181,females,O179,FALSE),IF(O178="M",HLOOKUP(Q181,males,O179,FALSE),""))) -> Alex Lynch | S181: Ash | T181: 25.3 | U181: =IF(OR(T181=0,T181="",O183=0,O183="",O184=0,O184="",O185=0,O185="",O186=0,O186=""),"",IF(T181<=O183,1,IF(T181<=O184,2,IF(T181<=O185,3,IF(T181<=O186,4,""))))) -> 4 | W181: 7 | X181: 5 | Y181: 7 | AA181: =COUNTA(T180) -> 1
A182: =VLOOKUP(B178,eventno,7,FALSE) -> 24.18 | B182: 3 | C182: 6 | D182: =IF(OR(C182=0,C182=""),"",IF(A178="F",HLOOKUP(C182,females,A179,FALSE),IF(A178="M",HLOOKUP(C182,males,A179,FALSE),""))) -> BECKY O'HARA | E182: Ton | F182: 27 | G182: =IF(OR(F182=0,F182="",A183=0,A183="",A184=0,A184="",A185=0,A185="",A186=0,A186=""),"",IF(F182<=A183,1,IF(F182<=A184,2,IF(F182<=A185,3,IF(F182<=A186,4,""))))) -> 3 | H182: =VLOOKUP(I178,eventno,7,FALSE) -> 24.18 | I182: 3 | J182: 44 | K182: =IF(OR(J182=0,J182=""),"",IF(H178="F",HLOOKUP(J182,females,H179,FALSE),IF(H178="M",HLOOKUP(J182,males,H179,FALSE),""))) -> Coralee Mido | L182: Croy | M182: 28.2 | N182: =IF(OR(M182=0,M182="",H183=0,H183="",H184=0,H184="",H185=0,H185="",H186=0,H186=""),"",IF(M182<=H183,1,IF(M182<=H184,2,IF(M182<=H185,3,IF(M182<=H186,4,""))))) ->  | O182: =VLOOKUP(P178,eventno,7,FALSE) -> 22.3 | P182: 3 | Q182: 6 | R182: =IF(OR(Q182=0,Q182=""),"",IF(O178="F",HLOOKUP(Q182,females,O179,FALSE),IF(O178="M",HLOOKUP(Q182,males,O179,FALSE),""))) -> DILLON PALMER | S182: Ton | T182: 25.5 | U182: =IF(OR(T182=0,T182="",O183=0,O183="",O184=0,O184="",O185=0,O185="",O186=0,O186=""),"",IF(T182<=O183,1,IF(T182<=O184,2,IF(T182<=O185,3,IF(T182<=O186,4,""))))) -> 4 | W182: 6 | X182: 4 | Y182: 6
A183: =VLOOKUP(B178,eventno,8,FALSE) -> 26.3 | B183: 4 | C183: 5 | D183: =IF(OR(C183=0,C183=""),"",IF(A178="F",HLOOKUP(C183,females,A179,FALSE),IF(A178="M",HLOOKUP(C183,males,A179,FALSE),""))) -> Modupe Shokunbi | E183: HavM | F183: 27.7 | G183: =IF(OR(F183=0,F183="",A183=0,A183="",A184=0,A184="",A185=0,A185="",A186=0,A186=""),"",IF(F183<=A183,1,IF(F183<=A184,2,IF(F183<=A185,3,IF(F183<=A186,4,""))))) -> 4 | H183: =VLOOKUP(I178,eventno,8,FALSE) -> 26.3 | I183: 4 | J183: 66 | K183: =IF(OR(J183=0,J183=""),"",IF(H178="F",HLOOKUP(J183,females,H179,FALSE),IF(H178="M",HLOOKUP(J183,males,H179,FALSE),""))) -> KATYA MAURICE | L183: Ton | M183: 28.6 | N183: =IF(OR(M183=0,M183="",H183=0,H183="",H184=0,H184="",H185=0,H185="",H186=0,H186=""),"",IF(M183<=H183,1,IF(M183<=H184,2,IF(M183<=H185,3,IF(M183<=H186,4,""))))) ->  | O183: =VLOOKUP(P178,eventno,8,FALSE) -> 23.9 | P183: 4 | Q183: 5 | R183: =IF(OR(Q183=0,Q183=""),"",IF(O178="F",HLOOKUP(Q183,females,O179,FALSE),IF(O178="M",HLOOKUP(Q183,males,O179,FALSE),""))) -> Benji Ellis | S183: HavM | T183: 25.5 | U183: =IF(OR(T183=0,T183="",O183=0,O183="",O184=0,O184="",O185=0,O185="",O186=0,O186=""),"",IF(T183<=O183,1,IF(T183<=O184,2,IF(T183<=O185,3,IF(T183<=O186,4,""))))) -> 4 | W183: 5 | X183: 3 | Y183: 5
A184: =VLOOKUP(B178,eventno,9,FALSE) -> 26.8 | B184: 5 | C184: 1 | D184: =IF(OR(C184=0,C184=""),"",IF(A178="F",HLOOKUP(C184,females,A179,FALSE),IF(A178="M",HLOOKUP(C184,males,A179,FALSE),""))) -> Ememobong Umoh | E184: Ash | F184: 29.3 | G184: =IF(OR(F184=0,F184="",A183=0,A183="",A184=0,A184="",A185=0,A185="",A186=0,A186=""),"",IF(F184<=A183,1,IF(F184<=A184,2,IF(F184<=A185,3,IF(F184<=A186,4,""))))) ->  | H184: =VLOOKUP(I178,eventno,9,FALSE) -> 26.8 | I184: 5 | J184: 22 | K184: =IF(OR(J184=0,J184=""),"",IF(H178="F",HLOOKUP(J184,females,H179,FALSE),IF(H178="M",HLOOKUP(J184,males,H179,FALSE),""))) -> Francesca Roast | L184: Bas | M184: 29.6 | N184: =IF(OR(M184=0,M184="",H183=0,H183="",H184=0,H184="",H185=0,H185="",H186=0,H186=""),"",IF(M184<=H183,1,IF(M184<=H184,2,IF(M184<=H185,3,IF(M184<=H186,4,""))))) ->  | O184: =VLOOKUP(P178,eventno,9,FALSE) -> 24.3 | P184: 5 | Q184: 2 | R184: =IF(OR(Q184=0,Q184=""),"",IF(O178="F",HLOOKUP(Q184,females,O179,FALSE),IF(O178="M",HLOOKUP(Q184,males,O179,FALSE),""))) -> Daniel Rugg | S184: Bas | T184: 26.6 | U184: =IF(OR(T184=0,T184="",O183=0,O183="",O184=0,O184="",O185=0,O185="",O186=0,O186=""),"",IF(T184<=O183,1,IF(T184<=O184,2,IF(T184<=O185,3,IF(T184<=O186,4,""))))) ->  | W184: 4 | X184: 2 | Y184: 4
A185: =VLOOKUP(B178,eventno,10,FALSE) -> 27.3 | B185: 6 | C185: 2 | D185: =IF(OR(C185=0,C185=""),"",IF(A178="F",HLOOKUP(C185,females,A179,FALSE),IF(A178="M",HLOOKUP(C185,males,A179,FALSE),""))) -> Shannon Sims | E185: Bas | F185: 31.1 | G185: =IF(OR(F185=0,F185="",A183=0,A183="",A184=0,A184="",A185=0,A185="",A186=0,A186=""),"",IF(F185<=A183,1,IF(F185<=A184,2,IF(F185<=A185,3,IF(F185<=A186,4,""))))) ->  | H185: =VLOOKUP(I178,eventno,10,FALSE) -> 27.3 | I185: 6 | J185: 11 | K185: =IF(OR(J185=0,J185=""),"",IF(H178="F",HLOOKUP(J185,females,H179,FALSE),IF(H178="M",HLOOKUP(J185,males,H179,FALSE),""))) -> Eve Graham | L185: Ash | M185: 30.9 | N185: =IF(OR(M185=0,M185="",H183=0,H183="",H184=0,H184="",H185=0,H185="",H186=0,H186=""),"",IF(M185<=H183,1,IF(M185<=H184,2,IF(M185<=H185,3,IF(M185<=H186,4,""))))) ->  | O185: =VLOOKUP(P178,eventno,10,FALSE) -> 24.8 | P185: 6 | Q185: 3 | R185: =IF(OR(Q185=0,Q185=""),"",IF(O178="F",HLOOKUP(Q185,females,O179,FALSE),IF(O178="M",HLOOKUP(Q185,males,O179,FALSE),""))) -> Josh Skyers | S185: B&B | T185: 27.2 | U185: =IF(OR(T185=0,T185="",O183=0,O183="",O184=0,O184="",O185=0,O185="",O186=0,O186=""),"",IF(T185<=O183,1,IF(T185<=O184,2,IF(T185<=O185,3,IF(T185<=O186,4,""))))) ->  | W185: 3 | X185: 1 | Y185: 3
A186: =VLOOKUP(B178,eventno,11,FALSE) -> 28 | B186: 7 | D186: =IF(OR(C186=0,C186=""),"",IF(A178="F",HLOOKUP(C186,females,A179,FALSE),IF(A178="M",HLOOKUP(C186,males,A179,FALSE),""))) ->  | G186: =IF(OR(F186=0,F186="",A183=0,A183="",A184=0,A184="",A185=0,A185="",A186=0,A186=""),"",IF(F186<=A183,1,IF(F186<=A184,2,IF(F186<=A185,3,IF(F186<=A186,4,""))))) ->  | H186: =VLOOKUP(I178,eventno,11,FALSE) -> 28 | I186: 7 | K186: =IF(OR(J186=0,J186=""),"",IF(H178="F",HLOOKUP(J186,females,H179,FALSE),IF(H178="M",HLOOKUP(J186,males,H179,FALSE),""))) ->  | N186: =IF(OR(M186=0,M186="",H183=0,H183="",H184=0,H184="",H185=0,H185="",H186=0,H186=""),"",IF(M186<=H183,1,IF(M186<=H184,2,IF(M186<=H185,3,IF(M186<=H186,4,""))))) ->  | O186: =VLOOKUP(P178,eventno,11,FALSE) -> 25.6 | P186: 7 | R186: =IF(OR(Q186=0,Q186=""),"",IF(O178="F",HLOOKUP(Q186,females,O179,FALSE),IF(O178="M",HLOOKUP(Q186,males,O179,FALSE),""))) ->  | U186: =IF(OR(T186=0,T186="",O183=0,O183="",O184=0,O184="",O185=0,O185="",O186=0,O186=""),"",IF(T186<=O183,1,IF(T186<=O184,2,IF(T186<=O185,3,IF(T186<=O186,4,""))))) ->  | W186: 0 | X186: 0 | Y186: 0
A187: A | B187: 8 | D187: =IF(OR(C187=0,C187=""),"",IF(A178="F",HLOOKUP(C187,females,A179,FALSE),IF(A178="M",HLOOKUP(C187,males,A179,FALSE),""))) ->  | G187: =IF(OR(F187=0,F187="",A183=0,A183="",A184=0,A184="",A185=0,A185="",A186=0,A186=""),"",IF(F187<=A183,1,IF(F187<=A184,2,IF(F187<=A185,3,IF(F187<=A186,4,""))))) ->  | H187: B | I187: 8 | K187: =IF(OR(J187=0,J187=""),"",IF(H178="F",HLOOKUP(J187,females,H179,FALSE),IF(H178="M",HLOOKUP(J187,males,H179,FALSE),""))) ->  | N187: =IF(OR(M187=0,M187="",H183=0,H183="",H184=0,H184="",H185=0,H185="",H186=0,H186=""),"",IF(M187<=H183,1,IF(M187<=H184,2,IF(M187<=H185,3,IF(M187<=H186,4,""))))) ->  | O187: A | P187: 8 | R187: =IF(OR(Q187=0,Q187=""),"",IF(O178="F",HLOOKUP(Q187,females,O179,FALSE),IF(O178="M",HLOOKUP(Q187,males,O179,FALSE),""))) ->  | U187: =IF(OR(T187=0,T187="",O183=0,O183="",O184=0,O184="",O185=0,O185="",O186=0,O186=""),"",IF(T187<=O183,1,IF(T187<=O184,2,IF(T187<=O185,3,IF(T187<=O186,4,""))))) ->  | W187: 0 | X187: 0 | Y187: 0
W188: 0 | X188: =IF(OR(I188=0,I188="",J188=0,J188="",M188=0,M188="",LEFT(M188,1)="D",LEFT(I188,1)="P",LEFT(I188,1)="T"),0,VLOOKUP(I188,points,2,FALSE)) -> 0 | Y188: 0
A189: =VLOOKUP(B189,eventno,5,FALSE) -> M | B189: T26 | C189: =CONCATENATE(VLOOKUP(B189,eventno,4,FALSE)," '",A198,"'") -> U15B 200m 'B' | E189: =IF(A192="W","Wind =","") -> Wind = | G189: =IF(OR(F191=0,F191="",A193=0,A193=""),"",IF(A191="T",IF(F191<A193,"LR",IF(F191=A193,"LR=","")))) ->  | H189: =VLOOKUP(I189,eventno,5,FALSE) -> F | I189: T27 | J189: =CONCATENATE(VLOOKUP(I189,eventno,4,FALSE)," '",H198,"'") -> U17W 200m 'A' | L189: =IF(H192="W","Wind =","") -> Wind = | N189: =IF(OR(M191=0,M191="",H193=0,H193=""),"",IF(H191="T",IF(M191<H193,"LR",IF(M191=H193,"LR=","")))) ->  | O189: =VLOOKUP(P189,eventno,5,FALSE) -> F | P189: T27 | Q189: =CONCATENATE(VLOOKUP(P189,eventno,4,FALSE)," '",O198,"'") -> U17W 200m 'B' | S189: =IF(O192="W","Wind =","") -> Wind = | U189: =IF(OR(T191=0,T191="",O193=0,O193=""),"",IF(O191="T",IF(T191<O193,"LR",IF(T191=O193,"LR=","")))) ->  | W189: =IF(OR(B189=0,B189="",C189=0,C189="",F189=0,F189="",LEFT(F189,1)="D",LEFT(B189,1)="T",LEFT(B189,1)="P"),0,VLOOKUP(B189,points,2,FALSE)-2) -> 0 | X189: 0 | Y189: =IF(OR(P189=0,P189="",Q189=0,Q189="",T189=0,T189="",LEFT(T189,1)="D",LEFT(P189)="T",LEFT(P189)="P"),0,VLOOKUP(P189,points,2,FALSE)-2) -> 0
A190: =IF(A189="M",VLOOKUP(B189,males,25,FALSE),VLOOKUP(B189,females,25,FALSE)) -> 14 | B190: Posn | C190: Bib | D190: Athlete | E190: Club | F190: Perf | G190: Gr | H190: =IF(H189="M",VLOOKUP(I189,males,25,FALSE),VLOOKUP(I189,females,25,FALSE)) -> 15 | I190: Posn | J190: Bib | K190: Athlete | L190: Club | M190: Perf | N190: Gr | O190: =IF(O189="M",VLOOKUP(P189,males,25,FALSE),VLOOKUP(P189,females,25,FALSE)) -> 15 | P190: Posn | Q190: Bib | R190: Athlete | S190: Club | T190: Perf | U190: Gr | W190: 0 | X190: 0 | Y190: 0
A191: =LEFT(B189,1) -> T | B191: 1 | C191: 44 | D191: =IF(OR(C191=0,C191=""),"",IF(A189="F",HLOOKUP(C191,females,A190,FALSE),IF(A189="M",HLOOKUP(C191,males,A190,FALSE),""))) -> Alex Roberts | E191: =IF(OR(C191=0,C191="",C191="-"),"",IF(C191>8,VLOOKUP(C191/11,match_teams,4,FALSE),VLOOKUP(C191,match_teams,4,FALSE))) -> Croy | F191: 25.6 | G191: =IF(OR(F191=0,F191="",A194=0,A194="",A195=0,A195="",A196=0,A196="",A197=0,A197=""),"",IF(F191<=A194,1,IF(F191<=A195,2,IF(F191<=A196,3,IF(F191<=A197,4,""))))) -> 4 | H191: =LEFT(I189,1) -> T | I191: 1 | J191: 3 | K191: =IF(OR(J191=0,J191=""),"",IF(H189="F",HLOOKUP(J191,females,H190,FALSE),IF(H189="M",HLOOKUP(J191,males,H190,FALSE),""))) -> Shannon Hylton | L191: =IF(OR(J191=0,J191="",J191="-"),"",IF(J191>8,VLOOKUP(J191/11,match_teams,4,FALSE),VLOOKUP(J191,match_teams,4,FALSE))) -> B&B | M191: 25.2 | N191: =IF(OR(M191=0,M191="",H194=0,H194="",H195=0,H195="",H196=0,H196="",H197=0,H197=""),"",IF(M191<=H194,1,IF(M191<=H195,2,IF(M191<=H196,3,IF(M191<=H197,4,""))))) -> 1 | O191: =LEFT(P189,1) -> T | P191: 1 | Q191: 33 | R191: =IF(OR(Q191=0,Q191=""),"",IF(O189="F",HLOOKUP(Q191,females,O190,FALSE),IF(O189="M",HLOOKUP(Q191,males,O190,FALSE),""))) -> Vivien Olatunji | S191: =IF(OR(Q191=0,Q191="",Q191="-"),"",IF(Q191>8,VLOOKUP(Q191/11,match_teams,4,FALSE),VLOOKUP(Q191,match_teams,4,FALSE))) -> B&B | T191: 27 | U191: =IF(OR(T191=0,T191="",O194=0,O194="",O195=0,O195="",O196=0,O196="",O197=0,O197=""),"",IF(T191<=O194,1,IF(T191<=O195,2,IF(T191<=O196,3,IF(T191<=O197,4,""))))) -> 4 | W191: 7 | X191: 9 | Y191: 7 | AA191: =COUNTA(M191) -> 1
A192: =VLOOKUP(B189,eventno,6,FALSE) -> W | B192: 2 | C192: 33 | D192: =IF(OR(C192=0,C192=""),"",IF(A189="F",HLOOKUP(C192,females,A190,FALSE),IF(A189="M",HLOOKUP(C192,males,A190,FALSE),""))) -> Ryan Poyroo | E192: B&B | F192: 26.4 | G192: =IF(OR(F192=0,F192="",A194=0,A194="",A195=0,A195="",A196=0,A196="",A197=0,A197=""),"",IF(F192<=A194,1,IF(F192<=A195,2,IF(F192<=A196,3,IF(F192<=A197,4,""))))) ->  | H192: =VLOOKUP(I189,eventno,6,FALSE) -> W | I192: 2 | J192: 6 | K192: =IF(OR(J192=0,J192=""),"",IF(H189="F",HLOOKUP(J192,females,H190,FALSE),IF(H189="M",HLOOKUP(J192,males,H190,FALSE),""))) -> FLORENCE COCHRANE | L192: Ton | M192: 26.8 | N192: =IF(OR(M192=0,M192="",H194=0,H194="",H195=0,H195="",H196=0,H196="",H197=0,H197=""),"",IF(M192<=H194,1,IF(M192<=H195,2,IF(M192<=H196,3,IF(M192<=H197,4,""))))) -> 4 | O192: =VLOOKUP(P189,eventno,6,FALSE) -> W | P192: 2 | Q192: 11 | R192: =IF(OR(Q192=0,Q192=""),"",IF(O189="F",HLOOKUP(Q192,females,O190,FALSE),IF(O189="M",HLOOKUP(Q192,males,O190,FALSE),""))) -> Katie Keet | S192: Ash | T192: 28 | U192: =IF(OR(T192=0,T192="",O194=0,O194="",O195=0,O195="",O196=0,O196="",O197=0,O197=""),"",IF(T192<=O194,1,IF(T192<=O195,2,IF(T192<=O196,3,IF(T192<=O197,4,""))))) ->  | W192: 5 | X192: 7 | Y192: 5
A193: =VLOOKUP(B189,eventno,7,FALSE) -> 22.3 | B193: 3 | C193: 66 | D193: =IF(OR(C193=0,C193=""),"",IF(A189="F",HLOOKUP(C193,females,A190,FALSE),IF(A189="M",HLOOKUP(C193,males,A190,FALSE),""))) -> JOE FUGGLE | E193: Ton | F193: 27.3 | G193: =IF(OR(F193=0,F193="",A194=0,A194="",A195=0,A195="",A196=0,A196="",A197=0,A197=""),"",IF(F193<=A194,1,IF(F193<=A195,2,IF(F193<=A196,3,IF(F193<=A197,4,""))))) ->  | H193: =VLOOKUP(I189,eventno,7,FALSE) -> 24.1 | I193: 3 | J193: 4 | K193: =IF(OR(J193=0,J193=""),"",IF(H189="F",HLOOKUP(J193,females,H190,FALSE),IF(H189="M",HLOOKUP(J193,males,H190,FALSE),""))) -> Melissa Mendez | L193: Croy | M193: 28 | N193: =IF(OR(M193=0,M193="",H194=0,H194="",H195=0,H195="",H196=0,H196="",H197=0,H197=""),"",IF(M193<=H194,1,IF(M193<=H195,2,IF(M193<=H196,3,IF(M193<=H197,4,""))))) ->  | O193: =VLOOKUP(P189,eventno,7,FALSE) -> 24.1 | P193: 3 | Q193: 66 | R193: =IF(OR(Q193=0,Q193=""),"",IF(O189="F",HLOOKUP(Q193,females,O190,FALSE),IF(O189="M",HLOOKUP(Q193,males,O190,FALSE),""))) -> MADDIE SCAIFE | S193: Ton | T193: 28.3 | U193: =IF(OR(T193=0,T193="",O194=0,O194="",O195=0,O195="",O196=0,O196="",O197=0,O197=""),"",IF(T193<=O194,1,IF(T193<=O195,2,IF(T193<=O196,3,IF(T193<=O197,4,""))))) ->  | W193: 4 | X193: 6 | Y193: 4
A194: =VLOOKUP(B189,eventno,8,FALSE) -> 23.9 | B194: 4 | C194: 22 | D194: =IF(OR(C194=0,C194=""),"",IF(A189="F",HLOOKUP(C194,females,A190,FALSE),IF(A189="M",HLOOKUP(C194,males,A190,FALSE),""))) -> Lewis Hall | E194: Bas | F194: 27.9 | G194: =IF(OR(F194=0,F194="",A194=0,A194="",A195=0,A195="",A196=0,A196="",A197=0,A197=""),"",IF(F194<=A194,1,IF(F194<=A195,2,IF(F194<=A196,3,IF(F194<=A197,4,""))))) ->  | H194: =VLOOKUP(I189,eventno,8,FALSE) -> 25.6 | I194: 4 | J194: 5 | K194: =IF(OR(J194=0,J194=""),"",IF(H189="F",HLOOKUP(J194,females,H190,FALSE),IF(H189="M",HLOOKUP(J194,males,H190,FALSE),""))) -> Tomi Akingbade | L194: HavM | M194: 28.5 | N194: =IF(OR(M194=0,M194="",H194=0,H194="",H195=0,H195="",H196=0,H196="",H197=0,H197=""),"",IF(M194<=H194,1,IF(M194<=H195,2,IF(M194<=H196,3,IF(M194<=H197,4,""))))) ->  | O194: =VLOOKUP(P189,eventno,8,FALSE) -> 25.6 | P194: 4 | Q194: 44 | R194: =IF(OR(Q194=0,Q194=""),"",IF(O189="F",HLOOKUP(Q194,females,O190,FALSE),IF(O189="M",HLOOKUP(Q194,males,O190,FALSE),""))) -> Dorcus Ogundele | S194: Croy | T194: 31 | U194: =IF(OR(T194=0,T194="",O194=0,O194="",O195=0,O195="",O196=0,O196="",O197=0,O197=""),"",IF(T194<=O194,1,IF(T194<=O195,2,IF(T194<=O196,3,IF(T194<=O197,4,""))))) ->  | W194: 3 | X194: 5 | Y194: 3
A195: =VLOOKUP(B189,eventno,9,FALSE) -> 24.3 | B195: 5 | C195: 11 | D195: =IF(OR(C195=0,C195=""),"",IF(A189="F",HLOOKUP(C195,females,A190,FALSE),IF(A189="M",HLOOKUP(C195,males,A190,FALSE),""))) -> Edward Miller | E195: Ash | F195: 28.3 | G195: =IF(OR(F195=0,F195="",A194=0,A194="",A195=0,A195="",A196=0,A196="",A197=0,A197=""),"",IF(F195<=A194,1,IF(F195<=A195,2,IF(F195<=A196,3,IF(F195<=A197,4,""))))) ->  | H195: =VLOOKUP(I189,eventno,9,FALSE) -> 26 | I195: 5 | J195: 2 | K195: =IF(OR(J195=0,J195=""),"",IF(H189="F",HLOOKUP(J195,females,H190,FALSE),IF(H189="M",HLOOKUP(J195,males,H190,FALSE),""))) -> Rebecca Fraser | L195: Bas | M195: 29.4 | N195: =IF(OR(M195=0,M195="",H194=0,H194="",H195=0,H195="",H196=0,H196="",H197=0,H197=""),"",IF(M195<=H194,1,IF(M195<=H195,2,IF(M195<=H196,3,IF(M195<=H197,4,""))))) ->  | O195: =VLOOKUP(P189,eventno,9,FALSE) -> 26 | P195: 5 | Q195: 22 | R195: =IF(OR(Q195=0,Q195=""),"",IF(O189="F",HLOOKUP(Q195,females,O190,FALSE),IF(O189="M",HLOOKUP(Q195,males,O190,FALSE),""))) -> Alice Perkins | S195: Bas | T195: 31.2 | U195: =IF(OR(T195=0,T195="",O194=0,O194="",O195=0,O195="",O196=0,O196="",O197=0,O197=""),"",IF(T195<=O194,1,IF(T195<=O195,2,IF(T195<=O196,3,IF(T195<=O197,4,""))))) ->  | W195: 2 | X195: 4 | Y195: 2
A196: =VLOOKUP(B189,eventno,10,FALSE) -> 24.8 | B196: 6 | C196: 55 | D196: =IF(OR(C196=0,C196=""),"",IF(A189="F",HLOOKUP(C196,females,A190,FALSE),IF(A189="M",HLOOKUP(C196,males,A190,FALSE),""))) -> Elliott Nunn | E196: HavM | F196: 29.4 | G196: =IF(OR(F196=0,F196="",A194=0,A194="",A195=0,A195="",A196=0,A196="",A197=0,A197=""),"",IF(F196<=A194,1,IF(F196<=A195,2,IF(F196<=A196,3,IF(F196<=A197,4,""))))) ->  | H196: =VLOOKUP(I189,eventno,10,FALSE) -> 26.5 | I196: 6 | J196: 1 | K196: =IF(OR(J196=0,J196=""),"",IF(H189="F",HLOOKUP(J196,females,H190,FALSE),IF(H189="M",HLOOKUP(J196,males,H190,FALSE),""))) -> Abbie Purkis | L196: Ash | M196: 29.4 | N196: =IF(OR(M196=0,M196="",H194=0,H194="",H195=0,H195="",H196=0,H196="",H197=0,H197=""),"",IF(M196<=H194,1,IF(M196<=H195,2,IF(M196<=H196,3,IF(M196<=H197,4,""))))) ->  | O196: =VLOOKUP(P189,eventno,10,FALSE) -> 26.5 | P196: 6 | R196: =IF(OR(Q196=0,Q196=""),"",IF(O189="F",HLOOKUP(Q196,females,O190,FALSE),IF(O189="M",HLOOKUP(Q196,males,O190,FALSE),""))) ->  | U196: =IF(OR(T196=0,T196="",O194=0,O194="",O195=0,O195="",O196=0,O196="",O197=0,O197=""),"",IF(T196<=O194,1,IF(T196<=O195,2,IF(T196<=O196,3,IF(T196<=O197,4,""))))) ->  | W196: 1 | X196: 3 | Y196: 0
A197: =VLOOKUP(B189,eventno,11,FALSE) -> 25.6 | B197: 7 | D197: =IF(OR(C197=0,C197=""),"",IF(A189="F",HLOOKUP(C197,females,A190,FALSE),IF(A189="M",HLOOKUP(C197,males,A190,FALSE),""))) ->  | G197: =IF(OR(F197=0,F197="",A194=0,A194="",A195=0,A195="",A196=0,A196="",A197=0,A197=""),"",IF(F197<=A194,1,IF(F197<=A195,2,IF(F197<=A196,3,IF(F197<=A197,4,""))))) ->  | H197: =VLOOKUP(I189,eventno,11,FALSE) -> 27.1 | I197: 7 | K197: =IF(OR(J197=0,J197=""),"",IF(H189="F",HLOOKUP(J197,females,H190,FALSE),IF(H189="M",HLOOKUP(J197,males,H190,FALSE),""))) ->  | N197: =IF(OR(M197=0,M197="",H194=0,H194="",H195=0,H195="",H196=0,H196="",H197=0,H197=""),"",IF(M197<=H194,1,IF(M197<=H195,2,IF(M197<=H196,3,IF(M197<=H197,4,""))))) ->  | O197: =VLOOKUP(P189,eventno,11,FALSE) -> 27.1 | P197: 7 | R197: =IF(OR(Q197=0,Q197=""),"",IF(O189="F",HLOOKUP(Q197,females,O190,FALSE),IF(O189="M",HLOOKUP(Q197,males,O190,FALSE),""))) ->  | U197: =IF(OR(T197=0,T197="",O194=0,O194="",O195=0,O195="",O196=0,O196="",O197=0,O197=""),"",IF(T197<=O194,1,IF(T197<=O195,2,IF(T197<=O196,3,IF(T197<=O197,4,""))))) ->  | W197: 0 | X197: 0 | Y197: 0
A198: B | B198: 8 | D198: =IF(OR(C198=0,C198=""),"",IF(A189="F",HLOOKUP(C198,females,A190,FALSE),IF(A189="M",HLOOKUP(C198,males,A190,FALSE),""))) ->  | G198: =IF(OR(F198=0,F198="",A194=0,A194="",A195=0,A195="",A196=0,A196="",A197=0,A197=""),"",IF(F198<=A194,1,IF(F198<=A195,2,IF(F198<=A196,3,IF(F198<=A197,4,""))))) ->  | H198: A | I198: 8 | K198: =IF(OR(J198=0,J198=""),"",IF(H189="F",HLOOKUP(J198,females,H190,FALSE),IF(H189="M",HLOOKUP(J198,males,H190,FALSE),""))) ->  | N198: =IF(OR(M198=0,M198="",H194=0,H194="",H195=0,H195="",H196=0,H196="",H197=0,H197=""),"",IF(M198<=H194,1,IF(M198<=H195,2,IF(M198<=H196,3,IF(M198<=H197,4,""))))) ->  | O198: B | P198: 8 | R198: =IF(OR(Q198=0,Q198=""),"",IF(O189="F",HLOOKUP(Q198,females,O190,FALSE),IF(O189="M",HLOOKUP(Q198,males,O190,FALSE),""))) ->  | U198: =IF(OR(T198=0,T198="",O194=0,O194="",O195=0,O195="",O196=0,O196="",O197=0,O197=""),"",IF(T198<=O194,1,IF(T198<=O195,2,IF(T198<=O196,3,IF(T198<=O197,4,""))))) ->  | W198: 0 | X198: 0 | Y198: 0
W199: =IF(OR(B199=0,B199="",C199=0,C199="",F199=0,F199="",LEFT(F199,1)="D",LEFT(B199,1)="T",LEFT(B199,1)="P"),0,VLOOKUP(B199,points,2,FALSE)) -> 0 | X199: =IF(OR(I199=0,I199="",J199=0,J199="",M199=0,M199="",LEFT(M199,1)="D",LEFT(I199,1)="P",LEFT(I199,1)="T"),0,VLOOKUP(I199,points,2,FALSE)) -> 0 | Y199: =IF(OR(P199=0,P199="",Q199=0,Q199="",T199=0,T199="",LEFT(T199,1)="D",LEFT(P199)="T",LEFT(P199)="P"),0,VLOOKUP(P199,points,2,FALSE)) -> 0
A200: =VLOOKUP(B200,eventno,5,FALSE) -> M | B200: T28 | C200: =CONCATENATE(VLOOKUP(B200,eventno,4,FALSE)," '",A209,"'") -> U17M 200m 'A' | E200: =IF(A203="W","Wind =","") -> Wind = | G200: =IF(OR(F202=0,F202="",A204=0,A204=""),"",IF(A202="T",IF(F202<A204,"LR",IF(F202=A204,"LR=","")))) ->  | H200: =VLOOKUP(I200,eventno,5,FALSE) -> M | I200: T28 | J200: =CONCATENATE(VLOOKUP(I200,eventno,4,FALSE)," '",H209,"'") -> U17M 200m 'B' | L200: =IF(H203="W","Wind =","") -> Wind = | N200: =IF(OR(M202=0,M202="",H204=0,H204=""),"",IF(H202="T",IF(M202<H204,"LR",IF(M202=H204,"LR=","")))) ->  | O200: =VLOOKUP(P200,eventno,5,FALSE) -> F | P200: T29 | Q200: =CONCATENATE(VLOOKUP(P200,eventno,4,FALSE)," '",O209,"'") -> U13G 1200m 'A' | S200: =IF(O203="W","Wind =","") ->  | U200: =IF(OR(T202=0,T202="",O204=0,O204=""),"",IF(O202="T",IF(T202<O204,"LR",IF(T202=O204,"LR=","")))) ->  | W200: =IF(OR(B200=0,B200="",C200=0,C200="",F200=0,F200="",LEFT(F200,1)="D",LEFT(B200,1)="P"),0,VLOOKUP(B200,points,2,FALSE)) -> 0 | X200: =IF(OR(I200=0,I200="",J200=0,J200="",M200=0,M200="",LEFT(M200,1)="D",LEFT(I200,1)="P",LEFT(I200,1)="T"),0,VLOOKUP(I200,points,2,FALSE)-2) -> 0 | Y200: 0
... 87 more rows

Sheet Field
AA1: No Events
A2: =VLOOKUP(B2,eventno,5,FALSE) -> M | B2: ='Field Input Sheet'!B2 -> F1 | C2: =CONCATENATE(VLOOKUP(B2,eventno,4,FALSE)," '",A11,"'") -> U15B Hammer 'A' | E2: =IF(A5="W","Wind =","") ->  | G2: =IF(OR(F4=0,F4="",$A$6=0,$A$6=""),"",IF($A$4="F",IF(F4>$A$6,"LR",IF(F4=$A$6,"LR=","")))) ->  | H2: =VLOOKUP(I2,eventno,5,FALSE) -> M | I2: ='Field Input Sheet'!B2 -> F1 | J2: =CONCATENATE(VLOOKUP(I2,eventno,4,FALSE)," '",H11,"'") -> U15B Hammer 'B' | L2: =IF(H5="W","Wind =","") ->  | N2: =IF(OR(M4=0,M4="",$H$6=0,$H$6=""),"",IF($H$4="F",IF(M4>$H$6,"LR",IF(M4=$H$6,"LR=","")))) ->  | O2: =VLOOKUP(P2,eventno,5,FALSE) -> M | P2: ='Field Input Sheet'!J2 -> F2 | Q2: =CONCATENATE(VLOOKUP(P2,eventno,4,FALSE)," '",O11,"'") -> U17M Hammer 'A' | S2: =IF(O5="W","Wind =","") ->  | U2: =IF(OR(T4=0,T4="",$A$6=0,$A$6=""),"",IF($A$4="F",IF(T4>$A$6,"LR",IF(T4=$A$6,"LR=","")))) ->  | W2: =IF(OR(C2=0,C2="",C2=0,C2="",F2=0,F2="",LEFT(F2,1)="D",LEFT(B2,1)="F",LEFT(B2,1)="P"),0,VLOOKUP(B2,points,2,FALSE)) -> 0 | X2: =IF(OR(J2=0,J2="",K2=0,K2="",M2=0,O2="",LEFT(M2,1)="D",LEFT(I2,1)="F",LEFT(I2,1)="P"),0,VLOOKUP(I2,points,2,FALSE)-2) -> 0 | Y2: =IF(OR(Q2=0,Q2="",R2=0,R2="",T2=0,T2="",LEFT(T2,1)="D",LEFT(P2,1)="F",LEFT(P2,1)="P"),0,VLOOKUP(P2,points,2,FALSE)) -> 0 | AA2: =SUM(AA3:AA300) -> 34
A3: =IF(A2="M",VLOOKUP(B2,males,25,FALSE),VLOOKUP(B2,females,25,FALSE)) -> 35 | B3: Posn | C3: Bib | D3: Athlete | E3: Club | F3: Perf | G3: Gr | H3: =IF(H2="M",VLOOKUP(I2,males,25,FALSE),VLOOKUP(I2,females,25,FALSE)) -> 35 | I3: Posn | J3: Bib | K3: Athlete | L3: Club | M3: Perf | N3: Gr | O3: =IF(O2="M",VLOOKUP(P2,males,25,FALSE),VLOOKUP(P2,females,25,FALSE)) -> 36 | P3: Posn | Q3: Bib | R3: Athlete | S3: Club | T3: Perf | U3: Gr | W3: 0 | X3: 0 | Y3: 0
A4: =LEFT(B2,1) -> F | B4: =IF(OR(INDIRECT(CONCATENATE("Distance!d",VLOOKUP(B2,distance,2,FALSE)+19))=0,INDIRECT(CONCATENATE("Distance!d",VLOOKUP(B2,distance,2,FALSE)+19))=""),"",INDIRECT(CONCATENATE("Distance!d",VLOOKUP(B2,distance,2,FALSE)+19))) -> 1 | C4: =IF('Field Input Sheet'!$Z$2="",INDIRECT(CONCATENATE("Distance!E",VLOOKUP(B2,distance,2,FALSE)+19)),VALUE(LEFT('Field Input Sheet'!$Z$2,3))) -> 1 | D4: =IF(OR(C4=0,C4="",C4=" "),"",IF(A2="F",HLOOKUP(C4,females,A3,FALSE),IF(A2="M",HLOOKUP(C4,males,A3,FALSE),""))) -> Alex Lynch | E4: =IF(OR(C4=0,C4="",C4="-"),"",IF(C4>8,VLOOKUP(C4/11,match_teams,4,FALSE),VLOOKUP(C4,match_teams,4,FALSE))) -> Ash | F4: =INDIRECT(CONCATENATE("Distance!h",VLOOKUP(B2,distance,2,FALSE)+19)) -> 24.82 | G4: =IF(OR(F4=0,F4="",F4="NHC",A7=0,A7="",A8=0,A8="",A9=0,A9="",A10=0,A10=""),"",IF(F4>=A7,1,IF(F4>=A8,2,IF(F4>=A9,3,IF(F4>=A10,4,""))))) ->  | H4: =LEFT(I2,1) -> F | I4: =IF(OR(INDIRECT(CONCATENATE("Distance!j",VLOOKUP(I2,distance,2,FALSE)+19))=0,INDIRECT(CONCATENATE("Distance!j",VLOOKUP(I2,distance,2,FALSE)+19))=""),"",INDIRECT(CONCATENATE("Distance!j",VLOOKUP(I2,distance,2,FALSE)+19))) -> 1 | J4: =IF('Field Input Sheet'!$Z$2="",INDIRECT(CONCATENATE("Distance!k",VLOOKUP(I2,distance,2,FALSE)+19)),VALUE(LEFT('Field Input Sheet'!$Z$2,3))) -> 44 | K4: =IF(OR(J4=0,J4="",J4=" "),"",IF(H2="F",HLOOKUP(J4,females,H3,FALSE),IF(H2="M",HLOOKUP(J4,males,H3,FALSE),""))) -> Maleek Montgomery | L4: =IF(OR(J4=0,J4="",J4="-"),"",IF(J4>8,VLOOKUP(J4/11,match_teams,4,FALSE),VLOOKUP(J4,match_teams,4,FALSE))) -> Croy | M4: =INDIRECT(CONCATENATE("Distance!t",VLOOKUP(I2,distance,2,FALSE)+19)) -> 11.73 | N4: =IF(OR(M4=0,M4="",M4="NHC",H7=0,H7="",H8=0,H8="",H9=0,H9="",H10=0,H10=""),"",IF(M4>=H7,1,IF(M4>=H8,2,IF(M4>=H9,3,IF(M4>=H10,4,""))))) ->  | O4: =LEFT(P2,1) -> F | P4: =IF(OR(INDIRECT(CONCATENATE("Distance!d",VLOOKUP(P2,distance,2,FALSE)+19))=0,INDIRECT(CONCATENATE("Distance!d",VLOOKUP(P2,distance,2,FALSE)+19))=""),"",INDIRECT(CONCATENATE("Distance!d",VLOOKUP(P2,distance,2,FALSE)+19))) -> 1 | Q4: =IF('Field Input Sheet'!$Z$3="",INDIRECT(CONCATENATE("Distance!E",VLOOKUP(P2,distance,2,FALSE)+19)),VALUE(LEFT('Field Input Sheet'!$Z$3,3))) -> 6 | R4: =IF(OR(Q4=0,Q4="",Q4=" "),"",IF(O2="F",HLOOKUP(Q4,females,O3,FALSE),IF(O2="M",HLOOKUP(Q4,males,O3,FALSE),""))) -> NIALL HEALY | S4: =IF(OR(Q4=0,Q4="",Q4="-"),"",IF(Q4>8,VLOOKUP(Q4/11,match_teams,4,FALSE),VLOOKUP(Q4,match_teams,4,FALSE))) -> Ton | T4: =INDIRECT(CONCATENATE("Distance!h",VLOOKUP(P2,distance,2,FALSE)+19)) -> 39.52 | U4: =IF(OR(T4=0,T4="",T4="NHC",O7=0,O7="",O8=0,O8="",O9=0,O9="",O10=0,O10=""),"",IF(T4>=O7,1,IF(T4>=O8,2,IF(T4>=O9,3,IF(T4>=O10,4,""))))) -> 4 | W4: 9 | X4: 7 | Y4: 9 | AA4: =IF(VALUE(C4)=0,0,1) -> 1
A5: =VLOOKUP(B2,eventno,6,FALSE) -> 0 | B5: =IF(OR(INDIRECT(CONCATENATE("Distance!d",VLOOKUP(B2,distance,2,FALSE)+20))=0,INDIRECT(CONCATENATE("Distance!d",VLOOKUP(B2,distance,2,FALSE)+20))=""),"",INDIRECT(CONCATENATE("Distance!d",VLOOKUP(B2,distance,2,FALSE)+20))) -> 2 | C5: =INDIRECT(CONCATENATE("Distance!E",VLOOKUP(B2,distance,2,FALSE)+20)) -> 4 | D5: =IF(OR(C5=0,C5="",C5=" "),"",IF(A2="F",HLOOKUP(C5,females,A3,FALSE),IF(A2="M",HLOOKUP(C5,males,A3,FALSE),""))) -> Marcelle Rowe | E5: Croy | F5: =INDIRECT(CONCATENATE("Distance!h",VLOOKUP(B2,distance,2,FALSE)+20)) -> 24.36 | G5: =IF(OR(F5=0,F5="",F5="NHC",A7=0,A7="",A8=0,A8="",A9=0,A9="",A10=0,A10=""),"",IF(F5>=A7,1,IF(F5>=A8,2,IF(F5>=A9,3,IF(F5>=A10,4,""))))) ->  | H5: =VLOOKUP(I2,eventno,6,FALSE) -> 0 | I5: =IF(OR(INDIRECT(CONCATENATE("Distance!j",VLOOKUP(I2,distance,2,FALSE)+20))=0,INDIRECT(CONCATENATE("Distance!j",VLOOKUP(I2,distance,2,FALSE)+20))=""),"",INDIRECT(CONCATENATE("Distance!j",VLOOKUP(I2,distance,2,FALSE)+20))) -> 2 | J5: =INDIRECT(CONCATENATE("Distance!k",VLOOKUP(I2,distance,2,FALSE)+20)) -> 66 | K5: =IF(OR(J5=0,J5="",J5=" "),"",IF(H2="F",HLOOKUP(J5,females,H3,FALSE),IF(H2="M",HLOOKUP(J5,males,H3,FALSE),""))) -> RUBBEN CRABBE | L5: Ton | M5: =INDIRECT(CONCATENATE("Distance!t",VLOOKUP(I2,distance,2,FALSE)+20)) -> 11.39 | N5: =IF(OR(M5=0,M5="",M5="NHC",H7=0,H7="",H8=0,H8="",H9=0,H9="",H10=0,H10=""),"",IF(M5>=H7,1,IF(M5>=H8,2,IF(M5>=H9,3,IF(M5>=H10,4,""))))) ->  | O5: =VLOOKUP(P2,eventno,6,FALSE) -> 0 | P5: =IF(OR(INDIRECT(CONCATENATE("Distance!d",VLOOKUP(P2,distance,2,FALSE)+20))=0,INDIRECT(CONCATENATE("Distance!d",VLOOKUP(P2,distance,2,FALSE)+20))=""),"",INDIRECT(CONCATENATE("Distance!d",VLOOKUP(P2,distance,2,FALSE)+20))) -> 2 | Q5: =INDIRECT(CONCATENATE("Distance!E",VLOOKUP(P2,distance,2,FALSE)+20)) -> 3 | R5: =IF(OR(Q5=0,Q5="",Q5=" "),"",IF(O2="F",HLOOKUP(Q5,females,O3,FALSE),IF(O2="M",HLOOKUP(Q5,males,O3,FALSE),""))) -> Daniel Hollet | S5: B&B | T5: =INDIRECT(CONCATENATE("Distance!h",VLOOKUP(P2,distance,2,FALSE)+20)) -> 21.46 | U5: =IF(OR(T5=0,T5="",T5="NHC",O7=0,O7="",O8=0,O8="",O9=0,O9="",O10=0,O10=""),"",IF(T5>=O7,1,IF(T5>=O8,2,IF(T5>=O9,3,IF(T5>=O10,4,""))))) ->  | W5: 7 | X5: 5 | Y5: 7 | AA5: =IF(VALUE(Q4)=0,0,1) -> 1
A6: =VLOOKUP(B2,eventno,7,FALSE) -> 69.04 | B6: =IF(OR(INDIRECT(CONCATENATE("Distance!d",VLOOKUP(B2,distance,2,FALSE)+21))=0,INDIRECT(CONCATENATE("Distance!d",VLOOKUP(B2,distance,2,FALSE)+21))=""),"",INDIRECT(CONCATENATE("Distance!d",VLOOKUP(B2,distance,2,FALSE)+21))) -> 3 | C6: =INDIRECT(CONCATENATE("Distance!E",VLOOKUP(B2,distance,2,FALSE)+21)) -> 3 | D6: =IF(OR(C6=0,C6="",C6=" "),"",IF(A2="F",HLOOKUP(C6,females,A3,FALSE),IF(A2="M",HLOOKUP(C6,males,A3,FALSE),""))) -> Cameron Grant | E6: B&B | F6: =INDIRECT(CONCATENATE("Distance!h",VLOOKUP(B2,distance,2,FALSE)+21)) -> 24.18 | G6: =IF(OR(F6=0,F6="",F6="NHC",A7=0,A7="",A8=0,A8="",A9=0,A9="",A10=0,A10=""),"",IF(F6>=A7,1,IF(F6>=A8,2,IF(F6>=A9,3,IF(F6>=A10,4,""))))) ->  | H6: =VLOOKUP(I2,eventno,7,FALSE) -> 69.04 | I6: =IF(OR(INDIRECT(CONCATENATE("Distance!j",VLOOKUP(I2,distance,2,FALSE)+21))=0,INDIRECT(CONCATENATE("Distance!j",VLOOKUP(I2,distance,2,FALSE)+21))=""),"",INDIRECT(CONCATENATE("Distance!j",VLOOKUP(I2,distance,2,FALSE)+21))) -> 3 | J6: =INDIRECT(CONCATENATE("Distance!k",VLOOKUP(I2,distance,2,FALSE)+21)) -> 0 | K6: =IF(OR(J6=0,J6="",J6=" "),"",IF(H2="F",HLOOKUP(J6,females,H3,FALSE),IF(H2="M",HLOOKUP(J6,males,H3,FALSE),""))) ->  | M6: =INDIRECT(CONCATENATE("Distance!t",VLOOKUP(I2,distance,2,FALSE)+21)) -> 0 | N6: =IF(OR(M6=0,M6="",M6="NHC",H7=0,H7="",H8=0,H8="",H9=0,H9="",H10=0,H10=""),"",IF(M6>=H7,1,IF(M6>=H8,2,IF(M6>=H9,3,IF(M6>=H10,4,""))))) ->  | O6: =VLOOKUP(P2,eventno,7,FALSE) -> 74.8 | P6: =IF(OR(INDIRECT(CONCATENATE("Distance!d",VLOOKUP(P2,distance,2,FALSE)+21))=0,INDIRECT(CONCATENATE("Distance!d",VLOOKUP(P2,distance,2,FALSE)+21))=""),"",INDIRECT(CONCATENATE("Distance!d",VLOOKUP(P2,distance,2,FALSE)+21))) -> 3 | Q6: =INDIRECT(CONCATENATE("Distance!E",VLOOKUP(P2,distance,2,FALSE)+21)) -> 55 | R6: =IF(OR(Q6=0,Q6="",Q6=" "),"",IF(O2="F",HLOOKUP(Q6,females,O3,FALSE),IF(O2="M",HLOOKUP(Q6,males,O3,FALSE),""))) -> Dan Bristow | S6: HavM | T6: =INDIRECT(CONCATENATE("Distance!h",VLOOKUP(P2,distance,2,FALSE)+21)) -> 20.12 | U6: =IF(OR(T6=0,T6="",T6="NHC",O7=0,O7="",O8=0,O8="",O9=0,O9="",O10=0,O10=""),"",IF(T6>=O7,1,IF(T6>=O8,2,IF(T6>=O9,3,IF(T6>=O10,4,""))))) ->  | W6: 6 | X6: 0 | Y6: 6
A7: =VLOOKUP(B2,eventno,8,FALSE) -> 46.2 | B7: =IF(OR(INDIRECT(CONCATENATE("Distance!d",VLOOKUP(B2,distance,2,FALSE)+22))=0,INDIRECT(CONCATENATE("Distance!d",VLOOKUP(B2,distance,2,FALSE)+22))=""),"",INDIRECT(CONCATENATE("Distance!d",VLOOKUP(B2,distance,2,FALSE)+22))) -> 4 | C7: =INDIRECT(CONCATENATE("Distance!E",VLOOKUP(B2,distance,2,FALSE)+22)) -> 2 | D7: =IF(OR(C7=0,C7="",C7=" "),"",IF(A2="F",HLOOKUP(C7,females,A3,FALSE),IF(A2="M",HLOOKUP(C7,males,A3,FALSE),""))) -> Ollie Cantwell | E7: Bas | F7: =INDIRECT(CONCATENATE("Distance!h",VLOOKUP(B2,distance,2,FALSE)+22)) -> 18.94 | G7: =IF(OR(F7=0,F7="",F7="NHC",A7=0,A7="",A8=0,A8="",A9=0,A9="",A10=0,A10=""),"",IF(F7>=A7,1,IF(F7>=A8,2,IF(F7>=A9,3,IF(F7>=A10,4,""))))) ->  | H7: =VLOOKUP(I2,eventno,8,FALSE) -> 46.2 | I7: =IF(OR(INDIRECT(CONCATENATE("Distance!j",VLOOKUP(I2,distance,2,FALSE)+22))=0,INDIRECT(CONCATENATE("Distance!j",VLOOKUP(I2,distance,2,FALSE)+22))=""),"",INDIRECT(CONCATENATE("Distance!j",VLOOKUP(I2,distance,2,FALSE)+22))) -> 4 | J7: =INDIRECT(CONCATENATE("Distance!k",VLOOKUP(I2,distance,2,FALSE)+22)) -> 0 | K7: =IF(OR(J7=0,J7="",J7=" "),"",IF(H2="F",HLOOKUP(J7,females,H3,FALSE),IF(H2="M",HLOOKUP(J7,males,H3,FALSE),""))) ->  | M7: =INDIRECT(CONCATENATE("Distance!t",VLOOKUP(I2,distance,2,FALSE)+22)) -> 0 | N7: =IF(OR(M7=0,M7="",M7="NHC",H7=0,H7="",H8=0,H8="",H9=0,H9="",H10=0,H10=""),"",IF(M7>=H7,1,IF(M7>=H8,2,IF(M7>=H9,3,IF(M7>=H10,4,""))))) ->  | O7: =VLOOKUP(P2,eventno,8,FALSE) -> 51.5 | P7: =IF(OR(INDIRECT(CONCATENATE("Distance!d",VLOOKUP(P2,distance,2,FALSE)+22))=0,INDIRECT(CONCATENATE("Distance!d",VLOOKUP(P2,distance,2,FALSE)+22))=""),"",INDIRECT(CONCATENATE("Distance!d",VLOOKUP(P2,distance,2,FALSE)+22))) -> 4 | Q7: =INDIRECT(CONCATENATE("Distance!E",VLOOKUP(P2,distance,2,FALSE)+22)) -> 2 | R7: =IF(OR(Q7=0,Q7="",Q7=" "),"",IF(O2="F",HLOOKUP(Q7,females,O3,FALSE),IF(O2="M",HLOOKUP(Q7,males,O3,FALSE),""))) -> Aaron York | S7: Bas | T7: =INDIRECT(CONCATENATE("Distance!h",VLOOKUP(P2,distance,2,FALSE)+22)) -> 20.02 | U7: =IF(OR(T7=0,T7="",T7="NHC",O7=0,O7="",O8=0,O8="",O9=0,O9="",O10=0,O10=""),"",IF(T7>=O7,1,IF(T7>=O8,2,IF(T7>=O9,3,IF(T7>=O10,4,""))))) ->  | W7: 5 | X7: 0 | Y7: 5
A8: =VLOOKUP(B2,eventno,9,FALSE) -> 38.35 | B8: =IF(OR(INDIRECT(CONCATENATE("Distance!d",VLOOKUP(B2,distance,2,FALSE)+23))=0,INDIRECT(CONCATENATE("Distance!d",VLOOKUP(B2,distance,2,FALSE)+23))=""),"",INDIRECT(CONCATENATE("Distance!d",VLOOKUP(B2,distance,2,FALSE)+23))) -> 5 | C8: =INDIRECT(CONCATENATE("Distance!E",VLOOKUP(B2,distance,2,FALSE)+23)) -> 6 | D8: =IF(OR(C8=0,C8="",C8=" "),"",IF(A2="F",HLOOKUP(C8,females,A3,FALSE),IF(A2="M",HLOOKUP(C8,males,A3,FALSE),""))) -> CHRIS COHEN | E8: Ton | F8: =INDIRECT(CONCATENATE("Distance!h",VLOOKUP(B2,distance,2,FALSE)+23)) -> 14.02 | G8: =IF(OR(F8=0,F8="",F8="NHC",A7=0,A7="",A8=0,A8="",A9=0,A9="",A10=0,A10=""),"",IF(F8>=A7,1,IF(F8>=A8,2,IF(F8>=A9,3,IF(F8>=A10,4,""))))) ->  | H8: =VLOOKUP(I2,eventno,9,FALSE) -> 38.35 | I8: =IF(OR(INDIRECT(CONCATENATE("Distance!j",VLOOKUP(I2,distance,2,FALSE)+23))=0,INDIRECT(CONCATENATE("Distance!j",VLOOKUP(I2,distance,2,FALSE)+23))=""),"",INDIRECT(CONCATENATE("Distance!j",VLOOKUP(I2,distance,2,FALSE)+23))) -> 5 | J8: =INDIRECT(CONCATENATE("Distance!k",VLOOKUP(I2,distance,2,FALSE)+23)) -> 0 | K8: =IF(OR(J8=0,J8="",J8=" "),"",IF(H2="F",HLOOKUP(J8,females,H3,FALSE),IF(H2="M",HLOOKUP(J8,males,H3,FALSE),""))) ->  | M8: =INDIRECT(CONCATENATE("Distance!t",VLOOKUP(I2,distance,2,FALSE)+23)) -> 0 | N8: =IF(OR(M8=0,M8="",M8="NHC",H7=0,H7="",H8=0,H8="",H9=0,H9="",H10=0,H10=""),"",IF(M8>=H7,1,IF(M8>=H8,2,IF(M8>=H9,3,IF(M8>=H10,4,""))))) ->  | O8: =VLOOKUP(P2,eventno,9,FALSE) -> 47.4 | P8: =IF(OR(INDIRECT(CONCATENATE("Distance!d",VLOOKUP(P2,distance,2,FALSE)+23))=0,INDIRECT(CONCATENATE("Distance!d",VLOOKUP(P2,distance,2,FALSE)+23))=""),"",INDIRECT(CONCATENATE("Distance!d",VLOOKUP(P2,distance,2,FALSE)+23))) -> 5 | Q8: =INDIRECT(CONCATENATE("Distance!E",VLOOKUP(P2,distance,2,FALSE)+23)) -> 44 | R8: =IF(OR(Q8=0,Q8="",Q8=" "),"",IF(O2="F",HLOOKUP(Q8,females,O3,FALSE),IF(O2="M",HLOOKUP(Q8,males,O3,FALSE),""))) -> Giacomo Spagnoli | S8: Croy | T8: =INDIRECT(CONCATENATE("Distance!h",VLOOKUP(P2,distance,2,FALSE)+23)) -> 19.44 | U8: =IF(OR(T8=0,T8="",T8="NHC",O7=0,O7="",O8=0,O8="",O9=0,O9="",O10=0,O10=""),"",IF(T8>=O7,1,IF(T8>=O8,2,IF(T8>=O9,3,IF(T8>=O10,4,""))))) ->  | W8: 4 | X8: 0 | Y8: 4
A9: =VLOOKUP(B2,eventno,10,FALSE) -> 31.45 | B9: =IF(OR(INDIRECT(CONCATENATE("Distance!d",VLOOKUP(B2,distance,2,FALSE)+24))=0,INDIRECT(CONCATENATE("Distance!d",VLOOKUP(B2,distance,2,FALSE)+24))=""),"",INDIRECT(CONCATENATE("Distance!d",VLOOKUP(B2,distance,2,FALSE)+24))) -> 6 | C9: =INDIRECT(CONCATENATE("Distance!E",VLOOKUP(B2,distance,2,FALSE)+24)) -> 0 | D9: =IF(OR(C9=0,C9="",C9=" "),"",IF(A2="F",HLOOKUP(C9,females,A3,FALSE),IF(A2="M",HLOOKUP(C9,males,A3,FALSE),""))) ->  | F9: =INDIRECT(CONCATENATE("Distance!h",VLOOKUP(B2,distance,2,FALSE)+24)) -> 0 | G9: =IF(OR(F9=0,F9="",F9="NHC",A7=0,A7="",A8=0,A8="",A9=0,A9="",A10=0,A10=""),"",IF(F9>=A7,1,IF(F9>=A8,2,IF(F9>=A9,3,IF(F9>=A10,4,""))))) ->  | H9: =VLOOKUP(I2,eventno,10,FALSE) -> 31.45 | I9: =IF(OR(INDIRECT(CONCATENATE("Distance!j",VLOOKUP(I2,distance,2,FALSE)+24))=0,INDIRECT(CONCATENATE("Distance!j",VLOOKUP(I2,distance,2,FALSE)+24))=""),"",INDIRECT(CONCATENATE("Distance!j",VLOOKUP(I2,distance,2,FALSE)+24))) -> 6 | J9: =INDIRECT(CONCATENATE("Distance!k",VLOOKUP(I2,distance,2,FALSE)+24)) -> 0 | K9: =IF(OR(J9=0,J9="",J9=" "),"",IF(H2="F",HLOOKUP(J9,females,H3,FALSE),IF(H2="M",HLOOKUP(J9,males,H3,FALSE),""))) ->  | M9: =INDIRECT(CONCATENATE("Distance!t",VLOOKUP(I2,distance,2,FALSE)+24)) -> 0 | N9: =IF(OR(M9=0,M9="",M9="NHC",H7=0,H7="",H8=0,H8="",H9=0,H9="",H10=0,H10=""),"",IF(M9>=H7,1,IF(M9>=H8,2,IF(M9>=H9,3,IF(M9>=H10,4,""))))) ->  | O9: =VLOOKUP(P2,eventno,10,FALSE) -> 39.75 | P9: =IF(OR(INDIRECT(CONCATENATE("Distance!d",VLOOKUP(P2,distance,2,FALSE)+24))=0,INDIRECT(CONCATENATE("Distance!d",VLOOKUP(P2,distance,2,FALSE)+24))=""),"",INDIRECT(CONCATENATE("Distance!d",VLOOKUP(P2,distance,2,FALSE)+24))) -> 6 | Q9: =INDIRECT(CONCATENATE("Distance!E",VLOOKUP(P2,distance,2,FALSE)+24)) -> 0 | R9: =IF(OR(Q9=0,Q9="",Q9=" "),"",IF(O2="F",HLOOKUP(Q9,females,O3,FALSE),IF(O2="M",HLOOKUP(Q9,males,O3,FALSE),""))) ->  | T9: =INDIRECT(CONCATENATE("Distance!h",VLOOKUP(P2,distance,2,FALSE)+24)) -> 0 | U9: =IF(OR(T9=0,T9="",T9="NHC",O7=0,O7="",O8=0,O8="",O9=0,O9="",O10=0,O10=""),"",IF(T9>=O7,1,IF(T9>=O8,2,IF(T9>=O9,3,IF(T9>=O10,4,""))))) ->  | W9: 0 | X9: 0 | Y9: 0
A10: =VLOOKUP(B2,eventno,11,FALSE) -> 25 | B10: =IF(OR(INDIRECT(CONCATENATE("Distance!d",VLOOKUP(B2,distance,2,FALSE)+25))=0,INDIRECT(CONCATENATE("Distance!d",VLOOKUP(B2,distance,2,FALSE)+25))=""),"",INDIRECT(CONCATENATE("Distance!d",VLOOKUP(B2,distance,2,FALSE)+25))) -> 7 | C10: =INDIRECT(CONCATENATE("Distance!E",VLOOKUP(B2,distance,2,FALSE)+25)) -> 0 | D10: =IF(OR(C10=0,C10="",C10=" "),"",IF(A2="F",HLOOKUP(C10,females,A3,FALSE),IF(A2="M",HLOOKUP(C10,males,A3,FALSE),""))) ->  | F10: =INDIRECT(CONCATENATE("Distance!h",VLOOKUP(B2,distance,2,FALSE)+25)) -> 0 | H10: =VLOOKUP(I2,eventno,11,FALSE) -> 25 | I10: =IF(OR(INDIRECT(CONCATENATE("Distance!j",VLOOKUP(I2,distance,2,FALSE)+25))=0,INDIRECT(CONCATENATE("Distance!j",VLOOKUP(I2,distance,2,FALSE)+25))=""),"",INDIRECT(CONCATENATE("Distance!j",VLOOKUP(I2,distance,2,FALSE)+25))) -> 7 | J10: =INDIRECT(CONCATENATE("Distance!k",VLOOKUP(I2,distance,2,FALSE)+25)) -> 0 | K10: =IF(OR(J10=0,J10="",J10=" "),"",IF(H2="F",HLOOKUP(J10,females,H3,FALSE),IF(H2="M",HLOOKUP(J10,males,H3,FALSE),""))) ->  | M10: =INDIRECT(CONCATENATE("Distance!t",VLOOKUP(I2,distance,2,FALSE)+25)) -> 0 | O10: =VLOOKUP(P2,eventno,11,FALSE) -> 30.1 | P10: =IF(OR(INDIRECT(CONCATENATE("Distance!d",VLOOKUP(P2,distance,2,FALSE)+25))=0,INDIRECT(CONCATENATE("Distance!d",VLOOKUP(P2,distance,2,FALSE)+25))=""),"",INDIRECT(CONCATENATE("Distance!d",VLOOKUP(P2,distance,2,FALSE)+25))) -> 7 | Q10: =INDIRECT(CONCATENATE("Distance!E",VLOOKUP(P2,distance,2,FALSE)+25)) -> 0 | R10: =IF(OR(Q10=0,Q10="",Q10=" "),"",IF(O2="F",HLOOKUP(Q10,females,O3,FALSE),IF(O2="M",HLOOKUP(Q10,males,O3,FALSE),""))) ->  | T10: =INDIRECT(CONCATENATE("Distance!h",VLOOKUP(P2,distance,2,FALSE)+25)) -> 0 | W10: 0 | X10: 0 | Y10: 0
A11: A | B11: =IF(OR(INDIRECT(CONCATENATE("Distance!d",VLOOKUP(B2,distance,2,FALSE)+26))=0,INDIRECT(CONCATENATE("Distance!d",VLOOKUP(B2,distance,2,FALSE)+26))=""),"",INDIRECT(CONCATENATE("Distance!d",VLOOKUP(B2,distance,2,FALSE)+26))) -> 8 | C11: =INDIRECT(CONCATENATE("Distance!E",VLOOKUP(B2,distance,2,FALSE)+26)) -> 0 | D11: =IF(OR(C11=0,C11="",C11=" "),"",IF(A2="F",HLOOKUP(C11,females,A3,FALSE),IF(A2="M",HLOOKUP(C11,males,A3,FALSE),""))) ->  | F11: =INDIRECT(CONCATENATE("Distance!h",VLOOKUP(B2,distance,2,FALSE)+26)) -> 0 | H11: B | I11: =IF(OR(INDIRECT(CONCATENATE("Distance!j",VLOOKUP(I2,distance,2,FALSE)+26))=0,INDIRECT(CONCATENATE("Distance!j",VLOOKUP(I2,distance,2,FALSE)+26))=""),"",INDIRECT(CONCATENATE("Distance!j",VLOOKUP(I2,distance,2,FALSE)+26))) -> 8 | J11: =INDIRECT(CONCATENATE("Distance!k",VLOOKUP(I2,distance,2,FALSE)+26)) -> 0 | K11: =IF(OR(J11=0,J11="",J11=" "),"",IF(H2="F",HLOOKUP(J11,females,H3,FALSE),IF(H2="M",HLOOKUP(J11,males,H3,FALSE),""))) ->  | M11: =INDIRECT(CONCATENATE("Distance!t",VLOOKUP(I2,distance,2,FALSE)+26)) -> 0 | O11: A | P11: =IF(OR(INDIRECT(CONCATENATE("Distance!d",VLOOKUP(P2,distance,2,FALSE)+26))=0,INDIRECT(CONCATENATE("Distance!d",VLOOKUP(P2,distance,2,FALSE)+26))=""),"",INDIRECT(CONCATENATE("Distance!d",VLOOKUP(P2,distance,2,FALSE)+26))) -> 8 | Q11: =INDIRECT(CONCATENATE("Distance!E",VLOOKUP(P2,distance,2,FALSE)+26)) -> 0 | R11: =IF(OR(Q11=0,Q11="",Q11=" "),"",IF(O2="F",HLOOKUP(Q11,females,O3,FALSE),IF(O2="M",HLOOKUP(Q11,males,O3,FALSE),""))) ->  | T11: =INDIRECT(CONCATENATE("Distance!h",VLOOKUP(P2,distance,2,FALSE)+26)) -> 0 | W11: 0 | X11: 0 | Y11: 0
W12: 0 | X12: =IF(OR(J12=0,J12="",K12=0,K12="",M12=0,O12="",LEFT(M12,1)="D",LEFT(I12,1)="F",LEFT(I12,1)="P"),0,VLOOKUP(I12,points,2,FALSE)) -> 0 | Y12: 0
A13: =VLOOKUP(B13,eventno,5,FALSE) -> M | B13: ='Field Input Sheet'!J2 -> F2 | C13: =CONCATENATE(VLOOKUP(B13,eventno,4,FALSE)," '",A22,"'") -> U17M Hammer 'B' | E13: =IF(A16="W","Wind =","") ->  | G13: =IF(OR(F15=0,F15="",$H$6=0,$H$6=""),"",IF($H$4="F",IF(F15>$H$6,"LR",IF(F15=$H$6,"LR=","")))) ->  | H13: =VLOOKUP(I13,eventno,5,FALSE) -> F | I13: ='Field Input Sheet'!R2 -> F3 | J13: =CONCATENATE(VLOOKUP(I13,eventno,4,FALSE)," '",H22,"'") -> U17W Hammer 'A' | L13: =IF(H16="W","Wind =","") ->  | N13: =IF(OR(M15=0,M15="",$A$6=0,$A$6=""),"",IF($A$4="F",IF(M15>$A$6,"LR",IF(M15=$A$6,"LR=","")))) ->  | O13: =VLOOKUP(P13,eventno,5,FALSE) -> F | P13: ='Field Input Sheet'!R2 -> F3 | Q13: =CONCATENATE(VLOOKUP(P13,eventno,4,FALSE)," '",O22,"'") -> U17W Hammer 'B' | S13: =IF(O16="W","Wind =","") ->  | U13: =IF(OR(T15=0,T15="",$H$6=0,$H$6=""),"",IF($H$4="F",IF(T15>$H$6,"LR",IF(T15=$H$6,"LR=","")))) ->  | W13: =IF(OR(C13=0,C13="",C13=0,C13="",F13=0,F13="",LEFT(F13,1)="D",LEFT(B13,1)="F",LEFT(B13,1)="P"),0,VLOOKUP(B13,points,2,FALSE)-2) -> 0 | X13: 0 | Y13: =IF(OR(Q13=0,Q13="",R13=0,R13="",T13=0,T13="",LEFT(T13,1)="D",LEFT(P13,1)="F",LEFT(P13,1)="P"),0,VLOOKUP(P13,points,2,FALSE)-2) -> 0
A14: =IF(A13="M",VLOOKUP(B13,males,25,FALSE),VLOOKUP(B13,females,25,FALSE)) -> 36 | B14: Posn | C14: Bib | D14: Athlete | E14: Club | F14: Perf | G14: Gr | H14: =IF(H13="M",VLOOKUP(I13,males,25,FALSE),VLOOKUP(I13,females,25,FALSE)) -> 36 | I14: Posn | J14: Bib | K14: Athlete | L14: Club | M14: Perf | N14: Gr | O14: =IF(O13="M",VLOOKUP(P13,males,25,FALSE),VLOOKUP(P13,females,25,FALSE)) -> 36 | P14: Posn | Q14: Bib | R14: Athlete | S14: Club | T14: Perf | U14: Gr | W14: 0 | X14: =IF(OR(J14=0,J14="",K14=0,K14="",M14=0,O14="",LEFT(M14,1)="D",LEFT(I14,1)="F",LEFT(I14,1)="P"),0,VLOOKUP(I14,points,2,FALSE)) -> 0 | Y14: 0
A15: =LEFT(B13,1) -> F | B15: =IF(OR(INDIRECT(CONCATENATE("Distance!j",VLOOKUP(B13,distance,2,FALSE)+19))=0,INDIRECT(CONCATENATE("Distance!j",VLOOKUP(B13,distance,2,FALSE)+19))=""),"",INDIRECT(CONCATENATE("Distance!j",VLOOKUP(B13,distance,2,FALSE)+19))) -> 1 | C15: =IF('Field Input Sheet'!$Z$3="",INDIRECT(CONCATENATE("Distance!k",VLOOKUP(B13,distance,2,FALSE)+19)),VALUE(LEFT('Field Input Sheet'!$Z$3,3))) -> 66 | D15: =IF(OR(C15=0,C15="",C15=" "),"",IF(A13="F",HLOOKUP(C15,females,A14,FALSE),IF(A13="M",HLOOKUP(C15,males,A14,FALSE),""))) -> TOBY REDMAN | E15: =IF(OR(C15=0,C15="",C15="-"),"",IF(C15>8,VLOOKUP(C15/11,match_teams,4,FALSE),VLOOKUP(C15,match_teams,4,FALSE))) -> Ton | F15: =INDIRECT(CONCATENATE("Distance!t",VLOOKUP(B13,distance,2,FALSE)+19)) -> 38.96 | G15: =IF(OR(F15=0,F15="",F15="NHC",A18=0,A18="",A19=0,A19="",A20=0,A20="",A21=0,A21=""),"",IF(F15>=A18,1,IF(F15>=A19,2,IF(F15>=A20,3,IF(F15>=A21,4,""))))) -> 4 | H15: =LEFT(I13,1) -> F | I15: =IF(OR(INDIRECT(CONCATENATE("Distance!d",VLOOKUP(I13,distance,2,FALSE)+19))=0,INDIRECT(CONCATENATE("Distance!d",VLOOKUP(I13,distance,2,FALSE)+19))=""),"",INDIRECT(CONCATENATE("Distance!d",VLOOKUP(I13,distance,2,FALSE)+19))) -> 1 | J15: =IF('Field Input Sheet'!$Z$4="",INDIRECT(CONCATENATE("Distance!E",VLOOKUP(I13,distance,2,FALSE)+19)),VALUE(LEFT('Field Input Sheet'!$Z$4,3))) -> 2 | K15: =IF(OR(J15=0,J15="",J15=" "),"",IF(H13="F",HLOOKUP(J15,females,H14,FALSE),IF(H13="M",HLOOKUP(J15,males,H14,FALSE),""))) -> Kayleigh Arthurton | L15: =IF(OR(J15=0,J15="",J15="-"),"",IF(J15>8,VLOOKUP(J15/11,match_teams,4,FALSE),VLOOKUP(J15,match_teams,4,FALSE))) -> Bas | M15: =INDIRECT(CONCATENATE("Distance!h",VLOOKUP(I13,distance,2,FALSE)+19)) -> 34.35 | N15: =IF(OR(M15=0,M15="",M15="NHC",H18=0,H18="",H19=0,H19="",H20=0,H20="",H21=0,H21=""),"",IF(M15>=H18,1,IF(M15>=H19,2,IF(M15>=H20,3,IF(M15>=H21,4,""))))) -> 3 | O15: =LEFT(P13,1) -> F | P15: =IF(OR(INDIRECT(CONCATENATE("Distance!j",VLOOKUP(P13,distance,2,FALSE)+19))=0,INDIRECT(CONCATENATE("Distance!j",VLOOKUP(P13,distance,2,FALSE)+19))=""),"",INDIRECT(CONCATENATE("Distance!j",VLOOKUP(P13,distance,2,FALSE)+19))) -> 1 | Q15: =IF('Field Input Sheet'!$Z$4="",INDIRECT(CONCATENATE("Distance!k",VLOOKUP(P13,distance,2,FALSE)+19)),VALUE(LEFT('Field Input Sheet'!$Z$4,3))) -> 44 | R15: =IF(OR(Q15=0,Q15="",Q15=" "),"",IF(O13="F",HLOOKUP(Q15,females,O14,FALSE),IF(O13="M",HLOOKUP(Q15,males,O14,FALSE),""))) -> Tamara Reid | S15: =IF(OR(Q15=0,Q15="",Q15="-"),"",IF(Q15>8,VLOOKUP(Q15/11,match_teams,4,FALSE),VLOOKUP(Q15,match_teams,4,FALSE))) -> Croy | T15: =INDIRECT(CONCATENATE("Distance!t",VLOOKUP(P13,distance,2,FALSE)+19)) -> 23.53 | U15: =IF(OR(T15=0,T15="",T15="NHC",O18=0,O18="",O19=0,O19="",O20=0,O20="",O21=0,O21=""),"",IF(T15>=O18,1,IF(T15>=O19,2,IF(T15>=O20,3,IF(T15>=O21,4,""))))) -> 4 | W15: 7 | X15: 9 | Y15: 7 | AA15: =IF(VALUE(J15)=0,0,1) -> 1
A16: =VLOOKUP(B13,eventno,6,FALSE) -> 0 | B16: =IF(OR(INDIRECT(CONCATENATE("Distance!j",VLOOKUP(B13,distance,2,FALSE)+20))=0,INDIRECT(CONCATENATE("Distance!j",VLOOKUP(B13,distance,2,FALSE)+20))=""),"",INDIRECT(CONCATENATE("Distance!j",VLOOKUP(B13,distance,2,FALSE)+20))) -> 2 | C16: =INDIRECT(CONCATENATE("Distance!k",VLOOKUP(B13,distance,2,FALSE)+20)) -> 5 | D16: =IF(OR(C16=0,C16="",C16=" "),"",IF(A13="F",HLOOKUP(C16,females,A14,FALSE),IF(A13="M",HLOOKUP(C16,males,A14,FALSE),""))) -> Nick Duffey | E16: HavM | F16: =INDIRECT(CONCATENATE("Distance!t",VLOOKUP(B13,distance,2,FALSE)+20)) -> 19.64 | G16: =IF(OR(F16=0,F16="",F16="NHC",A18=0,A18="",A19=0,A19="",A20=0,A20="",A21=0,A21=""),"",IF(F16>=A18,1,IF(F16>=A19,2,IF(F16>=A20,3,IF(F16>=A21,4,""))))) ->  | H16: =VLOOKUP(I13,eventno,6,FALSE) -> 0 | I16: =IF(OR(INDIRECT(CONCATENATE("Distance!d",VLOOKUP(I13,distance,2,FALSE)+20))=0,INDIRECT(CONCATENATE("Distance!d",VLOOKUP(I13,distance,2,FALSE)+20))=""),"",INDIRECT(CONCATENATE("Distance!d",VLOOKUP(I13,distance,2,FALSE)+20))) -> 2 | J16: =INDIRECT(CONCATENATE("Distance!E",VLOOKUP(I13,distance,2,FALSE)+20)) -> 4 | K16: =IF(OR(J16=0,J16="",J16=" "),"",IF(H13="F",HLOOKUP(J16,females,H14,FALSE),IF(H13="M",HLOOKUP(J16,males,H14,FALSE),""))) -> Anoushka Mido | L16: Croy | M16: =INDIRECT(CONCATENATE("Distance!h",VLOOKUP(I13,distance,2,FALSE)+20)) -> 27.68 | N16: =IF(OR(M16=0,M16="",M16="NHC",H18=0,H18="",H19=0,H19="",H20=0,H20="",H21=0,H21=""),"",IF(M16>=H18,1,IF(M16>=H19,2,IF(M16>=H20,3,IF(M16>=H21,4,""))))) -> 4 | O16: =VLOOKUP(P13,eventno,6,FALSE) -> 0 | P16: =IF(OR(INDIRECT(CONCATENATE("Distance!j",VLOOKUP(P13,distance,2,FALSE)+20))=0,INDIRECT(CONCATENATE("Distance!j",VLOOKUP(P13,distance,2,FALSE)+20))=""),"",INDIRECT(CONCATENATE("Distance!j",VLOOKUP(P13,distance,2,FALSE)+20))) -> 2 | Q16: =INDIRECT(CONCATENATE("Distance!k",VLOOKUP(P13,distance,2,FALSE)+20)) -> 66 | R16: =IF(OR(Q16=0,Q16="",Q16=" "),"",IF(O13="F",HLOOKUP(Q16,females,O14,FALSE),IF(O13="M",HLOOKUP(Q16,males,O14,FALSE),""))) -> INDIA SMITH | S16: Ton | T16: =INDIRECT(CONCATENATE("Distance!t",VLOOKUP(P13,distance,2,FALSE)+20)) -> 16.16 | U16: =IF(OR(T16=0,T16="",T16="NHC",O18=0,O18="",O19=0,O19="",O20=0,O20="",O21=0,O21=""),"",IF(T16>=O18,1,IF(T16>=O19,2,IF(T16>=O20,3,IF(T16>=O21,4,""))))) ->  | W16: 5 | X16: 7 | Y16: 5
A17: =VLOOKUP(B13,eventno,7,FALSE) -> 74.8 | B17: =IF(OR(INDIRECT(CONCATENATE("Distance!j",VLOOKUP(B13,distance,2,FALSE)+21))=0,INDIRECT(CONCATENATE("Distance!j",VLOOKUP(B13,distance,2,FALSE)+21))=""),"",INDIRECT(CONCATENATE("Distance!j",VLOOKUP(B13,distance,2,FALSE)+21))) -> 3 | C17: =INDIRECT(CONCATENATE("Distance!k",VLOOKUP(B13,distance,2,FALSE)+21)) -> 33 | D17: =IF(OR(C17=0,C17="",C17=" "),"",IF(A13="F",HLOOKUP(C17,females,A14,FALSE),IF(A13="M",HLOOKUP(C17,males,A14,FALSE),""))) -> Billy Blackham | E17: B&B | F17: =INDIRECT(CONCATENATE("Distance!t",VLOOKUP(B13,distance,2,FALSE)+21)) -> 18.87 | G17: =IF(OR(F17=0,F17="",F17="NHC",A18=0,A18="",A19=0,A19="",A20=0,A20="",A21=0,A21=""),"",IF(F17>=A18,1,IF(F17>=A19,2,IF(F17>=A20,3,IF(F17>=A21,4,""))))) ->  | H17: =VLOOKUP(I13,eventno,7,FALSE) -> 52.37 | I17: =IF(OR(INDIRECT(CONCATENATE("Distance!d",VLOOKUP(I13,distance,2,FALSE)+21))=0,INDIRECT(CONCATENATE("Distance!d",VLOOKUP(I13,distance,2,FALSE)+21))=""),"",INDIRECT(CONCATENATE("Distance!d",VLOOKUP(I13,distance,2,FALSE)+21))) -> 3 | J17: =INDIRECT(CONCATENATE("Distance!E",VLOOKUP(I13,distance,2,FALSE)+21)) -> 6 | K17: =IF(OR(J17=0,J17="",J17=" "),"",IF(H13="F",HLOOKUP(J17,females,H14,FALSE),IF(H13="M",HLOOKUP(J17,males,H14,FALSE),""))) -> RACHEL LAQUATEBUA | L17: Ton | M17: =INDIRECT(CONCATENATE("Distance!h",VLOOKUP(I13,distance,2,FALSE)+21)) -> 22.6 | N17: =IF(OR(M17=0,M17="",M17="NHC",H18=0,H18="",H19=0,H19="",H20=0,H20="",H21=0,H21=""),"",IF(M17>=H18,1,IF(M17>=H19,2,IF(M17>=H20,3,IF(M17>=H21,4,""))))) -> 4 | O17: =VLOOKUP(P13,eventno,7,FALSE) -> 52.37 | P17: =IF(OR(INDIRECT(CONCATENATE("Distance!j",VLOOKUP(P13,distance,2,FALSE)+21))=0,INDIRECT(CONCATENATE("Distance!j",VLOOKUP(P13,distance,2,FALSE)+21))=""),"",INDIRECT(CONCATENATE("Distance!j",VLOOKUP(P13,distance,2,FALSE)+21))) -> 3 | Q17: =INDIRECT(CONCATENATE("Distance!k",VLOOKUP(P13,distance,2,FALSE)+21)) -> 33 | R17: =IF(OR(Q17=0,Q17="",Q17=" "),"",IF(O13="F",HLOOKUP(Q17,females,O14,FALSE),IF(O13="M",HLOOKUP(Q17,males,O14,FALSE),""))) -> Holly Fletcher | S17: B&B | T17: =INDIRECT(CONCATENATE("Distance!t",VLOOKUP(P13,distance,2,FALSE)+21)) -> 5.85 | U17: =IF(OR(T17=0,T17="",T17="NHC",O18=0,O18="",O19=0,O19="",O20=0,O20="",O21=0,O21=""),"",IF(T17>=O18,1,IF(T17>=O19,2,IF(T17>=O20,3,IF(T17>=O21,4,""))))) ->  | W17: 4 | X17: 6 | Y17: 4
A18: =VLOOKUP(B13,eventno,8,FALSE) -> 51.5 | B18: =IF(OR(INDIRECT(CONCATENATE("Distance!j",VLOOKUP(B13,distance,2,FALSE)+22))=0,INDIRECT(CONCATENATE("Distance!j",VLOOKUP(B13,distance,2,FALSE)+22))=""),"",INDIRECT(CONCATENATE("Distance!j",VLOOKUP(B13,distance,2,FALSE)+22))) -> 4 | C18: =INDIRECT(CONCATENATE("Distance!k",VLOOKUP(B13,distance,2,FALSE)+22)) -> 4 | D18: =IF(OR(C18=0,C18="",C18=" "),"",IF(A13="F",HLOOKUP(C18,females,A14,FALSE),IF(A13="M",HLOOKUP(C18,males,A14,FALSE),""))) -> Omar Reid | E18: Croy | F18: =INDIRECT(CONCATENATE("Distance!t",VLOOKUP(B13,distance,2,FALSE)+22)) -> 17.08 | G18: =IF(OR(F18=0,F18="",F18="NHC",A18=0,A18="",A19=0,A19="",A20=0,A20="",A21=0,A21=""),"",IF(F18>=A18,1,IF(F18>=A19,2,IF(F18>=A20,3,IF(F18>=A21,4,""))))) ->  | H18: =VLOOKUP(I13,eventno,8,FALSE) -> 39.6 | I18: =IF(OR(INDIRECT(CONCATENATE("Distance!d",VLOOKUP(I13,distance,2,FALSE)+22))=0,INDIRECT(CONCATENATE("Distance!d",VLOOKUP(I13,distance,2,FALSE)+22))=""),"",INDIRECT(CONCATENATE("Distance!d",VLOOKUP(I13,distance,2,FALSE)+22))) -> 4 | J18: =INDIRECT(CONCATENATE("Distance!E",VLOOKUP(I13,distance,2,FALSE)+22)) -> 3 | K18: =IF(OR(J18=0,J18="",J18=" "),"",IF(H13="F",HLOOKUP(J18,females,H14,FALSE),IF(H13="M",HLOOKUP(J18,males,H14,FALSE),""))) -> Yemisi Sofolarin | L18: B&B | M18: =INDIRECT(CONCATENATE("Distance!h",VLOOKUP(I13,distance,2,FALSE)+22)) -> 16.6 | N18: =IF(OR(M18=0,M18="",M18="NHC",H18=0,H18="",H19=0,H19="",H20=0,H20="",H21=0,H21=""),"",IF(M18>=H18,1,IF(M18>=H19,2,IF(M18>=H20,3,IF(M18>=H21,4,""))))) ->  | O18: =VLOOKUP(P13,eventno,8,FALSE) -> 39.6 | P18: =IF(OR(INDIRECT(CONCATENATE("Distance!j",VLOOKUP(P13,distance,2,FALSE)+22))=0,INDIRECT(CONCATENATE("Distance!j",VLOOKUP(P13,distance,2,FALSE)+22))=""),"",INDIRECT(CONCATENATE("Distance!j",VLOOKUP(P13,distance,2,FALSE)+22))) -> 4 | Q18: =INDIRECT(CONCATENATE("Distance!k",VLOOKUP(P13,distance,2,FALSE)+22)) -> 0 | R18: =IF(OR(Q18=0,Q18="",Q18=" "),"",IF(O13="F",HLOOKUP(Q18,females,O14,FALSE),IF(O13="M",HLOOKUP(Q18,males,O14,FALSE),""))) ->  | T18: =INDIRECT(CONCATENATE("Distance!t",VLOOKUP(P13,distance,2,FALSE)+22)) -> 0 | U18: =IF(OR(T18=0,T18="",T18="NHC",O18=0,O18="",O19=0,O19="",O20=0,O20="",O21=0,O21=""),"",IF(T18>=O18,1,IF(T18>=O19,2,IF(T18>=O20,3,IF(T18>=O21,4,""))))) ->  | W18: 3 | X18: 5 | Y18: 0
A19: =VLOOKUP(B13,eventno,9,FALSE) -> 47.4 | B19: =IF(OR(INDIRECT(CONCATENATE("Distance!j",VLOOKUP(B13,distance,2,FALSE)+23))=0,INDIRECT(CONCATENATE("Distance!j",VLOOKUP(B13,distance,2,FALSE)+23))=""),"",INDIRECT(CONCATENATE("Distance!j",VLOOKUP(B13,distance,2,FALSE)+23))) -> 5 | C19: =INDIRECT(CONCATENATE("Distance!k",VLOOKUP(B13,distance,2,FALSE)+23)) -> 0 | D19: =IF(OR(C19=0,C19="",C19=" "),"",IF(A13="F",HLOOKUP(C19,females,A14,FALSE),IF(A13="M",HLOOKUP(C19,males,A14,FALSE),""))) ->  | F19: =INDIRECT(CONCATENATE("Distance!t",VLOOKUP(B13,distance,2,FALSE)+23)) -> 0 | G19: =IF(OR(F19=0,F19="",F19="NHC",A18=0,A18="",A19=0,A19="",A20=0,A20="",A21=0,A21=""),"",IF(F19>=A18,1,IF(F19>=A19,2,IF(F19>=A20,3,IF(F19>=A21,4,""))))) ->  | H19: =VLOOKUP(I13,eventno,9,FALSE) -> 36.5 | I19: =IF(OR(INDIRECT(CONCATENATE("Distance!d",VLOOKUP(I13,distance,2,FALSE)+23))=0,INDIRECT(CONCATENATE("Distance!d",VLOOKUP(I13,distance,2,FALSE)+23))=""),"",INDIRECT(CONCATENATE("Distance!d",VLOOKUP(I13,distance,2,FALSE)+23))) -> 5 | J19: =INDIRECT(CONCATENATE("Distance!E",VLOOKUP(I13,distance,2,FALSE)+23)) -> 0 | K19: =IF(OR(J19=0,J19="",J19=" "),"",IF(H13="F",HLOOKUP(J19,females,H14,FALSE),IF(H13="M",HLOOKUP(J19,males,H14,FALSE),""))) ->  | M19: =INDIRECT(CONCATENATE("Distance!h",VLOOKUP(I13,distance,2,FALSE)+23)) -> 0 | N19: =IF(OR(M19=0,M19="",M19="NHC",H18=0,H18="",H19=0,H19="",H20=0,H20="",H21=0,H21=""),"",IF(M19>=H18,1,IF(M19>=H19,2,IF(M19>=H20,3,IF(M19>=H21,4,""))))) ->  | O19: =VLOOKUP(P13,eventno,9,FALSE) -> 36.5 | P19: =IF(OR(INDIRECT(CONCATENATE("Distance!j",VLOOKUP(P13,distance,2,FALSE)+23))=0,INDIRECT(CONCATENATE("Distance!j",VLOOKUP(P13,distance,2,FALSE)+23))=""),"",INDIRECT(CONCATENATE("Distance!j",VLOOKUP(P13,distance,2,FALSE)+23))) -> 5 | Q19: =INDIRECT(CONCATENATE("Distance!k",VLOOKUP(P13,distance,2,FALSE)+23)) -> 0 | R19: =IF(OR(Q19=0,Q19="",Q19=" "),"",IF(O13="F",HLOOKUP(Q19,females,O14,FALSE),IF(O13="M",HLOOKUP(Q19,males,O14,FALSE),""))) ->  | T19: =INDIRECT(CONCATENATE("Distance!t",VLOOKUP(P13,distance,2,FALSE)+23)) -> 0 | U19: =IF(OR(T19=0,T19="",T19="NHC",O18=0,O18="",O19=0,O19="",O20=0,O20="",O21=0,O21=""),"",IF(T19>=O18,1,IF(T19>=O19,2,IF(T19>=O20,3,IF(T19>=O21,4,""))))) ->  | W19: 0 | X19: 0 | Y19: 0
A20: =VLOOKUP(B13,eventno,10,FALSE) -> 39.75 | B20: =IF(OR(INDIRECT(CONCATENATE("Distance!j",VLOOKUP(B13,distance,2,FALSE)+24))=0,INDIRECT(CONCATENATE("Distance!j",VLOOKUP(B13,distance,2,FALSE)+24))=""),"",INDIRECT(CONCATENATE("Distance!j",VLOOKUP(B13,distance,2,FALSE)+24))) -> 6 | C20: =INDIRECT(CONCATENATE("Distance!k",VLOOKUP(B13,distance,2,FALSE)+24)) -> 0 | D20: =IF(OR(C20=0,C20="",C20=" "),"",IF(A13="F",HLOOKUP(C20,females,A14,FALSE),IF(A13="M",HLOOKUP(C20,males,A14,FALSE),""))) ->  | F20: =INDIRECT(CONCATENATE("Distance!t",VLOOKUP(B13,distance,2,FALSE)+24)) -> 0 | G20: =IF(OR(F20=0,F20="",F20="NHC",A18=0,A18="",A19=0,A19="",A20=0,A20="",A21=0,A21=""),"",IF(F20>=A18,1,IF(F20>=A19,2,IF(F20>=A20,3,IF(F20>=A21,4,""))))) ->  | H20: =VLOOKUP(I13,eventno,10,FALSE) -> 29.9 | I20: =IF(OR(INDIRECT(CONCATENATE("Distance!d",VLOOKUP(I13,distance,2,FALSE)+24))=0,INDIRECT(CONCATENATE("Distance!d",VLOOKUP(I13,distance,2,FALSE)+24))=""),"",INDIRECT(CONCATENATE("Distance!d",VLOOKUP(I13,distance,2,FALSE)+24))) -> 6 | J20: =INDIRECT(CONCATENATE("Distance!E",VLOOKUP(I13,distance,2,FALSE)+24)) -> 0 | K20: =IF(OR(J20=0,J20="",J20=" "),"",IF(H13="F",HLOOKUP(J20,females,H14,FALSE),IF(H13="M",HLOOKUP(J20,males,H14,FALSE),""))) ->  | M20: =INDIRECT(CONCATENATE("Distance!h",VLOOKUP(I13,distance,2,FALSE)+24)) -> 0 | N20: =IF(OR(M20=0,M20="",M20="NHC",H18=0,H18="",H19=0,H19="",H20=0,H20="",H21=0,H21=""),"",IF(M20>=H18,1,IF(M20>=H19,2,IF(M20>=H20,3,IF(M20>=H21,4,""))))) ->  | O20: =VLOOKUP(P13,eventno,10,FALSE) -> 29.9 | P20: =IF(OR(INDIRECT(CONCATENATE("Distance!j",VLOOKUP(P13,distance,2,FALSE)+24))=0,INDIRECT(CONCATENATE("Distance!j",VLOOKUP(P13,distance,2,FALSE)+24))=""),"",INDIRECT(CONCATENATE("Distance!j",VLOOKUP(P13,distance,2,FALSE)+24))) -> 6 | Q20: =INDIRECT(CONCATENATE("Distance!k",VLOOKUP(P13,distance,2,FALSE)+24)) -> 0 | R20: =IF(OR(Q20=0,Q20="",Q20=" "),"",IF(O13="F",HLOOKUP(Q20,females,O14,FALSE),IF(O13="M",HLOOKUP(Q20,males,O14,FALSE),""))) ->  | T20: =INDIRECT(CONCATENATE("Distance!t",VLOOKUP(P13,distance,2,FALSE)+24)) -> 0 | U20: =IF(OR(T20=0,T20="",T20="NHC",O18=0,O18="",O19=0,O19="",O20=0,O20="",O21=0,O21=""),"",IF(T20>=O18,1,IF(T20>=O19,2,IF(T20>=O20,3,IF(T20>=O21,4,""))))) ->  | W20: 0 | X20: 0 | Y20: 0
A21: =VLOOKUP(B13,eventno,11,FALSE) -> 30.1 | B21: =IF(OR(INDIRECT(CONCATENATE("Distance!j",VLOOKUP(B13,distance,2,FALSE)+25))=0,INDIRECT(CONCATENATE("Distance!j",VLOOKUP(B13,distance,2,FALSE)+25))=""),"",INDIRECT(CONCATENATE("Distance!j",VLOOKUP(B13,distance,2,FALSE)+25))) -> 7 | C21: =INDIRECT(CONCATENATE("Distance!k",VLOOKUP(B13,distance,2,FALSE)+25)) -> 0 | D21: =IF(OR(C21=0,C21="",C21=" "),"",IF(A13="F",HLOOKUP(C21,females,A14,FALSE),IF(A13="M",HLOOKUP(C21,males,A14,FALSE),""))) ->  | F21: =INDIRECT(CONCATENATE("Distance!t",VLOOKUP(B13,distance,2,FALSE)+25)) -> 0 | H21: =VLOOKUP(I13,eventno,11,FALSE) -> 22.2 | I21: =IF(OR(INDIRECT(CONCATENATE("Distance!d",VLOOKUP(I13,distance,2,FALSE)+25))=0,INDIRECT(CONCATENATE("Distance!d",VLOOKUP(I13,distance,2,FALSE)+25))=""),"",INDIRECT(CONCATENATE("Distance!d",VLOOKUP(I13,distance,2,FALSE)+25))) -> 7 | J21: =INDIRECT(CONCATENATE("Distance!E",VLOOKUP(I13,distance,2,FALSE)+25)) -> 0 | K21: =IF(OR(J21=0,J21="",J21=" "),"",IF(H13="F",HLOOKUP(J21,females,H14,FALSE),IF(H13="M",HLOOKUP(J21,males,H14,FALSE),""))) ->  | M21: =INDIRECT(CONCATENATE("Distance!h",VLOOKUP(I13,distance,2,FALSE)+25)) -> 0 | O21: =VLOOKUP(P13,eventno,11,FALSE) -> 22.2 | P21: =IF(OR(INDIRECT(CONCATENATE("Distance!j",VLOOKUP(P13,distance,2,FALSE)+25))=0,INDIRECT(CONCATENATE("Distance!j",VLOOKUP(P13,distance,2,FALSE)+25))=""),"",INDIRECT(CONCATENATE("Distance!j",VLOOKUP(P13,distance,2,FALSE)+25))) -> 7 | Q21: =INDIRECT(CONCATENATE("Distance!k",VLOOKUP(P13,distance,2,FALSE)+25)) -> 0 | R21: =IF(OR(Q21=0,Q21="",Q21=" "),"",IF(O13="F",HLOOKUP(Q21,females,O14,FALSE),IF(O13="M",HLOOKUP(Q21,males,O14,FALSE),""))) ->  | T21: =INDIRECT(CONCATENATE("Distance!t",VLOOKUP(P13,distance,2,FALSE)+25)) -> 0 | W21: 0 | X21: 0 | Y21: 0
A22: B | B22: =IF(OR(INDIRECT(CONCATENATE("Distance!j",VLOOKUP(B13,distance,2,FALSE)+26))=0,INDIRECT(CONCATENATE("Distance!j",VLOOKUP(B13,distance,2,FALSE)+26))=""),"",INDIRECT(CONCATENATE("Distance!j",VLOOKUP(B13,distance,2,FALSE)+26))) -> 8 | C22: =INDIRECT(CONCATENATE("Distance!k",VLOOKUP(B13,distance,2,FALSE)+26)) -> 0 | D22: =IF(OR(C22=0,C22="",C22=" "),"",IF(A13="F",HLOOKUP(C22,females,A14,FALSE),IF(A13="M",HLOOKUP(C22,males,A14,FALSE),""))) ->  | F22: =INDIRECT(CONCATENATE("Distance!t",VLOOKUP(B13,distance,2,FALSE)+26)) -> 0 | H22: A | I22: =IF(OR(INDIRECT(CONCATENATE("Distance!d",VLOOKUP(I13,distance,2,FALSE)+26))=0,INDIRECT(CONCATENATE("Distance!d",VLOOKUP(I13,distance,2,FALSE)+26))=""),"",INDIRECT(CONCATENATE("Distance!d",VLOOKUP(I13,distance,2,FALSE)+26))) -> 8 | J22: =INDIRECT(CONCATENATE("Distance!E",VLOOKUP(I13,distance,2,FALSE)+26)) -> 0 | K22: =IF(OR(J22=0,J22="",J22=" "),"",IF(H13="F",HLOOKUP(J22,females,H14,FALSE),IF(H13="M",HLOOKUP(J22,males,H14,FALSE),""))) ->  | M22: =INDIRECT(CONCATENATE("Distance!h",VLOOKUP(I13,distance,2,FALSE)+26)) -> 0 | O22: B | P22: =IF(OR(INDIRECT(CONCATENATE("Distance!j",VLOOKUP(P13,distance,2,FALSE)+26))=0,INDIRECT(CONCATENATE("Distance!j",VLOOKUP(P13,distance,2,FALSE)+26))=""),"",INDIRECT(CONCATENATE("Distance!j",VLOOKUP(P13,distance,2,FALSE)+26))) -> 8 | Q22: =INDIRECT(CONCATENATE("Distance!k",VLOOKUP(P13,distance,2,FALSE)+26)) -> 0 | R22: =IF(OR(Q22=0,Q22="",Q22=" "),"",IF(O13="F",HLOOKUP(Q22,females,O14,FALSE),IF(O13="M",HLOOKUP(Q22,males,O14,FALSE),""))) ->  | T22: =INDIRECT(CONCATENATE("Distance!t",VLOOKUP(P13,distance,2,FALSE)+26)) -> 0 | W22: 0 | X22: 0 | Y22: 0
W23: 0 | X23: 0 | Y23: 0
A24: =VLOOKUP(B24,eventno,5,FALSE) -> F | B24: ='Field Input Sheet'!B21 -> F4 | C24: =CONCATENATE(VLOOKUP(B24,eventno,4,FALSE)," '",A33,"'") -> U15G Long Jump 'A' | E24: =IF(A27="W","Wind =","") -> Wind = | G24: =IF(OR(F26=0,F26="",$A$6=0,$A$6=""),"",IF($A$4="F",IF(F26>$A$6,"LR",IF(F26=$A$6,"LR=","")))) ->  | H24: =VLOOKUP(I24,eventno,5,FALSE) -> F | I24: ='Field Input Sheet'!B21 -> F4 | J24: =CONCATENATE(VLOOKUP(I24,eventno,4,FALSE)," '",H33,"'") -> U15G Long Jump 'B' | L24: =IF(H27="W","Wind =","") -> Wind = | N24: =IF(OR(M26=0,M26="",$H$6=0,$H$6=""),"",IF($H$4="F",IF(M26>$H$6,"LR",IF(M26=$H$6,"LR=","")))) ->  | O24: =VLOOKUP(P24,eventno,5,FALSE) -> F | P24: ='Field Input Sheet'!J21 -> F5 | Q24: =CONCATENATE(VLOOKUP(P24,eventno,4,FALSE)," '",O33,"'") -> U15G Pole Vault 'A' | S24: =IF(O27="W","Wind =","") ->  | U24: =IF(OR(T26=0,T26="",$A$6=0,$A$6=""),"",IF($A$4="F",IF(T26>$A$6,"LR",IF(T26=$A$6,"LR=","")))) ->  | W24: =IF(OR(C24=0,C24="",C24=0,C24="",F24=0,F24="",LEFT(F24,1)="D",LEFT(B24,1)="F",LEFT(B24,1)="P"),0,VLOOKUP(B24,points,2,FALSE)) -> 0 | X24: =IF(OR(J24=0,J24="",K24=0,K24="",M24=0,O24="",LEFT(M24,1)="D",LEFT(I24,1)="F",LEFT(I24,1)="P"),0,VLOOKUP(I24,points,2,FALSE)-2) -> 0 | Y24: =IF(OR(Q24=0,Q24="",R24=0,R24="",T24=0,T24="",LEFT(T24,1)="D",LEFT(P24,1)="F",LEFT(P24,1)="P"),0,VLOOKUP(P24,points,2,FALSE)) -> 0
A25: =IF(A24="M",VLOOKUP(B24,males,25,FALSE),VLOOKUP(B24,females,25,FALSE)) -> 45 | B25: Posn | C25: Bib | D25: Athlete | E25: Club | F25: Perf | G25: Gr | H25: =IF(H24="M",VLOOKUP(I24,males,25,FALSE),VLOOKUP(I24,females,25,FALSE)) -> 45 | I25: Posn | J25: Bib | K25: Athlete | L25: Club | M25: Perf | N25: Gr | O25: =IF(O24="M",VLOOKUP(P24,males,25,FALSE),VLOOKUP(P24,females,25,FALSE)) -> 41 | P25: Posn | Q25: Bib | R25: Athlete | S25: Club | T25: Perf | U25: Gr | W25: 0 | X25: 0 | Y25: 0
A26: =LEFT(B24,1) -> F | B26: =IF(OR(INDIRECT(CONCATENATE("Distance!d",VLOOKUP(B24,distance,2,FALSE)+19))=0,INDIRECT(CONCATENATE("Distance!d",VLOOKUP(B24,distance,2,FALSE)+19))=""),"",INDIRECT(CONCATENATE("Distance!d",VLOOKUP(B24,distance,2,FALSE)+19))) -> 1 | C26: =IF('Field Input Sheet'!$Z$5="",INDIRECT(CONCATENATE("Distance!E",VLOOKUP(B24,distance,2,FALSE)+19)),VALUE(LEFT('Field Input Sheet'!$Z$5,3))) -> 3 | D26: =IF(OR(C26=0,C26="",C26=" "),"",IF(A24="F",HLOOKUP(C26,females,A25,FALSE),IF(A24="M",HLOOKUP(C26,males,A25,FALSE),""))) -> Isabella Hilditch | E26: =IF(OR(C26=0,C26="",C26="-"),"",IF(C26>8,VLOOKUP(C26/11,match_teams,4,FALSE),VLOOKUP(C26,match_teams,4,FALSE))) -> B&B | F26: =INDIRECT(CONCATENATE("Distance!h",VLOOKUP(B24,distance,2,FALSE)+19)) -> 4.73 | G26: =IF(OR(F26=0,F26="",F26="NHC",A29=0,A29="",A30=0,A30="",A31=0,A31="",A32=0,A32=""),"",IF(F26>=A29,1,IF(F26>=A30,2,IF(F26>=A31,3,IF(F26>=A32,4,""))))) -> 3 | H26: =LEFT(I24,1) -> F | I26: =IF(OR(INDIRECT(CONCATENATE("Distance!j",VLOOKUP(I24,distance,2,FALSE)+19))=0,INDIRECT(CONCATENATE("Distance!j",VLOOKUP(I24,distance,2,FALSE)+19))=""),"",INDIRECT(CONCATENATE("Distance!j",VLOOKUP(I24,distance,2,FALSE)+19))) -> 1 | J26: =IF('Field Input Sheet'!$Z$5="",INDIRECT(CONCATENATE("Distance!k",VLOOKUP(I24,distance,2,FALSE)+19)),VALUE(LEFT('Field Input Sheet'!$Z$5,3))) -> 33 | K26: =IF(OR(J26=0,J26="",J26=" "),"",IF(H24="F",HLOOKUP(J26,females,H25,FALSE),IF(H24="M",HLOOKUP(J26,males,H25,FALSE),""))) -> Jamilya Pascal - Robinson | L26: =IF(OR(J26=0,J26="",J26="-"),"",IF(J26>8,VLOOKUP(J26/11,match_teams,4,FALSE),VLOOKUP(J26,match_teams,4,FALSE))) -> B&B | M26: =INDIRECT(CONCATENATE("Distance!t",VLOOKUP(I24,distance,2,FALSE)+19)) -> 4.53 | N26: =IF(OR(M26=0,M26="",M26="NHC",H29=0,H29="",H30=0,H30="",H31=0,H31="",H32=0,H32=""),"",IF(M26>=H29,1,IF(M26>=H30,2,IF(M26>=H31,3,IF(M26>=H32,4,""))))) -> 4 | O26: =LEFT(P24,1) -> F | P26: =IF(OR(Distance!$D97=0,Distance!$D97=""),"",Distance!$D97) -> 1 | Q26: =IF('Field Input Sheet'!$Z$6="",INDIRECT(CONCATENATE("height!e",VLOOKUP(P24,height,2,FALSE)+19)),VALUE(LEFT('Field Input Sheet'!$Z$6,3))) -> 0 | R26: =IF(OR(Q26=0,Q26="",Q26=" "),"",IF(O24="F",HLOOKUP(Q26,females,O25,FALSE),IF(O24="M",HLOOKUP(Q26,males,O25,FALSE),""))) ->  | S26: =IF(OR(Q26=0,Q26="",Q26="-"),"",IF(Q26>8,VLOOKUP(Q26/11,match_teams,4,FALSE),VLOOKUP(Q26,match_teams,4,FALSE))) ->  | T26: =INDIRECT(CONCATENATE("height!h",VLOOKUP(P24,height,2,FALSE)+19)) ->  | U26: =IF(OR(T26=0,T26="",T26="NHC",O29=0,O29="",O30=0,O30="",O31=0,O31="",O32=0,O32=""),"",IF(T26>=O29,1,IF(T26>=O30,2,IF(T26>=O31,3,IF(T26>=O32,4,""))))) ->  | W26: 9 | X26: 7 | Y26: 0 | AA26: =IF(VALUE(C26)=0,0,1) -> 1
A27: =VLOOKUP(B24,eventno,6,FALSE) -> W | B27: =IF(OR(INDIRECT(CONCATENATE("Distance!d",VLOOKUP(B24,distance,2,FALSE)+20))=0,INDIRECT(CONCATENATE("Distance!d",VLOOKUP(B24,distance,2,FALSE)+20))=""),"",INDIRECT(CONCATENATE("Distance!d",VLOOKUP(B24,distance,2,FALSE)+20))) -> 2 | C27: =INDIRECT(CONCATENATE("Distance!E",VLOOKUP(B24,distance,2,FALSE)+20)) -> 5 | D27: =IF(OR(C27=0,C27="",C27=" "),"",IF(A24="F",HLOOKUP(C27,females,A25,FALSE),IF(A24="M",HLOOKUP(C27,males,A25,FALSE),""))) -> Chenice Constable | E27: HavM | F27: =INDIRECT(CONCATENATE("Distance!h",VLOOKUP(B24,distance,2,FALSE)+20)) -> 4.67 | G27: =IF(OR(F27=0,F27="",F27="NHC",A29=0,A29="",A30=0,A30="",A31=0,A31="",A32=0,A32=""),"",IF(F27>=A29,1,IF(F27>=A30,2,IF(F27>=A31,3,IF(F27>=A32,4,""))))) -> 3 | H27: =VLOOKUP(I24,eventno,6,FALSE) -> W | I27: =IF(OR(INDIRECT(CONCATENATE("Distance!j",VLOOKUP(I24,distance,2,FALSE)+20))=0,INDIRECT(CONCATENATE("Distance!j",VLOOKUP(I24,distance,2,FALSE)+20))=""),"",INDIRECT(CONCATENATE("Distance!j",VLOOKUP(I24,distance,2,FALSE)+20))) -> 2 | J27: =INDIRECT(CONCATENATE("Distance!k",VLOOKUP(I24,distance,2,FALSE)+20)) -> 4 | K27: =IF(OR(J27=0,J27="",J27=" "),"",IF(H24="F",HLOOKUP(J27,females,H25,FALSE),IF(H24="M",HLOOKUP(J27,males,H25,FALSE),""))) -> Irene Afriye | L27: Croy | M27: =INDIRECT(CONCATENATE("Distance!t",VLOOKUP(I24,distance,2,FALSE)+20)) -> 4.37 | N27: =IF(OR(M27=0,M27="",M27="NHC",H29=0,H29="",H30=0,H30="",H31=0,H31="",H32=0,H32=""),"",IF(M27>=H29,1,IF(M27>=H30,2,IF(M27>=H31,3,IF(M27>=H32,4,""))))) -> 4 | O27: =VLOOKUP(P24,eventno,6,FALSE) -> 0 | P27: =IF(OR(Distance!$D98=0,Distance!$D98=""),"",Distance!$D98) -> 2 | Q27: =INDIRECT(CONCATENATE("height!e",VLOOKUP(P24,height,2,FALSE)+20)) -> 0 | R27: =IF(OR(Q27=0,Q27="",Q27=" "),"",IF(O24="F",HLOOKUP(Q27,females,O25,FALSE),IF(O24="M",HLOOKUP(Q27,males,O25,FALSE),""))) ->  | T27: =INDIRECT(CONCATENATE("height!h",VLOOKUP(P24,height,2,FALSE)+20)) ->  | U27: =IF(OR(T27=0,T27="",T27="NHC",O29=0,O29="",O30=0,O30="",O31=0,O31="",O32=0,O32=""),"",IF(T27>=O29,1,IF(T27>=O30,2,IF(T27>=O31,3,IF(T27>=O32,4,""))))) ->  | W27: 7 | X27: 5 | Y27: 0 | AA27: =IF(VALUE(Q26)=0,0,1) -> 0
A28: =VLOOKUP(B24,eventno,7,FALSE) -> 6.07 | B28: =IF(OR(INDIRECT(CONCATENATE("Distance!d",VLOOKUP(B24,distance,2,FALSE)+21))=0,INDIRECT(CONCATENATE("Distance!d",VLOOKUP(B24,distance,2,FALSE)+21))=""),"",INDIRECT(CONCATENATE("Distance!d",VLOOKUP(B24,distance,2,FALSE)+21))) -> 3 | C28: =INDIRECT(CONCATENATE("Distance!E",VLOOKUP(B24,distance,2,FALSE)+21)) -> 44 | D28: =IF(OR(C28=0,C28="",C28=" "),"",IF(A24="F",HLOOKUP(C28,females,A25,FALSE),IF(A24="M",HLOOKUP(C28,males,A25,FALSE),""))) -> Sonyce Archer | E28: Croy | F28: =INDIRECT(CONCATENATE("Distance!h",VLOOKUP(B24,distance,2,FALSE)+21)) -> 4.54 | G28: =IF(OR(F28=0,F28="",F28="NHC",A29=0,A29="",A30=0,A30="",A31=0,A31="",A32=0,A32=""),"",IF(F28>=A29,1,IF(F28>=A30,2,IF(F28>=A31,3,IF(F28>=A32,4,""))))) -> 4 | H28: =VLOOKUP(I24,eventno,7,FALSE) -> 6.07 | I28: =IF(OR(INDIRECT(CONCATENATE("Distance!j",VLOOKUP(I24,distance,2,FALSE)+21))=0,INDIRECT(CONCATENATE("Distance!j",VLOOKUP(I24,distance,2,FALSE)+21))=""),"",INDIRECT(CONCATENATE("Distance!j",VLOOKUP(I24,distance,2,FALSE)+21))) -> 3 | J28: =INDIRECT(CONCATENATE("Distance!k",VLOOKUP(I24,distance,2,FALSE)+21)) -> 55 | K28: =IF(OR(J28=0,J28="",J28=" "),"",IF(H24="F",HLOOKUP(J28,females,H25,FALSE),IF(H24="M",HLOOKUP(J28,males,H25,FALSE),""))) -> Annie Maguire | L28: HavM | M28: =INDIRECT(CONCATENATE("Distance!t",VLOOKUP(I24,distance,2,FALSE)+21)) -> 4.11 | N28: =IF(OR(M28=0,M28="",M28="NHC",H29=0,H29="",H30=0,H30="",H31=0,H31="",H32=0,H32=""),"",IF(M28>=H29,1,IF(M28>=H30,2,IF(M28>=H31,3,IF(M28>=H32,4,""))))) ->  | O28: =VLOOKUP(P24,eventno,7,FALSE) -> 3.3 | P28: =IF(OR(Distance!$D99=0,Distance!$D99=""),"",Distance!$D99) -> 3 | Q28: =INDIRECT(CONCATENATE("height!e",VLOOKUP(P24,height,2,FALSE)+21)) -> 0 | R28: =IF(OR(Q28=0,Q28="",Q28=" "),"",IF(O24="F",HLOOKUP(Q28,females,O25,FALSE),IF(O24="M",HLOOKUP(Q28,males,O25,FALSE),""))) ->  | T28: =INDIRECT(CONCATENATE("height!h",VLOOKUP(P24,height,2,FALSE)+21)) ->  | U28: =IF(OR(T28=0,T28="",T28="NHC",O29=0,O29="",O30=0,O30="",O31=0,O31="",O32=0,O32=""),"",IF(T28>=O29,1,IF(T28>=O30,2,IF(T28>=O31,3,IF(T28>=O32,4,""))))) ->  | W28: 6 | X28: 4 | Y28: 0
A29: =VLOOKUP(B24,eventno,8,FALSE) -> 4.9 | B29: =IF(OR(INDIRECT(CONCATENATE("Distance!d",VLOOKUP(B24,distance,2,FALSE)+22))=0,INDIRECT(CONCATENATE("Distance!d",VLOOKUP(B24,distance,2,FALSE)+22))=""),"",INDIRECT(CONCATENATE("Distance!d",VLOOKUP(B24,distance,2,FALSE)+22))) -> 4 | C29: =INDIRECT(CONCATENATE("Distance!E",VLOOKUP(B24,distance,2,FALSE)+22)) -> 2 | D29: =IF(OR(C29=0,C29="",C29=" "),"",IF(A24="F",HLOOKUP(C29,females,A25,FALSE),IF(A24="M",HLOOKUP(C29,males,A25,FALSE),""))) -> Charlotte Skeggs | E29: Bas | F29: =INDIRECT(CONCATENATE("Distance!h",VLOOKUP(B24,distance,2,FALSE)+22)) -> 4.53 | G29: =IF(OR(F29=0,F29="",F29="NHC",A29=0,A29="",A30=0,A30="",A31=0,A31="",A32=0,A32=""),"",IF(F29>=A29,1,IF(F29>=A30,2,IF(F29>=A31,3,IF(F29>=A32,4,""))))) -> 4 | H29: =VLOOKUP(I24,eventno,8,FALSE) -> 4.9 | I29: =IF(OR(INDIRECT(CONCATENATE("Distance!j",VLOOKUP(I24,distance,2,FALSE)+22))=0,INDIRECT(CONCATENATE("Distance!j",VLOOKUP(I24,distance,2,FALSE)+22))=""),"",INDIRECT(CONCATENATE("Distance!j",VLOOKUP(I24,distance,2,FALSE)+22))) -> 4 | J29: =INDIRECT(CONCATENATE("Distance!k",VLOOKUP(I24,distance,2,FALSE)+22)) -> 6 | K29: =IF(OR(J29=0,J29="",J29=" "),"",IF(H24="F",HLOOKUP(J29,females,H25,FALSE),IF(H24="M",HLOOKUP(J29,males,H25,FALSE),""))) -> CHANDA LAMB | L29: Ton | M29: =INDIRECT(CONCATENATE("Distance!t",VLOOKUP(I24,distance,2,FALSE)+22)) -> 3.69 | N29: =IF(OR(M29=0,M29="",M29="NHC",H29=0,H29="",H30=0,H30="",H31=0,H31="",H32=0,H32=""),"",IF(M29>=H29,1,IF(M29>=H30,2,IF(M29>=H31,3,IF(M29>=H32,4,""))))) ->  | O29: =VLOOKUP(P24,eventno,8,FALSE) -> 2.8 | P29: =IF(OR(Distance!$D100=0,Distance!$D100=""),"",Distance!$D100) -> 4 | Q29: =INDIRECT(CONCATENATE("height!e",VLOOKUP(P24,height,2,FALSE)+22)) -> 0 | R29: =IF(OR(Q29=0,Q29="",Q29=" "),"",IF(O24="F",HLOOKUP(Q29,females,O25,FALSE),IF(O24="M",HLOOKUP(Q29,males,O25,FALSE),""))) ->  | T29: =INDIRECT(CONCATENATE("height!h",VLOOKUP(P24,height,2,FALSE)+22)) ->  | U29: =IF(OR(T29=0,T29="",T29="NHC",O29=0,O29="",O30=0,O30="",O31=0,O31="",O32=0,O32=""),"",IF(T29>=O29,1,IF(T29>=O30,2,IF(T29>=O31,3,IF(T29>=O32,4,""))))) ->  | W29: 5 | X29: 3 | Y29: 0
A30: =VLOOKUP(B24,eventno,9,FALSE) -> 4.75 | B30: =IF(OR(INDIRECT(CONCATENATE("Distance!d",VLOOKUP(B24,distance,2,FALSE)+23))=0,INDIRECT(CONCATENATE("Distance!d",VLOOKUP(B24,distance,2,FALSE)+23))=""),"",INDIRECT(CONCATENATE("Distance!d",VLOOKUP(B24,distance,2,FALSE)+23))) -> 5 | C30: =INDIRECT(CONCATENATE("Distance!E",VLOOKUP(B24,distance,2,FALSE)+23)) -> 66 | D30: =IF(OR(C30=0,C30="",C30=" "),"",IF(A24="F",HLOOKUP(C30,females,A25,FALSE),IF(A24="M",HLOOKUP(C30,males,A25,FALSE),""))) -> JASMIN SMITH | E30: Ton | F30: =INDIRECT(CONCATENATE("Distance!h",VLOOKUP(B24,distance,2,FALSE)+23)) -> 4.22 | G30: =IF(OR(F30=0,F30="",F30="NHC",A29=0,A29="",A30=0,A30="",A31=0,A31="",A32=0,A32=""),"",IF(F30>=A29,1,IF(F30>=A30,2,IF(F30>=A31,3,IF(F30>=A32,4,""))))) ->  | H30: =VLOOKUP(I24,eventno,9,FALSE) -> 4.75 | I30: =IF(OR(INDIRECT(CONCATENATE("Distance!j",VLOOKUP(I24,distance,2,FALSE)+23))=0,INDIRECT(CONCATENATE("Distance!j",VLOOKUP(I24,distance,2,FALSE)+23))=""),"",INDIRECT(CONCATENATE("Distance!j",VLOOKUP(I24,distance,2,FALSE)+23))) -> 5 | J30: =INDIRECT(CONCATENATE("Distance!k",VLOOKUP(I24,distance,2,FALSE)+23)) -> 0 | K30: =IF(OR(J30=0,J30="",J30=" "),"",IF(H24="F",HLOOKUP(J30,females,H25,FALSE),IF(H24="M",HLOOKUP(J30,males,H25,FALSE),""))) ->  | M30: =INDIRECT(CONCATENATE("Distance!t",VLOOKUP(I24,distance,2,FALSE)+23)) -> 0 | N30: =IF(OR(M30=0,M30="",M30="NHC",H29=0,H29="",H30=0,H30="",H31=0,H31="",H32=0,H32=""),"",IF(M30>=H29,1,IF(M30>=H30,2,IF(M30>=H31,3,IF(M30>=H32,4,""))))) ->  | O30: =VLOOKUP(P24,eventno,9,FALSE) -> 2.6 | P30: =IF(OR(Distance!$D101=0,Distance!$D101=""),"",Distance!$D101) -> 5 | Q30: =INDIRECT(CONCATENATE("height!e",VLOOKUP(P24,height,2,FALSE)+23)) -> 0 | R30: =IF(OR(Q30=0,Q30="",Q30=" "),"",IF(O24="F",HLOOKUP(Q30,females,O25,FALSE),IF(O24="M",HLOOKUP(Q30,males,O25,FALSE),""))) ->  | T30: =INDIRECT(CONCATENATE("height!h",VLOOKUP(P24,height,2,FALSE)+23)) ->  | U30: =IF(OR(T30=0,T30="",T30="NHC",O29=0,O29="",O30=0,O30="",O31=0,O31="",O32=0,O32=""),"",IF(T30>=O29,1,IF(T30>=O30,2,IF(T30>=O31,3,IF(T30>=O32,4,""))))) ->  | W30: 4 | X30: 0 | Y30: 0
A31: =VLOOKUP(B24,eventno,10,FALSE) -> 4.6 | B31: =IF(OR(INDIRECT(CONCATENATE("Distance!d",VLOOKUP(B24,distance,2,FALSE)+24))=0,INDIRECT(CONCATENATE("Distance!d",VLOOKUP(B24,distance,2,FALSE)+24))=""),"",INDIRECT(CONCATENATE("Distance!d",VLOOKUP(B24,distance,2,FALSE)+24))) -> 6 | C31: =INDIRECT(CONCATENATE("Distance!E",VLOOKUP(B24,distance,2,FALSE)+24)) -> 0 | D31: =IF(OR(C31=0,C31="",C31=" "),"",IF(A24="F",HLOOKUP(C31,females,A25,FALSE),IF(A24="M",HLOOKUP(C31,males,A25,FALSE),""))) ->  | F31: =INDIRECT(CONCATENATE("Distance!h",VLOOKUP(B24,distance,2,FALSE)+24)) -> 0 | G31: =IF(OR(F31=0,F31="",F31="NHC",A29=0,A29="",A30=0,A30="",A31=0,A31="",A32=0,A32=""),"",IF(F31>=A29,1,IF(F31>=A30,2,IF(F31>=A31,3,IF(F31>=A32,4,""))))) ->  | H31: =VLOOKUP(I24,eventno,10,FALSE) -> 4.6 | I31: =IF(OR(INDIRECT(CONCATENATE("Distance!j",VLOOKUP(I24,distance,2,FALSE)+24))=0,INDIRECT(CONCATENATE("Distance!j",VLOOKUP(I24,distance,2,FALSE)+24))=""),"",INDIRECT(CONCATENATE("Distance!j",VLOOKUP(I24,distance,2,FALSE)+24))) -> 6 | J31: =INDIRECT(CONCATENATE("Distance!k",VLOOKUP(I24,distance,2,FALSE)+24)) -> 0 | K31: =IF(OR(J31=0,J31="",J31=" "),"",IF(H24="F",HLOOKUP(J31,females,H25,FALSE),IF(H24="M",HLOOKUP(J31,males,H25,FALSE),""))) ->  | M31: =INDIRECT(CONCATENATE("Distance!t",VLOOKUP(I24,distance,2,FALSE)+24)) -> 0 | N31: =IF(OR(M31=0,M31="",M31="NHC",H29=0,H29="",H30=0,H30="",H31=0,H31="",H32=0,H32=""),"",IF(M31>=H29,1,IF(M31>=H30,2,IF(M31>=H31,3,IF(M31>=H32,4,""))))) ->  | O31: =VLOOKUP(P24,eventno,10,FALSE) -> 2.3 | P31: =IF(OR(Distance!$D102=0,Distance!$D102=""),"",Distance!$D102) -> 6 | Q31: =INDIRECT(CONCATENATE("height!e",VLOOKUP(P24,height,2,FALSE)+24)) -> 0 | R31: =IF(OR(Q31=0,Q31="",Q31=" "),"",IF(O24="F",HLOOKUP(Q31,females,O25,FALSE),IF(O24="M",HLOOKUP(Q31,males,O25,FALSE),""))) ->  | T31: =INDIRECT(CONCATENATE("height!h",VLOOKUP(P24,height,2,FALSE)+24)) ->  | U31: =IF(OR(T31=0,T31="",T31="NHC",O29=0,O29="",O30=0,O30="",O31=0,O31="",O32=0,O32=""),"",IF(T31>=O29,1,IF(T31>=O30,2,IF(T31>=O31,3,IF(T31>=O32,4,""))))) ->  | W31: 0 | X31: 0 | Y31: 0
A32: =VLOOKUP(B24,eventno,11,FALSE) -> 4.35 | B32: =IF(OR(INDIRECT(CONCATENATE("Distance!d",VLOOKUP(B24,distance,2,FALSE)+25))=0,INDIRECT(CONCATENATE("Distance!d",VLOOKUP(B24,distance,2,FALSE)+25))=""),"",INDIRECT(CONCATENATE("Distance!d",VLOOKUP(B24,distance,2,FALSE)+25))) -> 7 | C32: =INDIRECT(CONCATENATE("Distance!E",VLOOKUP(B24,distance,2,FALSE)+25)) -> 0 | D32: =IF(OR(C32=0,C32="",C32=" "),"",IF(A24="F",HLOOKUP(C32,females,A25,FALSE),IF(A24="M",HLOOKUP(C32,males,A25,FALSE),""))) ->  | F32: =INDIRECT(CONCATENATE("Distance!h",VLOOKUP(B24,distance,2,FALSE)+25)) -> 0 | H32: =VLOOKUP(I24,eventno,11,FALSE) -> 4.35 | I32: =IF(OR(INDIRECT(CONCATENATE("Distance!j",VLOOKUP(I24,distance,2,FALSE)+25))=0,INDIRECT(CONCATENATE("Distance!j",VLOOKUP(I24,distance,2,FALSE)+25))=""),"",INDIRECT(CONCATENATE("Distance!j",VLOOKUP(I24,distance,2,FALSE)+25))) -> 7 | J32: =INDIRECT(CONCATENATE("Distance!k",VLOOKUP(I24,distance,2,FALSE)+25)) -> 0 | K32: =IF(OR(J32=0,J32="",J32=" "),"",IF(H24="F",HLOOKUP(J32,females,H25,FALSE),IF(H24="M",HLOOKUP(J32,males,H25,FALSE),""))) ->  | M32: =INDIRECT(CONCATENATE("Distance!t",VLOOKUP(I24,distance,2,FALSE)+25)) -> 0 | O32: =VLOOKUP(P24,eventno,11,FALSE) -> 2 | P32: =IF(OR(Distance!$D103=0,Distance!$D103=""),"",Distance!$D103) -> 7 | Q32: =INDIRECT(CONCATENATE("height!e",VLOOKUP(P24,height,2,FALSE)+25)) -> 0 | R32: =IF(OR(Q32=0,Q32="",Q32=" "),"",IF(O24="F",HLOOKUP(Q32,females,O25,FALSE),IF(O24="M",HLOOKUP(Q32,males,O25,FALSE),""))) ->  | T32: =INDIRECT(CONCATENATE("height!h",VLOOKUP(P24,height,2,FALSE)+25)) ->  | W32: 0 | X32: 0 | Y32: 0
A33: A | B33: =IF(OR(INDIRECT(CONCATENATE("Distance!d",VLOOKUP(B24,distance,2,FALSE)+26))=0,INDIRECT(CONCATENATE("Distance!d",VLOOKUP(B24,distance,2,FALSE)+26))=""),"",INDIRECT(CONCATENATE("Distance!d",VLOOKUP(B24,distance,2,FALSE)+26))) -> 8 | C33: =INDIRECT(CONCATENATE("Distance!E",VLOOKUP(B24,distance,2,FALSE)+26)) -> 0 | D33: =IF(OR(C33=0,C33="",C33=" "),"",IF(A24="F",HLOOKUP(C33,females,A25,FALSE),IF(A24="M",HLOOKUP(C33,males,A25,FALSE),""))) ->  | F33: =INDIRECT(CONCATENATE("Distance!h",VLOOKUP(B24,distance,2,FALSE)+26)) -> 0 | H33: B | I33: =IF(OR(INDIRECT(CONCATENATE("Distance!j",VLOOKUP(I24,distance,2,FALSE)+26))=0,INDIRECT(CONCATENATE("Distance!j",VLOOKUP(I24,distance,2,FALSE)+26))=""),"",INDIRECT(CONCATENATE("Distance!j",VLOOKUP(I24,distance,2,FALSE)+26))) -> 8 | J33: =INDIRECT(CONCATENATE("Distance!k",VLOOKUP(I24,distance,2,FALSE)+26)) -> 0 | K33: =IF(OR(J33=0,J33="",J33=" "),"",IF(H24="F",HLOOKUP(J33,females,H25,FALSE),IF(H24="M",HLOOKUP(J33,males,H25,FALSE),""))) ->  | M33: =INDIRECT(CONCATENATE("Distance!t",VLOOKUP(I24,distance,2,FALSE)+26)) -> 0 | O33: A | P33: =IF(OR(Distance!$D104=0,Distance!$D104=""),"",Distance!$D104) -> 8 | Q33: =INDIRECT(CONCATENATE("height!e",VLOOKUP(P24,height,2,FALSE)+26)) -> 0 | R33: =IF(OR(Q33=0,Q33="",Q33=" "),"",IF(O24="F",HLOOKUP(Q33,females,O25,FALSE),IF(O24="M",HLOOKUP(Q33,males,O25,FALSE),""))) ->  | T33: =INDIRECT(CONCATENATE("height!h",VLOOKUP(P24,height,2,FALSE)+26)) ->  | W33: 0 | X33: 0 | Y33: 0
W34: 0 | X34: =IF(OR(J34=0,J34="",K34=0,K34="",M34=0,O34="",LEFT(M34,1)="D",LEFT(I34,1)="F",LEFT(I34,1)="P"),0,VLOOKUP(I34,points,2,FALSE)) -> 0 | Y34: 0
A35: =VLOOKUP(B35,eventno,5,FALSE) -> F | B35: ='Field Input Sheet'!J21 -> F5 | C35: =CONCATENATE(VLOOKUP(B35,eventno,4,FALSE)," '",A44,"'") -> U15G Pole Vault 'B' | E35: =IF(A38="W","Wind =","") ->  | G35: =IF(OR(F37=0,F37="",$H$6=0,$H$6=""),"",IF($H$4="F",IF(F37>$H$6,"LR",IF(F37=$H$6,"LR=","")))) ->  | H35: =VLOOKUP(I35,eventno,5,FALSE) -> F | I35: ='Field Input Sheet'!R21 -> F6 | J35: =CONCATENATE(VLOOKUP(I35,eventno,4,FALSE)," '",H44,"'") -> U17W Pole Vault 'A' | L35: =IF(H38="W","Wind =","") ->  | N35: =IF(OR(M37=0,M37="",$A$6=0,$A$6=""),"",IF($A$4="F",IF(M37>$A$6,"LR",IF(M37=$A$6,"LR=","")))) ->  | O35: =VLOOKUP(P35,eventno,5,FALSE) -> F | P35: ='Field Input Sheet'!R21 -> F6 | Q35: =CONCATENATE(VLOOKUP(P35,eventno,4,FALSE)," '",O44,"'") -> U17W Pole Vault 'B' | S35: =IF(O38="W","Wind =","") ->  | U35: =IF(OR(T37=0,T37="",$H$6=0,$H$6=""),"",IF($H$4="F",IF(T37>$H$6,"LR",IF(T37=$H$6,"LR=","")))) ->  | W35: =IF(OR(C35=0,C35="",C35=0,C35="",F35=0,F35="",LEFT(F35,1)="D",LEFT(B35,1)="F",LEFT(B35,1)="P"),0,VLOOKUP(B35,points,2,FALSE)-2) -> 0 | X35: 0 | Y35: =IF(OR(Q35=0,Q35="",R35=0,R35="",T35=0,T35="",LEFT(T35,1)="D",LEFT(P35,1)="F",LEFT(P35,1)="P"),0,VLOOKUP(P35,points,2,FALSE)-2) -> 0
A36: =IF(A35="M",VLOOKUP(B35,males,25,FALSE),VLOOKUP(B35,females,25,FALSE)) -> 41 | B36: Posn | C36: Bib | D36: Athlete | E36: Club | F36: Perf | G36: Gr | H36: =IF(H35="M",VLOOKUP(I35,males,25,FALSE),VLOOKUP(I35,females,25,FALSE)) -> 42 | I36: Posn | J36: Bib | K36: Athlete | L36: Club | M36: Perf | N36: Gr | O36: =IF(O35="M",VLOOKUP(P35,males,25,FALSE),VLOOKUP(P35,females,25,FALSE)) -> 42 | P36: Posn | Q36: Bib | R36: Athlete | S36: Club | T36: Perf | U36: Gr | W36: 0 | X36: 0 | Y36: 0
A37: =LEFT(B35,1) -> F | B37: =IF(OR(Distance!$J97=0,Distance!$J97=""),"",Distance!$J97) -> 1 | C37: =IF('Field Input Sheet'!$Z$6="",INDIRECT(CONCATENATE("height!l",VLOOKUP(B35,height,2,FALSE)+19)),VALUE(LEFT('Field Input Sheet'!$Z$6,3))) ->  | D37: =IF(OR(C37=0,C37="",C37=" "),"",IF(A35="F",HLOOKUP(C37,females,A36,FALSE),IF(A35="M",HLOOKUP(C37,males,A36,FALSE),""))) ->  | E37: =IF(OR(C37=0,C37="",C37="-"),"",IF(C37>8,VLOOKUP(C37/11,match_teams,4,FALSE),VLOOKUP(C37,match_teams,4,FALSE))) ->  | F37: =INDIRECT(CONCATENATE("height!z",VLOOKUP(B35,height,2,FALSE)+19)) ->  | G37: =IF(OR(F37=0,F37="",F37="NHC",A40=0,A40="",A41=0,A41="",A42=0,A42="",A43=0,A43=""),"",IF(F37>=A40,1,IF(F37>=A41,2,IF(F37>=A42,3,IF(F37>=A43,4,""))))) ->  | H37: =LEFT(I35,1) -> F | I37: =IF(OR(Distance!$D129=0,Distance!$D129=""),"",Distance!$D129) -> 1 | J37: =IF('Field Input Sheet'!$Z$7="",INDIRECT(CONCATENATE("height!e",VLOOKUP(I35,height,2,FALSE)+19)),VALUE(LEFT('Field Input Sheet'!$Z$7,3))) -> 1 | K37: =IF(OR(J37=0,J37="",J37=" "),"",IF(H35="F",HLOOKUP(J37,females,H36,FALSE),IF(H35="M",HLOOKUP(J37,males,H36,FALSE),""))) -> Ellie Gooding | L37: =IF(OR(J37=0,J37="",J37="-"),"",IF(J37>8,VLOOKUP(J37/11,match_teams,4,FALSE),VLOOKUP(J37,match_teams,4,FALSE))) -> Ash | M37: =INDIRECT(CONCATENATE("height!h",VLOOKUP(I35,height,2,FALSE)+19)) -> 3 | N37: =IF(OR(M37=0,M37="",M37="NHC",H40=0,H40="",H41=0,H41="",H42=0,H42="",H43=0,H43=""),"",IF(M37>=H40,1,IF(M37>=H41,2,IF(M37>=H42,3,IF(M37>=H43,4,""))))) -> 2 | O37: =LEFT(P35,1) -> F | P37: =IF(OR(Distance!$J129=0,Distance!$J129=""),"",Distance!$J129) -> 1 | Q37: =IF('Field Input Sheet'!$Z$7="",INDIRECT(CONCATENATE("height!l",VLOOKUP(P35,height,2,FALSE)+19)),VALUE(LEFT('Field Input Sheet'!$Z$7,3))) -> 11 | R37: =IF(OR(Q37=0,Q37="",Q37=" "),"",IF(O35="F",HLOOKUP(Q37,females,O36,FALSE),IF(O35="M",HLOOKUP(Q37,males,O36,FALSE),""))) -> Lana Foyle | S37: =IF(OR(Q37=0,Q37="",Q37="-"),"",IF(Q37>8,VLOOKUP(Q37/11,match_teams,4,FALSE),VLOOKUP(Q37,match_teams,4,FALSE))) -> Ash | T37: =INDIRECT(CONCATENATE("height!z",VLOOKUP(P35,height,2,FALSE)+19)) -> 2.1 | U37: =IF(OR(T37=0,T37="",T37="NHC",O40=0,O40="",O41=0,O41="",O42=0,O42="",O43=0,O43=""),"",IF(T37>=O40,1,IF(T37>=O41,2,IF(T37>=O42,3,IF(T37>=O43,4,""))))) ->  | W37: 0 | X37: 9 | Y37: 7 | AA37: =IF(VALUE(J37)=0,0,1) -> 1
A38: =VLOOKUP(B35,eventno,6,FALSE) -> 0 | B38: =IF(OR(Distance!$J98=0,Distance!$J98=""),"",Distance!$J98) -> 2 | C38: =INDIRECT(CONCATENATE("height!l",VLOOKUP(B35,height,2,FALSE)+20)) ->  | D38: =IF(OR(C38=0,C38="",C38=" "),"",IF(A35="F",HLOOKUP(C38,females,A36,FALSE),IF(A35="M",HLOOKUP(C38,males,A36,FALSE),""))) ->  | F38: =INDIRECT(CONCATENATE("height!z",VLOOKUP(B35,height,2,FALSE)+20)) ->  | G38: =IF(OR(F38=0,F38="",F38="NHC",A40=0,A40="",A41=0,A41="",A42=0,A42="",A43=0,A43=""),"",IF(F38>=A40,1,IF(F38>=A41,2,IF(F38>=A42,3,IF(F38>=A43,4,""))))) ->  | H38: =VLOOKUP(I35,eventno,6,FALSE) -> 0 | I38: =IF(OR(Distance!$D130=0,Distance!$D130=""),"",Distance!$D130) -> 2 | J38: =INDIRECT(CONCATENATE("height!e",VLOOKUP(I35,height,2,FALSE)+20)) -> 3 | K38: =IF(OR(J38=0,J38="",J38=" "),"",IF(H35="F",HLOOKUP(J38,females,H36,FALSE),IF(H35="M",HLOOKUP(J38,males,H36,FALSE),""))) -> Helena Coleman | L38: B&B | M38: =INDIRECT(CONCATENATE("height!h",VLOOKUP(I35,height,2,FALSE)+20)) -> 2.8 | N38: =IF(OR(M38=0,M38="",M38="NHC",H40=0,H40="",H41=0,H41="",H42=0,H42="",H43=0,H43=""),"",IF(M38>=H40,1,IF(M38>=H41,2,IF(M38>=H42,3,IF(M38>=H43,4,""))))) -> 3 | O38: =VLOOKUP(P35,eventno,6,FALSE) -> 0 | P38: =IF(OR(Distance!$J130=0,Distance!$J130=""),"",Distance!$J130) -> 2 | Q38: =INDIRECT(CONCATENATE("height!l",VLOOKUP(P35,height,2,FALSE)+20)) ->  | R38: =IF(OR(Q38=0,Q38="",Q38=" "),"",IF(O35="F",HLOOKUP(Q38,females,O36,FALSE),IF(O35="M",HLOOKUP(Q38,males,O36,FALSE),""))) ->  | T38: =INDIRECT(CONCATENATE("height!z",VLOOKUP(P35,height,2,FALSE)+20)) ->  | U38: =IF(OR(T38=0,T38="",T38="NHC",O40=0,O40="",O41=0,O41="",O42=0,O42="",O43=0,O43=""),"",IF(T38>=O40,1,IF(T38>=O41,2,IF(T38>=O42,3,IF(T38>=O43,4,""))))) ->  | W38: 0 | X38: 7 | Y38: 0
